Workbook

Sheet План ФХД 2017
L1: Таблица 2
A2: Показатели по поступлениям и выплатам учреждения на 2017 год (по состоянию на 01.01.2017)
A3: МБДОУ "Детский сад № 90 "Цветик-семицветик"
A4: рубли | D4: =D17-K17 -> 68354330
A5: Наименование показателя | B5: Код строки | C5: Код по бюджетной классификации | D5: ВСЕГО | E5: Объем финансового обеспечения, руб. | K5: Поступления от оказания услуг (выполнения работ) на платной основе и от иной приносящей доход деятельности
E6: Субсидия на финансовое обеспечение выполнения муниципального задания | G6: Субсидии, предоставляемые в соответствии с абзацем вторым пункта 1 статьи 78.1 Бюджетного кодекса Российской Федерации | I6: Субсидии на осуществление капитальных вложений
E7: Местный бюджет | F7: Краевой бюджет | G7: Местный бюджет | H7: Краевой бюджет | I7: Местный бюджет | J7: Краевой бюджет | K7: Всего | L7: Из них гранты
A8: 1 | B8: 2 | C8: 3 | D8: 4 | E8: 5 | F8: 6 | G8: 7 | H8: 8 | I8: 9 | J8: 10 | K8: 11 | L8: 12 | M8: МЗ+ИЦ | N8: проверка с вкладкой "Бюджет 2017-2019"
A9: Поступления от доходов, всего: | B9: 100 | C9: х | D9: =SUM(D10:D15) -> 75362820 | E9: =SUM(E10:E15) -> 18552330 | F9: =SUM(F10:F15) -> 46614300 | G9: =SUM(G10:G15) -> 1197600 | H9: =SUM(H10:H15) -> 1990100 | I9: х | J9: х | K9: =SUM(K10:K15) -> 7008490 | L9: =SUM(L10:L15) -> 0 | M9: =SUM(E9:H9) -> 68354330 | N9: =M9-'Бюджет 2017-2019'!O4 -> 0
A10: в том числе: доходы от собственности | B10: 110 | D10: =SUM(E10:K10) -> 0 | E10: х | F10: х | G10: х | H10: х | I10: х | J10: х | K10: х | L10: х | M10: Пост. от 05.02.2016 № 84 в графе 3 по строкам 110 - 180, 300 - 420 указываются коды классификации операций сектора государственного управления (КОСГУ) | N10: Расходный КОСГУ: 130: ДопЭК 810+мун.задание 140: пени, штрафы (например, за нарушение сроков поставки удерживают с поставщика) 180: ДопЭК 820+иные цели
A11: доходы от оказания услуг, работ | B11: 120 | C11: 130 | D11: 72175120 | E11: =E17 -> 18552330 | F11: =F17 -> 46614300 | G11: х | H11: х | I11: х | J11: х | K11: =K17 -> 7008490 | L11: х
A12: доходы от штрафов, пеней, иных сумм принудительного изъятия | B12: 130 | C12: 140 | D12: 0 | E12: х | F12: х | G12: х | H12: х | I12: х | J12: х | L12: х
A13: безвозмездные поступления от наднациональных организаций, правительств иностранных государств, международных финансовых организаций | B13: 140 | D13: =SUM(E13:K13) -> 0 | E13: х | F13: х | G13: х | H13: х | I13: х | J13: х | K13: х | L13: х
A14: иные субсидии, предоставленные из бюджета | B14: 150 | C14: 180 | D14: =SUM(E14:K14) -> 3187700 | E14: х | F14: х | G14: =G17 -> 1197600 | H14: =H17 -> 1990100 | I14: х | J14: х | K14: х | L14: х
A15: прочие доходы | B15: 160 | C15: 180 | D15: 0 | E15: х | F15: х | G15: х | H15: х | I15: х | J15: х | K15: ='Раб.таблица 2017'!D11 -> 0
A16: доходы от операций с активами | B16: 180 | D16: 0 | E16: х | F16: х | G16: х | H16: х | I16: х | J16: х | L16: х
A17: ВЫПЛАТЫ по расходам, всего: | B17: 200 | C17: х | D17: =SUM(D18,D23,D24,D25,D26,D27,D28,D29) -> 75362820 | E17: =SUM(E18,E23,E24,E25,E26,E27,E28,E29) -> 18552330 | F17: =SUM(F18,F23,F24,F25,F26,F27,F28,F29) -> 46614300 | G17: =SUM(G18,G23,G24,G25,G26,G27,G28,G29) -> 1197600 | H17: =SUM(H18,H23,H24,H25,H26,H27,H28,H29) -> 1990100 | I17: х | J17: х | K17: =SUM(K18,K23,K24,K25,K26,K27,K28,K29) -> 7008490 | L17: =SUM(L18,L23,L24,L25,L26,L27,L28,L29) -> 0
A18: в том числе на: выплаты персоналу, всего: | B18: 210 | D18: =SUM(E18:K18) -> 59127830 | E18: =SUM(E19,E22) -> 10969430 | F18: =SUM(F19,F22) -> 45190000 | G18: =SUM(G19,G22) -> 1095200 | H18: =SUM(H19,H22) -> 1873200 | I18: х | J18: х | K18: =SUM(K19,K22) -> 0 | L18: =SUM(L19,L22) -> 0 | M18: Пост. от 05.02.2016 № 84 по строкам 210 - 280 указываются коды видов расходов бюджетов Т.к. расходная часть плана, то ставлю расходный КВР
A19: из них: оплата труда и начисления на выплаты по оплате труда: | B19: 211 | D19: 55910600 | E19: =SUM(E20:E21) -> 10791600 | F19: =SUM(F20:F21) -> 45119000 | G19: =SUM(G20:G21) -> 0 | H19: =SUM(H20:H21) -> 0 | I19: х | J19: х | K19: =SUM(K20:K21) -> 0 | L19: =SUM(L20:L21) -> 0
A20: - оплата труда | C20: 111 | D20: 43209200 | E20: 8326000 | F20: 34883200 | I20: х | J20: х | N20: ДопКР 991
A21: - начисления на выплаты по оплате труда | C21: 119 | D21: 12701400 | E21: 2465600 | F21: 10235800 | I21: х | J21: х | N21: ДопКР 992
A22: иные выплаты персоналу учреждений, за исключением фонда оплаты труда | B22: 212 | C22: 112 | D22: 3217230 | E22: 177830 | F22: 71000 | G22: 1095200 | H22: 1873200 | I22: х | J22: х | N22: ДопКР 911,912,913,917,918,919,921,923,924,952
A23: социальные и иные выплаты населению, всего | B23: 220 | D23: 0 | E23: х | F23: х | G23: х | H23: х | I23: х | J23: х | K23: х | L23: х
A24: уплата налогов, сборов и иных платежей, всего | B24: 230 | C24: 112 | D24: =SUM(E24:K24) -> 0 | H24: х | I24: х | J24: х | N24: ДопКР 962
C25: 244 | D25: 24500 | E25: ='Раб.таблица 2017'!F211 -> 0 | F25: ='Раб.таблица 2017'!F311 -> 24500 | G25: ='Раб.таблица 2017'!F532 -> 0 | H25: х | I25: х | J25: х
A26: безвозмездные перечисления организациям | B26: 240 | D26: 0 | E26: х | F26: х | G26: х | H26: х | I26: х | J26: х | K26: х | L26: х
A27: прочие расходы (кроме расходов на закупку товаров, работ, услуг) | B27: 250 | C27: 244 | D27: 0 | E27: ='Раб.таблица 2017'!F201 -> 0 | F27: х | G27: х | H27: х | I27: х | J27: х | N27: ДопКР 958
C28: 321 | D28: 0 | E28: х | F28: х | G28: х | H28: х | I28: х | J28: х | K28: х | L28: х | N28: ДопКР 993
A29: расходы на закупку товаров, работ, услуг, всего | B29: 260 | C29: 244 | D29: 16210490 | E29: ='Раб.таблица 2017'!D7 -> 7582900 | F29: ='Раб.таблица 2017'!D8+'Раб.таблица 2017'!D9 -> 1399800 | G29: ='Раб.таблица 2017'!D12 -> 102400 | H29: ='Раб.таблица 2017'!D13 -> 116900 | I29: х | J29: х | K29: ='Раб.таблица 2017'!D10+'Раб.таблица 2017'!D11 -> 7008490 | N29: ДопКР 922,925,931,932,933,941,942,943,944,947,951, 953,954,955,956,957,963,971,981,982,983,984,985,995,996
A30: Остаток средств на начало года | B30: 500 | C30: Х | D30: =SUM(E30:K30) -> 0 | E30: ='Раб.таблица 2017'!D14 -> 0 | F30: ='Раб.таблица 2017'!D15+'Раб.таблица 2017'!D16 -> 0 | G30: ='Раб.таблица 2017'!D19 -> 0 | H30: ='Раб.таблица 2017'!D20 -> 0 | I30: х | J30: х | K30: ='Раб.таблица 2017'!D17+'Раб.таблица 2017'!D18 -> 0
A31: Остаток средств на конец года | B31: 600 | C31: Х | D31: =SUM(E31:K31) -> 0 | I31: х | J31: х
A34: Заместитель начальника по экономике и финансам | I34: Е.Г. Трофимова
A35: Директор МКУ "ОК УОиДО" | I35: Л.Э. Ерохина
A38: Засядько Н.В.
A39: 43-72-00*3225

Sheet План ФХД 2018
L1: Таблица 2
A2: Показатели по поступлениям и выплатам учреждения на 2018 год (по состоянию на 01.01.2017)
A3: ='План ФХД 2017'!A3:L3 -> МБДОУ "Детский сад № 90 "Цветик-семицветик"
A4: рубли | D4: =D17-K17 -> 68601730
A5: Наименование показателя | B5: Код строки | C5: Код по бюджетной классификации | D5: ВСЕГО | E5: Объем финансового обеспечения, руб. | K5: Поступления от оказания услуг (выполнения работ) на платной основе и от иной приносящей доход деятельности
E6: Субсидия на финансовое обеспечение выполнения муниципального задания | G6: Субсидии, предоставляемые в соответствии с абзацем вторым пункта 1 статьи 78.1 Бюджетного кодекса Российской Федерации | I6: Субсидии на осуществление капитальных вложений
E7: Местный бюджет | F7: Краевой бюджет | G7: Местный бюджет | H7: Краевой бюджет | I7: Местный бюджет | J7: Краевой бюджет | K7: Всего | L7: Из них гранты
A8: 1 | B8: 2 | C8: 3 | D8: 4 | E8: 5 | F8: 6 | G8: 7 | H8: 8 | I8: 9 | J8: 10 | K8: 11 | L8: 12 | M8: МЗ+ИЦ | N8: проверка с вкладкой "Бюджет 2017-2019"
A9: Поступления от доходов, всего: | B9: 100 | C9: х | D9: =SUM(D10:D15) -> 75732020 | E9: =SUM(E10:E15) -> 18030130 | F9: =SUM(F10:F15) -> 46614300 | G9: =SUM(G10:G15) -> 1967200 | H9: =SUM(H10:H15) -> 1990100 | I9: х | J9: х | K9: =SUM(K10:K15) -> 7130290 | L9: =SUM(L10:L15) -> 0 | M9: =SUM(E9:H9) -> 68601730 | N9: =M9-'Бюджет 2017-2019'!P4 -> 0
A10: в том числе: доходы от собственности | B10: 110 | D10: =SUM(E10:K10) -> 0 | E10: х | F10: х | G10: х | H10: х | I10: х | J10: х | K10: х | L10: х | M10: Пост. от 05.02.2016 № 84 в графе 3 по строкам 110 - 180, 300 - 420 указываются коды классификации операций сектора государственного управления (КОСГУ) | N10: Расходный КОСГУ: 130: ДопЭК 810+мун.задание 140: пени, штрафы (например, за нарушение сроков поставки удерживают с поставщика) 180: ДопЭК 820+иные цели
A11: доходы от оказания услуг, работ | B11: 120 | C11: 130 | D11: 71774720 | E11: =E17 -> 18030130 | F11: =F17 -> 46614300 | G11: х | H11: х | I11: х | J11: х | K11: =K17 -> 7130290 | L11: х
A12: доходы от штрафов, пеней, иных сумм принудительного изъятия | B12: 130 | C12: 140 | D12: 0 | E12: х | F12: х | G12: х | H12: х | I12: х | J12: х | L12: х
A13: безвозмездные поступления от наднациональных организаций, правительств иностранных государств, международных финансовых организаций | B13: 140 | D13: =SUM(E13:K13) -> 0 | E13: х | F13: х | G13: х | H13: х | I13: х | J13: х | K13: х | L13: х
A14: иные субсидии, предоставленные из бюджета | B14: 150 | C14: 180 | D14: =SUM(E14:K14) -> 3957300 | E14: х | F14: х | G14: =G17 -> 1967200 | H14: =H17 -> 1990100 | I14: х | J14: х | K14: х | L14: х
A15: прочие доходы | B15: 160 | C15: 180 | D15: 0 | E15: х | F15: х | G15: х | H15: х | I15: х | J15: х | K15: ='Раб.таблица 2017'!D11 -> 0
A16: доходы от операций с активами | B16: 180 | D16: 0 | E16: х | F16: х | G16: х | H16: х | I16: х | J16: х | L16: х
A17: ВЫПЛАТЫ по расходам, всего: | B17: 200 | C17: х | D17: =SUM(D18,D23,D24,D25,D26,D27,D28,D29) -> 75732020 | E17: =SUM(E18,E23,E24,E25,E26,E27,E28,E29) -> 18030130 | F17: =SUM(F18,F23,F24,F25,F26,F27,F28,F29) -> 46614300 | G17: =SUM(G18,G23,G24,G25,G26,G27,G28,G29) -> 1967200 | H17: =SUM(H18,H23,H24,H25,H26,H27,H28,H29) -> 1990100 | I17: х | J17: х | K17: =SUM(K18,K23,K24,K25,K26,K27,K28,K29) -> 7130290 | L17: =SUM(L18,L23,L24,L25,L26,L27,L28,L29) -> 0
A18: в том числе на: выплаты персоналу, всего: | B18: 210 | D18: =SUM(E18:K18) -> 59236730 | E18: =SUM(E19,E22) -> 11078330 | F18: =SUM(F19,F22) -> 45190000 | G18: =SUM(G19,G22) -> 1095200 | H18: =SUM(H19,H22) -> 1873200 | I18: х | J18: х | K18: =SUM(K19,K22) -> 0 | L18: =SUM(L19,L22) -> 0 | M18: Пост. от 05.02.2016 № 84 по строкам 210 - 280 указываются коды видов расходов бюджетов Т.к. расходная часть плана, то ставлю расходный КВР
A19: из них: оплата труда и начисления на выплаты по оплате труда: | B19: 211 | D19: 56019500 | E19: =SUM(E20:E21) -> 10900500 | F19: =SUM(F20:F21) -> 45119000 | G19: =SUM(G20:G21) -> 0 | H19: =SUM(H20:H21) -> 0 | I19: х | J19: х | K19: =SUM(K20:K21) -> 0 | L19: =SUM(L20:L21) -> 0
A20: - оплата труда | C20: 111 | D20: 43293600 | E20: 8410400 | F20: 34883200 | I20: х | J20: х | N20: ДопКР 991
A21: - начисления на выплаты по оплате труда | C21: 119 | D21: 12725900 | E21: 2490100 | F21: 10235800 | I21: х | J21: х | N21: ДопКР 992
A22: иные выплаты персоналу учреждений, за исключением фонда оплаты труда | B22: 212 | C22: 112 | D22: 3217230 | E22: 177830 | F22: 71000 | G22: 1095200 | H22: 1873200 | I22: х | J22: х | N22: ДопКР 911,912,913,917,918,919,921,923,924,952
A23: социальные и иные выплаты населению, всего | B23: 220 | D23: 0 | E23: х | F23: х | G23: х | H23: х | I23: х | J23: х | K23: х | L23: х
A24: уплата налогов, сборов и иных платежей, всего | B24: 230 | C24: 112 | D24: =SUM(E24:K24) -> 0 | H24: х | I24: х | J24: х | N24: ДопКР 962
C25: 244 | D25: 24500 | E25: ='СГОЗ 2018-2019'!E204 -> 0 | F25: ='СГОЗ 2018-2019'!E304 -> 24500 | G25: ='СГОЗ 2018-2019'!E525 -> 0 | H25: х | I25: х | J25: х
A26: безвозмездные перечисления организациям | B26: 240 | D26: 0 | E26: х | F26: х | G26: х | H26: х | I26: х | J26: х | K26: х | L26: х
A27: прочие расходы (кроме расходов на закупку товаров, работ, услуг) | B27: 250 | C27: 244 | D27: 0 | E27: ='СГОЗ 2018-2019'!E194 -> 0 | F27: х | G27: х | H27: х | I27: х | J27: х | N27: ДопКР 958
C28: 321 | D28: 0 | E28: х | F28: х | G28: х | H28: х | I28: х | J28: х | K28: х | L28: х | N28: ДопКР 993
A29: расходы на закупку товаров, работ, услуг, всего | B29: 260 | C29: 244 | D29: 16470790 | E29: ='СГОЗ 2018-2019'!D7 -> 6951800 | F29: ='СГОЗ 2018-2019'!D8+'СГОЗ 2018-2019'!D9 -> 1399800 | G29: ='СГОЗ 2018-2019'!D12 -> 872000 | H29: ='СГОЗ 2018-2019'!D13 -> 116900 | I29: х | J29: х | K29: ='СГОЗ 2018-2019'!D10+'СГОЗ 2018-2019'!D11 -> 7130290 | N29: ДопКР 922,925,931,932,933,941,942,943,944,947,951, 953,954,955,956,957,963,971,981,982,983,984,985,995,996
A30: Остаток средств на начало года | B30: 500 | C30: Х | I30: х | J30: х
A31: Остаток средств на конец года | B31: 600 | C31: Х | I31: х | J31: х
A34: ='План ФХД 2017'!A34 -> Заместитель начальника по экономике и финансам | I34: ='План ФХД 2017'!I34 -> Е.Г. Трофимова
A35: ='План ФХД 2017'!A35 -> Директор МКУ "ОК УОиДО" | I35: ='План ФХД 2017'!I35 -> Л.Э. Ерохина
A38: Засядько Н.В.
A39: 43-72-00*3225

Sheet План ФХД 2019
L1: Таблица 2
A2: Показатели по поступлениям и выплатам учреждения на 2019 год (по состоянию на 01.01.2017)
A3: ='План ФХД 2017'!A3:L3 -> МБДОУ "Детский сад № 90 "Цветик-семицветик"
A4: рубли | D4: =D17-K17 -> 67849330
A5: Наименование показателя | B5: Код строки | C5: Код по бюджетной классификации | D5: ВСЕГО | E5: Объем финансового обеспечения, руб. | K5: Поступления от оказания услуг (выполнения работ) на платной основе и от иной приносящей доход деятельности
E6: Субсидия на финансовое обеспечение выполнения муниципального задания | G6: Субсидии, предоставляемые в соответствии с абзацем вторым пункта 1 статьи 78.1 Бюджетного кодекса Российской Федерации | I6: Субсидии на осуществление капитальных вложений
E7: Местный бюджет | F7: Краевой бюджет | G7: Местный бюджет | H7: Краевой бюджет | I7: Местный бюджет | J7: Краевой бюджет | K7: Всего | L7: Из них гранты
A8: 1 | B8: 2 | C8: 3 | D8: 4 | E8: 5 | F8: 6 | G8: 7 | H8: 8 | I8: 9 | J8: 10 | K8: 11 | L8: 12 | M8: МЗ+ИЦ | N8: проверка с вкладкой "Бюджет 2017-2019"
A9: Поступления от доходов, всего: | B9: 100 | C9: х | D9: =SUM(D10:D15) -> 74979620 | E9: =SUM(E10:E15) -> 18030130 | F9: =SUM(F10:F15) -> 46614300 | G9: =SUM(G10:G15) -> 1214800 | H9: =SUM(H10:H15) -> 1990100 | I9: х | J9: х | K9: =SUM(K10:K15) -> 7130290 | L9: =SUM(L10:L15) -> 0 | M9: =SUM(E9:H9) -> 67849330 | N9: =M9-'Бюджет 2017-2019'!Q4 -> 0
A10: в том числе: доходы от собственности | B10: 110 | D10: =SUM(E10:K10) -> 0 | E10: х | F10: х | G10: х | H10: х | I10: х | J10: х | K10: х | L10: х | M10: Пост. от 05.02.2016 № 84 в графе 3 по строкам 110 - 180, 300 - 420 указываются коды классификации операций сектора государственного управления (КОСГУ) | N10: Расходный КОСГУ: 130: ДопЭК 810+мун.задание 140: пени, штрафы (например, за нарушение сроков поставки удерживают с поставщика) 180: ДопЭК 820+иные цели
A11: доходы от оказания услуг, работ | B11: 120 | C11: 130 | D11: 71774720 | E11: =E17 -> 18030130 | F11: =F17 -> 46614300 | G11: х | H11: х | I11: х | J11: х | K11: =K17 -> 7130290 | L11: х
A12: доходы от штрафов, пеней, иных сумм принудительного изъятия | B12: 130 | C12: 140 | D12: 0 | E12: х | F12: х | G12: х | H12: х | I12: х | J12: х | L12: х
A13: безвозмездные поступления от наднациональных организаций, правительств иностранных государств, международных финансовых организаций | B13: 140 | D13: =SUM(E13:K13) -> 0 | E13: х | F13: х | G13: х | H13: х | I13: х | J13: х | K13: х | L13: х
A14: иные субсидии, предоставленные из бюджета | B14: 150 | C14: 180 | D14: =SUM(E14:K14) -> 3204900 | E14: х | F14: х | G14: =G17 -> 1214800 | H14: =H17 -> 1990100 | I14: х | J14: х | K14: х | L14: х
A15: прочие доходы | B15: 160 | C15: 180 | D15: 0 | E15: х | F15: х | G15: х | H15: х | I15: х | J15: х | K15: ='Раб.таблица 2017'!D11 -> 0
A16: доходы от операций с активами | B16: 180 | D16: 0 | E16: х | F16: х | G16: х | H16: х | I16: х | J16: х | L16: х
A17: ВЫПЛАТЫ по расходам, всего: | B17: 200 | C17: х | D17: =SUM(D18,D23,D24,D25,D26,D27,D28,D29) -> 74979620 | E17: =SUM(E18,E23,E24,E25,E26,E27,E28,E29) -> 18030130 | F17: =SUM(F18,F23,F24,F25,F26,F27,F28,F29) -> 46614300 | G17: =SUM(G18,G23,G24,G25,G26,G27,G28,G29) -> 1214800 | H17: =SUM(H18,H23,H24,H25,H26,H27,H28,H29) -> 1990100 | I17: х | J17: х | K17: =SUM(K18,K23,K24,K25,K26,K27,K28,K29) -> 7130290 | L17: =SUM(L18,L23,L24,L25,L26,L27,L28,L29) -> 0
A18: в том числе на: выплаты персоналу, всего: | B18: 210 | D18: =SUM(E18:K18) -> 59236730 | E18: =SUM(E19,E22) -> 11078330 | F18: =SUM(F19,F22) -> 45190000 | G18: =SUM(G19,G22) -> 1095200 | H18: =SUM(H19,H22) -> 1873200 | I18: х | J18: х | K18: =SUM(K19,K22) -> 0 | L18: =SUM(L19,L22) -> 0 | M18: Пост. от 05.02.2016 № 84 по строкам 210 - 280 указываются коды видов расходов бюджетов Т.к. расходная часть плана, то ставлю расходный КВР
A19: из них: оплата труда и начисления на выплаты по оплате труда: | B19: 211 | D19: 56019500 | E19: =SUM(E20:E21) -> 10900500 | F19: =SUM(F20:F21) -> 45119000 | G19: =SUM(G20:G21) -> 0 | H19: =SUM(H20:H21) -> 0 | I19: х | J19: х | K19: =SUM(K20:K21) -> 0 | L19: =SUM(L20:L21) -> 0
A20: - оплата труда | C20: 111 | D20: 43293600 | E20: 8410400 | F20: 34883200 | I20: х | J20: х | N20: ДопКР 991
A21: - начисления на выплаты по оплате труда | C21: 119 | D21: 12725900 | E21: 2490100 | F21: 10235800 | I21: х | J21: х | N21: ДопКР 992
A22: иные выплаты персоналу учреждений, за исключением фонда оплаты труда | B22: 212 | C22: 112 | D22: 3217230 | E22: 177830 | F22: 71000 | G22: 1095200 | H22: 1873200 | I22: х | J22: х | N22: ДопКР 911,912,913,917,918,919,921,923,924,952
A23: социальные и иные выплаты населению, всего | B23: 220 | D23: 0 | E23: х | F23: х | G23: х | H23: х | I23: х | J23: х | K23: х | L23: х
A24: уплата налогов, сборов и иных платежей, всего | B24: 230 | C24: 112 | D24: =SUM(E24:K24) -> 0 | H24: х | I24: х | J24: х | N24: ДопКР 962
C25: 244 | D25: 24500 | E25: ='СГОЗ 2018-2019'!F204 -> 0 | F25: ='СГОЗ 2018-2019'!F304 -> 24500 | G25: ='СГОЗ 2018-2019'!F525 -> 0 | H25: х | I25: х | J25: х
A26: безвозмездные перечисления организациям | B26: 240 | D26: 0 | E26: х | F26: х | G26: х | H26: х | I26: х | J26: х | K26: х | L26: х
A27: прочие расходы (кроме расходов на закупку товаров, работ, услуг) | B27: 250 | C27: 244 | D27: 0 | E27: ='СГОЗ 2018-2019'!F194 -> 0 | F27: х | G27: х | H27: х | I27: х | J27: х | N27: ДопКР 958
C28: 321 | D28: 0 | E28: х | F28: х | G28: х | H28: х | I28: х | J28: х | K28: х | L28: х | N28: ДопКР 993
A29: расходы на закупку товаров, работ, услуг, всего | B29: 260 | C29: 244 | D29: =SUM(E29:K29) -> 15718390 | E29: ='СГОЗ 2018-2019'!E7 -> 6951800 | F29: ='СГОЗ 2018-2019'!E8+'СГОЗ 2018-2019'!E9 -> 1399800 | G29: ='СГОЗ 2018-2019'!E12 -> 119600 | H29: ='СГОЗ 2018-2019'!E13 -> 116900 | I29: х | J29: х | K29: ='СГОЗ 2018-2019'!E10+'СГОЗ 2018-2019'!E11 -> 7130290 | N29: ДопКР 922,925,931,932,933,941,942,943,944,947,951, 953,954,955,956,957,963,971,981,982,983,984,985,995,996
A30: Остаток средств на начало года | B30: 500 | C30: Х | I30: х | J30: х
A31: Остаток средств на конец года | B31: 600 | C31: Х | I31: х | J31: х
A34: ='План ФХД 2017'!A34 -> Заместитель начальника по экономике и финансам | I34: ='План ФХД 2017'!I34 -> Е.Г. Трофимова
A35: ='План ФХД 2017'!A35 -> Директор МКУ "ОК УОиДО" | I35: ='План ФХД 2017'!I35 -> Л.Э. Ерохина
A38: Засядько Н.В.
A39: 43-72-00*3225

Sheet Закупка ТРУ
L1: Таблица 2.1
A2: Показатели выплат по расходам
A3: на закупку товаров, работ, услуг учреждения на 2017-2019 гг.
A4: ='[13]План ФХД 2017'!A3:L3 -> МБДОУ "Детский сад № 90 "Цветик-семицветик"
A6: Наименование показателя | B6: Код строки | C6: Год начала закупки | D6: Сумма выплат по расходам на закупку товаров, работ и услуг, руб. (с точностью до двух знаков после запятой - 0,00)
D7: всего на закупки | G7: в том числе:
G8: в соответствии с Федеральным законом от 05.04.2013 N 44-ФЗ "О контрактной системе в сфере закупок товаров, работ, услуг для обеспечения государственных и муниципальных нужд" | J8: в соответствии с Федеральным законом от 18.07.2011 N 223-ФЗ "О закупках товаров, работ, услуг отдельными видами юридических лиц" | N8: всего на закупки
D9: на 2017 г. очередной финансовый год | E9: на 2018 г. 1-й год планового периода | F9: на 2019 г. 2-й год планового периода | G9: на 2017 г. очередной финансовый год | H9: на 2018 г. 1-й год планового периода | I9: на 2019 г. 2-й год планового периода | J9: на 2017 г. очередной финансовый год | K9: на 2018 г. 1-й год планового периода | L9: на 2019 г. 1-й год планового периода | N9: на 2017 г. очередной финансовый год | O9: на 2018 г. 1-й год планового периода | P9: на 2019 г. 2-й год планового периода
A10: 1 | B10: 2 | C10: 3 | D10: 4 | E10: 5 | F10: 6 | G10: 7 | H10: 8 | I10: 9 | J10: 10 | K10: 11 | L10: 12 | N10: КОНТРОЛЬНЫЕ СУММЫ!!!
A11: Выплаты по расходам на закупку товаров, работ, услуг всего: | B11: 0001 | C11: X | D11: =D12+D13 -> 16210490 | E11: 16470790 | F11: 15718390 | G11: 16210490 | H11: 16470790 | I11: 15718390 | J11: 0 | K11: 0 | L11: 0 | N11: ='[13]План ФХД 2017'!D29+'[13]План ФХД 2017'!D30 -> 16210490 | O11: 16470790 | P11: 15718390
A12: в том числе: на оплату контрактов, заключенных до начала очередного финансового года | B12: 1001 | C12: 2016 | D12: =SUM(G12,J12) -> 4610878.69 | E12: 3522283.73 | F12: 1412748.93 | G12: 4610878.69 | H12: 3522283.73 | I12: 1412748.93 | N12: Постановление Администрации города Норильска от 05.02.2016 № 84:
A13: на закупку товаров работ, услуг по году начала закупки | B13: 2001 | C13: 2017 | D13: 11599611.31 | E13: 12948506.27 | F13: 14305641.07 | G13: =N11-G12 -> 11599611.31 | H13: =O11-H12 -> 12948506.27 | I13: =P11-I12 -> 14305641.07 | N13: Раздел 2. Требования к составлению Плана Пункт 2.5.1. В Таблице 2: Абзац 5: При этом, плановые показатели по расходам по строке 260 графы 4 на соответствующий финансовый год должны быть равны показателям граф 4-6 по строке 0001 Таблицы 2.1.
A14: Заведующий МБДОУ "Детский сад № 90 "Цветик-семицветик" | I14: З.Н. Кисаева
A17: Татарникова Ю.В.
A18: 42-98-29

Sheet Раб.таблица 2017
A1: 1. !!! ДОБАВЛЯТЬ И УДАЛЯТЬ СТРОКИ СТРОГО ЗАПРЕЩЕНО
A2: 2. При акцептовании счета, указывать КЦСР+ДопКР, по которому должна быть произведена оплата
A3: 3. Расчеты представлены по состоянию на 01.01.2017
A5: Вспомогательныя таблица для формирования СГОЗ (за исключением ДопКР 912,921,923,924,952,958,962,993)
A6: ИТОГО сумма для СГОЗ на 2017 год | D6: =SUM(D7:D19) -> 16210490
A7: Местный бюджет (субсидия на выполнение мун. задания) | D7: =$F$30 -> 7582900
A8: Краевой бюджет в части обеспечения деятельности административного и учебно-вспомогательного персонала (субсидия на выполнение мун. задания) | D8: =$F$239 -> 623800
A9: Краевой бюджет в части обеспечения деятельности педагогического персонала и воспитанников (субсидия на выполнение мун. задания) | D9: =$F$337 -> 776000
A10: Поступления от оказания услуг (выполнения работ) на платной основе и от иной приносящей доход деятельности, Код доп.ЭК 810 | D10: =$F$440 -> 7008490
A11: Безвозмездные поступления, Код доп.ЭК 820 | D11: =$I$440 -> 0
A12: Субсидии на иные цели (местный бюджет) | D12: =$H$493+$I$493+$J$493 -> 102400
A13: Субсидии на иные цели (краевой бюджет) | D13: =$L$493 -> 116900
A14: Остатки пр. лет, мун. задание (местный бюджет) | D14: =$G$30 -> 0
A15: Остатки пр. лет, мун. задание (краевой бюджет АУП+УВП) | D15: =$G$239 -> 0
A16: Остатки пр. лет, мун. задание (краевой бюджет пед. персонал) | D16: =$G$337 -> 0
A17: Остатки пр. лет (доходы от оказания платных услуг, Код доп.ЭК 810) | D17: =$G$440 -> 0
A18: Остатки пр. лет (безвозмездные поступления, Код доп.ЭК 820) | D18: =$H$440 -> 0
A19: Остатки пр. лет, субсидия на иные цели (местный бюджет) | D19: =$G$493 -> 0
A20: Остатки пр. лет, субсидия на иные цели (краевой бюджет) | D20: =$H$493 -> 0 | E20: МЗ+ИЦ (проверка с вкладкой "Бюджет 2017-2019")
A21: ИТОГО МЗ+ИЦ | D21: =D7+D8+D9+D12+D13 -> 9202000 | E21: =D21-'Бюджет 2017-2019'!O5 -> 0
A23: Рабочая таблица по финансовым обьемам, предоставленным на 2017 год
A24: ='План ФХД 2017'!A3:L3 -> МБДОУ "Детский сад № 90 "Цветик-семицветик"
A25: I блок - Субсидии на выполнение мун. задания (местный бюджет)
A26: Наименование показателя | B26: КОСГУ | C26: Доп. КР | D26: КБК | E26: !!!! Не изменять показатели данной графы Утвержденные ассигнования на 2017 год, местный бюджет Субсидии на финансовое обеспечение выполнения муниципального задания Код доп.ЭК 000, доп.ФК 70000, КЦСР 0210101110 | F26: !!! Изменения между услугами вносить в данной графе Ассигнования с учетом изменений на 2017 год, местный бюджет Субсидии на финансовое обеспечение выполнения муниципального задания Код доп.ЭК 000, доп.ФК 70000, КЦСР 0210101110 | G26: Финансирование на начало года (переходящие остатки прошлых лет на лицевых счетах) Код доп.ЭК 831 | H26: Сумма по заключенному договору | I26: Экономия/ дефицит по заключенному договору, +/- графа 6 + графа 7 - графа 8 | J26: !!! Счета, акцептованные руководителем и переданные бухгалтеру на оплату
J27: Январь | K27: Февраль | L27: Март | M27: ИТОГО I квартал | N27: Апрель | O27: Май | P27: Июнь | Q27: ИТОГО II квартал | R27: Июль | S27: Август | T27: Сентябрь | U27: ИТОГО III квартал | V27: Октябрь | W27: Ноябрь | X27: Декабрь | Y27: ИТОГО IV квартал | Z27: Остаток денежных средств (без учета приобретений ТМЦ - КОСГУ 310, 340)
A28: 1 | B28: 2 | C28: 3 | D28: 4 | E28: 5 | F28: 6 | G28: 7 | H28: 8 | I28: 9 | J28: 10 | K28: 11 | L28: 12 | M28: 13 | N28: 14 | O28: 15 | P28: 16 | Q28: 17 | R28: 18 | S28: 19 | T28: 20 | U28: 21 | V28: 22 | W28: 23 | X28: 24 | Y28: 25 | Z28: 26
A29: ВЫПЛАТЫ ВСЕГО | E29: =E31+E226 -> 7689000 | F29: =F31+F226 -> 7689000 | G29: =G31+G226 -> 0 | H29: =H31 -> 1798823.52 | I29: 0 | J29: =J31 -> 0 | K29: =K31 -> 0 | L29: =L31 -> 0 | M29: 0 | N29: 0 | O29: 0 | P29: 0 | Q29: 0 | R29: 0 | S29: 0 | T29: 0 | U29: 0 | V29: 0 | W29: 0 | X29: 0 | Y29: 0 | Z29: =Z31 -> 6439000
A30: ВЫПЛАТЫ ВСЕГО для СГОЗ | E30: =E39+E58+E60+E64+E66+E142+E143+E154+E199+E200+E202+E206+E223+E227+E229+E198 -> 7582900 | F30: =F39+F58+F60+F64+F66+F142+F143+F154+F199+F200+F202+F206+F223+F227+F229+F198 -> 7582900 | G30: =G39+G58+G60+G64+G66+G142+G143+G154+G199+G200+G202+G206+G223+G227+G229+G198 -> 0 | H30: х | I30: х | J30: х | K30: х | L30: х | M30: х | N30: х | O30: х | P30: х | Q30: х | R30: х | S30: х | T30: х | U30: х | V30: х | W30: х | X30: х | Y30: х | Z30: х
B31: 200 | E31: =E32+E207+E210 -> 6439000 | F31: 6439000 | G31: 0 | H31: 1798823.52 | I31: 0 | J31: 0 | K31: 0 | L31: =L32+L207+L210 -> 0 | M31: 0 | N31: 0 | O31: 0 | P31: 0 | Q31: 0 | R31: 0 | S31: 0 | T31: 0 | U31: 0 | V31: 0 | W31: =W32+W207+W210 -> 0 | X31: 0 | Y31: 0 | Z31: =F31-Y31-U31-Q31-M31 -> 6439000
A32: Оплата работ, услуг, всего, из них: | B32: 220 | E32: =E33+E39+E58+E60+E64+E66+E141 -> 6427000 | F32: 6427000 | G32: 0 | H32: 1798823.52 | I32: 0 | J32: 0 | K32: 0 | L32: 0 | M32: 0 | N32: 0 | O32: 0 | P32: 0 | Q32: 0 | R32: 0 | S32: 0 | T32: 0 | U32: 0 | V32: 0 | W32: 0 | X32: 0 | Y32: 0 | Z32: =F32-Y32-U32-Q32-M32 -> 6427000
A33: Прочие выплаты, в том числе: | B33: 212 | E33: =SUM(E34:E38) -> 106100 | F33: 106100 | G33: 0 | H33: 0 | I33: 0 | J33: 0 | K33: 0 | L33: 0 | M33: 0 | N33: 0 | O33: 0 | P33: 0 | Q33: 0 | R33: 0 | S33: 0 | T33: 0 | U33: 0 | V33: 0 | W33: 0 | X33: 0 | Y33: 0 | Z33: =F33-Y33-U33-Q33-M33 -> 106100
A34: Возмещение работникам (сотрудникам) расходов, связанных со служебными командировками (суточные при служебных командировках) | C34: 912 | D34: 06507010210101110112 | E34: ='212 командировки'!$F$13 -> 0 | F34: =E34 -> 0 | M34: =SUM(J34:L34) -> 0 | Q34: =SUM(N34:P34) -> 0 | U34: =SUM(R34:T34) -> 0 | Y34: =SUM(V34:X34) -> 0 | Z34: =F34-Y34-U34-Q34-M34 -> 0
A35: Оплата проезда по служебным командировкам (в т.ч. студентам, обучающимся по заочной форме обучения, при проезде к месту нахождения учебного заведения) | C35: 921 | D35: 06507010210101110112 | E35: ='212 командировки'!$H$13 -> 106100 | F35: =E35 -> 106100 | M35: =SUM(J35:L35) -> 0 | Q35: =SUM(N35:P35) -> 0 | U35: =SUM(R35:T35) -> 0 | Y35: =SUM(V35:X35) -> 0 | Z35: 106100
A36: Оплата услуг по перевозке несовершеннолетних и сопровождающих их лиц | C36: 923 | D36: 06507010210101110112 | F36: =E36 -> 0 | M36: =SUM(J36:L36) -> 0 | Q36: =SUM(N36:P36) -> 0 | U36: =SUM(R36:T36) -> 0 | Y36: =SUM(V36:X36) -> 0 | Z36: 0
A37: Оплата проезда сопровождающих лиц, являющихся штатными сотрудниками учреждений | C37: 924 | D37: 06507010210101110112 | F37: =E37 -> 0 | M37: =SUM(J37:L37) -> 0 | Q37: =SUM(N37:P37) -> 0 | U37: =SUM(R37:T37) -> 0 | Y37: =SUM(V37:X37) -> 0 | Z37: 0
A38: Проживание в служебных командировках | C38: 952 | D38: 06507010210101110112 | E38: ='212 командировки'!$K$13 -> 0 | F38: =E38 -> 0 | M38: =SUM(J38:L38) -> 0 | Q38: =SUM(N38:P38) -> 0 | U38: =SUM(R38:T38) -> 0 | Y38: =SUM(V38:X38) -> 0 | Z38: 0
A39: Услуги связи, в том числе: | B39: 221 | E39: =E40 -> 0 | F39: =F40 -> 0 | G39: =G40 -> 0 | H39: =H40 -> 80200 | I39: =I40 -> 0 | J39: =J40 -> 0 | K39: 0 | L39: 0 | M39: =M40 -> 0 | N39: 0 | O39: 0 | P39: 0 | Q39: 0 | R39: 0 | S39: 0 | T39: 0 | U39: 0 | V39: 0 | W39: 0 | X39: 0 | Y39: 0 | Z39: =F39-Y39-U39-Q39-M39 -> 0
A40: Услуги связи, в том числе: | C40: 925 | D40: 06507010210101110244 | E40: =SUM(E41:E57) -> 0 | F40: 0 | G40: 0 | H40: 80200 | I40: 0 | J40: 0 | K40: 0 | L40: 0 | M40: 0 | N40: 0 | O40: 0 | P40: 0 | Q40: 0 | R40: 0 | S40: 0 | T40: 0 | U40: 0 | V40: 0 | W40: 0 | X40: 0 | Y40: 0 | Z40: 0
A41: Телекоммуникационные услуги связи (ГТС) | F41: =E41 -> 0 | M41: =SUM(J41:L41) -> 0 | Q41: =SUM(N41:P41) -> 0 | U41: =SUM(R41:T41) -> 0 | Y41: =SUM(V41:X41) -> 0 | Z41: 0
A42: Услуги внутризоновой телефонной связи | F42: =E42 -> 0 | H42: 32200 | M42: =SUM(J42:L42) -> 0 | Q42: 0 | U42: 0 | Y42: =SUM(V42:X42) -> 0 | Z42: 0
A43: Услуги автоматической междугородней и международней телефонной связи | F43: 0 | M43: 0 | Q43: 0 | U43: 0 | Y43: 0 | Z43: 0
A44: Услуги связи по тарифному плану "Квалифицированный Голд" | F44: =E44 -> 0 | M44: 0 | Q44: 0 | U44: 0 | Y44: 0 | Z44: 0
A45: Услуги сотовой связи | F45: 0 | M45: 0 | Q45: 0 | U45: 0 | Y45: 0 | Z45: 0
A46: Прочие расходы (восстан-е линии связи, уст-ка доп. телефонов, предост-е доступа к мест. телеф. связи и др.) | F46: 0 | M46: 0 | Q46: 0 | U46: 0 | Y46: 0 | Z46: 0
A47: Марочная продукция (маркированные конверты) | F47: =E47 -> 0 | M47: 0 | Q47: 0 | U47: 0 | Y47: 0 | Z47: 0
A48: Предоплата за пользование ячейкой абонементного почтового шкафа | F48: =E48 -> 0 | M48: 0 | Q48: 0 | U48: 0 | Y48: 0 | Z48: 0
A49: Прочие услуги (экспресс-почта, бандероли, ценные посылки, телеграммы и др.) | F49: 0 | M49: 0 | Q49: 0 | U49: 0 | Y49: 0 | Z49: 0
A50: Заказные письма | F50: 0 | M50: 0 | Q50: 0 | U50: 0 | Y50: 0 | Z50: 0
A51: Абон. обслужив-е (электронный документооборот) | F51: 0 | M51: 0 | Q51: 0 | U51: 0 | Y51: 0 | Z51: 0
A52: Подключение к глобальной информационной сети Интернет, абонентская плата | F52: 0 | H52: 48000 | M52: 0 | Q52: 0 | U52: 0 | Y52: 0 | Z52: 0
F53: 0 | M53: 0 | Q53: 0 | U53: 0 | Y53: 0 | Z53: 0
F54: 0 | M54: 0 | Q54: 0 | U54: 0 | Y54: 0 | Z54: 0
F55: 0 | M55: 0 | Q55: 0 | U55: 0 | Y55: 0 | Z55: 0
F56: 0 | M56: 0 | Q56: 0 | U56: 0 | Y56: 0 | Z56: 0
F57: 0 | M57: 0 | Q57: 0 | U57: 0 | Y57: 0 | Z57: 0
A58: Транспортные услуги, в том числе: | B58: 222 | E58: =SUM(E59:E59) -> 0 | F58: 0 | G58: 0 | H58: 0 | I58: 0 | J58: 0 | K58: 0 | L58: 0 | M58: 0 | N58: 0 | O58: 0 | P58: 0 | Q58: 0 | R58: 0 | S58: 0 | T58: 0 | U58: 0 | V58: 0 | W58: 0 | X58: 0 | Y58: =SUM(Y59:Y59) -> 0 | Z58: =F58-Y58-U58-Q58-M58 -> 0
A59: Прочие транспортные расходы | C59: 922 | D59: 06507010210101110244 | F59: =E59 -> 0 | M59: 0 | Q59: 0 | U59: 0 | Y59: 0 | Z59: =F59-Y59-U59-Q59-M59 -> 0
A60: Коммунальные услуги, в том числе: | B60: 223 | E60: =SUM(E61:E63) -> 2573400 | F60: =SUM(F61:F63) -> 2573400 | G60: =SUM(G61:G63) -> 0 | H60: =SUM(H61:H63) -> 1504832.88 | I60: =SUM(I61:I63) -> 0 | J60: =SUM(J61:J63) -> 0 | K60: 0 | L60: 0 | M60: 0 | N60: 0 | O60: 0 | P60: 0 | Q60: 0 | R60: 0 | S60: 0 | T60: 0 | U60: 0 | V60: =SUM(V61:V63) -> 0 | W60: 0 | X60: 0 | Y60: 0 | Z60: =F60-Y60-U60-Q60-M60 -> 2573400
A61: Оплата отопления и технологических нужд, а также горячего водоснабжения | C61: 931 | D61: 06507010210101110244 | E61: ='223 коммуналка'!$E$10 -> 1102000 | F61: =E61 -> 1102000 | M61: 0 | Q61: 0 | U61: 0 | Y61: 0 | Z61: 1102000
A62: Потребление электроэнергии | C62: 932 | D62: 06507010210101110244 | E62: ='223 коммуналка'!$E$19 -> 376800 | F62: =E62 -> 376800 | H62: 420316 | M62: 0 | Q62: 0 | U62: 0 | Y62: 0 | Z62: 376800
A63: Водоснабжение, канализация | C63: 933 | D63: 06507010210101110244 | E63: ='223 коммуналка'!$E$27 -> 1094600 | F63: =E63 -> 1094600 | H63: =475006.63+609510.25 -> 1084516.88 | M63: 0 | Q63: 0 | U63: 0 | Y63: 0 | Z63: 1094600
A64: Арендная плата за пользование имуществом, в том числе: | B64: 224 | E64: =E65 -> 0 | F64: =F65 -> 0 | G64: =G65 -> 0 | H64: =H65 -> 0 | I64: 0 | J64: 0 | K64: 0 | L64: 0 | M64: 0 | N64: 0 | O64: 0 | P64: 0 | Q64: 0 | R64: 0 | S64: 0 | T64: 0 | U64: 0 | V64: 0 | W64: 0 | X64: 0 | Y64: 0 | Z64: =F64-Y64-U64-Q64-M64 -> 0
A65: Арендная плата за пользование имуществом | C65: 926 | D65: 06507010210101110244 | F65: =E65 -> 0 | M65: 0 | Q65: 0 | U65: 0 | Y65: 0 | Z65: 0
A66: Работы, услуги по содержанию имущества, в том числе: | B66: 225 | E66: =E67+E95+E111+E112+E113 -> 2453300 | F66: 2453300 | G66: 0 | H66: 213790.64 | I66: 0 | J66: 0 | K66: 0 | L66: 0 | M66: 0 | N66: 0 | O66: 0 | P66: 0 | Q66: 0 | R66: 0 | S66: 0 | T66: 0 | U66: 0 | V66: 0 | W66: 0 | X66: 0 | Y66: 0 | Z66: =F66-Y66-U66-Q66-M66 -> 2453300
A67: Содержание и техническое обслуживание помещений, в том числе: | C67: 941 | D67: 06507010210101110244 | E67: =SUM(E68,E69,E77:E94) -> 1700000 | F67: =SUM(F68,F69,F77:F94) -> 1700000 | G67: =SUM(G68,G69,G77:G94) -> 0 | H67: 33538 | I67: 0 | J67: 0 | K67: 0 | L67: 0 | M67: 0 | N67: 0 | O67: 0 | P67: 0 | Q67: 0 | R67: 0 | S67: 0 | T67: 0 | U67: 0 | V67: 0 | W67: 0 | X67: 0 | Y67: 0 | Z67: =F67-Y67-U67-Q67-M67 -> 1700000
A68: ТО АУТВР | E68: ='225 сод.имущ.'!$I$11 -> 155000 | F68: =E68 -> 155000 | H68: 33538 | M68: 0 | Q68: 0 | U68: 0 | Y68: 0 | Z68: 155000
A69: Комплексное техническое обслуживание инженерных систем и систем видеонаблюдения, в том числе: | E69: =CEILING(SUM(E70:E76),100) -> 1308900 | F69: =E69 -> 1308900 | Z69: 1308900
A70: ТО систем видеонаблюдения | E70: ='225 сод.имущ.'!$I$20 -> 140158.1226 | F70: 140158.1226 | M70: 0 | Q70: 0 | U70: 0 | Y70: 0 | Z70: 140158.1226
A71: ТО АСУВ (автоматизированная система управления вентиляцией) | E71: ='225 сод.имущ.'!$I$24 -> 0 | F71: 0 | M71: 0 | Q71: 0 | U71: 0 | Y71: 0 | Z71: 0
A72: Ведение технической документации | E72: ='225 сод.имущ.'!$I$25 -> 119397.2828 | F72: 119397.2828 | M72: 0 | Q72: 0 | U72: 0 | Y72: 0 | Z72: 119397.2828
A73: ТО инженерных сетей (внутренние системы тепловодоснабжения и канализации, электроснабжения, аварийное обслуживание) | E73: ='225 сод.имущ.'!$I$26 -> 990268.3039 | F73: 990268.3039 | M73: 0 | Q73: 0 | U73: 0 | Y73: 0 | Z73: 990268.3039
A74: ТО светильников наружного освещения | E74: ='225 сод.имущ.'!$I$27 -> 24317.204 | F74: 24317.204 | M74: 0 | Q74: 0 | U74: 0 | Y74: 0 | Z74: 24317.204
A75: ТО кабельных линий наружного освещения | E75: ='225 сод.имущ.'!$I$28 -> 1776.13482 | F75: 1776.13482 | M75: 0 | Q75: 0 | U75: 0 | Y75: 0 | Z75: 1776.13482
A76: ТО систем вентиляции | E76: ='225 сод.имущ.'!$I$29 -> 32957.9074 | F76: 32957.9074 | M76: 0 | Q76: 0 | U76: 0 | Y76: 0 | Z76: 32957.9074
A77: Очистка кровли от снега и наледи | E77: ='225 сод.имущ.'!$I$47 -> 27500 | F77: 27500 | M77: 0 | Q77: 0 | U77: 0 | Y77: 0 | Z77: 27500
A78: Зимнее содержание территорий | E78: ='225 сод.имущ.'!$I$52 -> 0 | F78: =E78 -> 0 | M78: 0 | Q78: 0 | U78: 0 | Y78: 0 | Z78: 0
A79: Эксплуатационные услуги | E79: ='225 сод.имущ.'!$I$56 -> 0 | F79: 0 | M79: 0 | Q79: 0 | U79: 0 | Y79: 0 | Z79: 0
A80: Вывоз пищевых отходов (сады) | E80: ='225 сод.имущ.'!$I$59 -> 112600 | F80: 112600 | M80: 0 | Q80: 0 | U80: 0 | Y80: 0 | Z80: 112600
A81: Услуга по очистке жироуловителя (откачивание сепарированных жировых отходов) | E81: ='225 сод.имущ.'!$I$62 -> 0 | F81: 0 | M81: 0 | Q81: 0 | U81: 0 | Y81: 0 | Z81: 0
A82: Техническое обслуживание систем водоподготовки бассейнов (сады) | E82: ='225 сод.имущ.'!$I$66 -> 0 | F82: 0 | M82: 0 | Q82: 0 | U82: 0 | Y82: 0 | Z82: 0
A83: Услуга по обследованию здания и геотехническому мониторингу | E83: ='225 сод.имущ.'!$I$69 -> 49800 | F83: 49800 | M83: 0 | Q83: 0 | U83: 0 | Y83: 0 | Z83: 49800
A84: ТО лифтов | E84: ='225 сод.имущ.'!$I$81 -> 0 | F84: 0 | M84: 0 | Q84: 0 | U84: 0 | Y84: 0 | Z84: 0
A85: Дератизация | E85: ='225 сод.имущ.'!$I$87 -> 5300 | F85: 5300 | M85: 0 | Q85: 0 | U85: 0 | Y85: 0 | Z85: 5300
A86: Дезинсекция | E86: ='225 сод.имущ.'!$I$89 -> 32600 | F86: 32600 | M86: 0 | Q86: 0 | U86: 0 | Y86: 0 | Z86: 32600
A87: Дезинфекция | E87: ='225 сод.имущ.'!$I$91 -> 8300 | F87: 8300 | M87: 0 | Q87: 0 | U87: 0 | Y87: 0 | Z87: 8300
A88: Прочие расходы (аварийно-восстанов. работы, замена оборудования, приборов учета ТЭР и др.) | E88: ='225 сод.имущ.'!$I$93 -> 0 | F88: 0 | M88: 0 | Q88: 0 | U88: 0 | Y88: 0 | Z88: 0
A89: Услуги мусоровоза, бульдозера (п. Снежногорск) | E89: ='225 сод.имущ.'!$I$94 -> 0 | F89: 0 | M89: 0 | Q89: 0 | U89: 0 | Y89: 0 | Z89: 0
F90: 0 | M90: 0 | Q90: 0 | U90: 0 | Y90: 0 | Z90: 0
F91: 0 | M91: 0 | Q91: 0 | U91: 0 | Y91: 0 | Z91: 0
F92: 0 | M92: 0 | Q92: 0 | U92: 0 | Y92: 0 | Z92: 0
F93: 0 | M93: 0 | Q93: 0 | U93: 0 | Y93: 0 | Z93: 0
F94: 0 | M94: 0 | Q94: 0 | U94: 0 | Y94: 0 | Z94: 0
A95: Текущий ремонт оборудования, в том числе: | C95: 942 | D95: 06507010210101110244 | E95: =SUM(E96:E110) -> 251600 | F95: 251600 | G95: 0 | H95: 180252.64 | I95: 0 | J95: 0 | K95: 0 | L95: 0 | M95: 0 | N95: 0 | O95: 0 | P95: 0 | Q95: 0 | R95: 0 | S95: 0 | T95: 0 | U95: 0 | V95: 0 | W95: 0 | X95: 0 | Y95: 0 | Z95: =F95-Y95-U95-Q95-M95 -> 251600
A96: ТО и ремонт систем видеонаблюдения (п. Снежногорск) | E96: ='225 сод.имущ.'!$I$100 -> 0 | F96: =E96 -> 0 | M96: =SUM(J96:L96) -> 0 | Q96: 0 | U96: 0 | Y96: 0 | Z96: 0
A97: ТО и ремонт торгово-технологического и холодильного оборудования | E97: ='225 сод.имущ.'!$I$109 -> 251600 | F97: 251600 | H97: 180252.64 | M97: 0 | Q97: 0 | U97: 0 | Y97: 0 | Z97: 251600
A98: ТО изделий медицинской техники | E98: ='225 сод.имущ.'!$I$165 -> 0 | F98: 0 | M98: 0 | Q98: 0 | U98: 0 | Y98: 0 | Z98: =F98-Y98-U98-Q98-M98 -> 0
A99: Ремонт и техн. обслуживание оргтехники и копировально-множительного оборудования, музыкал. оборудования и инструментов, используемых работниками, обучающимися; ремонт ученической мебели, рабочего места работника | E99: ='225 сод.имущ.'!$I$201 -> 0 | F99: 0 | M99: 0 | Q99: 0 | U99: 0 | Y99: 0 | Z99: 0
A100: Прочие расходы (ремонт бытовой техники, бытовых холодильников, стирального оборудования, изделий медтехники, средств измерений и др.) | E100: ='225 сод.имущ.'!$I$202 -> 0 | F100: 0 | M100: 0 | Q100: 0 | U100: 0 | Y100: 0 | Z100: 0
F101: 0 | M101: 0 | Q101: 0 | U101: 0 | Y101: 0 | Z101: 0
F102: 0 | M102: 0 | Q102: 0 | U102: 0 | Y102: 0 | Z102: 0
F103: 0 | M103: 0 | Q103: 0 | U103: 0 | Y103: 0 | Z103: 0
F104: 0 | M104: 0 | Q104: 0 | U104: 0 | Y104: 0 | Z104: 0
F105: 0 | M105: 0 | Q105: =SUM(N105:P105) -> 0 | U105: =SUM(R105:T105) -> 0 | Y105: 0 | Z105: 0
F106: 0 | M106: 0 | Q106: 0 | U106: 0 | Y106: =SUM(V106:X106) -> 0 | Z106: 0
F107: 0 | M107: 0 | Q107: 0 | U107: 0 | Y107: 0 | Z107: 0
F108: 0 | M108: 0 | Q108: 0 | U108: 0 | Y108: 0 | Z108: 0
F109: 0 | M109: 0 | Q109: 0 | U109: 0 | Y109: 0 | Z109: 0
F110: 0 | M110: 0 | Q110: 0 | U110: 0 | Y110: 0 | Z110: 0
A111: Текущий ремонт зданий | C111: 943 | D111: 06507010210101110244 | F111: 0 | M111: 0 | Q111: 0 | U111: 0 | Y111: =SUM(V111:X111) -> 0 | Z111: 0
A112: Капитальный ремонт имущества | C112: 944 | D112: 06507010210101110244 | F112: 0 | M112: 0 | Q112: 0 | U112: 0 | Y112: 0 | Z112: 0
A113: Прочие расходы по содержанию имущества, в том числе: | C113: 947 | D113: 06507010210101110244 | E113: =SUM(E114:E140) -> 501700 | F113: =SUM(F114:F140) -> 501700 | G113: =SUM(G114:G140) -> 0 | H113: =SUM(H114:H140) -> 0 | I113: 0 | J113: 0 | K113: 0 | L113: 0 | M113: 0 | N113: 0 | O113: 0 | P113: 0 | Q113: 0 | R113: 0 | S113: 0 | T113: 0 | U113: 0 | V113: 0 | W113: 0 | X113: 0 | Y113: 0 | Z113: 501700
A114: ТО и ремонт систем охранно-пожарной сигнализации и противопожарной автоматики (ОПС и ППА) | E114: ='225 сод.имущ.'!$I$213 -> 231100 | F114: 231100 | M114: 0 | Q114: 0 | U114: 0 | Y114: 0 | Z114: 231100
A115: ТО и перезарядка огнетушителей | E115: ='225 сод.имущ.'!$I$217 -> 3700 | F115: 3700 | M115: 0 | Q115: 0 | U115: 0 | Y115: 0 | Z115: 3700
A116: Испытание электрооборудования здания | E116: ='225 сод.имущ.'!$I$241 -> 0 | F116: 0 | M116: 0 | Q116: 0 | U116: 0 | Y116: 0 | Z116: 0
A117: Испытание электрооборудования пищеблока | E117: ='225 сод.имущ.'!$I$251 -> 6800 | F117: 6800 | M117: 0 | Q117: 0 | U117: 0 | Y117: 0 | Z117: 6800
A118: Эксплуатационное испытание электрооборудования елочных гирлянд | E118: ='225 сод.имущ.'!$I$256 -> 900 | F118: 900 | M118: 0 | Q118: 0 | U118: 0 | Y118: 0 | Z118: 900
A119: Экспертиза пригодности ТМЦ | E119: ='225 сод.имущ.'!$I$257 -> 5000 | F119: 5000 | M119: 0 | Q119: 0 | U119: 0 | Y119: 0 | Z119: 5000
A120: Обслуживание игрового оборудования детских площадок | E120: ='225 сод.имущ.'!$I$258 -> 60300 | F120: 60300 | M120: 0 | Q120: 0 | U120: 0 | Y120: 0 | Z120: 60300
A121: Техническое обслуживание "теплого пола" (сады) | E121: ='225 сод.имущ.'!$I$259 -> 0 | F121: 0 | M121: 0 | Q121: 0 | U121: 0 | Y121: 0 | Z121: 0
A122: Замер температурного режима жарочных шкафов в пищеблоке | E122: ='225 сод.имущ.'!$I$260 -> 2400 | F122: 2400 | M122: 0 | Q122: 0 | U122: 0 | Y122: 0 | Z122: 2400
A123: Камерная дезинфекция вещей | E123: ='225 сод.имущ.'!$I$261 -> 36200 | F123: 36200 | M123: 0 | Q123: 0 | U123: 0 | Y123: 0 | Z123: 36200
A124: Прачечные услуги | E124: ='225 сод.имущ.'!$I$262 -> 24800 | F124: 24800 | M124: 0 | Q124: 0 | U124: 0 | Y124: 0 | Z124: 24800
A125: Поверка средств измерений | E125: ='225 сод.имущ.'!$I$266 -> 19900 | F125: 19900 | M125: 0 | Q125: 0 | U125: 0 | Y125: 0 | Z125: 19900
A126: Испытание металлического кровельного ограждения и металлических наружных пожарных лестниц | E126: ='225 сод.имущ.'!$I$297 -> 100000 | F126: 100000 | M126: 0 | Q126: 0 | U126: 0 | Y126: 0 | Z126: 100000
A127: Заправка и восстановление картриджей, диагностика и определение неисправности компьютерного оборудования, используемого работниками, обучающимися | E127: ='225 сод.имущ.'!$I$298 -> 0 | F127: 0 | M127: 0 | Q127: 0 | U127: 0 | Y127: 0 | Z127: 0
A128: Прочие расходы по устранению замечаний надзорных органов (огнезащитная обработка штор, установка пр/пожарных дверей и люков, укладка керамической плитки, линолеума и др.) | E128: ='225 сод.имущ.'!$I$299 -> 10600 | F128: 10600 | M128: 0 | Q128: 0 | U128: 0 | Y128: 0 | Z128: 10600
A129: ТО тревожной сигнализации (МБОУ "СШ № 14") | E129: ='225 сод.имущ.'!$I$300 -> 0 | F129: 0 | M129: 0 | Q129: 0 | U129: 0 | Y129: 0 | Z129: 0
A130: Услуга по очистке стеклопакетов фасада здания (МАДОУ №№ 1,2,5) | E130: ='225 сод.имущ.'!$I$301 -> 0 | F130: 0 | M130: 0 | Q130: 0 | U130: 0 | Y130: 0 | Z130: 0
F131: 0 | M131: 0 | Q131: 0 | U131: 0 | Y131: 0 | Z131: 0
F132: 0 | M132: 0 | Q132: 0 | U132: 0 | Y132: 0 | Z132: 0
F133: 0 | M133: 0 | Q133: 0 | U133: 0 | Y133: 0 | Z133: 0
F134: 0 | M134: 0 | Q134: 0 | U134: 0 | Y134: 0 | Z134: 0
F135: 0 | M135: 0 | Q135: 0 | U135: 0 | Y135: 0 | Z135: 0
F136: 0 | M136: 0 | Q136: 0 | U136: 0 | Y136: 0 | Z136: 0
F137: 0 | M137: 0 | Q137: 0 | U137: 0 | Y137: 0 | Z137: 0
F138: 0 | M138: 0 | Q138: 0 | U138: 0 | Y138: 0 | Z138: 0
F139: 0 | M139: 0 | Q139: 0 | U139: 0 | Y139: 0 | Z139: 0
F140: 0 | M140: 0 | Q140: 0 | U140: 0 | Y140: 0 | Z140: 0
A141: Прочие работы, услуги, в том числе: | B141: 226 | E141: =E142+E143+E154+E198+E199+E200+E201+E202+E206 -> 1294200 | F141: 1294200 | G141: 0 | H141: 0 | I141: 0 | J141: 0 | K141: 0 | L141: 0 | M141: 0 | N141: 0 | O141: 0 | P141: 0 | Q141: 0 | R141: 0 | S141: 0 | T141: 0 | U141: 0 | V141: 0 | W141: 0 | X141: 0 | Y141: 0 | Z141: =F141-Y141-U141-Q141-M141 -> 1294200
A142: Страхование жизни, здоровья, имущества (в том числе гражданской ответственности владельцев транспортных средств) | C142: 951 | D142: 06507010210101110244 | E142: ='226 пр.работы, услуги'!$F$128*1000 -> 0 | F142: =E142 -> 0 | G142: ='226 пр.работы, услуги'!H128*1000 -> 0 | M142: 0 | Q142: 0 | U142: 0 | Y142: 0 | Z142: 0
A143: Вневедомственная (в том числе пожарная) охрана, охранная и пожарная сигнализация (установка, наладка и эксплуатация), в том числе: | C143: 953 | D143: 06507010210101110244 | E143: =CEILING(SUM(E144:E153),100) -> 721300 | F143: =CEILING(SUM(F144:F153),100) -> 721300 | G143: =SUM(G144:G153) -> 0 | H143: 0 | I143: 0 | J143: 0 | K143: 0 | L143: 0 | M143: 0 | N143: 0 | O143: 0 | P143: 0 | Q143: 0 | R143: 0 | S143: 0 | T143: 0 | U143: 0 | V143: 0 | W143: 0 | X143: 0 | Y143: 0 | Z143: 721300
A144: Охрана общественного порядка (физ. охрана) | E144: ='226 пр.работы, услуги'!$F$16*1000 -> 667219.2 | F144: =E144 -> 667219.2 | M144: 0 | Q144: 0 | U144: 0 | Y144: 0 | Z144: 667219.2
A145: Мониторинговые услуги по приемке, обработке сигналов, поступающих на центральный радиопульт | E145: ='226 пр.работы, услуги'!$F$17*1000 -> 30000 | F145: 30000 | M145: 0 | Q145: 0 | U145: 0 | Y145: 0 | Z145: 30000
A146: Услуги по централизованному наблюдению за объектом и реагировании на тревожные сообщения (с использованием канала сотовой связи GSM) | E146: ='226 пр.работы, услуги'!$F$18*1000 -> 24000 | F146: 24000 | M146: 0 | Q146: 0 | U146: 0 | Y146: 0 | Z146: 24000
A147: Охрана объектов средствами охранно-пожарной сигнализации (ОПС) | E147: ='226 пр.работы, услуги'!$F$19*1000 -> 0 | F147: 0 | M147: 0 | Q147: 0 | U147: 0 | Y147: 0 | Z147: 0
A148: Охрана объектов средствами тревожной сигнализации (ТС) | E148: ='226 пр.работы, услуги'!$F$20*1000 -> 0 | F148: 0 | M148: 0 | Q148: 0 | U148: 0 | Y148: 0 | Z148: 0
F149: 0 | M149: 0 | Q149: 0 | U149: 0 | Y149: 0 | Z149: 0
F150: 0 | M150: 0 | Q150: 0 | U150: 0 | Y150: 0 | Z150: 0
F151: 0 | M151: 0 | Q151: 0 | U151: 0 | Y151: 0 | Z151: 0
F152: 0 | M152: 0 | Q152: 0 | U152: 0 | Y152: 0 | Z152: 0
F153: 0 | M153: 0 | Q153: 0 | U153: 0 | Y153: 0 | Z153: 0
A154: Прочие услуги, в том числе: | C154: 954 | D154: 06507010210101110244 | E154: =CEILING(SUM(E155:E197),100) -> 435600 | F154: =CEILING(SUM(F155:F197),100) -> 435600 | G154: =SUM(G155:G197) -> 0 | H154: =SUM(H155:H197) -> 0 | I154: 0 | J154: 0 | K154: 0 | L154: 0 | M154: 0 | N154: 0 | O154: 0 | P154: 0 | Q154: 0 | R154: 0 | S154: 0 | T154: 0 | U154: 0 | V154: 0 | W154: 0 | X154: 0 | Y154: 0 | Z154: 435600
A155: Утилизация (захоронение) твердых бытовых отходов | E155: ='226 пр.работы, услуги'!$F$22*1000 -> 22241.466 | F155: =E155 -> 22241.466 | M155: 0 | Q155: 0 | U155: 0 | Y155: 0 | Z155: 22241.466
A156: Утилизация (захоронение) крупногабаритного мусора (попадающего под IV и V классы опасности) | E156: ='226 пр.работы, услуги'!$F$23*1000 -> 2132.85 | F156: 2132.85 | M156: 0 | Q156: 0 | U156: 0 | Y156: 0 | Z156: 2132.85
A157: Утилизация ртутьсодержащих отходов | E157: ='226 пр.работы, услуги'!$F$24*1000 -> 12313.3 | F157: 12313.3 | M157: 0 | Q157: =SUM(N157:P157) -> 0 | U157: =SUM(R157:T157) -> 0 | Y157: =SUM(V157:X157) -> 0 | Z157: 12313.3
A158: Изготовление полиграфической продукции (банеров, вывесок, табличек, визиток, бланочной продукции, номерков, флагов) | E158: ='226 пр.работы, услуги'!$F$27*1000 -> 10000 | F158: 10000 | M158: =SUM(J158:L158) -> 0 | Q158: 0 | U158: 0 | Y158: 0 | Z158: 10000
A159: Специальная оценка условий труда | E159: ='226 пр.работы, услуги'!$F$28*1000 -> 0 | F159: 0 | M159: 0 | Q159: 0 | U159: 0 | Y159: 0 | Z159: 0
A160: Изготовление дополнительного сертификата ЭЦП для сдачи отчетн.в ФСС в режиме "Обслуж.бухгалтерия" | E160: ='226 пр.работы, услуги'!$F$29*1000 -> 1500 | F160: 1500 | M160: 0 | Q160: 0 | U160: 0 | Y160: 0 | Z160: 1500
A161: Отчет по определению тепловых нагрузок и расходов горячей и холодной воды | E161: ='226 пр.работы, услуги'!$F$30*1000 -> 0 | F161: 0 | M161: 0 | Q161: 0 | U161: 0 | Y161: 0 | Z161: 0
A162: Протокол о составе и свойствах сточных вод | E162: ='226 пр.работы, услуги'!$F$31*1000 -> 30000 | F162: 30000 | M162: 0 | Q162: 0 | U162: 0 | Y162: 0 | Z162: =F162-Y162-U162-Q162-M162 -> 30000
A163: Проект нормативов образования отходов и лимитов на их размещение | E163: ='226 пр.работы, услуги'!$F$32*1000 -> 0 | F163: 0 | M163: 0 | Q163: 0 | U163: 0 | Y163: 0 | Z163: 0
A164: Городские культурномассовые мероприятия (звукосветотехническое сопровождение, изготовление плакеток) | E164: ='226 пр.работы, услуги'!$F$33*1000 -> 0 | F164: 0 | M164: 0 | Q164: 0 | U164: 0 | Y164: 0 | Z164: 0
A165: Изготовление паспортов БТИ | E165: ='226 пр.работы, услуги'!$F$34*1000 -> 0 | F165: 0 | M165: 0 | Q165: 0 | U165: 0 | Y165: 0 | Z165: 0
A166: Оформление пакета документов по обоснованию отнесения отходов к I - V классам опасности для окружающей среды | E166: ='226 пр.работы, услуги'!$F$35*1000 -> 0 | F166: 0 | M166: 0 | Q166: 0 | U166: 0 | Y166: 0 | Z166: 0
A167: Расчет оценки пожарного риска | E167: ='226 пр.работы, услуги'!$F$36*1000 -> 0 | F167: 0 | M167: 0 | Q167: 0 | U167: 0 | Y167: 0 | Z167: 0
A168: Приобретение и обслуживание программного обеспечения | E168: ='226 пр.работы, услуги'!$F$37*1000 -> 0 | F168: 0 | M168: 0 | Q168: 0 | U168: 0 | Y168: 0 | Z168: 0
A169: Исследование воды и смывов плавательных бассейнов | E169: =('226 пр.работы, услуги'!$F$45+'226 пр.работы, услуги'!$F$51+'226 пр.работы, услуги'!$F$55)*1000 -> 109874.9802 | F169: 109874.9802 | M169: 0 | Q169: 0 | U169: 0 | Y169: 0 | Z169: 109874.9802
A170: Исследование питьевой воды | E170: ='226 пр.работы, услуги'!$F$59*1000 -> 8347.6504 | F170: 8347.6504 | M170: 0 | Q170: 0 | U170: 0 | Y170: 0 | Z170: 8347.6504
A171: Исследование почвы, песка | E171: ='226 пр.работы, услуги'!$F$70*1000 -> 3312.909 | F171: 3312.909 | M171: 0 | Q171: 0 | U171: 0 | Y171: 0 | Z171: 3312.909
A172: Исследование микроклимата | E172: ='226 пр.работы, услуги'!$F$75*1000 -> 1815.2058 | F172: 1815.2058 | M172: 0 | Q172: 0 | U172: 0 | Y172: 0 | Z172: 1815.2058
A173: Исследование продуктов и готовых блюд | E173: =('226 пр.работы, услуги'!$F$80+'226 пр.работы, услуги'!$F$89)*1000 -> 59503.2582 | F173: 59503.2582 | M173: 0 | Q173: 0 | U173: 0 | Y173: 0 | Z173: 59503.2582
A174: Профессиональная гигиеническая подготовка и аттестация должностных лиц | E174: ='226 пр.работы, услуги'!$F$94*1000 -> 44700.9016 | F174: 44700.9016 | M174: 0 | Q174: 0 | U174: 0 | Y174: 0 | Z174: 44700.9016
A175: Курьерские услуги | E175: ='226 пр.работы, услуги'!$F$101*1000 -> 0 | F175: 0 | M175: 0 | Q175: 0 | U175: 0 | Y175: 0 | Z175: 0
A176: Участие в семинарах, курсах повышения квалификации, конференциях, спортивных мероприятиях | E176: ='226 пр.работы, услуги'!$F$106*1000 -> 0 | F176: 0 | M176: 0 | Q176: 0 | U176: 0 | Y176: 0 | Z176: 0
A177: Услуги инкассации наличных денег полистным пересчетом | E177: ='226 пр.работы, услуги'!$F$115*1000 -> 24780 | F177: 24780 | M177: 0 | Q177: 0 | U177: 0 | Y177: 0 | Z177: 24780
A178: Услуги по обработке учетной (бухгалтерской) информации (ГИВЦ) | E178: ='226 пр.работы, услуги'!$F$118*1000 -> 5000 | F178: 5000 | M178: 0 | Q178: 0 | U178: 0 | Y178: 0 | Z178: 5000
A179: Монтажные (демонтажные, электромонтажные) работы учебно-игрового оборудования; прогулочных площадок, оборудования | E179: ='226 пр.работы, услуги'!$F$119*1000 -> 0 | F179: 0 | M179: 0 | Q179: 0 | U179: 0 | Y179: 0 | Z179: 0
A180: Изготовление стендов; Изготовление и монтаж вертикальных жалюзи | E180: ='226 пр.работы, услуги'!$F$122*1000 -> 0 | F180: 0 | M180: 0 | Q180: 0 | U180: 0 | Y180: 0 | Z180: 0
A181: Составление и изготовление планов эвакуации | E181: ='226 пр.работы, услуги'!$F$123*1000 -> 0 | F181: 0 | M181: 0 | Q181: 0 | U181: 0 | Y181: 0 | Z181: 0
A182: Информация (декларация) об энергосбережении и о повышении энергетической эффективности | E182: ='226 пр.работы, услуги'!$F$126*1000 -> 100000 | F182: 100000 | M182: 0 | Q182: 0 | U182: 0 | Y182: 0 | Z182: 100000
F183: 0 | M183: 0 | Q183: 0 | U183: 0 | Y183: 0 | Z183: 0
F184: 0 | M184: 0 | Q184: 0 | U184: 0 | Y184: 0 | Z184: 0
F185: 0 | M185: 0 | Q185: 0 | U185: 0 | Y185: 0 | Z185: 0
F186: 0 | M186: 0 | Q186: 0 | U186: 0 | Y186: 0 | Z186: 0
F187: 0 | M187: 0 | Q187: 0 | U187: 0 | Y187: 0 | Z187: 0
F188: 0 | M188: 0 | Q188: 0 | U188: 0 | Y188: 0 | Z188: 0
F189: 0 | M189: 0 | Q189: 0 | U189: 0 | Y189: 0 | Z189: 0
F190: 0 | M190: 0 | Q190: 0 | U190: 0 | Y190: 0 | Z190: 0
F191: 0 | M191: 0 | Q191: 0 | U191: 0 | Y191: 0 | Z191: 0
F192: 0 | M192: 0 | Q192: 0 | U192: 0 | Y192: 0 | Z192: 0
F193: 0 | M193: 0 | Q193: 0 | U193: 0 | Y193: 0 | Z193: 0
F194: 0 | M194: 0 | Q194: 0 | U194: 0 | Y194: 0 | Z194: 0
F195: 0 | M195: 0 | Q195: 0 | U195: 0 | Y195: 0 | Z195: 0
F196: 0 | M196: 0 | Q196: 0 | U196: 0 | Y196: 0 | Z196: 0
F197: 0 | M197: 0 | Q197: 0 | U197: 0 | Y197: 0 | Z197: 0
A198: Вознаграждение по договорам ГПХ с учетом ЕСН | C198: 955 | D198: 06507010210101110244 | F198: =E198 -> 0 | M198: 0 | Q198: 0 | U198: 0 | Y198: 0 | Z198: 0
A199: Приобретение периодических изданий, справочной литературы | C199: 956 | D199: 06507010210101110244 | F199: =E199 -> 0 | M199: 0 | Q199: 0 | U199: 0 | Y199: 0 | Z199: 0
A200: Инженерные изыскания для подготовки проектной документации, строительства, реконструкции, капитального и текущего ремонта объектов; архитектурно-строительное проектирование | C200: 957 | D200: 06507010210101110244 | F200: =E200 -> 0 | M200: 0 | Q200: 0 | U200: 0 | Y200: 0 | Z200: 0
A201: Расходы на оплату проезда, найм жилых помещений для участников соревнований, олимпиад и др. мероприятий | C201: 958 | D201: 06507010210101110244 | F201: =E201 -> 0 | M201: 0 | Q201: 0 | U201: 0 | Y201: 0 | Z201: 0
A202: Медицинские услуги (в том числе диспансеризация, медицинский осмотр и освидетельствование работников (включая предрейсовые осмотры водителей), состоящих в штате учреждения, проведение медицинских анализов), в том числе: | C202: 995 | D202: 06507010210101110244 | E202: =SUM(E203:E205) -> 137300 | F202: =SUM(F203:F205) -> 137300 | G202: =SUM(G203:G205) -> 0 | H202: =SUM(H203:H205) -> 0 | I202: =SUM(I203:I205) -> 0 | J202: =SUM(J203:J205) -> 0 | K202: 0 | L202: 0 | M202: 0 | N202: 0 | O202: 0 | P202: 0 | Q202: 0 | R202: 0 | S202: 0 | T202: 0 | U202: 0 | V202: 0 | W202: 0 | X202: 0 | Y202: 0 | Z202: 137300
... 339 more rows

Sheet СГОЗ 2018-2019
A1: 1. !!! ДОБАВЛЯТЬ И УДАЛЯТЬ СТРОКИ СТРОГО ЗАПРЕЩЕНО
A2: 2. При акцептовании счета, указывать КЦСР+ДопКР, по которому должна быть произведена оплата
A3: 3. Расчеты представлены по состоянию на 01.01.2017
D4: 2018 год | E4: 2019 год
A5: Вспомогательныя таблица для формирования СГОЗ (за исключением ДопКР 912,921,923,924,952,958,962,993)
A6: ИТОГО сумма для СГОЗ на 2018-2019 гг. | D6: =SUM(D7:D13) -> 16470790 | E6: =SUM(E7:E13) -> 15718390
A7: Местный бюджет (субсидия на выполнение мун. задания) | D7: =$E$23 -> 6951800 | E7: =$F$23 -> 6951800
A8: Краевой бюджет в части обеспечения деятельности административного и учебно-вспомогательного персонала (субсидия на выполнение мун. задания) | D8: =$E$232 -> 623800 | E8: =$F$232 -> 623800
A9: Краевой бюджет в части обеспечения деятельности педагогического персонала и воспитанников (субсидия на выполнение мун. задания) | D9: =$E$330 -> 776000 | E9: =$F$330 -> 776000
A10: Поступления от оказания услуг (выполнения работ) на платной основе и от иной приносящей доход деятельности, Код доп.ЭК 810 | D10: =$E$433 -> 7130290 | E10: =$F$433 -> 7130290
A11: Безвозмездные поступления, Код доп.ЭК 820
A12: Субсидии на иные цели (местный бюджет) | D12: =$F$485+$G$485+$H$485 -> 872000 | E12: =$K$485+$L$485+$M$485 -> 119600 | F12: МЗ+ИЦ (проверка с вкладкой "Бюджет 2017-2019")
A13: Субсидии на иные цели (краевой бюджет) | D13: =$I$485 -> 116900 | E13: =$N$485 -> 116900 | F13: 2018 | G13: 2019
A14: ИТОГО МЗ+ИЦ | D14: =D7+D8+D9+D12+D13 -> 9340500 | E14: =E7+E8+E9+E12+E13 -> 8588100 | F14: =D14-'Бюджет 2017-2019'!P5 -> 0 | G14: =E14-'Бюджет 2017-2019'!Q5 -> 0
A16: Рабочая таблица по финансовым обьемам, предоставленным на 2018-2019 гг.
A17: ='План ФХД 2017'!A3:L3 -> МБДОУ "Детский сад № 90 "Цветик-семицветик"
A18: I блок - Субсидии на выполнение мун. задания (местный бюджет)
A19: Наименование показателя | B19: КОСГУ | C19: Доп. КР | D19: КБК | E19: !!!! Не изменять показатели данной графы Утвержденные ассигнования на 2018 год, местный бюджет Субсидии на финансовое обеспечение выполнения муниципального задания Код доп.ЭК 000, доп.ФК 70000, КЦСР 0210101110 | F19: !!!! Не изменять показатели данной графы Утвержденные ассигнования на 2019 год, местный бюджет Субсидии на финансовое обеспечение выполнения муниципального задания Код доп.ЭК 000, доп.ФК 70000, КЦСР 0210101110
A21: 1 | B21: 2 | C21: 3 | D21: 4 | E21: 5 | F21: 6
A22: ВЫПЛАТЫ ВСЕГО | E22: =E24+E219 -> 7057900 | F22: =F24+F219 -> 7057900
A23: ВЫПЛАТЫ ВСЕГО для СГОЗ | E23: =E32+E51+E53+E57+E59+E135+E136+E147+E192+E193+E195+E199+E216+E220+E222+E191 -> 6951800 | F23: =F32+F51+F53+F57+F59+F135+F136+F147+F192+F193+F195+F199+F216+F220+F222+F191 -> 6951800
B24: 200 | E24: =E25+E200+E203 -> 6439000 | F24: =F25+F200+F203 -> 6439000
A25: Оплата работ, услуг, всего, из них: | B25: 220 | E25: =E26+E32+E51+E53+E57+E59+E134 -> 6427000 | F25: =F26+F32+F51+F53+F57+F59+F134 -> 6427000
A26: Прочие выплаты, в том числе: | B26: 212 | E26: =SUM(E27:E31) -> 106100 | F26: =SUM(F27:F31) -> 106100
A27: Возмещение работникам (сотрудникам) расходов, связанных со служебными командировками (суточные при служебных командировках) | C27: 912 | D27: 06507010210101110112 | E27: ='212 командировки'!$F$13 -> 0 | F27: ='212 командировки'!$F$13 -> 0
A28: Оплата проезда по служебным командировкам (в т.ч. студентам, обучающимся по заочной форме обучения, при проезде к месту нахождения учебного заведения) | C28: 921 | D28: 06507010210101110112 | E28: ='212 командировки'!$H$13 -> 106100 | F28: ='212 командировки'!$H$13 -> 106100
A29: Оплата услуг по перевозке несовершеннолетних и сопровождающих их лиц | C29: 923 | D29: 06507010210101110112
A30: Оплата проезда сопровождающих лиц, являющихся штатными сотрудниками учреждений | C30: 924 | D30: 06507010210101110112
A31: Проживание в служебных командировках | C31: 952 | D31: 06507010210101110112 | E31: ='212 командировки'!$K$13 -> 0 | F31: ='212 командировки'!$K$13 -> 0
A32: Услуги связи, в том числе: | B32: 221 | E32: =E33 -> 0 | F32: =F33 -> 0
A33: Услуги связи, в том числе: | C33: 925 | D33: 06507010210101110244 | E33: =SUM(E34:E50) -> 0 | F33: =SUM(F34:F50) -> 0
A34: Телекоммуникационные услуги связи (ГТС)
A35: Услуги внутризоновой телефонной связи
A36: Услуги автоматической междугородней и международней телефонной связи
A37: Услуги связи по тарифному плану "Квалифицированный Голд"
A38: Услуги сотовой связи
A39: Прочие расходы (восстан-е линии связи, уст-ка доп. телефонов, предост-е доступа к мест. телеф. связи и др.)
A40: Марочная продукция (маркированные конверты)
A41: Предоплата за пользование ячейкой абонементного почтового шкафа
A42: Прочие услуги (экспресс-почта, бандероли, ценные посылки, телеграммы и др.)
A43: Заказные письма
A44: Абон. обслужив-е (электронный документооборот)
A45: Подключение к глобальной информационной сети Интернет, абонентская плата
A51: Транспортные услуги, в том числе: | B51: 222 | E51: =SUM(E52:E52) -> 0 | F51: 0
A52: Прочие транспортные расходы | C52: 922 | D52: 06507010210101110244
A53: Коммунальные услуги, в том числе: | B53: 223 | E53: =SUM(E54:E56) -> 2573400 | F53: =SUM(F54:F56) -> 2573400
A54: Оплата отопления и технологических нужд, а также горячего водоснабжения | C54: 931 | D54: 06507010210101110244 | E54: ='223 коммуналка'!$AJ$10 -> 1102000 | F54: ='223 коммуналка'!$AK$10 -> 1102000
A55: Потребление электроэнергии | C55: 932 | D55: 06507010210101110244 | E55: ='223 коммуналка'!$K$19 -> 376800 | F55: ='223 коммуналка'!$L$19 -> 376800
A56: Водоснабжение, канализация | C56: 933 | D56: 06507010210101110244 | E56: ='223 коммуналка'!$Z$27 -> 1094600 | F56: ='223 коммуналка'!$AA$27 -> 1094600
A57: Арендная плата за пользование имуществом, в том числе: | B57: 224 | E57: =E58 -> 0 | F57: =F58 -> 0
A58: Арендная плата за пользование имуществом | C58: 926 | D58: 06507010210101110244
A59: Работы, услуги по содержанию имущества, в том числе: | B59: 225 | E59: =E60+E88+E104+E105+E106 -> 2453300 | F59: =F60+F88+F104+F105+F106 -> 2453300
A60: Содержание и техническое обслуживание помещений, в том числе: | C60: 941 | D60: 06507010210101110244 | E60: =SUM(E61,E62,E70:E87) -> 1700000 | F60: =SUM(F61,F62,F70:F87) -> 1700000
A61: ТО АУТВР | E61: ='225 сод.имущ.'!$I$11 -> 155000 | F61: ='225 сод.имущ.'!$I$11 -> 155000
A62: Комплексное техническое обслуживание инженерных систем и систем видеонаблюдения, в том числе: | E62: =CEILING(SUM(E63:E69),100) -> 1308900 | F62: =CEILING(SUM(F63:F69),100) -> 1308900
A63: ТО систем видеонаблюдения | E63: ='225 сод.имущ.'!$I$20 -> 140158.1226 | F63: ='225 сод.имущ.'!$I$20 -> 140158.1226
A64: ТО АСУВ (автоматизированная система управления вентиляцией) | E64: ='225 сод.имущ.'!$I$24 -> 0 | F64: ='225 сод.имущ.'!$I$24 -> 0
A65: Ведение технической документации | E65: ='225 сод.имущ.'!$I$25 -> 119397.2828 | F65: ='225 сод.имущ.'!$I$25 -> 119397.2828
A66: ТО инженерных сетей (внутренние системы тепловодоснабжения и канализации, электроснабжения, аварийное обслуживание) | E66: ='225 сод.имущ.'!$I$26 -> 990268.3039 | F66: ='225 сод.имущ.'!$I$26 -> 990268.3039
A67: ТО светильников наружного освещения | E67: ='225 сод.имущ.'!$I$27 -> 24317.204 | F67: ='225 сод.имущ.'!$I$27 -> 24317.204
A68: ТО кабельных линий наружного освещения | E68: ='225 сод.имущ.'!$I$28 -> 1776.13482 | F68: ='225 сод.имущ.'!$I$28 -> 1776.13482
A69: ТО систем вентиляции | E69: ='225 сод.имущ.'!$I$29 -> 32957.9074 | F69: ='225 сод.имущ.'!$I$29 -> 32957.9074
A70: Очистка кровли от снега и наледи | E70: ='225 сод.имущ.'!$I$47 -> 27500 | F70: ='225 сод.имущ.'!$I$47 -> 27500
A71: Зимнее содержание территорий | E71: ='225 сод.имущ.'!$I$52 -> 0 | F71: ='225 сод.имущ.'!$I$52 -> 0
A72: Эксплуатационные услуги | E72: ='225 сод.имущ.'!$I$56 -> 0 | F72: ='225 сод.имущ.'!$I$56 -> 0
A73: Вывоз пищевых отходов (сады) | E73: ='225 сод.имущ.'!$I$59 -> 112600 | F73: ='225 сод.имущ.'!$I$59 -> 112600
A74: Услуга по очистке жироуловителя (откачивание сепарированных жировых отходов) | E74: ='225 сод.имущ.'!$I$62 -> 0 | F74: ='225 сод.имущ.'!$I$62 -> 0
A75: Техническое обслуживание систем водоподготовки бассейнов (сады) | E75: ='225 сод.имущ.'!$I$66 -> 0 | F75: ='225 сод.имущ.'!$I$66 -> 0
A76: Услуга по обследованию здания и геотехническому мониторингу | E76: ='225 сод.имущ.'!$I$69 -> 49800 | F76: ='225 сод.имущ.'!$I$69 -> 49800
A77: ТО лифтов | E77: ='225 сод.имущ.'!$I$81 -> 0 | F77: ='225 сод.имущ.'!$I$81 -> 0
A78: Дератизация | E78: ='225 сод.имущ.'!$I$87 -> 5300 | F78: ='225 сод.имущ.'!$I$87 -> 5300
A79: Дезинсекция | E79: ='225 сод.имущ.'!$I$89 -> 32600 | F79: ='225 сод.имущ.'!$I$89 -> 32600
A80: Дезинфекция | E80: ='225 сод.имущ.'!$I$91 -> 8300 | F80: ='225 сод.имущ.'!$I$91 -> 8300
A81: Прочие расходы (аварийно-восстанов. работы, замена оборудования, приборов учета ТЭР и др.) | E81: ='225 сод.имущ.'!$I$93 -> 0 | F81: ='225 сод.имущ.'!$I$93 -> 0
A82: Услуги мусоровоза, бульдозера (п. Снежногорск) | E82: ='225 сод.имущ.'!$I$94 -> 0 | F82: ='225 сод.имущ.'!$I$94 -> 0
A88: Текущий ремонт оборудования, в том числе: | C88: 942 | D88: 06507010210101110244 | E88: =SUM(E89:E103) -> 251600 | F88: =SUM(F89:F103) -> 251600
A89: ТО и ремонт систем видеонаблюдения (п. Снежногорск) | E89: ='225 сод.имущ.'!$I$100 -> 0 | F89: ='225 сод.имущ.'!$I$100 -> 0
A90: ТО и ремонт торгово-технологического и холодильного оборудования | E90: ='225 сод.имущ.'!$I$109 -> 251600 | F90: ='225 сод.имущ.'!$I$109 -> 251600
A91: ТО изделий медицинской техники | E91: ='225 сод.имущ.'!$I$165 -> 0 | F91: ='225 сод.имущ.'!$I$165 -> 0
A92: Ремонт и техн. обслуживание оргтехники и копировально-множительного оборудования, музыкал. оборудования и инструментов, используемых работниками, обучающимися; ремонт ученической мебели, рабочего места работника | E92: ='225 сод.имущ.'!$I$201 -> 0 | F92: ='225 сод.имущ.'!$I$201 -> 0
A93: Прочие расходы (ремонт бытовой техники, бытовых холодильников, стирального оборудования, изделий медтехники, средств измерений и др.) | E93: ='225 сод.имущ.'!$I$202 -> 0 | F93: ='225 сод.имущ.'!$I$202 -> 0
A104: Текущий ремонт зданий | C104: 943 | D104: 06507010210101110244
A105: Капитальный ремонт имущества | C105: 944 | D105: 06507010210101110244
A106: Прочие расходы по содержанию имущества, в том числе: | C106: 947 | D106: 06507010210101110244 | E106: =SUM(E107:E133) -> 501700 | F106: =SUM(F107:F133) -> 501700
A107: ТО и ремонт систем охранно-пожарной сигнализации и противопожарной автоматики (ОПС и ППА) | E107: ='225 сод.имущ.'!$I$213 -> 231100 | F107: ='225 сод.имущ.'!$I$213 -> 231100
A108: ТО и перезарядка огнетушителей | E108: ='225 сод.имущ.'!$I$217 -> 3700 | F108: ='225 сод.имущ.'!$I$217 -> 3700
A109: Испытание электрооборудования здания | E109: ='225 сод.имущ.'!$I$241 -> 0 | F109: ='225 сод.имущ.'!$I$241 -> 0
A110: Испытание электрооборудования пищеблока | E110: ='225 сод.имущ.'!$I$251 -> 6800 | F110: ='225 сод.имущ.'!$I$251 -> 6800
A111: Эксплуатационное испытание электрооборудования елочных гирлянд | E111: ='225 сод.имущ.'!$I$256 -> 900 | F111: ='225 сод.имущ.'!$I$256 -> 900
A112: Экспертиза пригодности ТМЦ | E112: ='225 сод.имущ.'!$I$257 -> 5000 | F112: ='225 сод.имущ.'!$I$257 -> 5000
A113: Обслуживание игрового оборудования детских площадок | E113: ='225 сод.имущ.'!$I$258 -> 60300 | F113: ='225 сод.имущ.'!$I$258 -> 60300
A114: Техническое обслуживание "теплого пола" (сады) | E114: ='225 сод.имущ.'!$I$259 -> 0 | F114: ='225 сод.имущ.'!$I$259 -> 0
A115: Замер температурного режима жарочных шкафов в пищеблоке | E115: ='225 сод.имущ.'!$I$260 -> 2400 | F115: ='225 сод.имущ.'!$I$260 -> 2400
A116: Камерная дезинфекция вещей | E116: ='225 сод.имущ.'!$I$261 -> 36200 | F116: ='225 сод.имущ.'!$I$261 -> 36200
A117: Прачечные услуги | E117: ='225 сод.имущ.'!$I$262 -> 24800 | F117: ='225 сод.имущ.'!$I$262 -> 24800
A118: Поверка средств измерений | E118: ='225 сод.имущ.'!$I$266 -> 19900 | F118: ='225 сод.имущ.'!$I$266 -> 19900
A119: Испытание металлического кровельного ограждения и металлических наружных пожарных лестниц | E119: 0 | F119: 0
A120: Заправка и восстановление картриджей, диагностика и определение неисправности компьютерного оборудования, используемого работниками, обучающимися | E120: ='225 сод.имущ.'!$I$298 -> 0 | F120: ='225 сод.имущ.'!$I$298 -> 0
A121: Прочие расходы по устранению замечаний надзорных органов (огнезащитная обработка штор, установка пр/пожарных дверей и люков, укладка керамической плитки, линолеума и др.) | E121: ='225 сод.имущ.'!$I$299+100000 -> 110600 | F121: ='225 сод.имущ.'!$I$299+100000 -> 110600
A122: ТО тревожной сигнализации (МБОУ "СШ № 14") | E122: ='225 сод.имущ.'!$I$300 -> 0 | F122: ='225 сод.имущ.'!$I$300 -> 0
A123: Услуга по очистке стеклопакетов фасада здания (МАДОУ №№ 1,2,5) | E123: ='225 сод.имущ.'!$I$301 -> 0 | F123: ='225 сод.имущ.'!$I$301 -> 0
A134: Прочие работы, услуги, в том числе: | B134: 226 | E134: =E135+E136+E147+E191+E192+E193+E194+E195+E199 -> 1294200 | F134: =F135+F136+F147+F191+F192+F193+F194+F195+F199 -> 1294200
A135: Страхование жизни, здоровья, имущества (в том числе гражданской ответственности владельцев транспортных средств) | C135: 951 | D135: 06507010210101110244 | E135: ='226 пр.работы, услуги'!$F$128*1000 -> 0 | F135: ='226 пр.работы, услуги'!$F$128*1000 -> 0
A136: Вневедомственная (в том числе пожарная) охрана, охранная и пожарная сигнализация (установка, наладка и эксплуатация), в том числе: | C136: 953 | D136: 06507010210101110244 | E136: =CEILING(SUM(E137:E146),100) -> 721300 | F136: =CEILING(SUM(F137:F146),100) -> 721300
A137: Охрана общественного порядка (физ. охрана) | E137: ='226 пр.работы, услуги'!$F$16*1000 -> 667219.2 | F137: ='226 пр.работы, услуги'!$F$16*1000 -> 667219.2
A138: Мониторинговые услуги по приемке, обработке сигналов, поступающих на центральный радиопульт | E138: ='226 пр.работы, услуги'!$F$17*1000 -> 30000 | F138: ='226 пр.работы, услуги'!$F$17*1000 -> 30000
A139: Услуги по централизованному наблюдению за объектом и реагировании на тревожные сообщения (с использованием канала сотовой связи GSM) | E139: ='226 пр.работы, услуги'!$F$18*1000 -> 24000 | F139: ='226 пр.работы, услуги'!$F$18*1000 -> 24000
A140: Охрана объектов средствами охранно-пожарной сигнализации (ОПС) | E140: ='226 пр.работы, услуги'!$F$19*1000 -> 0 | F140: ='226 пр.работы, услуги'!$F$19*1000 -> 0
A141: Охрана объектов средствами тревожной сигнализации (ТС) | E141: ='226 пр.работы, услуги'!$F$20*1000 -> 0 | F141: ='226 пр.работы, услуги'!$F$20*1000 -> 0
A147: Прочие услуги, в том числе: | C147: 954 | D147: 06507010210101110244 | E147: =CEILING(SUM(E148:E190),100) -> 435600 | F147: =CEILING(SUM(F148:F190),100) -> 435600
A148: Утилизация (захоронение) твердых бытовых отходов | E148: ='226 пр.работы, услуги'!$F$22*1000 -> 22241.466 | F148: ='226 пр.работы, услуги'!$F$22*1000 -> 22241.466
A149: Утилизация (захоронение) крупногабаритного мусора (попадающего под IV и V классы опасности) | E149: ='226 пр.работы, услуги'!$F$23*1000 -> 2132.85 | F149: ='226 пр.работы, услуги'!$F$23*1000 -> 2132.85
A150: Утилизация ртутьсодержащих отходов | E150: ='226 пр.работы, услуги'!$F$24*1000 -> 12313.3 | F150: ='226 пр.работы, услуги'!$F$24*1000 -> 12313.3
A151: Изготовление полиграфической продукции (банеров, вывесок, табличек, визиток, бланочной продукции, номерков, флагов) | E151: ='226 пр.работы, услуги'!$F$27*1000 -> 10000 | F151: ='226 пр.работы, услуги'!$F$27*1000 -> 10000
A152: Специальная оценка условий труда | E152: ='226 пр.работы, услуги'!$F$28*1000 -> 0 | F152: ='226 пр.работы, услуги'!$F$28*1000 -> 0
A153: Изготовление дополнительного сертификата ЭЦП для сдачи отчетн.в ФСС в режиме "Обслуж.бухгалтерия" | E153: ='226 пр.работы, услуги'!$F$29*1000 -> 1500 | F153: ='226 пр.работы, услуги'!$F$29*1000 -> 1500
A154: Отчет по определению тепловых нагрузок и расходов горячей и холодной воды | E154: ='226 пр.работы, услуги'!$F$30*1000 -> 0 | F154: ='226 пр.работы, услуги'!$F$30*1000 -> 0
A155: Протокол о составе и свойствах сточных вод | E155: ='226 пр.работы, услуги'!$F$31*1000 -> 30000 | F155: ='226 пр.работы, услуги'!$F$31*1000 -> 30000
A156: Проект нормативов образования отходов и лимитов на их размещение | E156: ='226 пр.работы, услуги'!$F$32*1000 -> 0 | F156: ='226 пр.работы, услуги'!$F$32*1000 -> 0
A157: Городские культурномассовые мероприятия (звукосветотехническое сопровождение, изготовление плакеток) | E157: ='226 пр.работы, услуги'!$F$33*1000 -> 0 | F157: ='226 пр.работы, услуги'!$F$33*1000 -> 0
A158: Изготовление паспортов БТИ | E158: ='226 пр.работы, услуги'!$F$34*1000 -> 0 | F158: ='226 пр.работы, услуги'!$F$34*1000 -> 0
A159: Оформление пакета документов по обоснованию отнесения отходов к I - V классам опасности для окружающей среды | E159: ='226 пр.работы, услуги'!$F$35*1000 -> 0 | F159: ='226 пр.работы, услуги'!$F$35*1000 -> 0
A160: Расчет оценки пожарного риска | E160: ='226 пр.работы, услуги'!$F$36*1000 -> 0 | F160: ='226 пр.работы, услуги'!$F$36*1000 -> 0
A161: Приобретение и обслуживание программного обеспечения | E161: ='226 пр.работы, услуги'!$F$37*1000 -> 0 | F161: ='226 пр.работы, услуги'!$F$37*1000 -> 0
A162: Исследование воды и смывов плавательных бассейнов | E162: =('226 пр.работы, услуги'!$F$45+'226 пр.работы, услуги'!$F$51+'226 пр.работы, услуги'!$F$55)*1000 -> 109874.9802 | F162: =('226 пр.работы, услуги'!$F$45+'226 пр.работы, услуги'!$F$51+'226 пр.работы, услуги'!$F$55)*1000 -> 109874.9802
A163: Исследование питьевой воды | E163: ='226 пр.работы, услуги'!$F$59*1000 -> 8347.6504 | F163: ='226 пр.работы, услуги'!$F$59*1000 -> 8347.6504
A164: Исследование почвы, песка | E164: ='226 пр.работы, услуги'!$F$70*1000 -> 3312.909 | F164: ='226 пр.работы, услуги'!$F$70*1000 -> 3312.909
A165: Исследование микроклимата | E165: ='226 пр.работы, услуги'!$F$75*1000 -> 1815.2058 | F165: ='226 пр.работы, услуги'!$F$75*1000 -> 1815.2058
A166: Исследование продуктов и готовых блюд | E166: =('226 пр.работы, услуги'!$F$80+'226 пр.работы, услуги'!$F$89)*1000 -> 59503.2582 | F166: =('226 пр.работы, услуги'!$F$80+'226 пр.работы, услуги'!$F$89)*1000 -> 59503.2582
A167: Профессиональная гигиеническая подготовка и аттестация должностных лиц | E167: ='226 пр.работы, услуги'!$F$94*1000 -> 44700.9016 | F167: ='226 пр.работы, услуги'!$F$94*1000 -> 44700.9016
A168: Курьерские услуги | E168: ='226 пр.работы, услуги'!$F$101*1000 -> 0 | F168: ='226 пр.работы, услуги'!$F$101*1000 -> 0
A169: Участие в семинарах, курсах повышения квалификации, конференциях, спортивных мероприятиях | E169: ='226 пр.работы, услуги'!$F$106*1000 -> 0 | F169: ='226 пр.работы, услуги'!$F$106*1000 -> 0
A170: Услуги инкассации наличных денег полистным пересчетом | E170: ='226 пр.работы, услуги'!$F$115*1000 -> 24780 | F170: ='226 пр.работы, услуги'!$F$115*1000 -> 24780
A171: Услуги по обработке учетной (бухгалтерской) информации (ГИВЦ) | E171: ='226 пр.работы, услуги'!$F$118*1000 -> 5000 | F171: ='226 пр.работы, услуги'!$F$118*1000 -> 5000
A172: Монтажные (демонтажные, электромонтажные) работы учебно-игрового оборудования; прогулочных площадок, оборудования | E172: ='226 пр.работы, услуги'!$F$119*1000 -> 0 | F172: ='226 пр.работы, услуги'!$F$119*1000 -> 0
A173: Изготовление стендов; Изготовление и монтаж вертикальных жалюзи | E173: ='226 пр.работы, услуги'!$F$122*1000 -> 0 | F173: ='226 пр.работы, услуги'!$F$122*1000 -> 0
A174: Составление и изготовление планов эвакуации | E174: ='226 пр.работы, услуги'!$F$123*1000 -> 0 | F174: ='226 пр.работы, услуги'!$F$123*1000 -> 0
A175: Информация (декларация) об энергосбережении и о повышении энергетической эффективности | E175: ='226 пр.работы, услуги'!$F$126*1000 -> 100000 | F175: ='226 пр.работы, услуги'!$F$126*1000 -> 100000
A191: Вознаграждение по договорам ГПХ с учетом ЕСН | C191: 955 | D191: 06507010210101110244
A192: Приобретение периодических изданий, справочной литературы | C192: 956 | D192: 06507010210101110244
A193: Инженерные изыскания для подготовки проектной документации, строительства, реконструкции, капитального и текущего ремонта объектов; архитектурно-строительное проектирование | C193: 957 | D193: 06507010210101110244
A194: Расходы на оплату проезда, найм жилых помещений для участников соревнований, олимпиад и др. мероприятий | C194: 958 | D194: 06507010210101110244
A195: Медицинские услуги (в том числе диспансеризация, медицинский осмотр и освидетельствование работников (включая предрейсовые осмотры водителей), состоящих в штате учреждения, проведение медицинских анализов), в том числе: | C195: 995 | D195: 06507010210101110244 | E195: =SUM(E196:E198) -> 137300 | F195: =SUM(F196:F198) -> 137300
A196: АУП, УВП
A197: Педагоги
A198: МОП | E198: ='226.995 медосмотры'!$CX$11 -> 137300 | F198: ='226.995 медосмотры'!$CX$11 -> 137300
A199: Оказание услуг по скорой медицинской помощи | C199: 996 | D199: 06507010210101110244
A200: Социальное обеспечение, всего, из них: | B200: 260 | E200: =E201 -> 0 | F200: =F201 -> 0
A201: Пособия по социальной помощи населению, в том числе: | B201: 262 | E201: =E202 -> 0 | F201: 0
A202: Пособия по социальной помощи населению | C202: 993 | D202: 06507010210101110321
A203: Прочие расходы, в том числе: | B203: 290 | E203: =E216+E204 -> 12000 | F203: =F216+F204 -> 12000
A204: Прочие расходы, в том числе: | C204: 962 | D204: 06507010210101110244 | E204: =SUM(E205:E215) -> 0 | F204: =SUM(F205:F215) -> 0
A205: Плата за размещение отходов производства и потребления
A206: Пени (штрафы) на недоимку по страховым взносам
A207: Госпошлина и сборы
A208: Штрафы (по решению надзорных органов)
A209: Расходы по исполнительным листам
A210: Прочие платежи в бюджеты всех уровней
A211: Прочие расходы (неустойки и пр.)
A216: Культурно-массовые и спортивно-массовые мероприятия, в том числе: | C216: 963 | D216: 06507010210101110244 | E216: =E217+E218 -> 12000 | F216: =F217+F218 -> 12000
A217: Городские мероприятия (приобретение кубков, медалей, ценных подарков, грамот, дипломов, цветов, воздушных шаров и др.)
A218: Внутренние мероприятия (приобретение кубков, медалей, ценных подарков, грамот, дипломов, цветов, воздушных шаров и др.) | E218: ='290.963 КММ'!$F$13 -> 12000 | F218: ='290.963 КММ'!$F$13 -> 12000
A219: Поступление нефинансовых активов, всего, из них: | B219: 300 | E219: =E220+E222 -> 618900 | F219: =F220+F222 -> 618900
A220: Увеличение стоимости основных средств, в том числе: | B220: 310 | E220: =E221 -> 0 | F220: =F221 -> 0
A221: Приобретение основных средств | C221: 971 | D221: 06507010210101110244 | E221: 0 | F221: 0
A222: Увеличение стоимости материальных запасов, в том числе: | B222: 340 | E222: =SUM(E223:E226) -> 618900 | F222: =SUM(F223:F226) -> 618900
A223: Приобретение расходных материалов | C223: 981 | D223: 06507010210101110244 | E223: ='310,340 смета ТМЦ'!$L$166 -> 167800 | F223: ='310,340 смета ТМЦ'!$M$166 -> 167800
A224: Приобретение медикаментов и перевязочных средств | C224: 982 | D224: 06507010210101110244
A225: Приобретение продуктов питания (оплата продовольствия), в том числе продовольственных пайков военнослужащим и приравненным к ним лицам | C225: 983 | D225: 06507010210101110244 | E225: ='340.983 питание'!$S$4 -> 398800 | F225: ='340.983 питание'!$S$4 -> 398800
A226: Приобретение мягкого инвентаря | C226: 985 | D226: 06507010210101110244 | E226: ='310,340 смета ТМЦ'!$L$165 -> 52300 | F226: ='310,340 смета ТМЦ'!$M$165 -> 52300
A227: II блок - Субсидии на выполнение мун. задания (краевой бюджет КЦСР 0210074080)
A228: Наименование показателя | B228: КОСГУ | C228: Доп. КР | D228: КБК | E228: !!!! Не изменять показатели данной графы Утвержденные ассигнования на 2018 год, краевой бюджет Субвенции бюджетам муниципальных образований в части обеспечения деятельности административного и учебно-вспомогательного персонала Субсидии на финансовое обеспечение выполнения муниципального задания Код доп.ЭК 000, доп.ФК 70000, КЦСР 0210074080 | F228: !!!! Не изменять показатели данной графы Утвержденные ассигнования на 2019 год, краевой бюджет Субвенции бюджетам муниципальных образований в части обеспечения деятельности административного и учебно-вспомогательного персонала Субсидии на финансовое обеспечение выполнения муниципального задания Код доп.ЭК 000, доп.ФК 70000, КЦСР 0210074080
A230: 1 | B230: 2 | C230: 3 | D230: 4 | E230: 5 | F230: 6
A231: ВЫПЛАТЫ ВСЕГО | E231: =E233+E319 -> 692900 | F231: =F233+F319 -> 692900
A232: ВЫПЛАТЫ ВСЕГО для СГОЗ | E232: =E240+E256+E267+E285+E298+E299+E316+E320+E322+E297 -> 623800 | F232: =F240+F256+F267+F285+F298+F299+F316+F320+F322+F297 -> 623800
B233: 200 | E233: =E234+E303 -> 466600 | F233: 466600
A234: Оплата работ, услуг, всего, из них: | B234: 220 | E234: =E235+E240+E256+E267+E284 -> 442100 | F234: 442100
A235: Прочие выплаты, в том числе: | B235: 212 | E235: =SUM(E236:E239) -> 44600 | F235: 44600
A236: Возмещение работникам (сотрудникам) расходов, связанных со служебными командировками (суточные при служебных командировках) | C236: 912 | D236: 06507010210074080112 | E236: ='212 командировки'!$F$15 -> 3000 | F236: ='212 командировки'!$F$15 -> 3000
A237: Оплата проезда по служебным командировкам (в т.ч. студентам, обучающимся по заочной форме обучения, при проезде к месту нахождения учебного заведения) | C237: 921 | D237: 06507010210074080112 | E237: ='212 командировки'!$H$15 -> 23100 | F237: ='212 командировки'!$H$15 -> 23100
A238: Оплата проезда сопровождающих лиц, являющихся штатными сотрудниками учреждений | C238: 924 | D238: 06507010210074080112
A239: Проживание в служебных командировках | C239: 952 | D239: 06507010210074080112 | E239: ='212 командировки'!$K$15 -> 18500 | F239: ='212 командировки'!$K$15 -> 18500
A240: Услуги связи, в том числе: | B240: 221 | E240: =E241 -> 45600 | F240: =F241 -> 45600
A241: Услуги связи, в том числе: | C241: 925 | D241: 06507010210074080244 | E241: =CEILING(SUM(E242:E255),100) -> 45600 | F241: =CEILING(SUM(F242:F255),100) -> 45600
A242: Телекоммуникационные услуги связи (ГТС) | E242: ='221 связь'!$Q$12 -> 32200 | F242: ='221 связь'!$Q$12 -> 32200
A243: Услуги внутризоновой телефонной связи | E243: ='221 связь'!$Q$29 -> 0 | F243: ='221 связь'!$Q$29 -> 0
A244: Услуги автоматической междугородней и международней телефонной связи | E244: ='221 связь'!$Q$30 -> 500 | F244: ='221 связь'!$Q$30 -> 500
A245: Услуги связи по тарифному плану "Квалифицированный Голд" | E245: ='221 связь'!$Q$31 -> 0 | F245: ='221 связь'!$Q$31 -> 0
A246: Прочие расходы (восстан-е линии связи, уст-ка доп. телефонов, предост-е доступа к мест. телеф. связи и др.) | E246: ='221 связь'!$Q$33 -> 1000 | F246: ='221 связь'!$Q$33 -> 1000
A247: Марочная продукция (маркированные конверты) | E247: ='221 связь'!$Q$35 -> 5184 | F247: ='221 связь'!$Q$35 -> 5184
A248: Прочие услуги (экспресс-почта, бандероли, ценные посылки, телеграммы и др.) | E248: ='221 связь'!$Q$33 -> 1000 | F248: ='221 связь'!$Q$33 -> 1000
A249: Заказные письма | E249: ='221 связь'!$Q$38 -> 5703.2 | F249: ='221 связь'!$Q$38 -> 5703.2
A250: Подключение к глобальной информационной сети Интернет, абонентская плата
A256: Транспортные услуги, в том числе: | B256: 222 | E256: =E257 -> 0 | F256: 0
A257: Прочие транспортные расходы, в том числе: | C257: 922 | D257: 06507010210074080244 | E257: =SUM(E258:E266) -> 0 | F257: 0
A258: Транспортные расходы на доставку оборудования, необходимого для организации деятельности работников (АУП и УВП)
A259: Транспортные расходы на доставку мебели, необходимой для организации деятельности работников (АУП и УВП)
A260: Транспортные расходы на доставку средств вычислительной техники, копировально-множительной техники, связи и телекоммуникаций, необходимых для организации деятельности работников (АУП и УВП)
A261: Расходы по доставке периодических изданий, необходимых для организации деятельности работников (АУП и УВП)
A267: Работы, услуги по содержанию имущества, в том числе: | B267: 225 | E267: =E268+E276 -> 43000 | F267: 43000
... 215 more rows

Sheet Бюджет 2017-2019
A1: КБК = КВСР (3 знака )+ КФСР (4 знака) + КЦСР (10 знаков) + КВР (3 знака)
A2: КВР: 112 Иные выплаты персоналу учреждений, за исключением фонда оплаты труда (включает в себя: командировочные расходы; оплата стоимости проезда к месту отдыха и обратно; компенсация расходов, связанных с переездом из районов Крайнего Севера; прочие расходы: штрафы, пени, налоги, ДопКР: 911,912,913,917,918,919,921,923,924,952,962); 244 Прочая закупка товаров, работ и услуг для обеспечения государственных (муниципальных) нужд (включает в себя услуги, не перечисленные в КВР 112 и КВР 321); 321 Пособия, компенсации и иные социальные выплаты гражданам, кроме публичных нормативных обязательств (включает в себя: пособия по социальной помощи населению, ДопКР 993).
A3: рубли
A4: Итого Бюджет 2017-2019 | O4: =SUM(O7:O56) -> 68354330 | P4: =SUM(P7:P56) -> 68601730 | Q4: =SUM(Q7:Q56) -> 67849330
A5: Итого для СГОЗ | O5: 9202000 | P5: 9340500 | Q5: 8588100 | R5: Отклонение
A6: Бюджет | B6: Бюджетополучатель | C6: КВСР | D6: Наименование КВСР | E6: КФСР | F6: Наименование КФСР | G6: КЦСР | H6: Наименование КЦСР | I6: Доп. ФК | J6: Наименование Доп. ФК | K6: Доп. ЭК | L6: Наименование Доп. ЭК | M6: Доп. КР | N6: Наименование Доп. КР | O6: План 2017 год | P6: План 2018 год | Q6: План 2019 год | R6: 2018 | S6: 2019
A7: бюджет муниципального образования город Норильск | B7: Субсидия на выполнение муниципального задания МБДОУ "Детский сад № 90 "Цветик-семицветик" | C7: 065 | D7: муниципальное учреждение "Управление общего и дошкольного образования Администрации города Норильска" | E7: 0701 | F7: Дошкольное образование | G7: 02 1 00 74080 | H7: Субвенции бюджетам муниципальных образований на обеспечение государственных гарантий реализации прав на получение общедоступного и бесплатного дошкольного образования в муниципальных дошкольных образовательных организациях, общедоступного и бесплатного дошкольного образования в муниципальных общеобразовательных организациях в части обеспечения деятельности административно-хозяйственного, учебно-вспомогательного персонала и иных категорий работников образовательных организаций, участвующих в реализации общеобразовательных программ в соответствии с федеральными государственными образовательными стандартами, в рамках подпрограммы «Развитие дошкольного, общего и дополнительного образования» государственной программы Красноярского края «Развитие образования» | I7: 70000 | J7: Муниципальные услуги (работы), оказываемые (выполняемые) муниципальными учреждениями в качестве основных видов деятельности на основе утвержденного ведомственного перечня муниципальных услуг (работ) | K7: 475 | L7: Субвенции бюджетам муниципальных образований края на обеспечение государственных гарантий реализации прав на получение общедоступного и бесплатного дошкольного образования в муниципальных дошкольных образовательных организациях, общедоступного и бесплатного дошкольного образования в муниципальных общеобразовательных организациях в соответствии с пунктом 3 части 1 статьи 8 Федерального закона от 29 декабря 2012 года № 273-ФЗ «Об образовании в Российской Федерации», пунктом 5 статьи 8 Закона края от 26 июня 2014 года № 6-2519 «Об образовании в Красноярском крае» на 2017 год и плановый период 2018 - 2019 годов | M7: 912 | N7: Возмещение работникам (сотрудникам) расходов, связанных со служебными командировками (суточные при служебных командировках) | O7: 3000 | P7: 3000 | Q7: 3000 | R7: =P7-O7 -> 0 | S7: =Q7-O7 -> 0
A8: бюджет муниципального образования город Норильск | B8: Субсидия на выполнение муниципального задания МБДОУ "Детский сад № 90 "Цветик-семицветик" | C8: 065 | D8: муниципальное учреждение "Управление общего и дошкольного образования Администрации города Норильска" | E8: 0701 | F8: Дошкольное образование | G8: 02 1 00 74080 | H8: Субвенции бюджетам муниципальных образований на обеспечение государственных гарантий реализации прав на получение общедоступного и бесплатного дошкольного образования в муниципальных дошкольных образовательных организациях, общедоступного и бесплатного дошкольного образования в муниципальных общеобразовательных организациях в части обеспечения деятельности административно-хозяйственного, учебно-вспомогательного персонала и иных категорий работников образовательных организаций, участвующих в реализации общеобразовательных программ в соответствии с федеральными государственными образовательными стандартами, в рамках подпрограммы «Развитие дошкольного, общего и дополнительного образования» государственной программы Красноярского края «Развитие образования» | I8: 70000 | J8: Муниципальные услуги (работы), оказываемые (выполняемые) муниципальными учреждениями в качестве основных видов деятельности на основе утвержденного ведомственного перечня муниципальных услуг (работ) | K8: 475 | L8: Субвенции бюджетам муниципальных образований края на обеспечение государственных гарантий реализации прав на получение общедоступного и бесплатного дошкольного образования в муниципальных дошкольных образовательных организациях, общедоступного и бесплатного дошкольного образования в муниципальных общеобразовательных организациях в соответствии с пунктом 3 части 1 статьи 8 Федерального закона от 29 декабря 2012 года № 273-ФЗ «Об образовании в Российской Федерации», пунктом 5 статьи 8 Закона края от 26 июня 2014 года № 6-2519 «Об образовании в Красноярском крае» на 2017 год и плановый период 2018 - 2019 годов | M8: 921 | N8: Возмещение работникам (сотрудникам) расходов, связанных со служебными командировками (проезд к месту служебной командировки и обратно к месту постоянной работы транспортом общего пользования) | O8: 23100 | P8: 23100 | Q8: 23100 | R8: =P8-O8 -> 0 | S8: =Q8-O8 -> 0
A9: бюджет муниципального образования город Норильск | B9: Субсидия на выполнение муниципального задания МБДОУ "Детский сад № 90 "Цветик-семицветик" | C9: 065 | D9: муниципальное учреждение "Управление общего и дошкольного образования Администрации города Норильска" | E9: 0701 | F9: Дошкольное образование | G9: 02 1 00 74080 | H9: Субвенции бюджетам муниципальных образований на обеспечение государственных гарантий реализации прав на получение общедоступного и бесплатного дошкольного образования в муниципальных дошкольных образовательных организациях, общедоступного и бесплатного дошкольного образования в муниципальных общеобразовательных организациях в части обеспечения деятельности административно-хозяйственного, учебно-вспомогательного персонала и иных категорий работников образовательных организаций, участвующих в реализации общеобразовательных программ в соответствии с федеральными государственными образовательными стандартами, в рамках подпрограммы «Развитие дошкольного, общего и дополнительного образования» государственной программы Красноярского края «Развитие образования» | I9: 70000 | J9: Муниципальные услуги (работы), оказываемые (выполняемые) муниципальными учреждениями в качестве основных видов деятельности на основе утвержденного ведомственного перечня муниципальных услуг (работ) | K9: 475 | L9: Субвенции бюджетам муниципальных образований края на обеспечение государственных гарантий реализации прав на получение общедоступного и бесплатного дошкольного образования в муниципальных дошкольных образовательных организациях, общедоступного и бесплатного дошкольного образования в муниципальных общеобразовательных организациях в соответствии с пунктом 3 части 1 статьи 8 Федерального закона от 29 декабря 2012 года № 273-ФЗ «Об образовании в Российской Федерации», пунктом 5 статьи 8 Закона края от 26 июня 2014 года № 6-2519 «Об образовании в Красноярском крае» на 2017 год и плановый период 2018 - 2019 годов | M9: 925 | N9: Услуги связи | O9: 45600 | P9: 45600 | Q9: 45600 | R9: 0 | S9: 0
A10: бюджет муниципального образования город Норильск | B10: Субсидия на выполнение муниципального задания МБДОУ "Детский сад № 90 "Цветик-семицветик" | C10: 065 | D10: муниципальное учреждение "Управление общего и дошкольного образования Администрации города Норильска" | E10: 0701 | F10: Дошкольное образование | G10: 02 1 00 74080 | H10: Субвенции бюджетам муниципальных образований на обеспечение государственных гарантий реализации прав на получение общедоступного и бесплатного дошкольного образования в муниципальных дошкольных образовательных организациях, общедоступного и бесплатного дошкольного образования в муниципальных общеобразовательных организациях в части обеспечения деятельности административно-хозяйственного, учебно-вспомогательного персонала и иных категорий работников образовательных организаций, участвующих в реализации общеобразовательных программ в соответствии с федеральными государственными образовательными стандартами, в рамках подпрограммы «Развитие дошкольного, общего и дополнительного образования» государственной программы Красноярского края «Развитие образования» | I10: 70000 | J10: Муниципальные услуги (работы), оказываемые (выполняемые) муниципальными учреждениями в качестве основных видов деятельности на основе утвержденного ведомственного перечня муниципальных услуг (работ) | K10: 475 | L10: Субвенции бюджетам муниципальных образований края на обеспечение государственных гарантий реализации прав на получение общедоступного и бесплатного дошкольного образования в муниципальных дошкольных образовательных организациях, общедоступного и бесплатного дошкольного образования в муниципальных общеобразовательных организациях в соответствии с пунктом 3 части 1 статьи 8 Федерального закона от 29 декабря 2012 года № 273-ФЗ «Об образовании в Российской Федерации», пунктом 5 статьи 8 Закона края от 26 июня 2014 года № 6-2519 «Об образовании в Красноярском крае» на 2017 год и плановый период 2018 - 2019 годов | M10: 942 | N10: Текущий ремонт оборудования | O10: 17200 | P10: 17200 | Q10: 17200 | R10: 0 | S10: 0
A11: бюджет муниципального образования город Норильск | B11: Субсидия на выполнение муниципального задания МБДОУ "Детский сад № 90 "Цветик-семицветик" | C11: 065 | D11: муниципальное учреждение "Управление общего и дошкольного образования Администрации города Норильска" | E11: 0701 | F11: Дошкольное образование | G11: 02 1 00 74080 | H11: Субвенции бюджетам муниципальных образований на обеспечение государственных гарантий реализации прав на получение общедоступного и бесплатного дошкольного образования в муниципальных дошкольных образовательных организациях, общедоступного и бесплатного дошкольного образования в муниципальных общеобразовательных организациях в части обеспечения деятельности административно-хозяйственного, учебно-вспомогательного персонала и иных категорий работников образовательных организаций, участвующих в реализации общеобразовательных программ в соответствии с федеральными государственными образовательными стандартами, в рамках подпрограммы «Развитие дошкольного, общего и дополнительного образования» государственной программы Красноярского края «Развитие образования» | I11: 70000 | J11: Муниципальные услуги (работы), оказываемые (выполняемые) муниципальными учреждениями в качестве основных видов деятельности на основе утвержденного ведомственного перечня муниципальных услуг (работ) | K11: 475 | L11: Субвенции бюджетам муниципальных образований края на обеспечение государственных гарантий реализации прав на получение общедоступного и бесплатного дошкольного образования в муниципальных дошкольных образовательных организациях, общедоступного и бесплатного дошкольного образования в муниципальных общеобразовательных организациях в соответствии с пунктом 3 части 1 статьи 8 Федерального закона от 29 декабря 2012 года № 273-ФЗ «Об образовании в Российской Федерации», пунктом 5 статьи 8 Закона края от 26 июня 2014 года № 6-2519 «Об образовании в Красноярском крае» на 2017 год и плановый период 2018 - 2019 годов | M11: 947 | N11: Прочие расходы по содержанию имущества | O11: 25800 | P11: 25800 | Q11: 25800 | R11: 0 | S11: 0
A12: бюджет муниципального образования город Норильск | B12: Субсидия на выполнение муниципального задания МБДОУ "Детский сад № 90 "Цветик-семицветик" | C12: 065 | D12: муниципальное учреждение "Управление общего и дошкольного образования Администрации города Норильска" | E12: 0701 | F12: Дошкольное образование | G12: 02 1 00 74080 | H12: Субвенции бюджетам муниципальных образований на обеспечение государственных гарантий реализации прав на получение общедоступного и бесплатного дошкольного образования в муниципальных дошкольных образовательных организациях, общедоступного и бесплатного дошкольного образования в муниципальных общеобразовательных организациях в части обеспечения деятельности административно-хозяйственного, учебно-вспомогательного персонала и иных категорий работников образовательных организаций, участвующих в реализации общеобразовательных программ в соответствии с федеральными государственными образовательными стандартами, в рамках подпрограммы «Развитие дошкольного, общего и дополнительного образования» государственной программы Красноярского края «Развитие образования» | I12: 70000 | J12: Муниципальные услуги (работы), оказываемые (выполняемые) муниципальными учреждениями в качестве основных видов деятельности на основе утвержденного ведомственного перечня муниципальных услуг (работ) | K12: 475 | L12: Субвенции бюджетам муниципальных образований края на обеспечение государственных гарантий реализации прав на получение общедоступного и бесплатного дошкольного образования в муниципальных дошкольных образовательных организациях, общедоступного и бесплатного дошкольного образования в муниципальных общеобразовательных организациях в соответствии с пунктом 3 части 1 статьи 8 Федерального закона от 29 декабря 2012 года № 273-ФЗ «Об образовании в Российской Федерации», пунктом 5 статьи 8 Закона края от 26 июня 2014 года № 6-2519 «Об образовании в Красноярском крае» на 2017 год и плановый период 2018 - 2019 годов | M12: 952 | N12: Возмещение работникам (сотрудникам) расходов, связанных со служебными командировками (проживание в служебных командировках) | O12: 18500 | P12: 18500 | Q12: 18500 | R12: 0 | S12: 0
A13: бюджет муниципального образования город Норильск | B13: Субсидия на выполнение муниципального задания МБДОУ "Детский сад № 90 "Цветик-семицветик" | C13: 065 | D13: муниципальное учреждение "Управление общего и дошкольного образования Администрации города Норильска" | E13: 0701 | F13: Дошкольное образование | G13: 02 1 00 74080 | H13: Субвенции бюджетам муниципальных образований на обеспечение государственных гарантий реализации прав на получение общедоступного и бесплатного дошкольного образования в муниципальных дошкольных образовательных организациях, общедоступного и бесплатного дошкольного образования в муниципальных общеобразовательных организациях в части обеспечения деятельности административно-хозяйственного, учебно-вспомогательного персонала и иных категорий работников образовательных организаций, участвующих в реализации общеобразовательных программ в соответствии с федеральными государственными образовательными стандартами, в рамках подпрограммы «Развитие дошкольного, общего и дополнительного образования» государственной программы Красноярского края «Развитие образования» | I13: 70000 | J13: Муниципальные услуги (работы), оказываемые (выполняемые) муниципальными учреждениями в качестве основных видов деятельности на основе утвержденного ведомственного перечня муниципальных услуг (работ) | K13: 475 | L13: Субвенции бюджетам муниципальных образований края на обеспечение государственных гарантий реализации прав на получение общедоступного и бесплатного дошкольного образования в муниципальных дошкольных образовательных организациях, общедоступного и бесплатного дошкольного образования в муниципальных общеобразовательных организациях в соответствии с пунктом 3 части 1 статьи 8 Федерального закона от 29 декабря 2012 года № 273-ФЗ «Об образовании в Российской Федерации», пунктом 5 статьи 8 Закона края от 26 июня 2014 года № 6-2519 «Об образовании в Красноярском крае» на 2017 год и плановый период 2018 - 2019 годов | M13: 954 | N13: Прочие услуги | O13: 163000 | P13: 163000 | Q13: 163000 | R13: 0 | S13: 0
A14: бюджет муниципального образования город Норильск | B14: Субсидия на выполнение муниципального задания МБДОУ "Детский сад № 90 "Цветик-семицветик" | C14: 065 | D14: муниципальное учреждение "Управление общего и дошкольного образования Администрации города Норильска" | E14: 0701 | F14: Дошкольное образование | G14: 02 1 00 74080 | H14: Субвенции бюджетам муниципальных образований на обеспечение государственных гарантий реализации прав на получение общедоступного и бесплатного дошкольного образования в муниципальных дошкольных образовательных организациях, общедоступного и бесплатного дошкольного образования в муниципальных общеобразовательных организациях в части обеспечения деятельности административно-хозяйственного, учебно-вспомогательного персонала и иных категорий работников образовательных организаций, участвующих в реализации общеобразовательных программ в соответствии с федеральными государственными образовательными стандартами, в рамках подпрограммы «Развитие дошкольного, общего и дополнительного образования» государственной программы Красноярского края «Развитие образования» | I14: 70000 | J14: Муниципальные услуги (работы), оказываемые (выполняемые) муниципальными учреждениями в качестве основных видов деятельности на основе утвержденного ведомственного перечня муниципальных услуг (работ) | K14: 475 | L14: Субвенции бюджетам муниципальных образований края на обеспечение государственных гарантий реализации прав на получение общедоступного и бесплатного дошкольного образования в муниципальных дошкольных образовательных организациях, общедоступного и бесплатного дошкольного образования в муниципальных общеобразовательных организациях в соответствии с пунктом 3 части 1 статьи 8 Федерального закона от 29 декабря 2012 года № 273-ФЗ «Об образовании в Российской Федерации», пунктом 5 статьи 8 Закона края от 26 июня 2014 года № 6-2519 «Об образовании в Красноярском крае» на 2017 год и плановый период 2018 - 2019 годов | M14: 956 | N14: Приобретение периодических изданий, справочной литературы | O14: 25300 | P14: 25300 | Q14: 25300 | R14: 0 | S14: 0
A15: бюджет муниципального образования город Норильск | B15: Субсидия на выполнение муниципального задания МБДОУ "Детский сад № 90 "Цветик-семицветик" | C15: 065 | D15: муниципальное учреждение "Управление общего и дошкольного образования Администрации города Норильска" | E15: 0701 | F15: Дошкольное образование | G15: 02 1 00 74080 | H15: Субвенции бюджетам муниципальных образований на обеспечение государственных гарантий реализации прав на получение общедоступного и бесплатного дошкольного образования в муниципальных дошкольных образовательных организациях, общедоступного и бесплатного дошкольного образования в муниципальных общеобразовательных организациях в части обеспечения деятельности административно-хозяйственного, учебно-вспомогательного персонала и иных категорий работников образовательных организаций, участвующих в реализации общеобразовательных программ в соответствии с федеральными государственными образовательными стандартами, в рамках подпрограммы «Развитие дошкольного, общего и дополнительного образования» государственной программы Красноярского края «Развитие образования» | I15: 70000 | J15: Муниципальные услуги (работы), оказываемые (выполняемые) муниципальными учреждениями в качестве основных видов деятельности на основе утвержденного ведомственного перечня муниципальных услуг (работ) | K15: 475 | L15: Субвенции бюджетам муниципальных образований края на обеспечение государственных гарантий реализации прав на получение общедоступного и бесплатного дошкольного образования в муниципальных дошкольных образовательных организациях, общедоступного и бесплатного дошкольного образования в муниципальных общеобразовательных организациях в соответствии с пунктом 3 части 1 статьи 8 Федерального закона от 29 декабря 2012 года № 273-ФЗ «Об образовании в Российской Федерации», пунктом 5 статьи 8 Закона края от 26 июня 2014 года № 6-2519 «Об образовании в Красноярском крае» на 2017 год и плановый период 2018 - 2019 годов | M15: 962 | N15: Прочие расходы | O15: 24500 | P15: 24500 | Q15: 24500 | R15: 0 | S15: 0
A16: бюджет муниципального образования город Норильск | B16: Субсидия на выполнение муниципального задания МБДОУ "Детский сад № 90 "Цветик-семицветик" | C16: 065 | D16: муниципальное учреждение "Управление общего и дошкольного образования Администрации города Норильска" | E16: 0701 | F16: Дошкольное образование | G16: 02 1 00 74080 | H16: Субвенции бюджетам муниципальных образований на обеспечение государственных гарантий реализации прав на получение общедоступного и бесплатного дошкольного образования в муниципальных дошкольных образовательных организациях, общедоступного и бесплатного дошкольного образования в муниципальных общеобразовательных организациях в части обеспечения деятельности административно-хозяйственного, учебно-вспомогательного персонала и иных категорий работников образовательных организаций, участвующих в реализации общеобразовательных программ в соответствии с федеральными государственными образовательными стандартами, в рамках подпрограммы «Развитие дошкольного, общего и дополнительного образования» государственной программы Красноярского края «Развитие образования» | I16: 70000 | J16: Муниципальные услуги (работы), оказываемые (выполняемые) муниципальными учреждениями в качестве основных видов деятельности на основе утвержденного ведомственного перечня муниципальных услуг (работ) | K16: 475 | L16: Субвенции бюджетам муниципальных образований края на обеспечение государственных гарантий реализации прав на получение общедоступного и бесплатного дошкольного образования в муниципальных дошкольных образовательных организациях, общедоступного и бесплатного дошкольного образования в муниципальных общеобразовательных организациях в соответствии с пунктом 3 части 1 статьи 8 Федерального закона от 29 декабря 2012 года № 273-ФЗ «Об образовании в Российской Федерации», пунктом 5 статьи 8 Закона края от 26 июня 2014 года № 6-2519 «Об образовании в Красноярском крае» на 2017 год и плановый период 2018 - 2019 годов | M16: 981 | N16: Приобретение расходных материалов | O16: 195900 | P16: 195900 | Q16: 195900 | R16: 0 | S16: 0
A17: бюджет муниципального образования город Норильск | B17: Субсидия на выполнение муниципального задания МБДОУ "Детский сад № 90 "Цветик-семицветик" | C17: 065 | D17: муниципальное учреждение "Управление общего и дошкольного образования Администрации города Норильска" | E17: 0701 | F17: Дошкольное образование | G17: 02 1 00 74080 | H17: Субвенции бюджетам муниципальных образований на обеспечение государственных гарантий реализации прав на получение общедоступного и бесплатного дошкольного образования в муниципальных дошкольных образовательных организациях, общедоступного и бесплатного дошкольного образования в муниципальных общеобразовательных организациях в части обеспечения деятельности административно-хозяйственного, учебно-вспомогательного персонала и иных категорий работников образовательных организаций, участвующих в реализации общеобразовательных программ в соответствии с федеральными государственными образовательными стандартами, в рамках подпрограммы «Развитие дошкольного, общего и дополнительного образования» государственной программы Красноярского края «Развитие образования» | I17: 70000 | J17: Муниципальные услуги (работы), оказываемые (выполняемые) муниципальными учреждениями в качестве основных видов деятельности на основе утвержденного ведомственного перечня муниципальных услуг (работ) | K17: 475 | L17: Субвенции бюджетам муниципальных образований края на обеспечение государственных гарантий реализации прав на получение общедоступного и бесплатного дошкольного образования в муниципальных дошкольных образовательных организациях, общедоступного и бесплатного дошкольного образования в муниципальных общеобразовательных организациях в соответствии с пунктом 3 части 1 статьи 8 Федерального закона от 29 декабря 2012 года № 273-ФЗ «Об образовании в Российской Федерации», пунктом 5 статьи 8 Закона края от 26 июня 2014 года № 6-2519 «Об образовании в Красноярском крае» на 2017 год и плановый период 2018 - 2019 годов | M17: 982 | N17: Приобретение медикаментов, перевязочных средств, изделий медицинского назначения и дезинфицирующих средств для медицинских целей | O17: 30400 | P17: 30400 | Q17: 30400 | R17: 0 | S17: 0
A18: бюджет муниципального образования город Норильск | B18: Субсидия на выполнение муниципального задания МБДОУ "Детский сад № 90 "Цветик-семицветик" | C18: 065 | D18: муниципальное учреждение "Управление общего и дошкольного образования Администрации города Норильска" | E18: 0701 | F18: Дошкольное образование | G18: 02 1 00 74080 | H18: Субвенции бюджетам муниципальных образований на обеспечение государственных гарантий реализации прав на получение общедоступного и бесплатного дошкольного образования в муниципальных дошкольных образовательных организациях, общедоступного и бесплатного дошкольного образования в муниципальных общеобразовательных организациях в части обеспечения деятельности административно-хозяйственного, учебно-вспомогательного персонала и иных категорий работников образовательных организаций, участвующих в реализации общеобразовательных программ в соответствии с федеральными государственными образовательными стандартами, в рамках подпрограммы «Развитие дошкольного, общего и дополнительного образования» государственной программы Красноярского края «Развитие образования» | I18: 70000 | J18: Муниципальные услуги (работы), оказываемые (выполняемые) муниципальными учреждениями в качестве основных видов деятельности на основе утвержденного ведомственного перечня муниципальных услуг (работ) | K18: 475 | L18: Субвенции бюджетам муниципальных образований края на обеспечение государственных гарантий реализации прав на получение общедоступного и бесплатного дошкольного образования в муниципальных дошкольных образовательных организациях, общедоступного и бесплатного дошкольного образования в муниципальных общеобразовательных организациях в соответствии с пунктом 3 части 1 статьи 8 Федерального закона от 29 декабря 2012 года № 273-ФЗ «Об образовании в Российской Федерации», пунктом 5 статьи 8 Закона края от 26 июня 2014 года № 6-2519 «Об образовании в Красноярском крае» на 2017 год и плановый период 2018 - 2019 годов | M18: 991 | N18: Заработная плата | O18: 9974000 | P18: 9974000 | Q18: 9974000 | R18: 0 | S18: 0
A19: бюджет муниципального образования город Норильск | B19: Субсидия на выполнение муниципального задания МБДОУ "Детский сад № 90 "Цветик-семицветик" | C19: 065 | D19: муниципальное учреждение "Управление общего и дошкольного образования Администрации города Норильска" | E19: 0701 | F19: Дошкольное образование | G19: 02 1 00 74080 | H19: Субвенции бюджетам муниципальных образований на обеспечение государственных гарантий реализации прав на получение общедоступного и бесплатного дошкольного образования в муниципальных дошкольных образовательных организациях, общедоступного и бесплатного дошкольного образования в муниципальных общеобразовательных организациях в части обеспечения деятельности административно-хозяйственного, учебно-вспомогательного персонала и иных категорий работников образовательных организаций, участвующих в реализации общеобразовательных программ в соответствии с федеральными государственными образовательными стандартами, в рамках подпрограммы «Развитие дошкольного, общего и дополнительного образования» государственной программы Красноярского края «Развитие образования» | I19: 70000 | J19: Муниципальные услуги (работы), оказываемые (выполняемые) муниципальными учреждениями в качестве основных видов деятельности на основе утвержденного ведомственного перечня муниципальных услуг (работ) | K19: 475 | L19: Субвенции бюджетам муниципальных образований края на обеспечение государственных гарантий реализации прав на получение общедоступного и бесплатного дошкольного образования в муниципальных дошкольных образовательных организациях, общедоступного и бесплатного дошкольного образования в муниципальных общеобразовательных организациях в соответствии с пунктом 3 части 1 статьи 8 Федерального закона от 29 декабря 2012 года № 273-ФЗ «Об образовании в Российской Федерации», пунктом 5 статьи 8 Закона края от 26 июня 2014 года № 6-2519 «Об образовании в Красноярском крае» на 2017 год и плановый период 2018 - 2019 годов | M19: 992 | N19: Начисления на выплаты по оплате труда | O19: 3012100 | P19: 3012100 | Q19: 3012100 | R19: 0 | S19: 0
A20: бюджет муниципального образования город Норильск | B20: Субсидия на выполнение муниципального задания МБДОУ "Детский сад № 90 "Цветик-семицветик" | C20: 065 | D20: муниципальное учреждение "Управление общего и дошкольного образования Администрации города Норильска" | E20: 0701 | F20: Дошкольное образование | G20: 02 1 00 74080 | H20: Субвенции бюджетам муниципальных образований на обеспечение государственных гарантий реализации прав на получение общедоступного и бесплатного дошкольного образования в муниципальных дошкольных образовательных организациях, общедоступного и бесплатного дошкольного образования в муниципальных общеобразовательных организациях в части обеспечения деятельности административно-хозяйственного, учебно-вспомогательного персонала и иных категорий работников образовательных организаций, участвующих в реализации общеобразовательных программ в соответствии с федеральными государственными образовательными стандартами, в рамках подпрограммы «Развитие дошкольного, общего и дополнительного образования» государственной программы Красноярского края «Развитие образования» | I20: 70000 | J20: Муниципальные услуги (работы), оказываемые (выполняемые) муниципальными учреждениями в качестве основных видов деятельности на основе утвержденного ведомственного перечня муниципальных услуг (работ) | K20: 475 | L20: Субвенции бюджетам муниципальных образований края на обеспечение государственных гарантий реализации прав на получение общедоступного и бесплатного дошкольного образования в муниципальных дошкольных образовательных организациях, общедоступного и бесплатного дошкольного образования в муниципальных общеобразовательных организациях в соответствии с пунктом 3 части 1 статьи 8 Федерального закона от 29 декабря 2012 года № 273-ФЗ «Об образовании в Российской Федерации», пунктом 5 статьи 8 Закона края от 26 июня 2014 года № 6-2519 «Об образовании в Красноярском крае» на 2017 год и плановый период 2018 - 2019 годов | M20: 995 | N20: Медицинские услуги (в том числе диспансеризация, медицинский осмотр и освидетельствование работников (включая предрейсовые осмотры водителей), состоящих в штате учреждения, проведение медицинских анализов) | O20: 120600 | P20: 120600 | Q20: 120600 | R20: 0 | S20: 0
A21: бюджет муниципального образования город Норильск | B21: Субсидия на выполнение муниципального задания МБДОУ "Детский сад № 90 "Цветик-семицветик" | C21: 065 | D21: муниципальное учреждение "Управление общего и дошкольного образования Администрации города Норильска" | E21: 0701 | F21: Дошкольное образование | G21: 02 1 00 75880 | H21: Субвенции бюджетам муниципальных образований на обеспечение государственных гарантий реализации прав на получение общедоступного и бесплатного дошкольного образования в муниципальных дошкольных образовательных организациях, общедоступного и бесплатного дошкольного образования в муниципальных общеобразовательных организациях, за исключением обеспечения деятельности административно-хозяйственного, учебно-вспомогательного персонала и иных категорий работников образовательных организаций, участвующих в реализации общеобразовательных программ в соответствии с федеральными государственными образовательными стандартами, в рамках подпрограммы «Развитие дошкольного, общего и дополнительного образования» государственной программы Красноярского края «Развитие образования» | I21: 70000 | J21: Муниципальные услуги (работы), оказываемые (выполняемые) муниципальными учреждениями в качестве основных видов деятельности на основе утвержденного ведомственного перечня муниципальных услуг (работ) | K21: 475 | L21: Субвенции бюджетам муниципальных образований края на обеспечение государственных гарантий реализации прав на получение общедоступного и бесплатного дошкольного образования в муниципальных дошкольных образовательных организациях, общедоступного и бесплатного дошкольного образования в муниципальных общеобразовательных организациях в соответствии с пунктом 3 части 1 статьи 8 Федерального закона от 29 декабря 2012 года № 273-ФЗ «Об образовании в Российской Федерации», пунктом 5 статьи 8 Закона края от 26 июня 2014 года № 6-2519 «Об образовании в Красноярском крае» на 2017 год и плановый период 2018 - 2019 годов | M21: 918 | N21: Прочие выплаты | O21: 5400 | P21: 5400 | Q21: 5400 | R21: 0 | S21: 0
A22: бюджет муниципального образования город Норильск | B22: Субсидия на выполнение муниципального задания МБДОУ "Детский сад № 90 "Цветик-семицветик" | C22: 065 | D22: муниципальное учреждение "Управление общего и дошкольного образования Администрации города Норильска" | E22: 0701 | F22: Дошкольное образование | G22: 02 1 00 75880 | H22: Субвенции бюджетам муниципальных образований на обеспечение государственных гарантий реализации прав на получение общедоступного и бесплатного дошкольного образования в муниципальных дошкольных образовательных организациях, общедоступного и бесплатного дошкольного образования в муниципальных общеобразовательных организациях, за исключением обеспечения деятельности административно-хозяйственного, учебно-вспомогательного персонала и иных категорий работников образовательных организаций, участвующих в реализации общеобразовательных программ в соответствии с федеральными государственными образовательными стандартами, в рамках подпрограммы «Развитие дошкольного, общего и дополнительного образования» государственной программы Красноярского края «Развитие образования» | I22: 70000 | J22: Муниципальные услуги (работы), оказываемые (выполняемые) муниципальными учреждениями в качестве основных видов деятельности на основе утвержденного ведомственного перечня муниципальных услуг (работ) | K22: 475 | L22: Субвенции бюджетам муниципальных образований края на обеспечение государственных гарантий реализации прав на получение общедоступного и бесплатного дошкольного образования в муниципальных дошкольных образовательных организациях, общедоступного и бесплатного дошкольного образования в муниципальных общеобразовательных организациях в соответствии с пунктом 3 части 1 статьи 8 Федерального закона от 29 декабря 2012 года № 273-ФЗ «Об образовании в Российской Федерации», пунктом 5 статьи 8 Закона края от 26 июня 2014 года № 6-2519 «Об образовании в Красноярском крае» на 2017 год и плановый период 2018 - 2019 годов | M22: 919 | N22: Возмещение расходов на прохождение медицинского осмотра | O22: 21000 | P22: 21000 | Q22: 21000 | R22: 0 | S22: 0
A23: бюджет муниципального образования город Норильск | B23: Субсидия на выполнение муниципального задания МБДОУ "Детский сад № 90 "Цветик-семицветик" | C23: 065 | D23: муниципальное учреждение "Управление общего и дошкольного образования Администрации города Норильска" | E23: 0701 | F23: Дошкольное образование | G23: 02 1 00 75880 | H23: Субвенции бюджетам муниципальных образований на обеспечение государственных гарантий реализации прав на получение общедоступного и бесплатного дошкольного образования в муниципальных дошкольных образовательных организациях, общедоступного и бесплатного дошкольного образования в муниципальных общеобразовательных организациях, за исключением обеспечения деятельности административно-хозяйственного, учебно-вспомогательного персонала и иных категорий работников образовательных организаций, участвующих в реализации общеобразовательных программ в соответствии с федеральными государственными образовательными стандартами, в рамках подпрограммы «Развитие дошкольного, общего и дополнительного образования» государственной программы Красноярского края «Развитие образования» | I23: 70000 | J23: Муниципальные услуги (работы), оказываемые (выполняемые) муниципальными учреждениями в качестве основных видов деятельности на основе утвержденного ведомственного перечня муниципальных услуг (работ) | K23: 475 | L23: Субвенции бюджетам муниципальных образований края на обеспечение государственных гарантий реализации прав на получение общедоступного и бесплатного дошкольного образования в муниципальных дошкольных образовательных организациях, общедоступного и бесплатного дошкольного образования в муниципальных общеобразовательных организациях в соответствии с пунктом 3 части 1 статьи 8 Федерального закона от 29 декабря 2012 года № 273-ФЗ «Об образовании в Российской Федерации», пунктом 5 статьи 8 Закона края от 26 июня 2014 года № 6-2519 «Об образовании в Красноярском крае» на 2017 год и плановый период 2018 - 2019 годов | M23: 925 | N23: Услуги связи | O23: 48000 | P23: 48000 | Q23: 48000 | R23: 0 | S23: 0
A24: бюджет муниципального образования город Норильск | B24: Субсидия на выполнение муниципального задания МБДОУ "Детский сад № 90 "Цветик-семицветик" | C24: 065 | D24: муниципальное учреждение "Управление общего и дошкольного образования Администрации города Норильска" | E24: 0701 | F24: Дошкольное образование | G24: 02 1 00 75880 | H24: Субвенции бюджетам муниципальных образований на обеспечение государственных гарантий реализации прав на получение общедоступного и бесплатного дошкольного образования в муниципальных дошкольных образовательных организациях, общедоступного и бесплатного дошкольного образования в муниципальных общеобразовательных организациях, за исключением обеспечения деятельности административно-хозяйственного, учебно-вспомогательного персонала и иных категорий работников образовательных организаций, участвующих в реализации общеобразовательных программ в соответствии с федеральными государственными образовательными стандартами, в рамках подпрограммы «Развитие дошкольного, общего и дополнительного образования» государственной программы Красноярского края «Развитие образования» | I24: 70000 | J24: Муниципальные услуги (работы), оказываемые (выполняемые) муниципальными учреждениями в качестве основных видов деятельности на основе утвержденного ведомственного перечня муниципальных услуг (работ) | K24: 475 | L24: Субвенции бюджетам муниципальных образований края на обеспечение государственных гарантий реализации прав на получение общедоступного и бесплатного дошкольного образования в муниципальных дошкольных образовательных организациях, общедоступного и бесплатного дошкольного образования в муниципальных общеобразовательных организациях в соответствии с пунктом 3 части 1 статьи 8 Федерального закона от 29 декабря 2012 года № 273-ФЗ «Об образовании в Российской Федерации», пунктом 5 статьи 8 Закона края от 26 июня 2014 года № 6-2519 «Об образовании в Красноярском крае» на 2017 год и плановый период 2018 - 2019 годов | M24: 963 | N24: Культурно-массовые и спортивно-массовые мероприятия | O24: 30000 | P24: 30000 | Q24: 30000 | R24: 0 | S24: 0
A25: бюджет муниципального образования город Норильск | B25: Субсидия на выполнение муниципального задания МБДОУ "Детский сад № 90 "Цветик-семицветик" | C25: 065 | D25: муниципальное учреждение "Управление общего и дошкольного образования Администрации города Норильска" | E25: 0701 | F25: Дошкольное образование | G25: 02 1 00 75880 | H25: Субвенции бюджетам муниципальных образований на обеспечение государственных гарантий реализации прав на получение общедоступного и бесплатного дошкольного образования в муниципальных дошкольных образовательных организациях, общедоступного и бесплатного дошкольного образования в муниципальных общеобразовательных организациях, за исключением обеспечения деятельности административно-хозяйственного, учебно-вспомогательного персонала и иных категорий работников образовательных организаций, участвующих в реализации общеобразовательных программ в соответствии с федеральными государственными образовательными стандартами, в рамках подпрограммы «Развитие дошкольного, общего и дополнительного образования» государственной программы Красноярского края «Развитие образования» | I25: 70000 | J25: Муниципальные услуги (работы), оказываемые (выполняемые) муниципальными учреждениями в качестве основных видов деятельности на основе утвержденного ведомственного перечня муниципальных услуг (работ) | K25: 475 | L25: Субвенции бюджетам муниципальных образований края на обеспечение государственных гарантий реализации прав на получение общедоступного и бесплатного дошкольного образования в муниципальных дошкольных образовательных организациях, общедоступного и бесплатного дошкольного образования в муниципальных общеобразовательных организациях в соответствии с пунктом 3 части 1 статьи 8 Федерального закона от 29 декабря 2012 года № 273-ФЗ «Об образовании в Российской Федерации», пунктом 5 статьи 8 Закона края от 26 июня 2014 года № 6-2519 «Об образовании в Красноярском крае» на 2017 год и плановый период 2018 - 2019 годов | M25: 971 | N25: Приобретение основных средств | O25: 276200 | P25: 276200 | Q25: 276200 | R25: 0 | S25: 0
A26: бюджет муниципального образования город Норильск | B26: Субсидия на выполнение муниципального задания МБДОУ "Детский сад № 90 "Цветик-семицветик" | C26: 065 | D26: муниципальное учреждение "Управление общего и дошкольного образования Администрации города Норильска" | E26: 0701 | F26: Дошкольное образование | G26: 02 1 00 75880 | H26: Субвенции бюджетам муниципальных образований на обеспечение государственных гарантий реализации прав на получение общедоступного и бесплатного дошкольного образования в муниципальных дошкольных образовательных организациях, общедоступного и бесплатного дошкольного образования в муниципальных общеобразовательных организациях, за исключением обеспечения деятельности административно-хозяйственного, учебно-вспомогательного персонала и иных категорий работников образовательных организаций, участвующих в реализации общеобразовательных программ в соответствии с федеральными государственными образовательными стандартами, в рамках подпрограммы «Развитие дошкольного, общего и дополнительного образования» государственной программы Красноярского края «Развитие образования» | I26: 70000 | J26: Муниципальные услуги (работы), оказываемые (выполняемые) муниципальными учреждениями в качестве основных видов деятельности на основе утвержденного ведомственного перечня муниципальных услуг (работ) | K26: 475 | L26: Субвенции бюджетам муниципальных образований края на обеспечение государственных гарантий реализации прав на получение общедоступного и бесплатного дошкольного образования в муниципальных дошкольных образовательных организациях, общедоступного и бесплатного дошкольного образования в муниципальных общеобразовательных организациях в соответствии с пунктом 3 части 1 статьи 8 Федерального закона от 29 декабря 2012 года № 273-ФЗ «Об образовании в Российской Федерации», пунктом 5 статьи 8 Закона края от 26 июня 2014 года № 6-2519 «Об образовании в Красноярском крае» на 2017 год и плановый период 2018 - 2019 годов | M26: 981 | N26: Приобретение расходных материалов | O26: 148700 | P26: 148700 | Q26: 148700 | R26: 0 | S26: 0
A27: бюджет муниципального образования город Норильск | B27: Субсидия на выполнение муниципального задания МБДОУ "Детский сад № 90 "Цветик-семицветик" | C27: 065 | D27: муниципальное учреждение "Управление общего и дошкольного образования Администрации города Норильска" | E27: 0701 | F27: Дошкольное образование | G27: 02 1 00 75880 | H27: Субвенции бюджетам муниципальных образований на обеспечение государственных гарантий реализации прав на получение общедоступного и бесплатного дошкольного образования в муниципальных дошкольных образовательных организациях, общедоступного и бесплатного дошкольного образования в муниципальных общеобразовательных организациях, за исключением обеспечения деятельности административно-хозяйственного, учебно-вспомогательного персонала и иных категорий работников образовательных организаций, участвующих в реализации общеобразовательных программ в соответствии с федеральными государственными образовательными стандартами, в рамках подпрограммы «Развитие дошкольного, общего и дополнительного образования» государственной программы Красноярского края «Развитие образования» | I27: 70000 | J27: Муниципальные услуги (работы), оказываемые (выполняемые) муниципальными учреждениями в качестве основных видов деятельности на основе утвержденного ведомственного перечня муниципальных услуг (работ) | K27: 475 | L27: Субвенции бюджетам муниципальных образований края на обеспечение государственных гарантий реализации прав на получение общедоступного и бесплатного дошкольного образования в муниципальных дошкольных образовательных организациях, общедоступного и бесплатного дошкольного образования в муниципальных общеобразовательных организациях в соответствии с пунктом 3 части 1 статьи 8 Федерального закона от 29 декабря 2012 года № 273-ФЗ «Об образовании в Российской Федерации», пунктом 5 статьи 8 Закона края от 26 июня 2014 года № 6-2519 «Об образовании в Красноярском крае» на 2017 год и плановый период 2018 - 2019 годов | M27: 991 | N27: Заработная плата | O27: 24909200 | P27: 24909200 | Q27: 24909200 | R27: 0 | S27: 0
A28: бюджет муниципального образования город Норильск | B28: Субсидия на выполнение муниципального задания МБДОУ "Детский сад № 90 "Цветик-семицветик" | C28: 065 | D28: муниципальное учреждение "Управление общего и дошкольного образования Администрации города Норильска" | E28: 0701 | F28: Дошкольное образование | G28: 02 1 00 75880 | H28: Субвенции бюджетам муниципальных образований на обеспечение государственных гарантий реализации прав на получение общедоступного и бесплатного дошкольного образования в муниципальных дошкольных образовательных организациях, общедоступного и бесплатного дошкольного образования в муниципальных общеобразовательных организациях, за исключением обеспечения деятельности административно-хозяйственного, учебно-вспомогательного персонала и иных категорий работников образовательных организаций, участвующих в реализации общеобразовательных программ в соответствии с федеральными государственными образовательными стандартами, в рамках подпрограммы «Развитие дошкольного, общего и дополнительного образования» государственной программы Красноярского края «Развитие образования» | I28: 70000 | J28: Муниципальные услуги (работы), оказываемые (выполняемые) муниципальными учреждениями в качестве основных видов деятельности на основе утвержденного ведомственного перечня муниципальных услуг (работ) | K28: 475 | L28: Субвенции бюджетам муниципальных образований края на обеспечение государственных гарантий реализации прав на получение общедоступного и бесплатного дошкольного образования в муниципальных дошкольных образовательных организациях, общедоступного и бесплатного дошкольного образования в муниципальных общеобразовательных организациях в соответствии с пунктом 3 части 1 статьи 8 Федерального закона от 29 декабря 2012 года № 273-ФЗ «Об образовании в Российской Федерации», пунктом 5 статьи 8 Закона края от 26 июня 2014 года № 6-2519 «Об образовании в Красноярском крае» на 2017 год и плановый период 2018 - 2019 годов | M28: 992 | N28: Начисления на выплаты по оплате труда | O28: 7223700 | P28: 7223700 | Q28: 7223700 | R28: 0 | S28: 0
A29: бюджет муниципального образования город Норильск | B29: Субсидия на выполнение муниципального задания МБДОУ "Детский сад № 90 "Цветик-семицветик" | C29: 065 | D29: муниципальное учреждение "Управление общего и дошкольного образования Администрации города Норильска" | E29: 0701 | F29: Дошкольное образование | G29: 02 1 00 75880 | H29: Субвенции бюджетам муниципальных образований на обеспечение государственных гарантий реализации прав на получение общедоступного и бесплатного дошкольного образования в муниципальных дошкольных образовательных организациях, общедоступного и бесплатного дошкольного образования в муниципальных общеобразовательных организациях, за исключением обеспечения деятельности административно-хозяйственного, учебно-вспомогательного персонала и иных категорий работников образовательных организаций, участвующих в реализации общеобразовательных программ в соответствии с федеральными государственными образовательными стандартами, в рамках подпрограммы «Развитие дошкольного, общего и дополнительного образования» государственной программы Красноярского края «Развитие образования» | I29: 70000 | J29: Муниципальные услуги (работы), оказываемые (выполняемые) муниципальными учреждениями в качестве основных видов деятельности на основе утвержденного ведомственного перечня муниципальных услуг (работ) | K29: 475 | L29: Субвенции бюджетам муниципальных образований края на обеспечение государственных гарантий реализации прав на получение общедоступного и бесплатного дошкольного образования в муниципальных дошкольных образовательных организациях, общедоступного и бесплатного дошкольного образования в муниципальных общеобразовательных организациях в соответствии с пунктом 3 части 1 статьи 8 Федерального закона от 29 декабря 2012 года № 273-ФЗ «Об образовании в Российской Федерации», пунктом 5 статьи 8 Закона края от 26 июня 2014 года № 6-2519 «Об образовании в Красноярском крае» на 2017 год и плановый период 2018 - 2019 годов | M29: 995 | N29: Медицинские услуги (в том числе диспансеризация, медицинский осмотр и освидетельствование работников (включая предрейсовые осмотры водителей), состоящих в штате учреждения, проведение медицинских анализов) | O29: 273100 | P29: 273100 | Q29: 273100 | R29: 0 | S29: 0
A30: бюджет муниципального образования город Норильск | B30: Субсидия на выполнение муниципального задания МБДОУ "Детский сад № 90 "Цветик-семицветик" | C30: 065 | D30: муниципальное учреждение "Управление общего и дошкольного образования Администрации города Норильска" | E30: 0701 | F30: Дошкольное образование | G30: 02 1 01 01110 | H30: Мероприятие: 1.1.1 Организация предоставления общедоступного и бесплатного дошкольного образования, создание условий для осуществления присмотра и ухода за детьми | I30: 70000 | J30: Муниципальные услуги (работы), оказываемые (выполняемые) муниципальными учреждениями в качестве основных видов деятельности на основе утвержденного ведомственного перечня муниципальных услуг (работ) | K30: 000 | L30: НЕ УКАЗАНО | M30: 918 | N30: Прочие выплаты | O30: 8730 | P30: 8730 | Q30: 8730 | R30: 0 | S30: 0
A31: бюджет муниципального образования город Норильск | B31: Субсидия на выполнение муниципального задания МБДОУ "Детский сад № 90 "Цветик-семицветик" | C31: 065 | D31: муниципальное учреждение "Управление общего и дошкольного образования Администрации города Норильска" | E31: 0701 | F31: Дошкольное образование | G31: 02 1 01 01110 | H31: Мероприятие: 1.1.1 Организация предоставления общедоступного и бесплатного дошкольного образования, создание условий для осуществления присмотра и ухода за детьми | I31: 70000 | J31: Муниципальные услуги (работы), оказываемые (выполняемые) муниципальными учреждениями в качестве основных видов деятельности на основе утвержденного ведомственного перечня муниципальных услуг (работ) | K31: 000 | L31: НЕ УКАЗАНО | M31: 919 | N31: Возмещение расходов на прохождение медицинского осмотра | O31: 63000 | P31: 63000 | Q31: 63000 | R31: 0 | S31: 0
A32: бюджет муниципального образования город Норильск | B32: Субсидия на выполнение муниципального задания МБДОУ "Детский сад № 90 "Цветик-семицветик" | C32: 065 | D32: муниципальное учреждение "Управление общего и дошкольного образования Администрации города Норильска" | E32: 0701 | F32: Дошкольное образование | G32: 02 1 01 01110 | H32: Мероприятие: 1.1.1 Организация предоставления общедоступного и бесплатного дошкольного образования, создание условий для осуществления присмотра и ухода за детьми | I32: 70000 | J32: Муниципальные услуги (работы), оказываемые (выполняемые) муниципальными учреждениями в качестве основных видов деятельности на основе утвержденного ведомственного перечня муниципальных услуг (работ) | K32: 000 | L32: НЕ УКАЗАНО | M32: 921 | N32: Возмещение работникам (сотрудникам) расходов, связанных со служебными командировками (проезд к месту служебной командировки и обратно к месту постоянной работы транспортом общего пользования) | O32: 106100 | P32: 106100 | Q32: 106100 | R32: 0 | S32: 0
A33: бюджет муниципального образования город Норильск | B33: Субсидия на выполнение муниципального задания МБДОУ "Детский сад № 90 "Цветик-семицветик" | C33: 065 | D33: муниципальное учреждение "Управление общего и дошкольного образования Администрации города Норильска" | E33: 0701 | F33: Дошкольное образование | G33: 02 1 01 01110 | H33: Мероприятие: 1.1.1 Организация предоставления общедоступного и бесплатного дошкольного образования, создание условий для осуществления присмотра и ухода за детьми | I33: 70000 | J33: Муниципальные услуги (работы), оказываемые (выполняемые) муниципальными учреждениями в качестве основных видов деятельности на основе утвержденного ведомственного перечня муниципальных услуг (работ) | K33: 000 | L33: НЕ УКАЗАНО | M33: 931 | N33: Оплата отопления и технологических нужд, а также горячего водоснабжения | O33: 1102000 | P33: 1102000 | Q33: 1102000 | R33: 0 | S33: 0
A34: бюджет муниципального образования город Норильск | B34: Субсидия на выполнение муниципального задания МБДОУ "Детский сад № 90 "Цветик-семицветик" | C34: 065 | D34: муниципальное учреждение "Управление общего и дошкольного образования Администрации города Норильска" | E34: 0701 | F34: Дошкольное образование | G34: 02 1 01 01110 | H34: Мероприятие: 1.1.1 Организация предоставления общедоступного и бесплатного дошкольного образования, создание условий для осуществления присмотра и ухода за детьми | I34: 70000 | J34: Муниципальные услуги (работы), оказываемые (выполняемые) муниципальными учреждениями в качестве основных видов деятельности на основе утвержденного ведомственного перечня муниципальных услуг (работ) | K34: 000 | L34: НЕ УКАЗАНО | M34: 932 | N34: Потребление электроэнергии | O34: 376800 | P34: 376800 | Q34: 376800 | R34: 0 | S34: 0
A35: бюджет муниципального образования город Норильск | B35: Субсидия на выполнение муниципального задания МБДОУ "Детский сад № 90 "Цветик-семицветик" | C35: 065 | D35: муниципальное учреждение "Управление общего и дошкольного образования Администрации города Норильска" | E35: 0701 | F35: Дошкольное образование | G35: 02 1 01 01110 | H35: Мероприятие: 1.1.1 Организация предоставления общедоступного и бесплатного дошкольного образования, создание условий для осуществления присмотра и ухода за детьми | I35: 70000 | J35: Муниципальные услуги (работы), оказываемые (выполняемые) муниципальными учреждениями в качестве основных видов деятельности на основе утвержденного ведомственного перечня муниципальных услуг (работ) | K35: 000 | L35: НЕ УКАЗАНО | M35: 933 | N35: Водоснабжение, канализация | O35: 1094600 | P35: 1094600 | Q35: 1094600 | R35: 0 | S35: 0
A36: бюджет муниципального образования город Норильск | B36: Субсидия на выполнение муниципального задания МБДОУ "Детский сад № 90 "Цветик-семицветик" | C36: 065 | D36: муниципальное учреждение "Управление общего и дошкольного образования Администрации города Норильска" | E36: 0701 | F36: Дошкольное образование | G36: 02 1 01 01110 | H36: Мероприятие: 1.1.1 Организация предоставления общедоступного и бесплатного дошкольного образования, создание условий для осуществления присмотра и ухода за детьми | I36: 70000 | J36: Муниципальные услуги (работы), оказываемые (выполняемые) муниципальными учреждениями в качестве основных видов деятельности на основе утвержденного ведомственного перечня муниципальных услуг (работ) | K36: 000 | L36: НЕ УКАЗАНО | M36: 941 | N36: Содержание и техническое обслуживание помещений | O36: 1700000 | P36: 1700000 | Q36: 1700000 | R36: 0 | S36: 0
A37: бюджет муниципального образования город Норильск | B37: Субсидия на выполнение муниципального задания МБДОУ "Детский сад № 90 "Цветик-семицветик" | C37: 065 | D37: муниципальное учреждение "Управление общего и дошкольного образования Администрации города Норильска" | E37: 0701 | F37: Дошкольное образование | G37: 02 1 01 01110 | H37: Мероприятие: 1.1.1 Организация предоставления общедоступного и бесплатного дошкольного образования, создание условий для осуществления присмотра и ухода за детьми | I37: 70000 | J37: Муниципальные услуги (работы), оказываемые (выполняемые) муниципальными учреждениями в качестве основных видов деятельности на основе утвержденного ведомственного перечня муниципальных услуг (работ) | K37: 000 | L37: НЕ УКАЗАНО | M37: 942 | N37: Текущий ремонт оборудования | O37: 251600 | P37: 251600 | Q37: 251600 | R37: 0 | S37: 0
A38: бюджет муниципального образования город Норильск | B38: Субсидия на выполнение муниципального задания МБДОУ "Детский сад № 90 "Цветик-семицветик" | C38: 065 | D38: муниципальное учреждение "Управление общего и дошкольного образования Администрации города Норильска" | E38: 0701 | F38: Дошкольное образование | G38: 02 1 01 01110 | H38: Мероприятие: 1.1.1 Организация предоставления общедоступного и бесплатного дошкольного образования, создание условий для осуществления присмотра и ухода за детьми | I38: 70000 | J38: Муниципальные услуги (работы), оказываемые (выполняемые) муниципальными учреждениями в качестве основных видов деятельности на основе утвержденного ведомственного перечня муниципальных услуг (работ) | K38: 000 | L38: НЕ УКАЗАНО | M38: 947 | N38: Прочие расходы по содержанию имущества | O38: 501700 | P38: 501700 | Q38: 501700 | R38: 0 | S38: 0
A39: бюджет муниципального образования город Норильск | B39: Субсидия на выполнение муниципального задания МБДОУ "Детский сад № 90 "Цветик-семицветик" | C39: 065 | D39: муниципальное учреждение "Управление общего и дошкольного образования Администрации города Норильска" | E39: 0701 | F39: Дошкольное образование | G39: 02 1 01 01110 | H39: Мероприятие: 1.1.1 Организация предоставления общедоступного и бесплатного дошкольного образования, создание условий для осуществления присмотра и ухода за детьми | I39: 70000 | J39: Муниципальные услуги (работы), оказываемые (выполняемые) муниципальными учреждениями в качестве основных видов деятельности на основе утвержденного ведомственного перечня муниципальных услуг (работ) | K39: 000 | L39: НЕ УКАЗАНО | M39: 953 | N39: Вневедомственная (в том числе пожарная) охрана, охранная и пожарная сигнализация (установка, наладка и эксплуатация) | O39: 721300 | P39: 721300 | Q39: 721300 | R39: 0 | S39: 0
A40: бюджет муниципального образования город Норильск | B40: Субсидия на выполнение муниципального задания МБДОУ "Детский сад № 90 "Цветик-семицветик" | C40: 065 | D40: муниципальное учреждение "Управление общего и дошкольного образования Администрации города Норильска" | E40: 0701 | F40: Дошкольное образование | G40: 02 1 01 01110 | H40: Мероприятие: 1.1.1 Организация предоставления общедоступного и бесплатного дошкольного образования, создание условий для осуществления присмотра и ухода за детьми | I40: 70000 | J40: Муниципальные услуги (работы), оказываемые (выполняемые) муниципальными учреждениями в качестве основных видов деятельности на основе утвержденного ведомственного перечня муниципальных услуг (работ) | K40: 000 | L40: НЕ УКАЗАНО | M40: 954 | N40: Прочие услуги | O40: 435600 | P40: 435600 | Q40: 435600 | R40: 0 | S40: 0
A41: бюджет муниципального образования город Норильск | B41: Субсидия на выполнение муниципального задания МБДОУ "Детский сад № 90 "Цветик-семицветик" | C41: 065 | D41: муниципальное учреждение "Управление общего и дошкольного образования Администрации города Норильска" | E41: 0701 | F41: Дошкольное образование | G41: 02 1 01 01110 | H41: Мероприятие: 1.1.1 Организация предоставления общедоступного и бесплатного дошкольного образования, создание условий для осуществления присмотра и ухода за детьми | I41: 70000 | J41: Муниципальные услуги (работы), оказываемые (выполняемые) муниципальными учреждениями в качестве основных видов деятельности на основе утвержденного ведомственного перечня муниципальных услуг (работ) | K41: 000 | L41: НЕ УКАЗАНО | M41: 963 | N41: Культурно-массовые и спортивно-массовые мероприятия | O41: 12000 | P41: 12000 | Q41: 12000 | R41: 0 | S41: 0
A42: бюджет муниципального образования город Норильск | B42: Субсидия на выполнение муниципального задания МБДОУ "Детский сад № 90 "Цветик-семицветик" | C42: 065 | D42: муниципальное учреждение "Управление общего и дошкольного образования Администрации города Норильска" | E42: 0701 | F42: Дошкольное образование | G42: 02 1 01 01110 | H42: Мероприятие: 1.1.1 Организация предоставления общедоступного и бесплатного дошкольного образования, создание условий для осуществления присмотра и ухода за детьми | I42: 70000 | J42: Муниципальные услуги (работы), оказываемые (выполняемые) муниципальными учреждениями в качестве основных видов деятельности на основе утвержденного ведомственного перечня муниципальных услуг (работ) | K42: 000 | L42: НЕ УКАЗАНО | M42: 971 | N42: Приобретение основных средств | O42: 345000 | R42: -345000 | S42: -345000
A43: бюджет муниципального образования город Норильск | B43: Субсидия на выполнение муниципального задания МБДОУ "Детский сад № 90 "Цветик-семицветик" | C43: 065 | D43: муниципальное учреждение "Управление общего и дошкольного образования Администрации города Норильска" | E43: 0701 | F43: Дошкольное образование | G43: 02 1 01 01110 | H43: Мероприятие: 1.1.1 Организация предоставления общедоступного и бесплатного дошкольного образования, создание условий для осуществления присмотра и ухода за детьми | I43: 70000 | J43: Муниципальные услуги (работы), оказываемые (выполняемые) муниципальными учреждениями в качестве основных видов деятельности на основе утвержденного ведомственного перечня муниципальных услуг (работ) | K43: 000 | L43: НЕ УКАЗАНО | M43: 981 | N43: Приобретение расходных материалов | O43: 398000 | P43: 167800 | Q43: 167800 | R43: -230200 | S43: -230200
A44: бюджет муниципального образования город Норильск | B44: Субсидия на выполнение муниципального задания МБДОУ "Детский сад № 90 "Цветик-семицветик" | C44: 065 | D44: муниципальное учреждение "Управление общего и дошкольного образования Администрации города Норильска" | E44: 0701 | F44: Дошкольное образование | G44: 02 1 01 01110 | H44: Мероприятие: 1.1.1 Организация предоставления общедоступного и бесплатного дошкольного образования, создание условий для осуществления присмотра и ухода за детьми | I44: 70000 | J44: Муниципальные услуги (работы), оказываемые (выполняемые) муниципальными учреждениями в качестве основных видов деятельности на основе утвержденного ведомственного перечня муниципальных услуг (работ) | K44: 000 | L44: НЕ УКАЗАНО | M44: 983 | N44: Приобретение продуктов питания (оплата продовольствия), в том числе продовольственных пайков военнослужащим и приравненным к ним лицам | O44: 454700 | P44: 398800 | Q44: 398800 | R44: -55900 | S44: -55900
A45: бюджет муниципального образования город Норильск | B45: Субсидия на выполнение муниципального задания МБДОУ "Детский сад № 90 "Цветик-семицветик" | C45: 065 | D45: муниципальное учреждение "Управление общего и дошкольного образования Администрации города Норильска" | E45: 0701 | F45: Дошкольное образование | G45: 02 1 01 01110 | H45: Мероприятие: 1.1.1 Организация предоставления общедоступного и бесплатного дошкольного образования, создание условий для осуществления присмотра и ухода за детьми | I45: 70000 | J45: Муниципальные услуги (работы), оказываемые (выполняемые) муниципальными учреждениями в качестве основных видов деятельности на основе утвержденного ведомственного перечня муниципальных услуг (работ) | K45: 000 | L45: НЕ УКАЗАНО | M45: 985 | N45: Приобретение мягкого инвентаря | O45: 52300 | P45: 52300 | Q45: 52300 | R45: 0 | S45: 0
A46: бюджет муниципального образования город Норильск | B46: Субсидия на выполнение муниципального задания МБДОУ "Детский сад № 90 "Цветик-семицветик" | C46: 065 | D46: муниципальное учреждение "Управление общего и дошкольного образования Администрации города Норильска" | E46: 0701 | F46: Дошкольное образование | G46: 02 1 01 01110 | H46: Мероприятие: 1.1.1 Организация предоставления общедоступного и бесплатного дошкольного образования, создание условий для осуществления присмотра и ухода за детьми | I46: 70000 | J46: Муниципальные услуги (работы), оказываемые (выполняемые) муниципальными учреждениями в качестве основных видов деятельности на основе утвержденного ведомственного перечня муниципальных услуг (работ) | K46: 000 | L46: НЕ УКАЗАНО | M46: 991 | N46: Заработная плата | O46: 8326000 | P46: 8410400 | Q46: 8410400 | R46: 84400 | S46: 84400
A47: бюджет муниципального образования город Норильск | B47: Субсидия на выполнение муниципального задания МБДОУ "Детский сад № 90 "Цветик-семицветик" | C47: 065 | D47: муниципальное учреждение "Управление общего и дошкольного образования Администрации города Норильска" | E47: 0701 | F47: Дошкольное образование | G47: 02 1 01 01110 | H47: Мероприятие: 1.1.1 Организация предоставления общедоступного и бесплатного дошкольного образования, создание условий для осуществления присмотра и ухода за детьми | I47: 70000 | J47: Муниципальные услуги (работы), оказываемые (выполняемые) муниципальными учреждениями в качестве основных видов деятельности на основе утвержденного ведомственного перечня муниципальных услуг (работ) | K47: 000 | L47: НЕ УКАЗАНО | M47: 992 | N47: Начисления на выплаты по оплате труда | O47: 2465600 | P47: 2490100 | Q47: 2490100 | R47: 24500 | S47: 24500
A48: бюджет муниципального образования город Норильск | B48: Субсидия на выполнение муниципального задания МБДОУ "Детский сад № 90 "Цветик-семицветик" | C48: 065 | D48: муниципальное учреждение "Управление общего и дошкольного образования Администрации города Норильска" | E48: 0701 | F48: Дошкольное образование | G48: 02 1 01 01110 | H48: Мероприятие: 1.1.1 Организация предоставления общедоступного и бесплатного дошкольного образования, создание условий для осуществления присмотра и ухода за детьми | I48: 70000 | J48: Муниципальные услуги (работы), оказываемые (выполняемые) муниципальными учреждениями в качестве основных видов деятельности на основе утвержденного ведомственного перечня муниципальных услуг (работ) | K48: 000 | L48: НЕ УКАЗАНО | M48: 995 | N48: Медицинские услуги (в том числе диспансеризация, медицинский осмотр и освидетельствование работников (включая предрейсовые осмотры водителей), состоящих в штате учреждения, проведение медицинских анализов) | O48: 137300 | P48: 137300 | Q48: 137300 | R48: 0 | S48: 0
A49: бюджет муниципального образования город Норильск | B49: Субсидия на иные цели МБДОУ "Детский сад № 90 "Цветик-семицветик" | C49: 065 | D49: муниципальное учреждение "Управление общего и дошкольного образования Администрации города Норильска" | E49: 0701 | F49: Дошкольное образование | G49: 02 1 00 74080 | H49: Субвенции бюджетам муниципальных образований на обеспечение государственных гарантий реализации прав на получение общедоступного и бесплатного дошкольного образования в муниципальных дошкольных образовательных организациях, общедоступного и бесплатного дошкольного образования в муниципальных общеобразовательных организациях в части обеспечения деятельности административно-хозяйственного, учебно-вспомогательного персонала и иных категорий работников образовательных организаций, участвующих в реализации общеобразовательных программ в соответствии с федеральными государственными образовательными стандартами, в рамках подпрограммы «Развитие дошкольного, общего и дополнительного образования» государственной программы Красноярского края «Развитие образования» | I49: 81000 | J49: Предоставление субсидий МБУ, МАУ на иные цели, имеющим целевое назначение | K49: 475 | L49: Субвенции бюджетам муниципальных образований края на обеспечение государственных гарантий реализации прав на получение общедоступного и бесплатного дошкольного образования в муниципальных дошкольных образовательных организациях, общедоступного и бесплатного дошкольного образования в муниципальных общеобразовательных организациях в соответствии с пунктом 3 части 1 статьи 8 Федерального закона от 29 декабря 2012 года № 273-ФЗ «Об образовании в Российской Федерации», пунктом 5 статьи 8 Закона края от 26 июня 2014 года № 6-2519 «Об образовании в Красноярском крае» на 2017 год и плановый период 2018 - 2019 годов | M49: 911 | N49: Оплата стоимости проезда к месту отдыха и обратно | O49: 1317700 | P49: 1317700 | Q49: 1317700 | R49: 0 | S49: 0
A50: бюджет муниципального образования город Норильск | B50: Субсидия на иные цели МБДОУ "Детский сад № 90 "Цветик-семицветик" | C50: 065 | D50: муниципальное учреждение "Управление общего и дошкольного образования Администрации города Норильска" | E50: 0701 | F50: Дошкольное образование | G50: 02 1 00 75540 | H50: Субвенции бюджетам муниципальных образований на обеспечение выделения денежных средств на осуществление присмотра и ухода за детьми-инвалидами, детьми-сиротами и детьми, оставшимися без попечения родителей, а также детьми с туберкулезной интоксикацией, обучающимися в муниципальных образовательных организациях, реализующих образовательную программу дошкольного образования, без взимания родительской платы в рамках подпрограммы «Развитие дошкольного, общего и дополнительного образования» государственной программы Красноярского края «Развитие образования» | I50: 81000 | J50: Предоставление субсидий МБУ, МАУ на иные цели, имеющим целевое назначение | K50: 459 | L50: Субвенции бюджетам муниципальных образований на обеспечение выделения денежных средств на осуществление присмотра и ухода за детьми-инвалидами, детьми-сиротами и детьми, оставшимися без попечения родителей, а также детьми с туберкулезной интоксикацией, обучающимися в муниципальных образовательных организациях, реализующих образовательную программу дошкольного образования, без взимания родительской платы в рамках подпрограммы «Развитие дошкольного, общего и дополнительного образования» государственной программы Красноярского края «Развитие образования» | M50: 983 | N50: Приобретение продуктов питания (оплата продовольствия), в том числе продовольственных пайков военнослужащим и приравненным к ним лицам | O50: 116900 | P50: 116900 | Q50: 116900 | R50: 0 | S50: 0
A51: бюджет муниципального образования город Норильск | B51: Субсидия на иные цели МБДОУ "Детский сад № 90 "Цветик-семицветик" | C51: 065 | D51: муниципальное учреждение "Управление общего и дошкольного образования Администрации города Норильска" | E51: 0701 | F51: Дошкольное образование | G51: 02 1 00 75880 | H51: Субвенции бюджетам муниципальных образований на обеспечение государственных гарантий реализации прав на получение общедоступного и бесплатного дошкольного образования в муниципальных дошкольных образовательных организациях, общедоступного и бесплатного дошкольного образования в муниципальных общеобразовательных организациях, за исключением обеспечения деятельности административно-хозяйственного, учебно-вспомогательного персонала и иных категорий работников образовательных организаций, участвующих в реализации общеобразовательных программ в соответствии с федеральными государственными образовательными стандартами, в рамках подпрограммы «Развитие дошкольного, общего и дополнительного образования» государственной программы Красноярского края «Развитие образования» | I51: 81000 | J51: Предоставление субсидий МБУ, МАУ на иные цели, имеющим целевое назначение | K51: 475 | L51: Субвенции бюджетам муниципальных образований края на обеспечение государственных гарантий реализации прав на получение общедоступного и бесплатного дошкольного образования в муниципальных дошкольных образовательных организациях, общедоступного и бесплатного дошкольного образования в муниципальных общеобразовательных организациях в соответствии с пунктом 3 части 1 статьи 8 Федерального закона от 29 декабря 2012 года № 273-ФЗ «Об образовании в Российской Федерации», пунктом 5 статьи 8 Закона края от 26 июня 2014 года № 6-2519 «Об образовании в Красноярском крае» на 2017 год и плановый период 2018 - 2019 годов | M51: 911 | N51: Оплата стоимости проезда к месту отдыха и обратно | O51: 555500 | P51: 555500 | Q51: 555500 | R51: 0 | S51: 0
A52: бюджет муниципального образования город Норильск | B52: Субсидия на иные цели МБДОУ "Детский сад № 90 "Цветик-семицветик" | C52: 065 | D52: муниципальное учреждение "Управление общего и дошкольного образования Администрации города Норильска" | E52: 0701 | F52: Дошкольное образование | G52: 02 1 01 01110 | H52: Мероприятие: 1.1.1 Организация предоставления общедоступного и бесплатного дошкольного образования, создание условий для осуществления присмотра и ухода за детьми | I52: 81000 | J52: Предоставление субсидий МБУ, МАУ на иные цели, имеющим целевое назначение | K52: 000 | L52: НЕ УКАЗАНО | M52: 911 | N52: Оплата стоимости проезда к месту отдыха и обратно | O52: 1035200 | P52: 1035200 | Q52: 1035200 | R52: =P52-O52 -> 0 | S52: =Q52-O52 -> 0
A53: бюджет муниципального образования город Норильск | B53: Субсидия на иные цели МБДОУ "Детский сад № 90 "Цветик-семицветик" | C53: 065 | D53: муниципальное учреждение "Управление общего и дошкольного образования Администрации города Норильска" | E53: 0701 | F53: Дошкольное образование | G53: 02 1 01 01110 | H53: Мероприятие: 1.1.1 Организация предоставления общедоступного и бесплатного дошкольного образования, создание условий для осуществления присмотра и ухода за детьми | I53: 81000 | J53: Предоставление субсидий МБУ, МАУ на иные цели, имеющим целевое назначение | K53: 000 | L53: НЕ УКАЗАНО | M53: 917 | N53: компенсация расходов, связанных с переездом из районов Крайнего Севера | O53: 60000 | P53: 60000 | Q53: 60000 | R53: 0 | S53: 0
A54: бюджет муниципального образования город Норильск | B54: Субсидия на иные цели МБДОУ "Детский сад № 90 "Цветик-семицветик" | C54: 065 | D54: муниципальное учреждение "Управление общего и дошкольного образования Администрации города Норильска" | E54: 0701 | F54: Дошкольное образование | G54: 02 1 01 01110 | H54: Мероприятие: 1.1.1 Организация предоставления общедоступного и бесплатного дошкольного образования, создание условий для осуществления присмотра и ухода за детьми | I54: 81000 | J54: Предоставление субсидий МБУ, МАУ на иные цели, имеющим целевое назначение | K54: 000 | L54: НЕ УКАЗАНО | M54: 981 | N54: Приобретение расходных материалов | O54: 102400 | P54: 102400 | R54: 0 | S54: -102400
A55: бюджет муниципального образования город Норильск | B55: Субсидия на иные цели МБДОУ "Детский сад № 90 "Цветик-семицветик" | C55: 065 | D55: муниципальное учреждение "Управление общего и дошкольного образования Администрации города Норильска" | E55: 0701 | F55: Дошкольное образование | G55: 04 4 00 00120 | H55: Мероприятие 3.1.2. Модернизация узлов учета ТЭР и воды с установкой приборов учета на горячую воду, замена расходомеров ВЭПС-ТИ, КМ, РМ на новую модификацию | I55: 81000 | J55: Предоставление субсидий МБУ, МАУ на иные цели, имеющим целевое назначение | K55: 000 | L55: НЕ УКАЗАНО | M55: 941 | N55: Содержание и техническое обслуживание помещений | P55: 119600 | Q55: 119600 | R55: 119600 | S55: 119600
A56: бюджет муниципального образования город Норильск | B56: Субсидия на иные цели МБДОУ "Детский сад № 90 "Цветик-семицветик" | C56: 065 | D56: муниципальное учреждение "Управление общего и дошкольного образования Администрации города Норильска" | E56: 0701 | F56: Дошкольное образование | G56: 04 4 00 00150 | H56: Мероприятие 3.1.4. Установка теплообменников на ГВС на муниципальных объектах | I56: 81000 | J56: Предоставление субсидий МБУ, МАУ на иные цели, имеющим целевое назначение | K56: 000 | L56: НЕ УКАЗАНО | M56: 947 | N56: Прочие расходы по содержанию имущества | P56: 650000 | R56: 650000 | S56: 0

Sheet 212 командировки
A1: Обоснование расходов на оплату проезда по служебным командировкам на 2017-2019 гг
A2: МБДОУ № 90 "Цветик-семицветик"
A5: КБК 065/0701/02 1 01 01110/112 местный бюджет
A6: КБК 065/0701/02 1 00 74080/112 краевой бюджет (АУП+УВП)
A7: КБК 065/0701/02 1 00 75880/112 краевой бюджет (ПЕДАГОГИ)
A8: № | B8: Наименование расходов, цель командировки, направление | C8: Кол-во человек | D8: Суточные 212 (912) | G8: Стоимость проезда, руб. 212 (921) | I8: Стоимость проживания 212 (952, 958) | L8: ВСЕГО, руб. | M8: Периодичность
D9: За 1 сутки, руб. | E9: Кол-во суток | F9: Сумма, руб. | G9: тариф | H9: сумма | I9: За 1 сутки, руб. | J9: Кол-во суток | K9: Сумма, руб.
A10: Местный бюджет
A11: 1 | B11: Оплата проезда студентам, обучающимся по заочной форме обучения, при проезде к месту нахождения учебного заведения КБК 065/0701/02 1 01 01110/112 | H11: 106100 | L11: =F11+H11+K11 -> 106100 | M11: в течении фин.года
A12: 2 | B12: Командировочные расходы, в части расходов, связанных с командированием персонала КБК 065/0701/02 1 01 01110/112 | F12: =C12*D12*E12 -> 0 | H12: =C12*G12 -> 0 | K12: =J12*I12*C12 -> 0 | L12: =F12+H12+K12 -> 0
B13: Всего | F13: =SUM(F11:F12) -> 0 | H13: =SUM(H11:H12) -> 106100 | K13: =SUM(K11:K12) -> 0 | L13: =SUM(L11:L12) -> 106100
A14: Краевой бюджет
A15: 1 | B15: Командировочные расходы, в части расходов, связанных с командированием административного и учебно-вспомогательного персонала КБК 065/0701/02 1 00 74080/112 | C15: 1 | D15: 500 | E15: 6 | F15: =C15*D15*E15 -> 3000 | G15: 23100 | H15: =C15*G15 -> 23100 | I15: 3700 | J15: 5 | K15: =J15*I15*C15 -> 18500 | L15: =F15+H15+K15 -> 44600 | M15: в течении фин.года
A16: 2 | B16: Командировочные расходы, в части расходов, связанных с командированием педагогического персонала КБК 065/0701/02 1 00 75880/112 | F16: =C16*D16*E16 -> 0 | H16: =C16*G16 -> 0 | K16: =J16*I16*C16 -> 0 | L16: =F16+H16+K16 -> 0
A17: Всего | F17: =SUM(F15:F16) -> 3000 | H17: =SUM(H15:H16) -> 23100 | K17: =SUM(K15:K16) -> 18500 | L17: =SUM(L15:L16) -> 44600

Sheet 221 связь
A4: Расчет норматива затрат по КОСГУ 221, Доп.КР 925 "Услуги связи" Муниципальное бюджетное дошкольное образовательное учреждение "Детский сад № 90
A6: № | B6: Наименование услуг | C6: Ед.изм. | D6: Натуральный показатель | I6: Стоимость услуги (тарифы) с НДС, рублей | N6: Сумма, тыс.руб. | S6: Примечание (указать причины роста) | T6: Очередной финансовый 2018 г. | W6: Очередной финансовый 2019 г.
D7: Фактическое исполнение за отчетный финансовый 2015 год | E7: Текущий финансовый 2016 год (план) | F7: Ожидаемое исполнение в текущем финансовом 2016 году | G7: Очередной финансовый 2017 год | H7: Отклонение гр.7-гр.5 | I7: Фактическое исполнение за отчетный финансовый 2015 год | J7: Текущий финансовый 2016 год (план) | K7: Ожидаемое исполнение в текущем финансовом 2016 году | L7: Очередной финансовый 2017 год | M7: Отклонение гр.12-гр.10 | N7: Фактическое исполнение за отчетный финансовый 2015 год, с учетом остатков прошлых лет Доп.ЭК.831,832 | O7: Текущий финансовый 2016 год (план) | P7: Ожидаемое исполнение в текущем финансовом 2016 году | Q7: Очередной финансовый 2017 год | R7: Отклонение гр.17-гр.15 | T7: натуральный показатель | U7: стоимость услуги (тарифы) с НДС, рублей | V7: сумма с НДС, тыс. руб. | W7: натуральный показатель | X7: стоимость услуги (тарифы) с НДС, рублей | Y7: сумма с НДС, тыс. руб.
A10: Гр.1 | B10: Гр.2 | C10: Гр.3 | D10: Гр.4 | E10: Гр.5 | F10: Гр.6 | G10: Гр.7 | H10: Гр.8 | I10: Гр.9 | J10: Гр.10 | K10: Гр.11 | L10: Гр.12 | M10: Гр.13 | N10: Гр.14 | O10: Гр.15 | P10: Гр.16 | Q10: Гр.17 | R10: Гр.18 | S10: Гр.19 | T10: Гр.20 | U10: Гр.21 | V10: Гр.22 | W10: Гр.23 | X10: Гр.24 | Y10: Гр.25
A11: Управление общего и дошкольного образования Администрации города Норильска
A12: 1. | B12: Телекоммуникационные услуги связи (ГТС) | D12: =D13+D14+D15+D16+D17+D18+D19+D20+D21+D22+D23+D24+D25+D26+D27 -> 10 | E12: =E13+E14+E15+E16+E17+E18+E19+E20+E21+E22+E23+E24+E25+E26 -> 10 | F12: =F13+F14+F15+F16+F17+F18+F19+F20+F21+F22+F23+F24+F25+F26 -> 10 | G12: =G13+G14+G15+G16+G17+G18+G19+G20+G21+G22+G23+G24+G25+G26 -> 10 | H12: =G12-E12 -> 0 | M12: =L12-J12 -> 0 | N12: 25733.44 | O12: =CEILING(O13+O14+O15+O16+O17+O18+O19+O20+O21+O22+O23+O24+O25+O26+O27,100) -> 32200 | P12: =O12 -> 32200 | Q12: =CEILING(Q13+Q14+Q15+Q16+Q17+Q18+Q19+Q20+Q21+Q22+Q23+Q24+Q25+Q26+Q27,100) -> 32200 | R12: =Q12-O12 -> 0 | S12: =S13+S14+S15+S16+S17+S18+S19+S20+S21+S22+S23+S24+S25+S26+S27 -> 0 | T12: 10 | V12: =CEILING(V13+V14+V15+V16+V17+V18+V19+V20+V21+V22+V23+V24+V25+V26+V27,100) -> 32200 | W12: 10 | Y12: =V12 -> 32200
A13: 1.1. | B13: АП за техническое обслуживание. Телефонный аппарат с проводкой до кабельной коробки (учрежденческий) | C13: шт. | D13: =E13 -> 2 | E13: =F13 -> 2 | F13: =G13 -> 2 | G13: 2 | H13: 0 | J13: =K13 -> 64.9 | K13: =L13 -> 64.9 | L13: =55*1.18 -> 64.9 | M13: 0 | O13: =E13*J13*12 -> 1557.6 | P13: =O13 -> 1557.6 | Q13: =G13*L13*12 -> 1557.6 | R13: 0 | T13: =G13 -> 2 | U13: =L13 -> 64.9 | V13: =T13*U13*12 -> 1557.6 | W13: =T13 -> 2 | X13: =U13 -> 64.9 | Y13: =V13 -> 1557.6
A14: 1.2. | B14: АП за предоставление доступа к сети местной телефонной связи дополнительного телефонного аппарата | C14: шт. | D14: =E14 -> 0 | E14: 0 | F14: 0 | H14: 0 | J14: =K14 -> 256.06 | K14: 256.06 | L14: =217*1.18 -> 256.06 | M14: 0 | O14: =E14*J14*12 -> 0 | P14: 0 | Q14: =G14*L14*12 -> 0 | R14: 0 | T14: =G14 -> 0 | U14: =L14 -> 256.06 | V14: =T14*U14*12 -> 0 | W14: =T14 -> 0 | X14: 256.06 | Y14: 0
A15: 1.3. | B15: Предоставление местного телефонного соединения с абонентского номера индивидуального пользования | C15: шт. | D15: 4 | E15: 4 | F15: 4 | G15: 4 | H15: 0 | J15: 224.2 | K15: 224.2 | L15: =190*1.18 -> 224.2 | M15: 0 | O15: 10761.6 | P15: 10761.6 | Q15: 10761.6 | R15: 0 | T15: 4 | U15: 224.2 | V15: 10761.6 | W15: 4 | X15: 224.2 | Y15: 10761.6
A16: 1.4. | B16: Предоставление абоненту в постоянное пользование абонентской линии независимо от ее типа | C16: шт. | D16: 4 | E16: 4 | F16: 4 | G16: 4 | H16: 0 | J16: 413 | K16: 413 | L16: =350*1.18 -> 413 | M16: 0 | O16: 19824 | P16: 19824 | Q16: 19824 | R16: 0 | T16: 4 | U16: 413 | V16: 19824 | W16: 4 | X16: 413 | Y16: 19824
A17: 1.5. | B17: АП за техническое обслуживание. Телефонный аппарат с линией связи до РШ, АТС (учрежденческий) | C17: шт. | D17: 0 | E17: 0 | F17: 0 | H17: 0 | J17: 132.16 | K17: 132.16 | L17: =112*1.18 -> 132.16 | M17: 0 | O17: 0 | P17: 0 | Q17: 0 | R17: 0 | T17: 0 | U17: 132.16 | V17: 0 | W17: 0 | X17: 132.16 | Y17: 0
A18: 1.6. | B18: АП за предоставление доступа к сети местной телефонной связи абонентского устройства с односторонней связью | C18: шт. | D18: 0 | E18: 0 | F18: 0 | H18: 0 | J18: 715.08 | K18: 715.08 | L18: =606*1.18 -> 715.08 | M18: 0 | O18: 0 | P18: 0 | Q18: 0 | R18: 0 | T18: 0 | U18: 715.08 | V18: 0 | W18: 0 | X18: 715.08 | Y18: 0
A19: 1.7. | B19: АП за ДВО "Автоматическое определение номера (АОН) | C19: шт. | D19: 0 | E19: 0 | F19: 0 | H19: 0 | J19: 75.52 | K19: 75.52 | L19: =64*1.18 -> 75.52 | M19: 0 | O19: 0 | P19: 0 | Q19: 0 | R19: 0 | T19: 0 | U19: 75.52 | V19: 0 | W19: 0 | X19: 75.52 | Y19: 0
A20: 1.8. | B20: АП за техническое обслуживание. Телефонный аппарат с линией связи до РШ, АТС (учрежденческий) | C20: шт. | D20: 0 | E20: 0 | F20: 0 | H20: 0 | J20: 132.16 | K20: 132.16 | L20: =112*1.18 -> 132.16 | M20: 0 | O20: 0 | P20: 0 | Q20: 0 | R20: 0 | T20: 0 | U20: 132.16 | V20: 0 | W20: 0 | X20: 132.16 | Y20: 0
A21: 1.9. | B21: АП за аналоговый телефонный аппарат с подключением к УПАТС без выхода на ГТС, в зоне действия УПАТС | C21: шт. | D21: 0 | E21: 0 | F21: 0 | H21: 0 | J21: 867.3 | K21: 867.3 | L21: =735*1.18 -> 867.3 | M21: 0 | O21: 0 | P21: 0 | Q21: 0 | R21: 0 | T21: 0 | U21: 867.3 | V21: 0 | W21: 0 | X21: 867.3 | Y21: 0
A22: 1.10. | B22: АП за системный телефонный аппарат с подключением к УПАТС без выхода на ГТС, в зоне действия УПАТС | C22: шт. | D22: 0 | E22: 0 | F22: 0 | H22: 0 | J22: 1194.16 | K22: 1194.16 | L22: =1012*1.18 -> 1194.16 | M22: 0 | O22: 0 | P22: 0 | Q22: 0 | R22: 0 | T22: 0 | U22: 1194.16 | V22: 0 | W22: 0 | X22: 1194.16 | Y22: 0
A23: 1.11. | B23: АП за предоставление доступа к сети местной телефонной связи не зависимо от типа абонентской линии основного абонентского устройства с номером АТС другой зоны действия (при подаче через два и более кроссов) | C23: шт. | D23: 0 | E23: 0 | F23: 0 | H23: 0 | J23: 2513.4 | K23: 2513.4 | L23: =2130*1.18 -> 2513.4 | M23: 0 | O23: 0 | P23: 0 | Q23: 0 | R23: 0 | T23: 0 | U23: 2513.4 | V23: 0 | W23: 0 | X23: 2513.4 | Y23: 0
A24: 1.12. | B24: Предоставление абоненту в постоянное пользование абонентской линии независимо от ее типа с использованием спаренной схемы включения | C24: шт. | D24: 0 | E24: 0 | F24: 0 | H24: 0 | J24: 221.84 | K24: 221.84 | L24: =188*1.18 -> 221.84 | M24: 0 | O24: 0 | P24: 0 | Q24: 0 | R24: 0 | T24: 0 | U24: 221.84 | V24: 0 | W24: 0 | X24: 221.84 | Y24: 0
A25: 1.13. | B25: Предоставление местного телефонного соединения с абонентского номера при спаренной схеме включения | C25: шт. | D25: 0 | E25: 0 | F25: 0 | H25: 0 | J25: 141.6 | K25: 141.6 | L25: =120*1.18 -> 141.6 | M25: 0 | O25: 0 | P25: 0 | Q25: 0 | R25: 0 | T25: 0 | U25: 141.6 | V25: 0 | W25: 0 | X25: 141.6 | Y25: 0
A26: 1.14. | B26: Предоставление доступа к сети местной телефонной связи дополнительного телефонного аппарата | C26: шт. | D26: 0 | E26: 0 | F26: 0 | H26: 0 | J26: 1593 | K26: 1593 | L26: =1350*1.18 -> 1593 | M26: 0 | O26: 0 | P26: 0 | Q26: =G26*L26*12 -> 0 | R26: 0 | T26: 0 | U26: 1593 | V26: 0 | W26: 0 | X26: 1593 | Y26: 0
A27: 1.15. | B27: Выдача подробной расшифровки МГ/МН телефонных разговоров и услуг Интернет за один расчетный период в адрес электронной почты | C27: шт. | D27: 0 | E27: 0 | F27: 0 | H27: 0 | J27: 35.4 | K27: 35.4 | L27: =30*1.18 -> 35.4 | M27: 0 | O27: 0 | P27: 0 | Q27: =G27*L27*12 -> 0 | R27: =Q27-O27 -> 0 | T27: =G27 -> 0 | U27: =L27 -> 35.4 | V27: =T27*U27*12 -> 0 | W27: 0 | X27: 35.4 | Y27: 0
A28: 1.16. | B28: Предоставление доступа к сети местной телефонной связи дополнительного телефонного аппарата. Абонентское обслуживание, телефонный аппарат с линией связи до РШ, АТС (учрежденческий Регистрация предоставления ДВО | C28: шт. | J28: 236 | K28: 236 | L28: 236 | M28: 0 | Q28: 0 | R28: =Q28-O28 -> 0 | T28: =G28 -> 0 | U28: =L28 -> 236 | V28: =T28*U28*12 -> 0 | W28: 0 | X28: 236 | Y28: 0
A29: 2. | B29: Услуги внутризоновой телефонной связи | M29: 0 | P29: 0 | R29: 0 | U29: =Q29 -> 0 | V29: =Q29 -> 0 | W29: 0 | Y29: =Q29 -> 0
A30: 3. | B30: Услуги автоматической междугородней и международней телефонной связи | M30: 0 | O30: 500 | P30: 500 | Q30: 500 | R30: 0 | U30: =Q30 -> 500 | V30: =Q30 -> 500 | W30: 0 | Y30: =Q30 -> 500
A31: 4. | B31: Услуги связи по тарифному плану "Квалифицированный Голд" | M31: 0 | P31: 0 | R31: 0 | U31: 0 | V31: 0 | W31: 0 | Y31: 0
A32: 5. | B32: Услуги сотовой связи | M32: 0 | P32: 0 | R32: 0 | U32: 0 | V32: 0 | W32: 0 | Y32: 0
A33: 6. | B33: Прочие расходы (восстан-е линии связи, уст-ка доп. телефонов, предост-е доступа к мест. телеф. связи и др.) | M33: 0 | N33: 5310 | O33: 1300 | P33: 1300 | Q33: 1000 | R33: -300 | U33: 1000 | V33: 1000 | W33: =T33 -> 0 | Y33: 1000
A34: 7. | B34: Почтовые услуги | M34: 0 | N34: =N35+N36+N37+N38 -> 5200 | O34: =CEILING(O35+O36+O37+O38,100) -> 11900 | P34: 11900 | Q34: =CEILING(Q35+Q36+Q37+Q38,100) -> 11900 | R34: 0 | V34: =CEILING(V35+V36+V37+V38,100) -> 11900 | Y34: 11900
A35: 7.1. | B35: Марочная продукция (маркированные конверты) | C35: шт. | E35: 162 | F35: 162 | G35: 162 | H35: 0 | J35: 32 | K35: 32 | L35: 32 | M35: 0 | N35: 5200 | O35: =E35*J35 -> 5184 | P35: 5184 | Q35: =G35*L35 -> 5184 | R35: 0 | T35: =G35 -> 162 | U35: =L35 -> 32 | V35: =Q35 -> 5184 | W35: =T35 -> 162 | Y35: 5184
A36: 7.2. | B36: Предоплата за польз-е ячейкой абонементного почтового шкафа | C36: шт. | H36: 0 | M36: 0 | P36: 0 | R36: 0 | T36: =G36 -> 0 | V36: =Q36 -> 0 | W36: =T36 -> 0 | Y36: 0
A37: 7.3. | B37: Прочие услуги (экспресс-почта, бандероли, ценные посылки и др.) | C37: шт. | H37: 0 | M37: 0 | O37: 1000 | P37: 1000 | Q37: 1000 | R37: 0 | T37: 0 | V37: 1000 | W37: 0 | Y37: 1000
A38: 7.4. | B38: Заказные письма | C38: шт. | E38: 80 | F38: 80 | G38: 80 | H38: 0 | J38: 71.29 | K38: 71.29 | L38: 71.29 | M38: 0 | O38: =E38*J38 -> 5703.2 | P38: 5703.2 | Q38: 5703.2 | R38: 0 | T38: 80 | U38: =L38 -> 71.29 | V38: 5703.2 | W38: 80 | Y38: 5703.2
A39: 8. | B39: Абон. обслужив-е (электронный документооборот) | M39: 0 | O39: =CEILING(E39*J39*12,100) -> 0 | P39: 0 | Q39: =CEILING(G39*L39*12,100) -> 0 | R39: 0 | V39: 0 | W39: 0 | Y39: 0
A40: 9. | B40: Услуги доступа к сети Интернет | I40: =I41+I42+I43 -> 0 | J40: 0 | K40: 0 | L40: 0 | M40: 0 | N40: 0 | O40: =CEILING(O41+O42+O43,100) -> 0 | P40: 0 | Q40: =CEILING(Q41+Q42+Q43,100) -> 0 | R40: 0 | V40: =CEILING(V41+V42+V43,100) -> 0 | Y40: 0
A41: 9.1. | B41: Доступ к сети интернет | M41: 0 | O41: =E41*J41*12 -> 0 | P41: 0 | Q41: =G41*L41*12 -> 0 | R41: 0 | V41: =Q41 -> 0 | Y41: 0
A42: 9.2. | B42: Абонентская плата за интернет/выделенная линия | M42: 0 | O42: =E42*J42*12 -> 0 | P42: 0 | Q42: =G42*L42*12 -> 0 | R42: 0 | V42: =Q42 -> 0 | Y42: 0
A43: 9.3. | B43: Абонентская плата за доступ в технологическую сеть | M43: 0 | O43: 0 | P43: 0 | Q43: 0 | R43: 0 | V43: 0 | Y43: 0
A44: ИТОГО КРАЕВОЙ БЮДЖЕТ, руб. КБК 065/0701/0210074080/244/221 краевой бюджет КЦСР (сады)-0210074080; | M44: 0 | N44: =N12+N29+N30+N31+N32+N33+N34+N39+N40 -> 36243.44 | O44: =O12+O29+O30+O31+O32+O33+O34+O39+O40 -> 45900 | P44: 45900 | Q44: =Q12+Q29+Q30+Q31+Q32+Q33+Q34+Q39+Q40 -> 45600 | R44: -300 | V44: =V12+V29+V30+V31+V32+V33+V34+V39+V40 -> 45600 | Y44: 45600
A45: 10. | B45: Услуги доступа к сети Интернет | M45: 0 | N45: 44000 | O45: =4000*12 -> 48000 | P45: 48000 | Q45: =4000*12 -> 48000 | R45: 0 | V45: =Q45 -> 48000 | Y45: =Q45 -> 48000
A46: ИТОГО КРАЕВОЙ БЮДЖЕТ, руб. КБК 065/0701/0210075880/244/221 краевой бюджет КЦСР (сады)-0210075880; | M46: 0 | N46: =N45 -> 44000 | O46: =CEILING(O45,100) -> 48000 | P46: =CEILING(P45,100) -> 48000 | Q46: 48000 | R46: 0 | V46: =V45 -> 48000 | Y46: 48000
A47: Всего краевой бюджет | M47: 0 | N47: =N44+N46 -> 80243.44 | O47: 93900 | P47: 93900 | Q47: 93600 | R47: -300 | V47: 93600 | Y47: 93600

Sheet 223 коммуналка
A1: КБК 065/0701/0220110/611(621)/223 дошкольное образование
A2: КБК 065/0702(0709)/0220210/611(621)/223 общее образование+МЦ
A3: КБК 065/0702/0220310/611(621)/223 дополнительное образование
A4: местный бюджет
A5: Расчет нормативов затрат на содержание имущества по Доп. КР 931 "Оплата отопления и технологических нужд, а также горячего водоснабжения" на 2017 год (местный бюджет)
A6: № п/п | B6: Наименование учреждения | C6: Адрес | D6: Обслуживающая организация | E6: Плановые ассигнования 2017г. руб. | F6: Отопление | J6: Итого,руб. с НДС | K6: Горячее водоснабжение (компонент на тепловую энергию) | O6: Итого,руб. с НДС | P6: Горячее водоснабжение (компонент на теплоноситель) | T6: Итого,руб. с НДС | U6: Отопление 2018-2019гг. | Y6: Итого,руб. с НДС | Z6: Горячее водоснабжение (компонент на тепловую энергию) 2018-2019гг. | AD6: Итого,руб. с НДС | AE6: Горячее водоснабжение (компонент на теплоноситель) 2018-2019гг. | AI6: Итого,руб. с НДС | AJ6: Плановые ассигнования 2018г. руб. | AK6: Плановые ассигнования 2019г. руб.
F7: Тариф, без НДС, руб./Гкал (1 полугодие 2017г.) | G7: Тариф, без НДС, руб./Гкал (2 полугодие 2017г.) | H7: Физ. Объем | K7: Тариф, без НДС, руб./Гкал (1 полугодие 2017г.) | L7: Тариф, без НДС, руб./Гкал (2 полугодие 2017г.) | M7: Физ. Объем | P7: Тариф, без НДС, руб./тыс. м3 (1 полугодие 2017г.) | Q7: Тариф, без НДС, руб./тыс. м3 (2 полугодие 2017г.) | R7: Физический объем, тыс. м3 | U7: Тариф, без НДС, руб./Гкал (1 полугодие 2018г.) | V7: Тариф, без НДС, руб./Гкал (2 полугодие 2018г.) | W7: Физ. Объем | Z7: Тариф, без НДС, руб./Гкал (1 полугодие 2018г.) | AA7: Тариф, без НДС, руб./Гкал (2 полугодие 2018г.) | AB7: Физ. Объем | AE7: Тариф, без НДС, руб./тыс. м3 (1 полугодие 2018г.) | AF7: Тариф, без НДС, руб./тыс. м3 (2 полугодие 2018г.) | AG7: Физический объем, тыс. м3
H9: (1 полугодие 2017г.) | I9: (2 полугодие 2017г.) | M9: (1 полугодие 2017г.) | N9: (2 полугодие 2017г.) | R9: (1 полугодие 2017г.) | S9: (2 полугодие 2017г.) | W9: (1 полугодие 2018г.) | X9: (2 полугодие 2018г.) | AB9: (1 полугодие 2018г.) | AC9: (2 полугодие 2018г.) | AG9: (1 полугодие 2018г.) | AH9: (2 полугодие 2018г.)
A10: 1 | B10: ='[14]931 (-дек.)'!B55 -> МБДОУ № 90 | C10: ='[14]931 (-дек.)'!C55 -> Талнахская, 1А | D10: ='[14]931 (-дек.)'!D55 -> НТЭК | E10: =CEILING(J10+O10+T10,100) -> 1102000 | F10: ='[14]931 (-дек.)'!X55 -> 967.26 | G10: ='[14]931 (-дек.)'!Y55 -> 1061.66 | H10: ='[14]931 (-дек.)'!AF55+'[14]931 (-дек.)'!AO55 -> 546.2798 | I10: ='[14]931 (-дек.)'!AX55+'[14]931 (-дек.)'!BG55 -> 211 | J10: =(H10*F10+I10*G10)*1.18 -> 887837.734 | K10: ='[14]931 (-дек.)'!BN14 -> 967.26 | L10: ='[14]931 (-дек.)'!BO14 -> 1061.66 | M10: ='[14]931 (-дек.)'!BV55+'[14]931 (-дек.)'!CE55 -> 89.2302 | N10: ='[14]931 (-дек.)'!CN55+'[14]931 (-дек.)'!CW55 -> 67 | O10: =(M10*K10+N10*L10)*1.18 -> 185779.2274 | P10: ='[14]931 (-дек.)'!DD14 -> 7910 | Q10: ='[14]931 (-дек.)'!DE14 -> 10930 | R10: ='[14]931 (-дек.)'!DL55+'[14]931 (-дек.)'!DU55 -> 1.48717 | S10: ='[14]931 (-дек.)'!ED55+'[14]931 (-дек.)'!EM55 -> 1.116666667 | T10: =(P10*R10+Q10*S10)*1.18 -> 28283.04401 | U10: 1061.66 | V10: 1054.19 | W10: 510 | X10: 200.4 | Y10: =(W10*U10+X10*V10)*1.18 -> 888193.4057 | Z10: 1061.66 | AA10: 1054.19 | AB10: 85 | AC10: 63 | AD10: =(AB10*Z10+AC10*AA10)*1.18 -> 184852.9826 | AE10: 10930 | AF10: 8570 | AG10: =AB10/0.06/1000 -> 1.416666667 | AH10: =AC10/0.06/1000 -> 1.05 | AI10: =(AE10*AG10+AF10*AH10)*1.18 -> 28889.54667 | AJ10: =CEILING(Y10+AD10+AI10,100) -> 1102000 | AK10: =AJ10 -> 1102000
A14: Расчет нормативов затрат на содержание имущества по Доп. КР 932 "Потребление электроэнергии" на 2017 год (местный бюджет)
A15: № п/п | B15: Наименование учреждения | C15: Адрес | D15: Обслуживающая организация | E15: Плановые ассигнования 2017г. руб. | F15: Потребление электроэнергии | J15: Итого,руб. с НДС | K15: Плановые ассигнования 2018г. руб. | L15: Плановые ассигнования 2019г. руб.
F16: Тариф, без НДС, руб./тыс. кВт.ч (1 полугодие 2017г.) | G16: Тариф, без НДС, руб./тыс. кВт.ч (2 полугодие 2017г.) | H16: Физ. Объем, тыс. кВт.ч
H18: (1 полугодие 2017г.) | I18: (2 полугодие 2017г.)
A19: 1 | B19: ='[14]932 (-дек.)'!B55 -> МБДОУ № 90 | C19: ='[14]932 (-дек.)'!C55 -> Талнахская, 1А | D19: ='[14]932 (-дек.)'!D55 -> НТЭК | E19: =CEILING(J19,100) -> 376800 | F19: ='[14]932 (-дек.)'!X55 -> 2600 | G19: ='[14]932 (-дек.)'!Y55 -> 2808 | H19: ='[14]932 (-дек.)'!AF55+'[14]932 (-дек.)'!AO55 -> 67.52 | I19: ='[14]932 (-дек.)'!AX55+'[14]932 (-дек.)'!BG55 -> 51.2 | J19: =(F19*H19+G19*I19)*1.18 -> 376799.488 | K19: =E19 -> 376800 | L19: =K19 -> 376800
A22: Расчет нормативов затрат на содержание имущества по Доп. КР 933 "Водоснабжение, канализация" на 2017 год (местный бюджет)
A23: № п/п | B23: Наименование учреждения | C23: Адрес | D23: Обслуживающая организация | E23: Плановые ассигнования 2017г. руб. | F23: Холодное водоснабжение | J23: Итого,руб. с НДС | K23: Водоотведение | O23: Итого,руб. с НДС | P23: Холодное водоснабжение ,2018-2019гг. | T23: Итого,руб. с НДС | U23: Водоотведение, 2018-2019гг. | Y23: Итого,руб. с НДС | Z23: Плановые ассигнования 2018г. руб. | AA23: Плановые ассигнования 2019г. руб.
F24: Тариф, без НДС, руб./тыс. м3 (1 полугодие 2017г.) | G24: Тариф, без НДС, руб./тыс. м3 (2 полугодие 2017г.) | H24: Физ. Объем, тыс. м3 | K24: Тариф, без НДС, руб./тыс. м3 (1 полугодие 2017г.) | L24: Тариф, без НДС, руб./тыс. м3 (2 полугодие 2017г.) | M24: Физ. Объем, тыс. м3 | P24: Тариф, без НДС, руб./тыс. м3 (1 полугодие 2017г.) | Q24: Тариф, без НДС, руб./тыс. м3 (2 полугодие 2017г.) | R24: Физ. Объем, тыс. м3 | U24: Тариф, без НДС, руб./тыс. м3 (1 полугодие 2017г.) | V24: Тариф, без НДС, руб./тыс. м3 (2 полугодие 2017г.) | W24: Физ. Объем, тыс. м3
H26: (1 полугодие 2017г.) | I26: (2 полугодие 2017г.) | M26: (1 полугодие 2017г.) | N26: (2 полугодие 2017г.) | R26: (1 полугодие 2017г.) | S26: (2 полугодие 2017г.) | W26: (1 полугодие 2017г.) | X26: (2 полугодие 2017г.)
A27: 1 | B27: ='[14]933 (-дек.) '!B55 -> МБДОУ № 90 | C27: ='[14]933 (-дек.) '!C55 -> Талнахская, 1А | E27: =J27+O27 -> 1094600 | F27: ='[14]933 (-дек.) '!AM55 -> 36930 | G27: ='[14]933 (-дек.) '!AN55 -> 25060 | H27: ='[14]933 (-дек.) '!AU55+'[14]933 (-дек.) '!BD55 -> 11.21892498 | I27: ='[14]933 (-дек.) '!BM55+'[14]933 (-дек.) '!BV55 -> 3.902 | J27: =CEILING((H27*F27+I27*G27)*1.18,100) -> 604300 | K27: ='[14]933 (-дек.) '!CD14 -> 23210 | L27: ='[14]933 (-дек.) '!CE14 -> 24030 | M27: ='[14]933 (-дек.) '!CL55+'[14]933 (-дек.) '!CU55 -> 12.70609498 | N27: ='[14]933 (-дек.) '!DD55+'[14]933 (-дек.) '!DM55 -> 5.018666667 | O27: =CEILING((M27*K27+N27*L27)*1.18,100) -> 490300 | P27: 25060 | Q27: 41400 | R27: 11.21892498 | S27: 4.729 | T27: =CEILING((R27*P27+S27*Q27)*1.18,100) -> 562800 | U27: 24030 | V27: 25430 | W27: =AG10+R27 -> 12.63559165 | X27: =AH10+S27 -> 5.779 | Y27: =CEILING((W27*U27+X27*V27)*1.18,100) -> 531800 | Z27: =T27+Y27 -> 1094600 | AA27: =Z27 -> 1094600
A30: Начальник планово-экономического отдела | G30: В.В. Гоннова
A35: Быкова Д.Л.
A36: 437200*3227

Sheet 225 сод.имущ.
A1: КБК 065/0701/0210101110/244 местный бюджет
A2: КБК 065/0701/0210074080/244 краевой бюджет
A3: Обоснование расходов по КОСГУ 225 "Работы, услуги по содержанию имущества" на 2017-2019 гг. (местный и краевой бюджеты)
A4: МБДОУ "Детский сад № 90"
A6: № п/п | B6: Наименование | C6: Тип/марка | D6: Срок следующей поверки СИ, перезарядки огнетушителей, год | E6: Единица измерения | F6: Очередной финансовый 2017 год и плановый период 2018-2019 гг. | J6: Дефицит средств в 2017 году, руб.
F8: Физический объём/периодичность | G8: Тариф, руб./ед.изм. (без НДС) | H8: Тариф ТР ТТОиХО, руб./ед.изм. (без НДС) | I8: Утвержденные ассигнования 2017-2019 гг., руб. (с НДС/без НДС) | J8: Дефицит средств в 2017 году, руб.
A9: Доп.КР 941 "Содержание и техническое обслуживание помещений"
A10: в т.ч. за счет средств местного бюджета:
A11: 1 | B11: ТО АУТВР, в том числе: | I11: =CEILING(SUM(I12:I18),100) -> 155000
A12: 1.1 | B12: Технический осмотр | E12: узел/мес. | F12: 11 | G12: 2822.59 | I12: =F12*G12 -> 31048.49
A13: 1.2 | B13: Текущее обслуживание (ППР) | E13: узел/год | F13: 1 | G13: 27142.26 | I13: 27142.26
A14: 1.3 | B14: Тепловычислитель | E14: кол-во поверок | F14: 1 | G14: 2757.73 | I14: 2757.73
A15: 1.4 | B15: Расходомер | E15: кол-во поверок | F15: 3 | G15: 3044.01 | I15: 9132.03
A16: 1.5 | B16: Датчик температуры | E16: кол-во поверок | F16: 2 | G16: 2206.41 | I16: 4412.82
A17: 1.6 | B17: Датчик давления | E17: кол-во поверок | F17: 3 | G17: 2206.41 | I17: 6619.23
A18: 1.7 | B18: Пусконаладочные работы | E18: узел/раз | F18: 2 | G18: 36925 | I18: 73850
A19: 2 | B19: Комплексное техническое обслуживание инженерных систем и систем видеонаблюдения, в том числе: | I19: =CEILING(SUM(I24:I29,I20),100) -> 1308900 | J19: =CEILING(SUM(J24:J29,J20),100) -> 103900
A20: 2.1 | B20: ТО систем видеонаблюдения, в том числе: | I20: =SUM(I21:I23) -> 140158.1226
A21: 2.1.1 | B21: внешняя видеокамера | E21: шт./год | F21: 7 | G21: 7963.77 | I21: =F21*G21*1.18 -> 65780.7402
A22: 2.1.2 | B22: внутренняя видеокамера | E22: шт./год | F22: 7 | G22: 4883.64 | I22: =F22*G22*1.18 -> 40338.8664
A23: 2.1.3 | B23: видеорегистратор | E23: шт./год | F23: 2 | G23: 14423.1 | I23: =F23*G23*1.18 -> 34038.516
A24: 2.2 | B24: ТО АСУВ (автоматизированная система управления вентиляцией) | E24: шт./мес. | G24: 4036.11 | I24: =F24*G24*11*1.18 -> 0 | J24: =F24*G24*1*1.18 -> 0
A25: 2.3 | B25: Ведение технической документации | E25: м2/мес. | F25: 3510.9 | G25: 2.62 | I25: =F25*G25*11*1.18 -> 119397.2828 | J25: =F25*G25*1*1.18 -> 10854.29844
A26: 2.4 | B26: ТО инженерных сетей (внутренние системы тепловодоснабжения и канализации, электроснабжения, аварийное обслуживание) | E26: м2/мес. | F26: 3510.9 | G26: 21.73 | I26: =F26*G26*11*1.18 -> 990268.3039 | J26: =F26*G26*1*1.18 -> 90024.39126
A27: 2.5 | B27: ТО светильников наружного освещения | E27: шт./год | F27: 10 | G27: 2060.78 | I27: =F27*G27*1.18 -> 24317.204
A28: 2.6 | B28: ТО кабельных линий наружного освещения | E28: км/год | F28: 0.19 | G28: 7922.1 | I28: =F28*G28*1.18 -> 1776.13482
A29: 2.7 | B29: ТО систем вентиляции, в том числе: | I29: =SUM(I30,I36,I42) -> 32957.9074 | J29: =SUM(J30,J36,J42) -> 2996.1734
A30: 2.7.1 | B30: Вытяжные установки | I30: =SUM(I31:I35) -> 18514.2826 | J30: =SUM(J31:J35) -> 1683.1166
B31: вентиляторы 3.4.5 | E31: уст./мес. | F31: 4 | G31: 196.79 | I31: =F31*G31*11*1.18 -> 10217.3368 | J31: =F31*G31*1*1.18 -> 928.8488
B32: вентиляторы 6.6.3 | E32: уст./мес. | F32: 3 | G32: 213.07 | I32: =F32*G32*11*1.18 -> 8296.9458 | J32: =F32*G32*1*1.18 -> 754.2678
B33: вентиляторы 7.8 | E33: уст./мес. | G33: 222.95 | I33: =F33*G33*11*1.18 -> 0 | J33: 0
B34: вентиляторы 10 | E34: уст./мес. | G34: 239.36 | I34: =F34*G34*11*1.18 -> 0 | J34: 0
B35: вентиляторы 20 | E35: уст./мес. | G35: 244.98 | I35: =F35*G35*11*1.18 -> 0 | J35: 0
A36: 2.7.2 | B36: Приточные установки | I36: =SUM(I37:I41) -> 14443.6248 | J36: =SUM(J37:J41) -> 1313.0568
B37: вентиляторы 3.4.5 | E37: уст./мес. | G37: 1111.35 | I37: =F37*G37*11*1.18 -> 0 | J37: =F37*G37*1*1.18 -> 0
B38: вентиляторы 6.6.3 | E38: уст./мес. | F38: 1 | G38: 1112.76 | I38: =F38*G38*11*1.18 -> 14443.6248 | J38: =F38*G38*1*1.18 -> 1313.0568
B39: вентиляторы 7.8 | E39: уст./мес. | G39: 1113.84 | I39: =F39*G39*11*1.18 -> 0 | J39: 0
B40: вентиляторы 10 | E40: уст./мес. | G40: 1115.38 | I40: =F40*G40*11*1.18 -> 0 | J40: 0
B41: вентиляторы 20 | E41: уст./мес. | G41: 1121 | I41: =F41*G41*11*1.18 -> 0 | J41: 0
A42: 2.7.3 | B42: Тепловые завесы | I42: =SUM(I43:I46) -> 0 | J42: =SUM(J43:J46) -> 0
B43: вентиляторы 3.4.5 | E43: уст./мес. | G43: 732.45 | I43: =F43*G43*11*1.18 -> 0 | J43: =F43*G43*1*1.18 -> 0
B44: вентиляторы 6.6.3 | E44: уст./мес. | G44: 733.01 | I44: =F44*G44*11*1.18 -> 0 | J44: =F44*G44*1*1.18 -> 0
B45: вентиляторы 7.8 | E45: уст./мес. | G45: 733.58 | I45: =F45*G45*11*1.18 -> 0 | J45: 0
B46: вентиляторы 10 | E46: уст./мес. | G46: 734.17 | I46: =F46*G46*11*1.18 -> 0 | J46: 0
A47: 3 | B47: Очистка кровли от снега и наледи, в том числе: | F47: =SUM(F48:F50) -> 1547.364 | I47: =CEILING(I48+I49+I50,100)-700 -> 27500
A48: 3.1 | B48: мягкая кровля | E48: м2 | F48: 1289.47 | G48: 61.7 | I48: =F48*0.3*G48*1*1.18 -> 28164.34585
A49: 3.2 | B49: очистка козырьков и парапетов | E49: м2 | F49: =F48*0.2 -> 257.894 | G49: 61.7 | I49: =F49*0.3*G49*0*1.18 -> 0
A50: 3.3 | B50: металлическая кровля | E50: м2 | G50: 61.7 | I50: =F50*0.3*G50*F51*1.18 -> 0
A51: 3.4 | B51: периодичность (для металл. кровли) | E51: раз/год | F51: 4
A52: 4 | B52: Зимнее содержание территорий, в том числе: | I52: =CEILING(SUM(I53:I55),100) -> 0
A53: 4.1 | B53: Сады: Талнах, Кайеркан | E53: м2 | G53: 18.687 | I53: =F53*G53*8*1.18 -> 0
A54: 4.2 | B54: Прочие учреждения: Талнах, Кайеркан | E54: м2 | G54: 21.178 | I54: =F54*G54*8*1.18 -> 0
A55: 4.3 | B55: Посыпка граншлаком подъездных путей и подходов к учреждению | E55: м2 | F55: =F53*0.25 -> 0 | G55: 1.119 | I55: =F55*G55*8*1.18 -> 0
A56: 5 | B56: Эксплуатационные услуги, в том числе: | I56: =CEILING(SUM(I57:I58),100) -> 0
A57: 5.1 | B57: Многоквартирные дома серии 1-447, 1-464, индивидуальные проекты ("сталинка", "хрущевка", "малоэтажные") | E57: м2 | I57: =45.06*6*F57+48.84*6*F57 -> 0
A58: 5.2 | B58: Многоквартирные дома серии НК-12, 111-84, 111-112, К-69, индивидуальные проекты ("улучшенной планировки") | E58: м2 | I58: =55.51*6*F58+60.18*6*F58 -> 0
A59: 6 | B59: Вывоз пищевых отходов (сады), в том числе: | I59: =CEILING(SUM(I60:I61),100) -> 112600
A60: 6.1 | B60: Вывоз пищевых отходов | E60: раб.дни | F60: 248 | G60: 453.68 | I60: =G60*F60 -> 112512.64
A61: 11.2 | B61: Утилизация пищевых отходов | E61: м3/день | F61: 0.2 | G61: 162,77/168,30
A62: 7 | B62: Услуга по очистке жироуловителя (откачивание сепарированных жировых отходов), в том числе: | I62: =CEILING(SUM(I63:I65),100) -> 0
A63: 7.1 | B63: Количество откачиваний | E63: раз/год | G63: 3118.21 | I63: =F63*G63*1.18 -> 0
A64: 7.2 | B64: Работа транспорта | E64: раз/год | G64: 5745 | I64: =F64*G64*1.18 -> 0
A65: 8.3 | B65: Размещение отходов на полигоне за 1 откачивание | E65: м3 | G65: 162,77/168,30
A66: 8 | B66: Техническое обслуживание систем водоподготовки бассейнов (сады), в том числе: | I66: =CEILING(I67,100) -> 0
A67: 8.1 | B67: Количество систем | E67: шт. | G67: 8511.18 | I67: =F67*G67*F68*1.18 -> 0
A68: 8.2 | B68: Периодичность | E68: раз/год
A69: 9 | B69: Услуга по обследованию здания и геотехническому мониторингу, в том числе: | I69: =CEILING(SUM(I70:I80),100) -> 49800
A70: 9.1 | B70: Здание, объем, 100 м3 | F70: 129
A71: 9.2 | B71: Подполье, объем, 100 м3 | F71: 17.82
A72: 9.3 | B72: Визуальные обследования здания | E72: раз/год | F72: 1 | G72: 262.48 | I72: =F70*F72*G72 -> 33859.92
A73: 9.4 | B73: Визуальные обследования подполья, благоприятный период | E73: раз/год | F73: 1 | G73: 262.48 | I73: =F71*F73*G73 -> 4677.3936
A74: 9.5 | B74: Визуальные обследования подполья, неблагоприятный период | E74: раз/год | F74: 2 | G74: 314.97 | I74: =F71*F74*G74 -> 11225.5308
A75: 9.6 | B75: Геодезия, камеральная обработка | E75: к-во штативов | F75: 0 | G75: 532.67 | I75: =F75*G75 -> 0
A76: 9.7 | B76: Геодезия, благоприятный период | E76: к-во штативов | F76: 0 | G76: 790.77 | I76: 0
A77: 9.8 | B77: Геодезия, неблагоприятный период | E77: к-во штативов | F77: 0 | G77: 1106.72 | I77: 0
A78: 9.9 | B78: Геотермика, камеральная обработка | E78: тчк/мес. | G78: 676.4 | I78: 0
A79: 9.10 | B79: Геотермика, благоприятный период | E79: тчк/мес. | F79: 0 | G79: 3478.57 | I79: 0
A80: 9.11 | B80: Геотермика, неблагоприятный период | E80: тчк/мес. | F80: 0 | G80: 4869.64 | I80: 0
A81: 10 | B81: ТО лифтов, в том числе: | I81: =CEILING(SUM(I82:I85),100) -> 0
A82: 10.1 | B82: Грузоподъемность 39-241 кг | E82: шт. | G82: 3336 | I82: =F82*G82*12*1.18 -> 0
A83: 10.2 | B83: Грузоподъемность 320-400 кг | E83: шт. | G83: 6107.65 | I83: =F83*G83*12*1.18 -> 0
A84: 10.3 | B84: Грузоподъемность до 1000 кг (пассажирский) | E84: шт. | G84: 28577.66 | I84: =F84*G84*12*1.18 -> 0
A85: 10.4 | B85: Техническое освидетельствование | E85: усл.ед. | G85: 20800
A86: 11 | B86: Дератизация, дезинсекция и дезинфекция, в том числе: | I86: =SUM(I87:I92) -> 46200
A87: 11.1 | B87: Дератизация, площадь | E87: м2 | F87: 1206 | G87: =1.06*0.289999988782779 -> 0.3073999881 | I87: =CEILING(F87*G87*F88*1.18,100) -> 5300
A88: 11.2 | B88: Дератизация, периодичность | E88: раз/год | F88: 12
A89: 11.3 | B89: Дезинсекция, площадь | E89: м2 | F89: 3511 | G89: =1.13*0.289999988782779 -> 0.3276999873 | I89: =CEILING(F89*G89*F90*1.18,100) -> 32600
A90: 11.4 | B90: Дезинсекция, периодичность | E90: раз/год | F90: 24
A91: 11.5 | B91: Дезинфекция, площадь | E91: м2 | F91: 812.24 | G91: 3.4 | I91: =CEILING(F91*F92*G91,100) -> 8300
A92: 11.6 | B92: Дезинфекция, периодичность | E92: раз/год | F92: 3
A93: 12 | B93: Прочие расходы (аварийно-восстанов. работы, замена оборудования, приборов учета ТЭР и др.) | E93: усл.ед.
A94: 13 | B94: Услуги мусоровоза, бульдозера (п. Снежногорск) | E94: усл.ед.
A95: ИТОГО по Доп.КР 941 (местный бюджет) | I95: =SUM(I11,I19,I47,I52,I56,I59,I62,I66,I69,I81,I86,I93,I94) -> 1700000 | J95: =SUM(J11,J19,J47,J52,J56,J59,J62,J66,J69,J81,J86,J93,J94) -> 103900
H96: МБ | I96: 1700000 | J96: =I95-I96 -> 0
A98: Доп.КР 942 "Текущий ремонт оборудования"
A99: в т.ч. за счет средств местного бюджета:
A100: 1 | B100: ТО и ремонт систем видеонаблюдения, в том числе:
A101: 1.1 | B101: Затраты труда инженера, чел.-ч.:
A102: 1.2 | B102: наружная камера видеонаблюдения (3,47 чел.-ч.) | E102: шт.
A103: 1.3 | B103: внутренняя камера видеонаблюдения (2,50 чел.-ч.) | E103: шт.
A104: 1.4 | B104: блок питания (2,15 чел.-ч.) | E104: шт.
A105: 1.5 | B105: видеорегистратор (2,40 чел.-ч.) | E105: шт.
A106: 1.6 | B106: монитор видеонаблюдения (1,15 чел.-ч.) | E106: шт.
A107: 1.7 | B107: Накладные расходы ФОТ - 30,2% | E107: %
A108: 1.8 | B108: Понижающий коэффициент - 0,65 (0,851) | E108: коэффициент
A109: 2 | B109: ТО и ремонт торгово-технологического и холодильного оборудования, в том числе: | I109: =CEILING(I115+I112+I113,100)-7100 -> 251600
A110: 2.1 | B110: Количество ТО в год | E110: раз/год | F110: 10
A111: 2.2 | B111: Количество ТР в год | E111: раз/год | F111: 2
A112: 2.3 | B112: Внеплановый ремонт (20% от ст-ти ТО и ТР) | E112: % | I112: =I115*F112 -> 0
A113: 2.4 | B113: Стоимость ТМЦ (20% от ст-ти ТО, ТР) | E113: % | F113: 0.2 | I113: =I115*F113 -> 43108.2
A114: 2.5 | B114: Индекс перехода в текущие цены | E114: индекс | F114: 46
A115: 2.6 | B115: Стоимость ТО и ТР в год | E115: руб. | I115: =SUM(I116:I161) -> 215541
A116: 2.7 | B116: Шкаф охлаждаемый | C116: ШХ-0,8 | E116: шт. | F116: 2 | G116: 792 | H116: 2755.5 | I116: =(F116*G116*$F$110)+(F116*H116*$F$111) -> 26862
A117: 2.8 | B117: Шкаф низкотемпературный | C117: ШН-0,7 | E117: шт. | F117: 1 | G117: 890 | H117: 3038.5 | I117: =(F117*G117*$F$110)+(F117*H117*$F$111) -> 14977
A118: 2.9 | B118: Шкаф охлаждаемый | C118: Спутник СВ-700 | E118: шт. | F118: 1 | G118: 879 | H118: 3004.5 | I118: 14799
A119: 2.10 | B119: Шкаф охлаждаемый | C119: ШХ-0,7 | E119: шт. | F119: 3 | G119: 879 | H119: 3004.5 | I119: 44397
A120: 2.11 | B120: Морозильная камера | C120: Ariston RMMUP100XH | E120: шт. | F120: 1 | G120: 1203 | H120: 4707.5 | I120: 21445
A121: 2.12 | B121: Плита электрическая | C121: ЭП-4ЖШ | E121: шт. | F121: 4 | G121: 338.5 | H121: 6304 | I121: 63972
A122: 2.13 | B122: Электрокотел | C122: КПЭ-60 | E122: шт. | F122: 1 | G122: 239 | H122: 1052 | I122: 4494
A123: 2.14 | B123: Универсальная кухонная машина | C123: УКМ | E123: шт. | F123: 3 | G123: 198 | H123: 1056 | I123: 12276
A124: 2.15 | B124: Картофелечистка | C124: МОК-300 | E124: шт. | F124: 1 | G124: 157 | H124: 1303.5 | I124: 4177
A125: 2.16 | B125: Машина протирочная | C125: МПР-350М | E125: шт. | F125: 1 | G125: 140.5 | H125: 511.5 | I125: 2428
A126: 2.17 | B126: Хлеборезка | C126: АХМ-300 | E126: шт. | F126: 1 | G126: 284 | H126: 1437 | I126: 5714
A127: 2.18 | E127: шт. | I127: 0
A128: 2.19 | E128: шт. | I128: 0
A129: 2.20 | E129: шт. | I129: 0
A130: 2.21 | E130: шт. | I130: 0
A131: 2.22 | E131: шт. | I131: 0
A132: 2.23 | E132: шт. | I132: 0
A133: 2.24 | E133: шт. | I133: 0
A134: 2.25 | E134: шт. | I134: 0
A135: 2.26 | E135: шт. | I135: 0
A136: 2.27 | E136: шт. | I136: 0
A137: 2.28 | E137: шт. | I137: 0
A138: 2.29 | E138: шт. | I138: 0
A139: 2.30 | E139: шт. | I139: 0
A140: 2.31 | E140: шт. | I140: 0
A141: 2.32 | E141: шт. | I141: 0
A142: 2.33 | E142: шт. | I142: 0
A143: 2.34 | E143: шт. | I143: 0
A144: 2.35 | E144: шт. | I144: 0
A145: 2.36 | E145: шт. | I145: 0
A146: 2.37 | E146: шт. | I146: 0
A147: 2.13 | E147: шт. | I147: 0
A148: 2.14 | E148: шт. | I148: 0
A149: 2.15 | E149: шт. | I149: 0
A150: 2.16 | E150: шт. | I150: 0
A151: 2.17 | E151: шт. | I151: 0
A152: 2.18 | E152: шт. | I152: 0
A153: 2.19 | E153: шт. | I153: 0
A154: 2.20 | E154: шт. | I154: 0
A155: 2.21 | E155: шт. | I155: 0
A156: 2.22 | E156: шт. | I156: 0
A157: 2.23 | E157: шт. | I157: 0
A158: 2.24 | E158: шт. | I158: 0
A159: 2.25 | E159: шт. | I159: 0
A160: 2.26 | E160: шт. | I160: 0
A161: 2.27 | E161: шт. | I161: 0
A162: 2.28 | E162: шт. | I162: 0
A163: 2.29 | E163: шт. | I163: 0
A164: 2.30 | E164: шт. | I164: 0
A165: 3 | B165: ТО изделий медицинской техники (ИМТ) | E165: шт.
A166: 3.1 | E166: шт.
A167: 3.2 | E167: шт.
A168: 3.3 | E168: шт.
A169: 3.4 | E169: шт.
A170: 3.5 | E170: шт.
A171: 3.6 | E171: шт.
A172: 3.7 | E172: шт.
A173: 3.8 | E173: шт.
A174: 3.9 | E174: шт.
A175: 3.10 | E175: шт.
A176: 3.11 | E176: шт.
A177: 3.12 | E177: шт.
A178: 3.13 | E178: шт.
A179: 3.14 | E179: шт.
A180: 3.15 | E180: шт.
A181: 3.16 | E181: шт.
A182: 3.17 | E182: шт.
A183: 3.18 | E183: шт.
A184: 3.19 | E184: шт.
A185: 3.20 | E185: шт.
A186: 3.21 | E186: шт.
A187: 3.22 | E187: шт.
A188: 3.23 | E188: шт.
A189: 3.24 | E189: шт.
A190: 3.25 | E190: шт.
A191: 3.26 | E191: шт.
A192: 3.27 | E192: шт.
A193: 3.28 | E193: шт.
A194: 3.29 | E194: шт.
A195: 3.30 | E195: шт.
A196: 3.31 | E196: шт.
A197: 3.32 | E197: шт.
A198: 3.33 | E198: шт.
A199: 3.34 | E199: шт.
A200: 3.35 | E200: шт.
A201: 4 | B201: Ремонт и техн. обслуживание оргтехники и копировально-множительного оборудования, музыкал. оборудования и инструментов, используемых работниками, обучающимися; ремонт ученической мебели, рабочего места работника | E201: шт.
A202: 5 | B202: Прочие расходы (ремонт бытовой техники, бытовых холодильников, стирального оборудования, изделий медтехники, средств измерений и др.) | E202: шт.
A203: в т.ч. за счет средств краевого бюджета:
... 112 more rows

Sheet 226 пр.работы, услуги
L1: Приложение № 28
L2: к Порядку составления проекта бюджета
L3: муниципального образования город Норильск
L4: на очередной финансовый год и плановый период,
L5: утвержденному постановлением
L6: Администрации города Норильска
L7: от 30.06.2015 №337
A9: Обоснование расходов по прочим работам и услугам
A10: МБДОУ "Детский сад №90 "Цветик-семицветик"
A11: Местный бюджет КБК 06507010210101110244
A12: № | B12: Наименование услуги | C12: Ед.изм. | D12: Очередной 2017 год | H12: Очередной 2018 год | K12: Очередной 2019 год
D13: Физический объём/периодичность | E13: Тариф руб./ед.изм (без НДС) | F13: Итого тыс.руб. (с НДС) | G13: Примечание | H13: Физический объём/периодичность | I13: Тариф руб./ед.изм (без НДС) | J13: Итого тыс.руб. (с НДС) | K13: Физический объём/периодичность | L13: Тариф руб./ед.изм (без НДС) | M13: Итого тыс.руб. (с НДС)
A14: 1 | B14: 2 | C14: 3 | D14: 16 | E14: 17 | F14: 18 | G14: 19 | H14: 20 | I14: 21 | J14: 22 | K14: 23 | L14: 24 | M14: 25
A15: 226/953 Вневедомственная (в том числе пожарная) охрана, охранная и пожарная сигнализация (установка, наладка и эксплуатация), в том числе | D15: х | E15: х | F15: =CEILING(SUM(F16:F20),0.1) -> 721.3 | G15: х | H15: х | I15: х | J15: =CEILING(SUM(J16:J20),0.1) -> 721.3 | K15: х | L15: х | M15: =CEILING(SUM(M16:M20),0.1) -> 721.3
A16: 1 | B16: Охрана общественного порядка | C16: кол-во часов | D16: =248*12 -> 2976 | E16: 190 | F16: =D16*E16*1.18/1000 -> 667.2192 | H16: =D16 -> 2976 | I16: 190 | J16: =H16*I16*1.18/1000 -> 667.2192 | K16: =H16 -> 2976 | L16: 190 | M16: =K16*L16*1.18/1000 -> 667.2192
A17: 2 | B17: Мониторинговые услуги по приемке, обработке сигналов, поступающих на центральный радиопульт | C17: кол-во мес | D17: 12 | E17: 2500 | F17: =D17*E17/1000 -> 30 | H17: 12 | I17: 2500 | J17: =H17*I17/1000 -> 30 | K17: 12 | L17: 2500 | M17: =K17*L17/1000 -> 30
A18: 3 | B18: Услуги по централизованному наблюдению за объектом и реагировании на тревожные сообщения (с использованием канала сотовой связи GSM) | C18: кол-во мес | D18: 12 | E18: 2000 | F18: =D18*E18/1000 -> 24 | H18: 12 | I18: 2000 | J18: =H18*I18/1000 -> 24 | K18: 12 | L18: 2000 | M18: =K18*L18/1000 -> 24
A19: 4 | B19: Охрана объектов средствами охранно-пожарной сигнализации (ОПС) | C19: кол-во часов | F19: =D19*E19 -> 0 | H19: 0 | I19: 0 | J19: =H19*I19 -> 0 | K19: 0 | L19: 0 | M19: =K19*L19 -> 0
A20: 5 | B20: Охрана объектов средствами тревожной сигнализации (ТС) | C20: кол-во часов | F20: =D20*E20 -> 0 | H20: 0 | I20: 0 | J20: =H20*I20 -> 0 | K20: 0 | L20: 0 | M20: =K20*L20 -> 0
A21: 226/954 Прочие услуги, в том числе: | D21: х | E21: х | F21: =CEILING(F22+F23+F24+F27+F28+F29+F30+F31+F32+F33+F34+F35+F36+F37+F44+F106+F115+F118+F119+F120+F121+F122+F123+F124+F125+F127+F126+F101,0.1) -> 435.6 | G21: х | H21: х | I21: х | J21: =F21 -> 435.6 | K21: х | L21: х | M21: =J21 -> 435.6
A22: 1 | B22: Утилизация (захоронение) твердых бытовых отходов | C22: м3/год | D22: 108 | E22: =(168.3+180.75)/2 -> 174.525 | F22: =(D22*E22)*1.18/1000 -> 22.241466 | I22: =E22 -> 174.525 | L22: =I22 -> 174.525
A23: 2 | B23: Утилизация (захоронение) крупногабаритного мусора (попадающего под IV и V классы опасности) | C23: м3/год | D23: 10 | E23: 180.75 | F23: =D23*E23*1.18/1000 -> 2.13285 | I23: =E23 -> 180.75 | L23: =I23 -> 180.75
A24: 3 | B24: Утилизация ртутьсодержащих отходов | C24: х | D24: х | E24: х | F24: =SUM(F25:F26) -> 12.3133 | G24: х | I24: х | L24: х
A25: 3.1 | B25: лампы | C25: шт/год | D25: 300 | E25: 32.55 | F25: =D25*E25*1.18/1000 -> 11.5227 | I25: 32.55 | L25: 32.55
A26: 3.2 | B26: термометры | C26: шт/год | D26: 20 | E26: 33.5 | F26: =D26*E26*1.18/1000 -> 0.7906 | I26: 33.5 | L26: 33.5
A27: 4 | B27: Изготовление полиграфической продукции (банеров, вывесок, табличек, визиток, бланочной продукции, номерков, флагов) | D27: 1 | E27: 10000 | F27: =D27*E27/1000 -> 10 | I27: 10000 | L27: 10000
A28: 5 | B28: Специальная оценка условий труда | C28: мест | E28: 3000 | F28: =D28*E28*1.18/1000 -> 0 | I28: 3000 | L28: 3000
A29: 6 | B29: Изготовление дополнительного сертификата ЭЦП для сдачи отчетн.в ФСС в режиме "Обслуж.бухгалтерия" | C29: шт. | D29: 1 | E29: 1500 | F29: =D29*E29/1000 -> 1.5 | I29: 1500 | L29: 1500
A30: 7 | B30: Отчет по определению тепловых нагрузок и расходов горячей и холодной воды | C30: шт. | E30: 80000 | F30: 0 | I30: 80000 | L30: 80000
A31: 8 | B31: Протокол о составе и свойствах сточных вод | C31: шт. | D31: 1 | E31: 30000 | F31: 30 | I31: 30000 | L31: 30000
A32: 9 | B32: Проект нормативов образования отходов и лимитов на их размещение | C32: шт. | E32: 46000 | F32: 0 | I32: 46000 | L32: 46000
A33: 10 | B33: Городские культурномассовые мероприятия (звукосветотехническое сопровождение, изготовление плакеток) | C33: шт. | F33: 0 | I33: 0 | L33: 0
A34: 11 | B34: Изготовление паспортов БТИ | C34: шт. | E34: 100000 | F34: 0 | I34: 100000 | L34: 100000
A35: 12 | B35: оформление пакета документов по обоснованию отнесения отходов к I - V классам опасности для окружающей среды | C35: шт. | E35: 45000 | F35: 0 | I35: 45000 | L35: 45000
A36: 13 | B36: Расчет оценки пожарного риска | C36: шт. | E36: 98000 | F36: 0 | I36: 98000 | L36: 98000
A37: 14 | B37: Приобретение и обслуживание програмного обеспечения | C37: х | D37: х | E37: х | F37: =SUM(F38:F43) -> 0 | G37: х | I37: х | L37: х
A38: 14.1 | B38: Антивирус Касперского | C38: шт./год | E38: 820 | F38: =D38*E38/1000 -> 0 | I38: 820 | L38: 820
A39: 14.2 | B39: Оказание информационных услуг с использованием экземпляра системы Консультант+ | C39: мес. | E39: 5384 | F39: =D39*E39*1.18/1000 -> 0 | I39: 5384 | L39: 5384
A40: 14.3 | B40: Продление лицензии на 1год (получение новых версий) ПП "Парус-Бюджет 7.хх"
A41: 14.4 | B41: Годовое сопровождение ПП "Парус-Бюджет 7.хх"
A42: 14.5 | B42: право использования программы Контур-Экстерн
A43: 14.6 | B43: Прочее програмное обеспечение | I43: =E43 -> 0 | L43: =I43 -> 0
A44: 15 | B44: Производственный контроль | C44: х | D44: х | E44: х | F44: =F45+F51+F55+F59+F70+F75+F80+F89+F94 -> 227.5549052 | G44: х | I44: х | L44: х
A45: 15.1 | B45: Исследование воды плавательных бассейнов (микробиологические) | C45: х | D45: х | E45: х | F45: =SUM(F46:F50) -> 68.5819776 | I45: х | L45: х
A46: 15.1.1 | B46: Колиформные бактерии, термотолерантные колиформные бактерии (титрационный метод) на серию | C46: раз/год | D46: 32 | E46: 232.11 | F46: =D46*E46*1.18/1000 -> 8.7644736 | I46: 232.11 | L46: 232.11
A47: 15.1.2 | B47: Колифаги (с обогащением) на серию | C47: раз/год | D47: 32 | E47: 447.32 | F47: =D47*E47*1.18/1000 -> 16.8908032 | I47: 447.32 | L47: 447.32
A48: 15.1.3 | B48: Лецитиназоположительные стафилококки на серию | C48: раз/год | D48: 32 | E48: 216.39 | F48: 8.1708864 | I48: 216.39 | L48: 216.39
A49: 15.1.4 | B49: отбор одной пробы воды плавательных бассейнов | C49: раз/год | D49: 32 | E49: 271.67 | F49: 10.2582592 | I49: 271.67 | L49: 271.67
A50: 15.1.5 | B50: прием, регистрация 1 образца (пробы) и оформление протокола исследований (на 2 структурных подразделения лаборатории) | C50: раз/год | D50: 32 | E50: 648.77 | F50: 24.4975552 | I50: 648.77 | L50: 648.77
A51: 15.2 | B51: Исследование воды плавательных бассейнов (паразитологические) | C51: х | D51: х | E51: х | F51: =SUM(F52:F54) -> 11.9173746 | I51: х | L51: х
A52: 15.2.1 | B52: Исследование воды питьевой, плавательных бассейнов по методу Новосильцева на яйца гельминтов и цисты патогенных кишечных простейших | C52: раз/год | D52: 3 | E52: 2446.05 | F52: 8.659017 | I52: 2446.05 | L52: 2446.05
A53: 15.2.2 | B53: отбор одной пробы воды плавательных бассейнов | C53: раз/год | D53: 3 | E53: 271.67 | F53: 0.9617118 | I53: 271.67 | L53: 271.67
A54: 15.2.3 | B54: прием, регистрация 1 образца (пробы) и оформление протокола исследований (на 2 структурных подразделения лаборатории) | C54: раз/год | D54: 3 | E54: 648.77 | F54: 2.2966458 | I54: 648.77 | L54: 648.77
A55: 15.3 | B55: Исследование смывов плавательных бассейнов | C55: х | D55: х | E55: х | F55: =SUM(F56:F58) -> 29.375628 | I55: х | L55: х
A56: 15.3.1 | B56: БГКП (с использованием среды КОДА) на серию | C56: раз/год | D56: 30 | E56: 148.62 | F56: 5.261148 | I56: 148.62 | L56: 148.62
A57: 15.3.2 | B57: отбор одного смыва для различных видов исследований | C57: раз/год | D57: 30 | E57: 32.43 | F57: 1.148022 | I57: 32.43 | L57: 32.43
A58: 15.3.3 | B58: прием, регистрация 1 образца (пробы) и оформление протокола исследований (на 2 структурных подразделения лаборатории) | C58: раз/год | D58: 30 | E58: 648.77 | F58: 22.966458 | I58: 648.77 | L58: 648.77
A59: 15.4 | B59: Исследования питьевой воды | C59: х | D59: х | E59: х | F59: =SUM(F60:F69) -> 8.3476504 | I59: х | L59: х
A60: 15.4.1 | B60: Подготовка и оформление договора | C60: раз/год | D60: 1 | E60: 406.74 | F60: 0.4799532 | I60: 406.74 | L60: 406.74
A61: 15.4.2 | B61: Непроизводственные затраты (затраты времени на дорогу туда и обратно) | C61: раз/год | D61: 1 | E61: 406.74 | F61: 0.4799532 | I61: 406.74 | L61: 406.74
A62: 15.4.3 | B62: Общие колиформные бактерии, термотолерантные колиформные бактерии (титрационный метод) на серию | C62: раз/год | D62: 4 | E62: 235.26 | F62: 1.1104272 | I62: 235.26 | L62: 235.26
A63: 15.4.4 | B63: Общее микробное число на серию | C63: раз/год | D63: 4 | E63: 133.72 | F63: 0.6311584 | I63: 133.72 | L63: 133.72
A64: 15.4.5 | B64: отбор проб воды на баканализ (1проба) | C64: раз/год | D64: 4 | E64: 121.63 | F64: 0.5740936 | I64: 121.63 | L64: 121.63
A65: 15.4.6 | B65: отбор проб воды на химанализ (1проба) | C65: раз/год | D65: 4 | E65: 81.09 | F65: 0.3827448 | I65: 81.09 | L65: 81.09
A66: 15.4.7 | B66: прием, регистрация 1 образца (пробы) и оформление протокола исследований (на 2 структурных подразделения лаборатории) | C66: раз/год | D66: 4 | E66: 648.77 | F66: 3.0621944 | I66: 648.77 | L66: 648.77
A67: 15.4.8 | B67: Вкус, привкус | C67: раз/год | D67: 4 | E67: 69.81 | F67: 0.3295032 | I67: 69.81 | L67: 69.81
A68: 15.4.9 | B68: Цветность | C68: раз/год | D68: 4 | E68: 138.72 | F68: 0.6547584 | I68: 138.72 | L68: 138.72
A69: 15.4.10 | B69: Мутность | C69: раз/год | D69: 4 | E69: 136.2 | F69: 0.642864 | I69: 136.2 | L69: 136.2
A70: 15.5 | B70: Песок | C70: х | D70: х | E70: х | F70: =SUM(F71:F74) -> 3.312909 | I70: х | L70: х
A71: 15.5.1 | B71: БГКП | C71: раз/год | D71: 1 | E71: 463.59 | F71: 0.5470362 | I71: 463.59 | L71: 463.59
A72: 15.5.2 | B72: Санитарно-паразитологические исследования почвы, песка, твердых бытовых отходов | C72: раз/год | D72: 1 | E72: 1541.09 | F72: 1.8184862 | I72: 1541.09 | L72: 1541.09
A73: 15.5.3 | B73: Отбор одной пробы почвы с поверхности для различных видов исследований | C73: раз/год | D73: 1 | E73: 154.1 | F73: 0.181838 | I73: 154.1 | L73: 154.1
A74: 15.5.4 | B74: прием, регистрация 1 образца (пробы) и оформление протокола исследований (на 2 структурных подразделения лаборатории) | C74: раз/год | D74: 1 | E74: 648.77 | F74: 0.7655486 | I74: 648.77 | L74: 648.77
A75: 15.6 | B75: Микроклимат | C75: х | D75: х | E75: х | F75: =SUM(F76:F79) -> 1.8152058 | I75: х | L75: х
A76: 15.6.1 | B76: Определение скорости движения воздуха в одной точке | C76: раз/год | D76: 1 | E76: 211.9 | F76: 0.250042 | I76: 211.9 | L76: 211.9
A77: 15.6.2 | B77: Измерение искусственной освещенности в одной точке | C77: раз/год | D77: 1 | E77: 253.88 | F77: 0.2995784 | I77: 253.88 | L77: 253.88
A78: 15.6.3 | B78: Измерение температуры и относительной влажности | C78: раз/год | D78: 2 | E78: 211.88 | F78: 0.5000368 | I78: 211.88 | L78: 211.88
A79: 15.6.4 | B79: Прием, регистрация 1 образца (пробы) и оформление протокола исследований (на 1 структурное подразделение лаборатории) | C79: раз/год | D79: 1 | E79: 648.77 | F79: 0.7655486 | I79: 648.77 | L79: 648.77
A80: 15.7 | B80: Микробиологическое исследование готовых блюд на соответствие требованиям санитарного законодательства | C80: х | D80: х | E80: х | F80: =SUM(F81:F88) -> 34.1958336 | I80: х | L80: х
A81: 15.7.1 | B81: КМАФАиМ | C81: раз/год | D81: 8 | E81: 393.7 | F81: 3.716528 | I81: 393.7 | L81: 393.7
A82: 15.7.2 | B82: БГКП | C82: раз/год | D82: 8 | E82: 358.74 | F82: 3.3865056 | I82: 358.74 | L82: 358.74
A83: 15.7.3 | B83: Esherichia coli | C83: раз/год | D83: 8 | E83: 409.89 | F83: 3.8693616 | I83: 409.89 | L83: 409.89
A84: 15.7.4 | B84: Стафилококк ауреус | C84: раз/год | D84: 8 | E84: 397.96 | F84: 3.7567424 | I84: 397.96 | L84: 397.96
A85: 15.7.5 | B85: Бактерии рода Rroteus | C85: раз/год | D85: 8 | E85: 410.24 | F85: 3.8726656 | I85: 410.24 | L85: 410.24
A86: 15.7.6 | B86: Патогенные микроорганизмы, в т.ч. Сальмонеллы | C86: раз/год | D86: 8 | E86: 881.32 | F86: 8.3196608 | I86: 881.32 | L86: 881.32
A87: 15.7.7 | B87: Дрожжи, плесени | C87: раз/год | D87: 8 | E87: 369.65 | F87: 3.489496 | I87: 369.65 | L87: 369.65
A88: 15.7.8 | B88: Сульфитридуцирующие клостридии | C88: раз/год | D88: 8 | E88: 400.94 | F88: 3.7848736 | I88: 400.94 | L88: 400.94
A89: 15.8 | B89: Исследования пищевой и непищевой продукции | C89: х | D89: х | E89: х | F89: =SUM(F90:F93) -> 25.3074246 | I89: х | L89: х
A90: 15.8.1 | B90: Калорийность, выход блюд и соответствие химического состава блюда рецептуре | C90: раз/год | D90: 3 | E90: 596.06 | F90: 2.1100524 | I90: 596.06 | L90: 596.06
A91: 15.8.2 | B91: Определение витамина С в готовых блюдах | C91: раз/год | D91: 2 | E91: 696.89 | F91: 1.6446604 | I91: 696.89 | L91: 696.89
A92: 15.8.3 | B92: Расчет калорийности рациона | C92: раз/год | D92: 1 | E92: 2722.35 | F92: 3.212373 | I92: 2722.35 | L92: 2722.35
A93: 15.8.4 | B93: Определение на бактериологическое исследование пищи | C93: раз/год | D93: 67 | E93: 231.98 | F93: 18.3403388 | I93: 231.98 | L93: 231.98
A94: 15.9 | B94: Профессиональная гигиеническая подготовка и аттестация должностных лиц | C94: х | D94: х | E94: х | F94: =SUM(F95:F100) -> 44.7009016 | I94: х | L94: х
A95: 15.9.1 | B95: Подготовка и оформление договора | C95: раз/год | D95: 1 | E95: 406.74 | F95: 0.4799532 | I95: 406.74 | L95: 406.74
A96: 15.9.2 | B96: Непроизводственные затраты (затраты времени на дорогу туда и обратно) | C96: раз/год | D96: 1 | E96: 406.74 | F96: 0.4799532 | I96: 406.74 | L96: 406.74
A97: 15.9.3 | B97: Проведение лекций должностным лицам и работникам объектов хозяйственной и иной деятельности по вопросам обеспечения санитарно-эпидемиологического благополучия: на 1 человека | C97: чел. | D97: 68 | E97: 298.15 | F97: 23.923556 | I97: 298.15 | L97: 298.15
A98: 15.9.4 | B98: Консультация по вопросам санитарного законодательства: на 1 человека | C98: чел. | D98: 68 | E98: 31.82 | F98: 2.5532368 | I98: 31.82 | L98: 31.82
A99: 15.9.5 | B99: Аттестация должностных лиц и работников организаций, деятельность которых связана с производством, хранением,транспортировкой и реализацией пищевых продуктов, питьевой воды, воспитанием и обучением детей, коммунальными бытовым обслуживанием населения: в форме тестового контроля результатов проф-ной гигиенич.подготовки с оформлением и защитой личной медицинской книжки голографической маркой (на 1 человека) | C99: чел. | D99: 68 | E99: 178.91 | F99: 14.3557384 | I99: 178.91 | L99: 178.91
A100: 15.9.6 | B100: Выдача, оформление, защита личной медицинской книжки (новой ЛМК) голографическими марками | C100: чел. | D100: 10 | E100: 246.48 | F100: 2.908464 | I100: 246.48 | L100: 246.48
A101: 16 | B101: Курьерские услуги | C101: х | D101: х | E101: х | F101: =SUM(F102:F105) -> 0 | I101: х | L101: х
A102: 16.1 | B102: г. Красноярск до 0,5 кг | C102: кол-во мест | F102: 0 | I102: 0 | L102: 0
A103: 16.2 | B103: г. Красноярск до 1 кг | C103: кол-во мест | F103: 0 | I103: 0 | L103: 0
A104: 16.3 | B104: г. Москва до 0,5 кг | C104: кол-во мест | F104: 0 | I104: 0 | L104: 0
A105: 16.4 | B105: г. Москва до 1 кг | C105: кол-во мест | F105: 0 | I105: 0 | L105: 0
A106: 17 | B106: Участие в семинарах, курсах повышения кваллификации, конференциях, спортивных мероприятиях | C106: х | D106: х | E106: х | F106: =SUM(F107:F114) -> 0 | G106: х | I106: х | L106: х
A107: 17.1 | B107: Обучение по электробезопасности | C107: чел. | E107: 5500 | F107: =D107*E107/1000 -> 0 | I107: =E107 -> 5500 | L107: =I107 -> 5500
A108: 17.2 | B108: Обучение ответственных лиц по работе с ртутьсодержащими отходами | C108: чел. | E108: 2500 | F108: =D108*E108/1000 -> 0 | I108: 2500 | L108: 2500
A109: 17.3 | B109: Обучение по охране труда | C109: чел. | E109: 4150 | F109: 0 | I109: 4150 | L109: 4150
A110: 17.4 | B110: Обучение пож.тех.мин. | C110: чел. | E110: 1500 | F110: 0 | I110: 1500 | L110: 1500
A111: 17.5 | B111: Курсы повышения кваллификации в рамках ФЗ-44 | C111: чел. | E111: 12000 | F111: 0 | I111: 12000 | L111: 12000
A112: 17.6 | B112: Обучение по тепловодоснабжению | C112: чел. | E112: 5500 | F112: 0 | I112: 5500 | L112: 5500
A113: 17.7 | B113: Обучение по ФГОС | C113: чел. | E113: 8000 | F113: 0 | I113: 8000 | L113: 8000
A114: 17.8 | B114: Обучение по професии лифтер малых грузовых лифтов | C114: чел. | E114: 6000 | F114: 0 | I114: 6000 | L114: 6000
A115: 18 | B115: Услуги инкасации наличных денег полистным пересчетом | C115: мес | D115: 12 | E115: 1750 | F115: =D115*E115*1.18/1000 -> 24.78 | G115: х | I115: 1750 | L115: 1750
A116: 18.1 | B116: объявления | C116: шт./мес
A117: 18.2 | B117: перевозимая сумма | C117: руб./мес
A118: 19 | B118: Услуги по обработке учетной (бухгалтерской) информации (ГИВЦ) | D118: 1 | E118: 5000 | F118: =D118*E118/1000 -> 5 | I118: =E118 -> 5000 | L118: =I118 -> 5000
A119: 20 | B119: Монтажные (демонтажные, электромонтажные) работы учебно-игрового оборудования; прогулочных площадок, оборудования | F119: =D119*E119/1000 -> 0 | I119: 0 | L119: 0
A120: 21 | B120: Поступление род.платы через платежные системы | F120: 0 | I120: 0 | L120: 0
A121: 22 | B121: Размещение рекламы | F121: 0 | I121: 0 | L121: 0
A122: 23 | B122: Изготовление стендов; Изготовление и монтаж вертикальных жалюзи | F122: 0 | I122: 0 | L122: 0
A123: 24 | B123: Составление и изготовление планов эвакуации | F123: 0 | I123: 0 | L123: 0
A124: 25 | B124: Нотариальные услуги | F124: 0 | I124: 0 | L124: 0
A125: 26 | B125: Услуги по предоставлению гидрометеорологических сведений (обьявление актировок) | C125: уч.дн. | F125: 0 | I125: 0 | L125: 0
A126: 27 | B126: Информация (декларация) об энергосбережении и о повышении энергетической эффективности | D126: 1 | E126: 100000 | F126: 100 | I126: 100000 | L126: 100000
A127: 28 | H127: =D127 -> 0 | I127: 0 | K127: =H127 -> 0 | L127: 0
A128: Страхование жизни, здоровья, имущества (в том числе гражданской ответственности владельцев транспортных средств), в том числе | H128: 0 | J128: =F128 -> 0 | K128: 0 | M128: =J128 -> 0
A129: 1 | B129: Страхование малых грузовых лифтов
A130: 2 | B130: Страхование автотранспорта
A132: Краевой бюджет КБК 06507010210074080244
A133: № | B133: Наименование услуги | C133: Ед.изм. | D133: Очередной 2017 год | H133: Очередной 2018 год | K133: Очередной 2019 год
D134: Физический объём/периодичность | E134: Тариф руб./ед.изм (без НДС) | F134: Итого тыс.руб. (с НДС) | G134: Примечание | H134: Физический объём/периодичность | I134: Тариф руб./ед.изм (без НДС) | J134: Итого тыс.руб. (с НДС) | K134: Физический объём/периодичность | L134: Тариф руб./ед.изм (без НДС) | M134: Итого тыс.руб. (с НДС)
A135: 1 | B135: 2 | C135: 3 | D135: 16 | E135: 17 | F135: 18 | G135: 19 | H135: 20 | I135: 21 | J135: 22 | K135: 23 | L135: 24 | M135: 25
A136: 226/954 Прочие услуги, в том числе: | D136: х | E136: х | F136: =MROUND(F137+F138+F145,0.1) -> 163 | G136: х | H136: х | I136: х | J136: =MROUND(J137+J138+J145,0.1) -> 163 | K136: х | L136: х | M136: =MROUND(M137+M138+M145,0.1) -> 163
A137: 1 | B137: Специальная оценка условий труда | C137: мест | D137: 3 | E137: 3000 | F137: =D137*E137*1.18/1000 -> 10.62 | H137: =D137 -> 3 | I137: =E137 -> 3000 | J137: =H137*I137*1.18/1000 -> 10.62 | K137: =H137 -> 3 | L137: =I137 -> 3000 | M137: =K137*L137*1.18/1000 -> 10.62
A138: 2 | B138: Приобретение и обслуживание програмного обеспечения | C138: х | D138: х | E138: х | F138: =SUM(F139:F144) -> 84.43744 | G138: х | H138: х | I138: =E138 -> х | J138: =SUM(J139:J144) -> 84.43744 | K138: х | L138: =I138 -> х | M138: =SUM(M139:M144) -> 84.43744
A139: 2.1 | B139: Антивирус Касперского | C139: шт./год | D139: 10 | E139: 820 | F139: =D139*E139/1000 -> 8.2 | H139: 10 | I139: =E139 -> 820 | J139: =H139*I139/1000 -> 8.2 | K139: 10 | L139: =I139 -> 820 | M139: =K139*L139/1000 -> 8.2
A140: 2.2 | B140: Оказание информационных услуг с использованием экземпляра системы Консультант+ | C140: мес. | D140: 12 | E140: 5384 | F140: =D140*E140*1.18/1000 -> 76.23744 | H140: 12 | I140: =E140 -> 5384 | J140: =H140*I140*1.18/1000 -> 76.23744 | K140: 12 | L140: =I140 -> 5384 | M140: =K140*L140*1.18/1000 -> 76.23744
A141: 2.3 | B141: Продление лицензии на 1год (получение новых версий) ПП "Парус-Бюджет 7.хх" | D141: 0 | H141: 0 | K141: 0
A142: 2.4 | B142: Годовое сопровождение ПП "Парус-Бюджет 7.хх" | D142: 0 | H142: 0 | K142: 0
A143: 2.5 | B143: право использования программы Контур-Экстерн | D143: 0 | H143: 0 | K143: 0
A144: 2.6 | B144: Прочее програмное обеспечение | D144: 0 | H144: 0 | I144: 0 | K144: 0 | L144: 0
A145: 3 | B145: Участие в семинарах, курсах повышения кваллификации, конференциях, спортивных мероприятиях | C145: х | D145: х | E145: х | F145: =SUM(F146:F153) -> 67.95 | G145: х | H145: х | I145: х | J145: =SUM(J146:J153) -> 67.95 | K145: х | L145: х | M145: =SUM(M146:M153) -> 67.95
A146: 3.1 | B146: Обучение по электробезопасности | C146: чел. | D146: 1 | E146: 5500 | F146: =D146*E146/1000 -> 5.5 | H146: 1 | I146: 5500 | J146: =H146*I146/1000 -> 5.5 | K146: 1 | L146: 5500 | M146: =K146*L146/1000 -> 5.5
A147: 3.2 | B147: Обучение ответственных лиц по работе с ртутьсодержащими отходами | C147: чел. | D147: 1 | E147: 2500 | F147: =D147*E147/1000 -> 2.5 | H147: 1 | I147: 2500 | J147: =H147*I147/1000 -> 2.5 | K147: 1 | L147: 2500 | M147: =K147*L147/1000 -> 2.5
A148: 3.3 | B148: Обучение по охране труда | C148: чел. | D148: 3 | E148: 4150 | F148: 12.45 | H148: 3 | I148: 4150 | J148: 12.45 | K148: 3 | L148: 4150 | M148: 12.45
A149: 3.4 | B149: Обучение пож.тех.мин. | C149: чел. | D149: 0 | E149: 1500 | F149: 0 | H149: 0 | I149: 1500 | J149: 0 | K149: 0 | L149: 1500 | M149: 0
A150: 3.5 | B150: Курсы повышения кваллификации в рамках ФЗ-44 | C150: чел. | D150: 1 | E150: 12000 | F150: 12 | H150: 1 | I150: 12000 | J150: 12 | K150: 1 | L150: 12000 | M150: 12
A151: 3.6 | B151: Обучение по тепловодоснабжению | C151: чел. | D151: 5 | E151: 5500 | F151: 27.5 | H151: 5 | I151: 5500 | J151: 27.5 | K151: 5 | L151: 5500 | M151: 27.5
A152: 3.7 | B152: Обучение по ФГОС | C152: чел. | D152: 1 | E152: 8000 | F152: 8 | H152: 1 | I152: 8000 | J152: 8 | K152: 1 | L152: 8000 | M152: 8
A153: 3.8 | B153: Обучение по професии лифтер малых грузовых лифтов | C153: чел. | D153: 0 | E153: 6000 | F153: 0 | H153: 0 | I153: 6000 | J153: 0 | K153: 0 | L153: 6000 | M153: 0
A154: Попова Е.Н.
A155: 437200*3223

Sheet 226.995 медосмотры
A1: Расчет стоимости оказания услуг по проведению периодических медицинских осмотров в 2017г.
A2: № | B2: Учреждение | C2: Работники, подлежащие обязательному медицинскому осмотру в 2017г.* | G2: Всего списочная численность | H2: Приложение 2 п.20 | AJ2: ЦГиЭ | AT2: Численность работников,нуждающихся в доп.исследованиях | AU2: приложение 1 п. 3.12; приложение 1 п. 3.2.2.4 | BF2: Численность работников,нуждающихся в доп.исследованиях | BG2: приложение 1 п 4.1 | BM2: Численность работников,нуждающихся в доп.исследованиях | BN2: Пр.1 п. 3.10 | BQ2: Численность работников,нуждающихся в доп.исследованиях | BR2: Приложение 1 п. 3.8 | BU2: Численность работников,нуждающихся в доп.исследованиях | BV2: Пр.1 п. 1.3.3 | BY2: Численность работников,нуждающихся в доп.исследованиях | BZ2: КГБУЗ "Норильская МДБ" | CB2: Численность работников,нуждающихся в доп.исследованиях | CC2: Пр.___ п. ______ | CF2: Итого стоимость обязательных периодических медицинских осмотров | CH2: ЦГиЭ (Брюшной тиф) | CU2: Итого стоимость обязательных периодических медицинских осмотров с учетом исследований на брюшной тиф | CV2: Итого стоимость обязательных периодических медицинских осмотров с учетом исследований на брюшной тиф 2017 | CW2: Итого стоимость обязательных периодических медицинских осмотров 2018 | CX2: Итого стоимость обязательных периодических медицинских осмотров 2019
H3: Председатель медицинской комиссии по профосмотрам (врач профпатолог | I3: профилактический прием (осмотр, консультация) врача гинеколога | J3: профилактический прием (осмотр, консультация) врача отоларинголога | K3: профилактический прием (осмотр, консультация) врача стомотолога терапевта | L3: профилактический прием (осмотр, консультация) врача дерматовенеролога | M3: профилактический прием (осмотр, консультация) врача терапевта | N3: медсестра доврачебного кабинета | O3: медицинский регистратор | P3: флюорография легких | Q3: регистрация электрокардиограммы, расшифровка, описание и интерпритация электрокардиографических данных | R3: маммография (женщины после 40) | S3: Взятие крови из пальца (5 показателей) | T3: взятие крови из периферической вены | U3: Исследование уровня холестирина в крови | V3: Исследование уровня глюкозы в крови | W3: Общий (клинический) анализ крови развернутый | X3: Анализ мочи общий | Y3: Получение влагалищных мазков | Z3: Микроскопическое исследование влагалищных мазков | AA3: Цитологическое исследование мазка из женских половых органов на атипические клетки (первая категория сложности) | AB3: Взятие мазка на гонококки (жен.) | AC3: Взятие мазка на гонококки (муж.) | AD3: Исследование мазков на гонококки (муж.) | AE3: Определение антител методом РМП | AF3: Микроскопическое исследование мазков (муж.) | AG3: Оформление заключительного акта комиссии (1шт.) | AH3: Психоневрологический диспансер (осмотр врачом психиатром, врачом психиатром-наркологом) | AI3: Психоневрологический диспансер (проведение предрейсовых и послерейсовых медицинских осмотров водителей транспортных средств | AJ3: Подготовка и оформление договора | AK3: Непроизводственные затраты (затраты времени на дорогу туда и обратно) | AL3: Отбор одной пробы биологического материала | AM3: Паразитологические исследования биологического материала: приготовление и просмотр препарата по методу КАТО | AN3: Паразитологические исследования биологического материала:Метод нативного мазка с фмзраствором и раствором Люголя (2 капли на одном стекле) | AO3: Паразитологические исследования биологического материала:Исследование перианального соскоба | AP3: Исследование биоматериалов: Прием, регистрацмя и выдача результатов | AQ3: Исследование биоматериалов: подготовка одной пробы | AR3: Подготовка и оформление акта выполненных работ | AS3: Итого стоимость обязательных периодических медицинских осмотров | AU3: профилактический прием (осмотр, консультация) врача офтальмолога | AV3: Невролог | AW3: острота зрения (визометрия) | AX3: тонометрия | AY3: скиаскопия | AZ3: рефрактометрия | BA3: объем аккомодации | BB3: (гетерофория)исследование бинокулярного зрения | BC3: цветоощущение | BD3: биомикроскопия сред глаз | BE3: офтальмоскопия глазного дна | BG3: невролог | BH3: хирург | BI3: офтальмолог | BJ3: острота зрения (визометрия) | BK3: динамометрия | BL3: исследование функции вестибулярного аппарата | BN3: офтальмолог | BO3: невролог | BP3: биомикроскопия сред глаза | BR3: невролог | BS3: хирург | BT3: термометрия (температура тела) | BV3: офтальмолог | BW3: спирометрия | BX3: биомикроскопия сред глаза | BZ3: Определение антигена HBsAg Hepatitis B virus | CA3: Определение антител класса M,G (IgM, IgG) к Hepatitis С virus | CH3: Численность работников,нуждающихся в Отборе одной пробы биологического материала для клинико-диагностических исследований | CI3: Отбор одной пробы биологического материала для клинико-диагностических исследований | CJ3: Численность работников,нуждающихся в исследованиях на возбудителей дизентерии и сальмонелезов (тифо-паратифозную группу) | CK3: Исследование на возбудителей дизентерии и сальмонелезов (тифо-паратифозную группу) | CL3: Численность работников,нуждающихся в исследованиях на РПГА (РНГА) с одним эритроцитарным диагностикумом (для обнаружение антител, антигенов) | CM3: РПГА (РНГА) с одним эритроцитарным диагностикумом (для обнаружение антител, антигенов) | CN3: Численность работников,нуждающихся в Клинико-бактериологические исследованиях: на возбудителей дизентерии и сальмонеллезов | CO3: Клинико-бактериологические исследования: на возбудителей дизентерии и сальмонеллезов | CP3: Численность работников,нуждающихся в исследованиях биоматериалов: прием, регистрация и выдача результатов | CQ3: Исследования биоматериалов: прием, регистрация и выдача результатов | CR3: Численность работников,нуждающихся в исследованиях биоматериалов: подготовка одной пробы | CS3: Иссследования биоматериалов: подготовка одной пробы | CT3: Итого стоимость Исследований на возбудителей дизентерии и сальмонелезов (тифо-паратифозную группу)
C4: Пр.№302-н от 12.04.11г.
C5: Мужчины | E5: Женщины | H5: Тариф, руб. | AU5: Тариф, руб. | BG5: Тариф, руб. | BN5: Тариф, руб. | BR5: Тариф, руб. | BV5: Тариф, руб. | BZ5: Тариф, руб. | CC5: Тариф, руб. | CI5: Тариф, руб. | CK5: Тариф, руб. | CM5: Тариф, руб. | CO5: Тариф, руб. | CQ5: Тариф, руб. | CS5: Тариф, руб.
C6: после 40 лет | D6: до 40 лет | E6: после 40 лет | F6: до 40 лет | H6: 223 | I6: 277 | J6: 134 | K6: 212 | L6: 112 | M6: 250 | N6: 147 | O6: 28 | P6: 246 | Q6: 384 | R6: 709 | T6: 87 | U6: 152 | V6: 131 | W6: 542 | X6: 150 | Y6: 83 | Z6: 175 | AA6: 173 | AE6: 138 | AG6: 5013 | AH6: =230+230 -> 460 | AI6: 83 | AJ6: 406.74 | AK6: 406.74 | AL6: 20.29 | AM6: 150.97 | AN6: 213.8 | AO6: 159.35 | AP6: 51.99 | AQ6: 231.98 | AR6: 122.01 | AU6: 200 | AV6: 179 | AW6: 68 | AX6: 157 | AY6: 275 | AZ6: 279 | BA6: 133 | BB6: 68 | BC6: 49 | BD6: 364 | BE6: 142 | BG6: 179 | BH6: 97 | BI6: 200 | BJ6: 68 | BK6: 67 | BL6: 67 | BN6: 200 | BO6: 179 | BP6: 364 | BR6: 179 | BS6: 97 | BT6: 31 | BV6: 200 | BW6: 102 | BX6: 364 | BZ6: 175 | CA6: 175 | CG6: Ассигнования 2016г. | CI6: 20.29 | CK6: 716.36 | CM6: 480.41 | CO6: 716.36 | CQ6: 51.99 | CS6: 231.98
A7: Педагогический персонал
B8: МБДОУ № 90 | E8: =19+3 -> 22 | F8: =11+2 -> 13 | G8: =SUM(C8:F8) -> 35 | H8: =G8*H$6 -> 7805 | I8: =(E8+F8)*$I$6 -> 9695 | J8: =G8*$J$6 -> 4690 | K8: =G8*K$6 -> 7420 | L8: =G8*L$6 -> 3920 | M8: =G8*M$6 -> 8750 | N8: =G8*N$6 -> 5145 | O8: =G8*O$6 -> 980 | P8: =G8*P$6 -> 8610 | Q8: =G8*Q$6 -> 13440 | R8: =E8*R$6 -> 15598 | S8: =G8*$S$6 -> 0 | T8: =G8*T$6 -> 3045 | U8: =G8*U$6 -> 5320 | V8: =G8*V$6 -> 4585 | W8: =G8*W$6 -> 18970 | X8: =G8*X$6 -> 5250 | Y8: =(E8+F8)*Y$6 -> 2905 | Z8: =(E8+F8)*Z$6 -> 6125 | AA8: =(F8+E8)*AA$6 -> 6055 | AB8: =(E8+F8)*AB$6 -> 0 | AC8: =(C8+D8)*AC$6 -> 0 | AD8: =(C8+D8)*AD$6 -> 0 | AE8: =G8*AE$6 -> 4830 | AF8: =(C8+D8)*AF$6 -> 0 | AG8: 5013 | AH8: =G8*$AH$6 -> 16100 | AL8: =G8*$AL$6*1.18 -> 837.977 | AM8: =G8*$AM$6 -> 5283.95 | AN8: =G8*$AN$6 -> 7483 | AO8: =G8*$AO$6 -> 5577.25 | AP8: =G8*$AP$6 -> 1819.65 | AQ8: =G8*$AQ$6 -> 8119.3 | AS8: =SUM(H8:AR8) -> 193372.127 | AT8: 30 | AU8: =AT8*AU$6 -> 6000 | AV8: =AT8*AV$6 -> 5370 | AW8: =AT8*AW$6 -> 2040 | AX8: =AT8*AX$6 -> 4710 | AY8: =AT8*AY$6 -> 8250 | AZ8: =AT8*AZ$6 -> 8370 | BA8: =AT8*BA$6 -> 3990 | BB8: =AT8*BB$6 -> 2040 | BC8: =AT8*BC$6 -> 1470 | BD8: =AT8*BD$6 -> 10920 | BE8: =AT8*BE$6 -> 4260 | BG8: =BF8*BG$6 -> 0 | BH8: =BF8*BH$6 -> 0 | BI8: =BF8*BI$6 -> 0 | BJ8: =BF8*BJ$6 -> 0 | BK8: =BF8*BK$6 -> 0 | BL8: =BF8*BL$6 -> 0 | BN8: =BM8*BN$6 -> 0 | BO8: =BM8*BO$6 -> 0 | BP8: =BM8*BP$6 -> 0 | BR8: =BQ8*BR$6 -> 0 | BS8: =BQ8*BS$6 -> 0 | BT8: =BQ8*BT$6 -> 0 | BV8: =BU8*BV$6 -> 0 | BW8: =BU8*BW$6 -> 0 | BX8: =BU8*BX$6 -> 0 | CC8: =CA8*CC$6 -> 0 | CD8: =CA8*CD$6 -> 0 | CE8: =CA8*CE$6 -> 0 | CF8: =BX8+BW8+BV8+BT8+BS8+BR8+BP8+BO8+BN8+BL8+BK8+BJ8+BI8+BH8+BG8+BE8+BD8+BC8+BB8+BA8+AZ8+AY8+AX8+AW8+AV8+AU8+AS8+BZ8+CA8 -> 250792.127 | CH8: 17 | CI8: =CH8*CI6*1.18 -> 407.0174 | CJ8: 17 | CK8: =CJ8*CK6 -> 12178.12 | CL8: 10 | CM8: =CL8*CM6 -> 4804.1 | CO8: =CN8*CO6 -> 0 | CP8: 17 | CQ8: =CP8*CQ6 -> 883.83 | CR8: 17 | CS8: =CR8*CS6 -> 3943.66 | CT8: =CI8+CK8+CM8+CO8+CQ8+CS8 -> 22216.7274 | CU8: =CF8+CT8 -> 273008.8544 | CV8: =CEILING(CU8,100) -> 273100 | CW8: =CV8 -> 273100 | CX8: =CW8 -> 273100
B9: ИТОГО | C9: =SUM(C8:C8) -> 0 | D9: 0 | E9: 22 | F9: 13 | G9: 35 | H9: 7805 | I9: 9695 | J9: 4690 | K9: 7420 | L9: 3920 | M9: 8750 | N9: 5145 | O9: 980 | P9: 8610 | Q9: 13440 | R9: 15598 | S9: =G89*S$6 -> 0 | T9: 3045 | U9: 5320 | V9: 4585 | W9: 18970 | X9: 5250 | Y9: 2905 | Z9: 6125 | AA9: 6055 | AB9: 0 | AC9: 0 | AD9: 0 | AE9: 4830 | AF9: 0 | AG9: 5013 | AH9: 16100 | AJ9: 0 | AK9: 0 | AL9: 837.977 | AM9: 5283.95 | AN9: =SUM(AN8:AN8) -> 7483 | AO9: 5577.25 | AP9: 1819.65 | AQ9: 8119.3 | AR9: 0 | AS9: =SUM(AS8:AS8) -> 193372.127 | AT9: 30 | AU9: 6000 | AV9: 5370 | AW9: 2040 | AX9: 4710 | AY9: 8250 | AZ9: 8370 | BA9: 3990 | BB9: 2040 | BC9: 1470 | BD9: 10920 | BE9: 4260 | BF9: 0 | BG9: 0 | BH9: 0 | BI9: 0 | BJ9: 0 | BK9: 0 | BL9: 0 | BM9: 0 | BN9: 0 | BO9: 0 | BP9: 0 | BQ9: 0 | BR9: 0 | BS9: 0 | BT9: 0 | BU9: 0 | BV9: 0 | BW9: 0 | BX9: 0 | BY9: 0 | BZ9: 0 | CA9: 0 | CB9: 0 | CC9: 0 | CD9: 0 | CE9: 0 | CG9: 130700 | CH9: =CH8 -> 17 | CJ9: =CJ8 -> 17 | CL9: =CL8 -> 10 | CN9: =CN8 -> 0 | CP9: =CP8 -> 17 | CR9: =CR8 -> 17
A10: МОП (младший обслуживающий персонал) | S10: 0 | AB10: =(E10+F10)*AB$6 -> 0
B11: МБДОУ № 90 | E11: =12+1 -> 13 | F11: =7+1 -> 8 | G11: =SUM(C11:F11) -> 21 | H11: =G11*H$6 -> 4683 | I11: =(E11+F11)*$I$6 -> 5817 | J11: =G11*$J$6 -> 2814 | K11: =G11*K$6 -> 4452 | L11: =G11*L$6 -> 2352 | M11: =G11*M$6 -> 5250 | N11: =G11*N$6 -> 3087 | O11: =G11*O$6 -> 588 | P11: =G11*P$6 -> 5166 | Q11: =G11*Q$6 -> 8064 | R11: =E11*R$6 -> 9217 | S11: =G11*$S$6 -> 0 | T11: =G11*T$6 -> 1827 | U11: =G11*U$6 -> 3192 | V11: =G11*V$6 -> 2751 | W11: =G11*W$6 -> 11382 | X11: =G11*X$6 -> 3150 | Y11: =(E11+F11)*Y$6 -> 1743 | Z11: =(E11+F11)*Z$6 -> 3675 | AA11: =(F11+E11)*AA$6 -> 3633 | AB11: =(E11+F11)*AB$6 -> 0 | AC11: =(C11+D11)*AC$6 -> 0 | AD11: =(C11+D11)*AD$6 -> 0 | AE11: =G11*AE$6 -> 2898 | AF11: =(C11+D11)*AF$6 -> 0 | AH11: =G11*$AH$6 -> 9660 | AJ11: =$AJ$6*1.18 -> 479.9532 | AK11: =$AK$6*1.18 -> 479.9532 | AL11: =G11*$AL$6*1.18 -> 502.7862 | AM11: =G11*$AM$6 -> 3170.37 | AN11: =G11*$AN$6 -> 4489.8 | AO11: =G11*$AO$6 -> 3346.35 | AP11: =G11*$AP$6 -> 1091.79 | AQ11: =G11*$AQ$6 -> 4871.58 | AR11: =AR6*1.18 -> 143.9718 | AS11: =SUM(H11:AR11) -> 113977.5544 | AT11: 4 | AU11: =AT11*AU$6 -> 800 | AV11: =AT11*AV$6 -> 716 | AW11: =AT11*AW$6 -> 272 | AX11: =AT11*AX$6 -> 628 | AY11: =AT11*AY$6 -> 1100 | AZ11: =AT11*AZ$6 -> 1116 | BA11: =AT11*BA$6 -> 532 | BB11: =AT11*BB$6 -> 272 | BC11: =AT11*BC$6 -> 196 | BD11: =AT11*BD$6 -> 1456 | BE11: =AT11*BE$6 -> 568 | BG11: =BF11*BG$6 -> 0 | BH11: =BF11*BH$6 -> 0 | BI11: =BF11*BI$6 -> 0 | BJ11: =BF11*BJ$6 -> 0 | BK11: =BF11*BK$6 -> 0 | BL11: =BF11*BL$6 -> 0 | BN11: =BM11*BN$6 -> 0 | BO11: =BM11*BO$6 -> 0 | BP11: =BM11*BP$6 -> 0 | BR11: =BQ11*BR$6 -> 0 | BS11: =BQ11*BS$6 -> 0 | BT11: =BQ11*BT$6 -> 0 | BV11: =BU11*BV$6 -> 0 | BW11: =BU11*BW$6 -> 0 | BX11: =BU11*BX$6 -> 0 | CC11: =CA11*CC$6 -> 0 | CD11: =CA11*CD$6 -> 0 | CE11: =CA11*CE$6 -> 0 | CF11: =BX11+BW11+BV11+BT11+BS11+BR11+BP11+BO11+BN11+BL11+BK11+BJ11+BI11+BH11+BG11+BE11+BD11+BC11+BB11+BA11+AZ11+AY11+AX11+AW11+AV11+AU11+AS11+BZ11+CA11 -> 121633.5544 | CH11: 11 | CI11: =CH11*CI6*1.18 -> 263.3642 | CJ11: 11 | CK11: =CJ11*CK6 -> 7879.96 | CL11: 9 | CM11: =CL11*CM6 -> 4323.69 | CO11: =CN11*CO6 -> 0 | CP11: 11 | CQ11: =CP11*CQ6 -> 571.89 | CR11: 11 | CS11: =CR11*CS6 -> 2551.78 | CT11: =CI11+CK11+CM11+CO11+CQ11+CS11 -> 15590.6842 | CU11: =CF11+CT11 -> 137224.2386 | CV11: =CEILING(CU11,100) -> 137300 | CW11: =CV11 -> 137300 | CX11: =CV11 -> 137300
B12: ИТОГО | C12: =SUM(C11) -> 0 | D12: =SUM(D11) -> 0 | E12: 13 | F12: 8 | G12: =SUM(G11:G11) -> 21 | H12: =SUM(H11:H11) -> 4683 | I12: 5817 | J12: 2814 | K12: 4452 | L12: 2352 | M12: 5250 | N12: 3087 | O12: 588 | P12: 5166 | Q12: 8064 | R12: 9217 | S12: 0 | T12: 1827 | U12: 3192 | V12: 2751 | W12: 11382 | X12: 3150 | Y12: 1743 | Z12: 3675 | AA12: 3633 | AB12: 0 | AC12: 0 | AD12: 0 | AE12: 2898 | AF12: 0 | AG12: 0 | AH12: 9660 | AJ12: 479.9532 | AK12: 479.9532 | AL12: 502.7862 | AM12: 3170.37 | AN12: 4489.8 | AO12: 3346.35 | AP12: 1091.79 | AQ12: 4871.58 | AR12: 143.9718 | AS12: 113977.5544 | AT12: 4 | AU12: 800 | AV12: 716 | AW12: 272 | AX12: 628 | AY12: 1100 | AZ12: 1116 | BA12: 532 | BB12: 272 | BC12: 196 | BD12: 1456 | BE12: 568 | BF12: 0 | BG12: 0 | BH12: 0 | BI12: 0 | BJ12: 0 | BK12: 0 | BL12: 0 | BM12: 0 | BN12: 0 | BO12: 0 | BP12: 0 | BQ12: 0 | BR12: 0 | BS12: 0 | BT12: =SUM(BT11:BT11) -> 0 | BU12: 0 | BV12: 0 | BW12: 0 | BX12: 0 | BY12: 0 | BZ12: 0 | CA12: 0 | CB12: 0 | CC12: 0 | CD12: 0 | CE12: 0 | CG12: 121700 | CH12: =SUM(CH11:CH11) -> 11 | CJ12: 11 | CL12: =SUM(CL11:CL11) -> 9 | CN12: =SUM(CN11:CN11) -> 0 | CP12: =SUM(CP11:CP11) -> 11 | CR12: =SUM(CR11:CR11) -> 11
A13: АУП (административно -управленческий), УВП(учебно-вспомогательный) | S13: 0 | AB13: 0
B14: МБДОУ № 90 | E14: =11+1 -> 12 | F14: 7 | G14: =SUM(C14:F14) -> 19 | H14: =G14*H$6 -> 4237 | I14: =(E14+F14)*$I$6 -> 5263 | J14: =G14*$J$6 -> 2546 | K14: =G14*K$6 -> 4028 | L14: =G14*L$6 -> 2128 | M14: =G14*M$6 -> 4750 | N14: =G14*N$6 -> 2793 | O14: =G14*O$6 -> 532 | P14: =G14*P$6 -> 4674 | Q14: =G14*Q$6 -> 7296 | R14: =E14*R$6 -> 8508 | S14: =G14*$S$6 -> 0 | T14: =G14*T$6 -> 1653 | U14: =G14*U$6 -> 2888 | V14: =G14*V$6 -> 2489 | W14: =G14*W$6 -> 10298 | X14: =G14*X$6 -> 2850 | Y14: =(E14+F14)*Y$6 -> 1577 | Z14: =(E14+F14)*Z$6 -> 3325 | AA14: =(F14+E14)*AA$6 -> 3287 | AB14: =(E14+F14)*AB$6 -> 0 | AC14: =(C14+D14)*AC$6 -> 0 | AD14: =(C14+D14)*AD$6 -> 0 | AE14: =G14*AE$6 -> 2622 | AF14: =(C14+D14)*AF$6 -> 0 | AH14: =G14*$AH$6 -> 8740 | AL14: =G14*$AL$6*1.18 -> 454.9018 | AM14: =G14*$AM$6 -> 2868.43 | AN14: =G14*$AN$6 -> 4062.2 | AO14: =G14*$AO$6 -> 3027.65 | AP14: =G14*$AP$6 -> 987.81 | AQ14: =G14*$AQ$6 -> 4407.62 | AS14: =SUM(H14:AR14) -> 102292.6118 | AT14: 4 | AU14: =AT14*AU$6 -> 800 | AV14: =AT14*AV$6 -> 716 | AW14: =AT14*AW$6 -> 272 | AX14: =AT14*AX$6 -> 628 | AY14: =AT14*AY$6 -> 1100 | AZ14: =AT14*AZ$6 -> 1116 | BA14: =AT14*BA$6 -> 532 | BB14: =AT14*BB$6 -> 272 | BC14: =AT14*BC$6 -> 196 | BD14: =AT14*BD$6 -> 1456 | BE14: =AT14*BE$6 -> 568 | BG14: 0 | BH14: =BF14*BH$6 -> 0 | BI14: =BF14*BI$6 -> 0 | BJ14: =BF14*BJ$6 -> 0 | BK14: =BF14*BK$6 -> 0 | BL14: =BF14*BL$6 -> 0 | BN14: 0 | BO14: =BM14*BO$6 -> 0 | BP14: =BM14*BP$6 -> 0 | BR14: 0 | BS14: =BQ14*BS$6 -> 0 | BT14: =BQ14*BT$6 -> 0 | BV14: =BU14*BV$6 -> 0 | BW14: =BU14*BW$6 -> 0 | BX14: =BU14*BX$6 -> 0 | CC14: =CA14*CC$6 -> 0 | CD14: =CA14*CD$6 -> 0 | CE14: =CA14*CE$6 -> 0 | CF14: =BX14+BW14+BV14+BT14+BS14+BR14+BP14+BO14+BN14+BL14+BK14+BJ14+BI14+BH14+BG14+BE14+BD14+BC14+BB14+BA14+AZ14+AY14+AX14+AW14+AV14+AU14+AS14+BZ14+CA14 -> 109948.6118 | CH14: 8 | CI14: =CH14*CI6*1.18 -> 191.5376 | CJ14: 8 | CK14: =CJ14*CK6 -> 5730.88 | CL14: 5 | CM14: =CL14*CM6 -> 2402.05 | CO14: =CN14*CO6 -> 0 | CP14: 8 | CQ14: =CP14*CQ6 -> 415.92 | CR14: 8 | CS14: =CR14*CS6 -> 1855.84 | CT14: =CI14+CK14+CM14+CO14+CQ14+CS14 -> 10596.2276 | CU14: =CF14+CT14 -> 120544.8394 | CV14: =CEILING(CU14,100) -> 120600 | CW14: =CV14 -> 120600 | CX14: =CV14 -> 120600
B15: ИТОГО | C15: =SUM(C14:C14) -> 0 | D15: 0 | E15: 12 | F15: 7 | G15: 19 | H15: 4237 | I15: 5263 | J15: 2546 | K15: 4028 | L15: 2128 | M15: 4750 | N15: 2793 | O15: 532 | P15: 4674 | Q15: 7296 | R15: 8508 | S15: 0 | T15: 1653 | U15: 2888 | V15: 2489 | W15: 10298 | X15: 2850 | Y15: 1577 | Z15: 3325 | AA15: 3287 | AB15: 0 | AC15: 0 | AD15: 0 | AE15: 2622 | AF15: 0 | AG15: 0 | AH15: 8740 | AJ15: 0 | AK15: 0 | AL15: 454.9018 | AM15: 2868.43 | AN15: =SUM(AN14:AN14) -> 4062.2 | AO15: 3027.65 | AP15: 987.81 | AQ15: 4407.62 | AR15: 0 | AS15: 102292.6118 | AT15: 4 | AU15: 800 | AV15: 716 | AW15: 272 | AX15: 628 | AY15: 1100 | AZ15: 1116 | BA15: 532 | BB15: 272 | BC15: 196 | BD15: 1456 | BE15: 568 | BF15: 0 | BG15: 0 | BH15: 0 | BI15: 0 | BJ15: 0 | BK15: 0 | BL15: 0 | BM15: 0 | BN15: 0 | BO15: 0 | BP15: 0 | BQ15: 0 | BR15: 0 | BS15: 0 | BT15: 0 | BU15: 0 | BV15: 0 | BW15: 0 | BX15: 0 | BY15: 0 | BZ15: 0 | CA15: 0 | CB15: 0 | CC15: 0 | CD15: 0 | CE15: 0 | CG15: 106700 | CH15: =SUM(CH14:CH14) -> 8 | CJ15: 8 | CL15: =SUM(CL14:CL14) -> 5 | CN15: =SUM(CN14:CN14) -> 0 | CP15: =SUM(CP14:CP14) -> 8 | CR15: =SUM(CR14:CR14) -> 8
CG16: =CG15+CG12+CG9 -> 359100
G17: =G8+G11+G14 -> 75

Sheet 226.956 подписка
A2: Расчет норматива затрат по КОСГУ 226, Доп.КР 956 "Приобретение периодических изданий, справочной литературы"
A3: МБДОУ "Детский сад №90 "Цветик-семицветик"
A4: Краевой бюджет КБК 065/0701/0210074080/244
A5: Наименование учреждения | B5: Очередной 2017 год | F5: Очередной 2018 год | I5: Очередной 2019 год
B6: Сумма подписки на II полугодие 2016 г., руб. | C6: Сумма подписки на I полугодие 2017 г., руб. | D6: Сумма на 2017 год, руб. | E6: Периодичность | F6: Сумма подписки на II полугодие 2017 г., руб. | G6: Сумма подписки на I полугодие 2018 г., руб. | H6: Сумма на 2018 год, руб. | I6: Сумма подписки на II полугодие 2018 г., руб. | J6: Сумма подписки на I полугодие 2019 г., руб. | K6: Сумма на 2019 год, руб.
A7: =A3 -> МБДОУ "Детский сад №90 "Цветик-семицветик" | B7: =D7/2 -> 12650 | C7: =B7 -> 12650 | D7: 25300 | E7: 2 раза в год | F7: =H7/2 -> 12650 | G7: =F7 -> 12650 | H7: =D7 -> 25300 | I7: =K7/2 -> 12650 | J7: =I7 -> 12650 | K7: =H7 -> 25300
A9: Попова Е.Н.
A10: 43-72-00*3223

Sheet 290.962 пр.расходы
A1: КБК 065/0701/0210074080/244
A2: Расчет норматива затрат по КОСГУ 290, Доп.КР 962 "Прочие расходы"
A3: МБДОУ "Детский сад № 90 "Цветик-семицветик"
A5: № п/п | B5: Наименование услуги | C5: Физический объём | D5: Тариф, руб., без НДС | E5: Стоимость услуг на 2017 г., руб.
A6: 1 | B6: 2 | C6: 3 | D6: 4 | E6: 5
A7: 1. | B7: Плата за размещение отходов производства и потребления | C7: 4 | D7: 200 | E7: =C7*D7 -> 800
A8: 2. | B8: Пени (штрафы) на недоимку по страховым взносам | D8: 0 | E8: 5000
A9: 3. | B9: Госпошлина | D9: 0 | E9: 3500
A10: 4. | B10: Штрафы (по решению надзорных органов) | D10: 0 | E10: 12500
A11: 5. | B11: Расходы по исполнительным листам | D11: 0 | E11: 2700
A12: 6. | B12: Прочие платежи в бюджеты всех уровней | D12: 0 | E12: 0
A13: 7. | B13: Прочие расходы (неустойки и пр.) | D13: 0 | E13: 0
A14: 8.
A15: 9.
A16: 10.
A17: 11.
A18: 12.
A19: 13.
A20: 14.
A21: 15.
A22: 16.
A23: ИТОГО по Доп.КР 962 | E23: =CEILING(SUM(E7:E22),100) -> 24500

Sheet 290.963 КММ
A1: ГОРОДСКИЕ И ВНУТРИСАДОВСКИЕ КУЛЬТУРНО-МАССОВЫЕ МЕРОПРИЯТИЯ на 2017 год (краевой/местный бюджет) САДЫ
G3: д/с № 1, 2, 3, 4, 8, 9, 14, 18, 24, 25, 28, 29, 46, 59, 62, 66, 71, 73, 74
C4: Учреждение, ответственное за проведение мероприятия
A5: № п/п | B5: город, район | C5: Наименование учреждения | D5: ИТОГО ассигнования 2017 г. на городские + внутрисадовские КММ, руб. | F5: ГОРОДСКИЕ КУЛЬТУРНО-МАССОВЫЕ МЕРОПРИЯТИЯ | H5: ВНУТРИСАДОВСКИЕ КУЛЬТУРНО-МАССОВЫЕ МЕРОПРИЯТИЯ
E6: ЭКОНОМИЯ/ ДЕФИЦИТ, +/- | F6: ИТОГО ассигнования 2017 г. на городские КММ, руб. | G6: Праздничный концерт, посвященный 80-летию дошкольного образования | H6: ИТОГО ассигнования 2017 г. на внутрисадовские КММ, руб. | I6: ЮБИЛЕЙНЫЕ МЕРОПРИЯТИЯ + 23 ФЕВРАЛЯ + 8 МАРТА + ДЕНЬ ПОБЕДЫ + ПОСЛЕДНИЙ ЗВОНОК + ДЕНЬ ДОШКОЛЬНОГО РАБОТНИКА + НОВОГОДНИЕ МЕРОПРИЯТИЯ
A7: разбивка кассового плана помесячно | I7: январь | J7: февраль | K7: март | L7: апрель | M7: май | N7: июнь | O7: июль | P7: август | Q7: сентябрь | R7: октябрь | S7: ноябрь | T7: декабрь
A8: месяц проведения мероприятия
A9: 0210075880/290/963/831 Призы (краевой) САДЫ | D9: =SUM(F9,H9) -> 30000 | F9: =F11 -> 0 | G9: =G11 -> 0 | H9: =H11 -> 30000 | I9: =I11 -> 0 | J9: 0 | K9: 0 | L9: 0 | M9: 0 | N9: 0 | O9: 0 | P9: 0 | Q9: 0 | R9: 0 | S9: 0 | T9: 0
A10: 02 1 01 01110/290/963/831 Призы (местный) САДЫ цветы, шары | D10: =F10+H10 -> 12000 | F10: =F13 -> 12000 | G10: =G13 -> 12000
A11: ПРИЗОВОЙ ФОНД (краевой бюджет) 0210075880/290/963/831 | D11: =SUM(D12:D12) -> 30000 | F11: =SUM(F12:F12) -> 0 | G11: 0 | H11: 30000 | I11: 0 | J11: 0 | K11: 0 | L11: 0 | M11: 0 | N11: 0 | O11: 0 | P11: 0 | Q11: 0 | R11: 0 | S11: 0 | T11: 0
A12: 1 | B12: н | C12: МБДОУ "Детский сад № 90" | D12: =SUM(F12,H12) -> 30000 | F12: =SUM(G12:G12) -> 0 | H12: 30000
A13: ПРИЗОВОЙ ФОНД ( местный бюджет) 02 1 01 01110/290/963/831 ЦВЕТЫ | D13: =SUM(D14:D14) -> 12000 | E13: 0 | F13: 12000 | G13: 12000 | H13: 0 | I13: 0 | J13: 0 | K13: 0 | L13: 0 | M13: 0 | N13: 0 | O13: 0 | P13: 0 | Q13: 0 | R13: 0 | S13: 0 | T13: 0
A14: 1 | B14: н | C14: МБДОУ "Детский сад № 90" | D14: =F14 -> 12000 | F14: =SUM(G14:G14) -> 12000 | G14: 12000
A19: Соколова Т.В.
A20: 43-72-00*3226

Sheet 340.983 питание
A1: Расчет затрат на приобретение продуктов питания в 2017-2019 гг. КОСГУ 340 Доп КР 983
B2: Расчетная потребность | C2: Сумма руб. на 2017 год | F2: Источники оплаты 2017 год | L2: Расчетная потребность | M2: Сумма руб. на 2018-2019 года | P2: Источники оплаты 2018-2019 года
F3: Поступления род. Платы КБК 000 0000 0000000000 244 | G3: Поступления пит.сотрудн. КБК 000 0000 0000000000 244 | H3: Краевой бюджет КБК 065 0701 0210075540 244 | I3: Местный бджет КБК 065 0701 02 10101110 244 | J3: *Дефицит средств | P3: Поступления род. Платы КБК 000 0000 0000000000 244 | Q3: Поступления пит.сотрудн. КБК 000 0000 0000000000 244 | R3: Краевой бюджет КБК 065 0701 0210075540 244 | S3: Местный бджет КБК 065 0701 02 10101110 244 | T3: *Дефицит средств
B4: Питание детей | C4: =GK116 -> 7950644.34 | F4: ='[15]Разбивка по источникам'!F40 -> 6088700 | H4: ='[15]Разбивка по источникам'!G40 -> 116900 | I4: ='[15]Разбивка по источникам'!J40 -> 454700 | J4: =F4+H4+I4-C4 -> -1290344.34 | L4: Питание детей | M4: =C4 -> 7950644.34 | P4: =F4 -> 6088700 | R4: =H4 -> 116900 | S4: ='[15]Разбивка по источникам'!M40 -> 398800 | T4: =P4+R4+S4-M4 -> -1346244.34
B5: Питание сотрудников | C5: =MROUND(GM116,10) -> 597190 | G5: =C5 -> 597190 | L5: Питание сотрудников | M5: =C5 -> 597190 | Q5: =G5 -> 597190
B6: *Дефицит средств-будет восполнен за счет средств переходящих остатков прошлых лет и родительской платы поступаюшей сверх плана.
A7: я н в а р ь | T7: ф е в р а л ь | AI7: м а р т | AX7: а п р е л ь | BM7: м а й | CB7: и ю н ь | CQ7: и ю л ь | DF7: а в г у с т | DU7: с е н т я б р ь | EJ7: о к т я б р ь | EY7: н о я б р ь | FN7: д е к а б р ь
A8: МБДОУ "Детский сад №90 "Цветик-семицветик"
J9: кол-во | K9: дети | L9: дети | M9: дети | N9: дети | P9: сотрудники | Y9: кол-во | Z9: дети | AA9: дети | AB9: дети | AC9: дети | AE9: сотрудники | AN9: кол-во | AO9: дети | AP9: дети | AQ9: дети | AR9: дети | AT9: сотрудники | BC9: кол-во | BD9: дети | BE9: дети | BF9: дети | BG9: дети | BI9: сотрудники | BR9: кол-во | BS9: дети | BT9: дети | BU9: дети | BV9: дети | BX9: сотрудники | CG9: кол-во | CH9: дети | CI9: дети | CJ9: дети | CK9: дети | CM9: сотрудники | CV9: кол-во | CW9: дети | CX9: дети | CY9: дети | CZ9: дети | DB9: сотрудники | DK9: кол-во | DL9: дети | DM9: дети | DN9: дети | DO9: дети | DQ9: сотрудники | DZ9: кол-во | EA9: дети | EB9: дети | EC9: дети | ED9: дети | EF9: сотрудники | EO9: кол-во | EP9: дети | EQ9: дети | ER9: дети | ES9: дети | EU9: сотрудники | FD9: кол-во | FE9: дети | FF9: дети | FG9: дети | FH9: дети | FJ9: сотрудники | FS9: кол-во | FT9: дети | FU9: дети | FV9: дети | FW9: дети | FY9: сотрудники | GK9: дети среднеявочн.(12 мес.) | GM9: сотрудники
B10: Ассортиментный перечень продуктов | J10: раб.дней | K10: сад | L10: ясли | M10: сад круг | N10: ясли круг | Y10: раб.дней | Z10: сад | AA10: ясли | AB10: сад круг | AC10: ясли круг | AN10: раб.дней | AO10: сад | AP10: ясли | AQ10: сад круг | AR10: ясли круг | BC10: раб.дней | BD10: сад | BE10: ясли | BF10: сад круг | BG10: ясли круг | BR10: раб.дней | BS10: сад | BT10: ясли | BU10: сад круг | BV10: ясли круг | CG10: раб.дней | CH10: сад | CI10: ясли | CJ10: сад круг | CK10: ясли круг | CV10: раб.дней | CW10: сад | CX10: ясли | CY10: сад круг | CZ10: ясли круг | DK10: раб.дней | DL10: сад | DM10: ясли | DN10: сад круг | DO10: ясли круг | DZ10: раб.дней | EA10: сад | EB10: ясли | EC10: сад круг | ED10: ясли круг | EO10: раб.дней | EP10: сад | EQ10: ясли | ER10: сад круг | ES10: ясли круг | FD10: раб.дней | FE10: сад | FF10: ясли | FG10: сад круг | FH10: ясли круг | FS10: раб.дней | FT10: сад | FU10: ясли | FV10: сад круг | FW10: ясли круг | GK10: =K11+L11+Z11+AA11+AO11+AP11+BD11+BE11+BS11+BT11+CH11+CI11+CW11+CX11+DL11+DM11+EA11+EB11+EP11+EQ11+FE11+FF11+FT11+FU11 -> 39397 | GM10: =P11+AE11+AT11+BI11+BX11+CM11+DB11+DQ11+EF11+EU11+FJ11+FY11 -> 432
I11: =16-2 -> 14 | J11: 1 | K11: ='[15]детодни.факт 15-16г.'!D40 -> 2485 | L11: ='[15]детодни.факт 15-16г.'!E40 -> 334 | P11: ='[15]питание сотрудников'!B40 -> 42 | X11: =19-2 -> 17 | Y11: 1 | Z11: ='[15]детодни.факт 15-16г.'!G40 -> 3399 | AA11: ='[15]детодни.факт 15-16г.'!H40 -> 224 | AE11: ='[15]питание сотрудников'!E40 -> 40 | AM11: =22-2 -> 20 | AN11: 1 | AO11: ='[15]детодни.факт 15-16г.'!J40 -> 3005 | AP11: ='[15]детодни.факт 15-16г.'!K40 -> 400 | AT11: ='[15]питание сотрудников'!F40 -> 40 | BB11: =20-2 -> 18 | BC11: 1 | BD11: ='[15]детодни.факт 15-16г.'!N40 -> 3186 | BE11: ='[15]детодни.факт 15-16г.'!O40 -> 361 | BI11: ='[15]питание сотрудников'!G40 -> 38 | BQ11: =21-2 -> 19 | BR11: 1 | BS11: ='[15]детодни.факт 15-16г.'!Q40 -> 2230 | BT11: ='[15]детодни.факт 15-16г.'!R40 -> 282 | BX11: ='[15]питание сотрудников'!H40 -> 33 | CF11: =21-2 -> 19 | CG11: 1 | CH11: ='[15]детодни.факт 15-16г.'!T40 -> 1639 | CI11: ='[15]детодни.факт 15-16г.'!U40 -> 258 | CM11: ='[15]питание сотрудников'!I40 -> 32 | CU11: =21-2 -> 19 | CV11: 1 | CW11: ='[15]детодни.факт 15-16г.'!X40 -> 4620 | CX11: ='[15]детодни.факт 15-16г.'!Y40 -> 854 | DB11: ='[15]питание сотрудников'!J40 -> 26 | DJ11: =23-2 -> 21 | DK11: 1 | DL11: ='[15]детодни.факт 15-16г.'!AA40 -> 1440 | DM11: ='[15]детодни.факт 15-16г.'!AB40 -> 399 | DQ11: ='[15]питание сотрудников'!K40 -> 26 | DY11: =21-2 -> 19 | DZ11: 1 | EA11: ='[15]детодни.факт 15-16г.'!AD40 -> 2188 | EB11: ='[15]детодни.факт 15-16г.'!AE40 -> 480 | EF11: ='[15]питание сотрудников'!L40 -> 29 | EN11: =22-2 -> 20 | EO11: 1 | EP11: ='[15]детодни.факт 15-16г.'!AH40 -> 3052 | EQ11: ='[15]детодни.факт 15-16г.'!AI40 -> 510 | EU11: ='[15]питание сотрудников'!M40 -> 36 | FC11: =21-2 -> 19 | FD11: 1 | FE11: ='[15]детодни.факт 15-16г.'!AK40 -> 3278 | FF11: ='[15]детодни.факт 15-16г.'!AL40 -> 497 | FJ11: ='[15]питание сотрудников'!N40 -> 45 | FR11: =22-2 -> 20 | FS11: 1 | FT11: ='[15]детодни.факт 15-16г.'!AN40 -> 3748 | FU11: ='[15]детодни.факт 15-16г.'!AO40 -> 528 | FY11: ='[15]питание сотрудников'!O40 -> 45 | FZ11: =P11+AT11+BI11+BX11+CM11+DB11+DQ11+EU11+EF11+FJ11+FY11+AE11-'[15]питание сотрудников'!P40 -> 0 | GA11: =K11+L11+Z11+AA11+AO11+AP11+BD11+BE11+BS11+BT11+CH11+CI11+CW11+CX11+DL11+DM11+EA11+EB11+EP11+EQ11+FE11+FF11+FT11+FU11-'[15]детодни.факт 15-16г.'!AR40 -> 0 | GC11: 1 полугодие 2017г | GE11: 2 полугодие 2017 г | GG11: На 2017 год | GI11: номера лотов | GJ11: питание детей без сотрудников | GL11: питание сотрудников
A12: №п/п | B12: Наименование | C12: Ед.изм | D12: Цена, руб. | E12: Норма на 1 воспитанника, кг. в день | J12: Норма на 1 сотруд, кг в день | K12: Дети | P12: Сотрудники | R12: Всего | T12: Норма на 1 воспитанника, кг. в день | Y12: Норма на 1 сотруд, кг в день | Z12: Дети | AE12: Сотрудники | AG12: Всего | AI12: Норма на 1 воспитанника, кг. в день | AN12: Норма на 1 сотруд, кг в день | AO12: Дети | AT12: Сотрудники | AV12: Всего | AX12: Норма на 1 воспитанника, кг. в день | BC12: Норма на 1 сотруд, кг в день | BD12: Дети | BI12: Сотрудники | BK12: Всего | BM12: Норма на 1 воспитанника, кг. в день | BR12: Норма на 1 сотруд, кг в день | BS12: Дети | BX12: Сотрудники | BZ12: Всего | CB12: Норма на 1 воспитанника, кг. в день | CG12: Норма на 1 сотруд, кг в день | CH12: Дети | CM12: Сотрудники | CO12: Всего | CQ12: Норма на 1 воспитанника, кг. в день | CV12: Норма на 1 сотруд, кг в день | CW12: Дети | DB12: Сотрудники | DD12: Всего | DF12: Норма на 1 воспитанника, кг. в день | DK12: Норма на 1 сотруд, кг в день | DL12: Дети | DQ12: Сотрудники | DS12: Всего | DU12: Норма на 1 воспитанника, кг. в день | DZ12: Норма на 1 сотруд, кг в день | EA12: Дети | EF12: Сотрудники | EH12: Всего | EJ12: Норма на 1 воспитанника, кг. в день | EO12: Норма на 1 сотруд, кг в день | EP12: Дети | EU12: Сотрудники | EW12: Всего | EY12: Норма на 1 воспитанника, кг. в день | FD12: Норма на 1 сотруд, кг в день | FE12: Дети | FJ12: Сотрудники | FL12: Всего | FN12: Норма на 1 воспитанника, кг. в день | FS12: Норма на 1 сотруд, кг в день | FT12: Дети | FY12: Сотрудники | GA12: Всего | GC12: Всего | GE12: Всего | GG12: Всего
E13: 12 - часовые | G13: 24- часовые | H13: санаторные | K13: сад, кг | L13: ясли, кг | M13: сад круг, кг | N13: ясли круг, кг | O13: Сумма, руб. | P13: Кол-во, кг | Q13: Сумма, руб. | R13: Кол-во, кг | S13: Сумма, руб. | T13: 12 - часовые | V13: 24- часовые | W13: санаторные | Z13: сад, кг | AA13: ясли, кг | AB13: сад круг, кг | AC13: ясли круг, кг | AD13: Сумма, руб. | AE13: Кол-во, кг | AF13: Сумма, руб. | AG13: Кол-во, кг | AH13: Сумма, руб. | AI13: 12 - часовые | AK13: 24- часовые | AL13: санаторные | AO13: сад, кг | AP13: ясли, кг | AQ13: сад круг, кг | AR13: ясли круг, кг | AS13: Сумма, руб. | AT13: Кол-во, кг | AU13: Сумма, руб. | AV13: Кол-во, кг | AW13: Сумма, руб. | AX13: 12 - часовые | AZ13: 24- часовые | BA13: санаторные | BD13: сад, кг | BE13: ясли, кг | BF13: сад круг, кг | BG13: ясли круг, кг | BH13: Сумма, руб. | BI13: Кол-во, кг | BJ13: Сумма, руб. | BK13: Кол-во, кг | BL13: Сумма, руб. | BM13: 12 - часовые | BO13: 24- часовые | BP13: санаторные | BS13: сад, кг | BT13: ясли, кг | BU13: сад круг, кг | BV13: ясли круг, кг | BW13: Сумма, руб. | BX13: Кол-во, кг | BY13: Сумма, руб. | BZ13: Кол-во, кг | CA13: Сумма, руб. | CB13: 12 - часовые | CD13: 24- часовые | CE13: санаторные | CH13: сад, кг | CI13: ясли, кг | CJ13: сад круг, кг | CK13: ясли круг, кг | CL13: Сумма, руб. | CM13: Кол-во, кг | CN13: Сумма, руб. | CO13: Кол-во, кг | CP13: Сумма, руб. | CQ13: 12 - часовые | CS13: 24- часовые | CT13: санаторные | CW13: сад, кг | CX13: ясли, кг | CY13: сад круг, кг | CZ13: ясли круг, кг | DA13: Сумма, руб. | DB13: Кол-во, кг | DC13: Сумма, руб. | DD13: Кол-во, кг | DE13: Сумма, руб. | DF13: 12 - часовые | DH13: 24- часовые | DI13: санаторные | DL13: сад, кг | DM13: ясли, кг | DN13: сад круг, кг | DO13: ясли круг, кг | DP13: Сумма, руб. | DQ13: Кол-во, кг | DR13: Сумма, руб. | DS13: Кол-во, кг | DT13: Сумма, руб. | DU13: 12 - часовые | DW13: 24- часовые | DX13: санаторные | EA13: сад, кг | EB13: ясли, кг | EC13: сад круг, кг | ED13: ясли круг, кг | EE13: Сумма, руб. | EF13: Кол-во, кг | EG13: Сумма, руб. | EH13: Кол-во, кг | EI13: Сумма, руб. | EJ13: 12 - часовые | EL13: 24- часовые | EM13: санаторные | EP13: сад, кг | EQ13: ясли, кг | ER13: сад круг, кг | ES13: ясли круг, кг | ET13: Сумма, руб. | EU13: Кол-во, кг | EV13: Сумма, руб. | EW13: Кол-во, кг | EX13: Сумма, руб. | EY13: 12 - часовые | FA13: 24- часовые | FB13: санаторные | FE13: сад, кг | FF13: ясли, кг | FG13: сад круг, кг | FH13: ясли круг, кг | FI13: Сумма, руб. | FJ13: Кол-во, кг | FK13: Сумма, руб. | FL13: Кол-во, кг | FM13: Сумма, руб. | FN13: 12 - часовые | FP13: 24- часовые | FQ13: санаторные | FT13: сад, кг | FU13: ясли, кг | FV13: сад круг, кг | FW13: ясли круг, кг | FX13: Сумма, руб. | FY13: Кол-во, кг | FZ13: Сумма, руб. | GA13: Кол-во, кг | GB13: Сумма, руб. | GC13: Кол-во, кг | GD13: Сумма, руб. | GE13: Кол-во, кг | GF13: Сумма, руб. | GG13: Кол-во, кг | GH13: Сумма, руб. | GJ13: Кол-во, кг | GK13: Сумма, руб. | GL13: Кол-во, кг | GM13: Сумма, руб.
B14: продукта | E14: д/сад | F14: д/ясли | G14: д/сад | H14: д/сад | I14: д/ясли | T14: д/сад | U14: д/ясли | V14: д/сад | W14: д/сад | X14: д/ясли | AI14: д/сад | AJ14: д/ясли | AK14: д/сад | AL14: д/сад | AM14: д/ясли | AX14: д/сад | AY14: д/ясли | AZ14: д/сад | BA14: д/сад | BB14: д/ясли | BM14: д/сад | BN14: д/ясли | BO14: д/сад | BP14: д/сад | BQ14: д/ясли | CB14: д/сад | CC14: д/ясли | CD14: д/сад | CE14: д/сад | CF14: д/ясли | CQ14: д/сад | CR14: д/ясли | CS14: д/сад | CT14: д/сад | CU14: д/ясли | DF14: д/сад | DG14: д/ясли | DH14: д/сад | DI14: д/сад | DJ14: д/ясли | DU14: д/сад | DV14: д/ясли | DW14: д/сад | DX14: д/сад | DY14: д/ясли | EJ14: д/сад | EK14: д/ясли | EL14: д/сад | EM14: д/сад | EN14: д/ясли | EY14: д/сад | EZ14: д/ясли | FA14: д/сад | FB14: д/сад | FC14: д/ясли | FN14: д/сад | FO14: д/ясли | FP14: д/сад | FQ14: д/сад | FR14: д/ясли
A15: 1 | B15: Мука пшеничная, витаминизир. | C15: кг | D15: =[15]цены!E9 -> 43.5 | E15: ='[15]3'!E15 -> 0.029 | F15: ='[15]3'!F15 -> 0.025 | G15: ='[15]3'!G15 -> 0.00377 | H15: ='[15]3'!H15 -> 0 | I15: ='[15]3'!I15 -> 0 | J15: ='[15]3'!J15 -> 0.002 | K15: =$J$11*$K$11*E15 -> 72.065 | L15: =$J$11*$L$11*F15 -> 8.35 | M15: =$I$11*$M$11*G15 -> 0 | N15: =$I$11*$N$11*G15 -> 0 | O15: =ROUND(SUM((K15+L15+M15+N15)*D15),2) -> 3498.05 | P15: =$I$11*$P$11*J15 -> 1.176 | Q15: =ROUND(SUM(P15*D15),2) -> 51.16 | R15: =K15+L15+M15+N15+P15 -> 81.591 | S15: =O15+Q15 -> 3549.21 | T15: ='[15]3'!T15 -> 0.029 | U15: ='[15]3'!U15 -> 0.025 | V15: ='[15]3'!V15 -> 0.00377 | W15: ='[15]3'!W15 -> 0 | X15: ='[15]3'!X15 -> 0 | Y15: ='[15]3'!Y15 -> 0.002 | Z15: =$Y$11*$Z$11*T15 -> 98.571 | AA15: =$Y$11*$AA$11*U15 -> 5.6 | AB15: =$X$11*$AB$11*V15 -> 0 | AC15: =$X$11*$AC$11*V15 -> 0 | AD15: =ROUND((Z15+AA15+AB15+AC15)*D15,2) -> 4531.44 | AE15: =$X$11*$AE$11*Y15 -> 1.36 | AF15: =ROUND(AE15*D15,2) -> 59.16 | AG15: =Z15+AA15+AB15+AC15+AE15 -> 105.531 | AH15: =AD15+AF15 -> 4590.6 | AI15: ='[15]3'!AI15 -> 0.029 | AJ15: ='[15]3'!AJ15 -> 0.025 | AK15: ='[15]3'!AK15 -> 0.00377 | AL15: ='[15]3'!AL15 -> 0 | AM15: ='[15]3'!AM15 -> 0 | AN15: ='[15]3'!AN15 -> 0.002 | AO15: =$AO$11*$AN$11*AI15 -> 87.145 | AP15: =$AP$11*$AN$11*AJ15 -> 10 | AQ15: =$AQ$11*$AM$11*AK15 -> 0 | AR15: =$AR$11*$AM$11*AK15 -> 0 | AS15: =ROUND((AO15+AP15+AQ15+AR15)*D15,2) -> 4225.81 | AT15: =$AM$11*$AT$11*AN15 -> 1.6 | AU15: =ROUND(AT15*D15,2) -> 69.6 | AV15: =AO15+AP15+AQ15+AR15+AT15 -> 98.745 | AW15: =AS15+AU15 -> 4295.41 | AX15: ='[15]3'!AX15 -> 0.029 | AY15: ='[15]3'!AY15 -> 0.025 | AZ15: ='[15]3'!AZ15 -> 0.00377 | BA15: ='[15]3'!BA15 -> 0 | BB15: ='[15]3'!BB15 -> 0 | BC15: ='[15]3'!BC15 -> 0.002 | BD15: =$BC$11*$BD$11*AX15 -> 92.394 | BE15: =$BC$11*$BE$11*AY15 -> 9.025 | BF15: =$BB$11*$BF$11*AZ15 -> 0 | BG15: =$BB$11*$BG$11*AZ15 -> 0 | BH15: =ROUND((BD15+BE15+BF15+BG15)*D15,2) -> 4411.73 | BI15: =$BB$11*$BI$11*BC15 -> 1.368 | BJ15: =ROUND(BI15*D15,2) -> 59.51 | BK15: =BD15+BE15+BF15+BG15+BI15 -> 102.787 | BL15: =BH15+BJ15 -> 4471.24 | BM15: ='[15]3'!BM15 -> 0.029 | BN15: ='[15]3'!BN15 -> 0.025 | BO15: ='[15]3'!BO15 -> 0.00377 | BP15: ='[15]3'!BP15 -> 0 | BQ15: ='[15]3'!BQ15 -> 0 | BR15: ='[15]3'!BR15 -> 0.002 | BS15: =$BR$11*$BS$11*BM15 -> 64.67 | BT15: =$BR$11*$BT$11*BN15 -> 7.05 | BU15: =$BQ$11*$BU$11*BO15 -> 0 | BV15: =$BQ$11*$BV$11*BO15 -> 0 | BW15: =ROUND((BS15+BT15+BU15+BV15)*D15,2) -> 3119.82 | BX15: =$BQ$11*$BX$11*BR15 -> 1.254 | BY15: =ROUND(BX15*D15,2) -> 54.55 | BZ15: =BS15+BT15+BU15+BV15+BX15 -> 72.974 | CA15: =BW15+BY15 -> 3174.37 | CB15: ='[15]3'!CB15 -> 0.029 | CC15: ='[15]3'!CC15 -> 0.025 | CD15: ='[15]3'!CD15 -> 0.00377 | CE15: ='[15]3'!CE15 -> 0 | CF15: ='[15]3'!CF15 -> 0 | CG15: ='[15]3'!CG15 -> 0.002 | CH15: =$CG$11*$CH$11*CB15 -> 47.531 | CI15: =$CG$11*$CI$11*CC15 -> 6.45 | CJ15: =$CF$11*$CJ$11*CD15 -> 0 | CK15: =$CF$11*$CK$11*CD15 -> 0 | CL15: =ROUND((CH15+CI15+CJ15+CK15)*D15,2) -> 2348.17 | CM15: =$CF$11*$CM$11*CG15 -> 1.216 | CN15: =ROUND(CM15*D15,2) -> 52.9 | CO15: =CH15+CI15+CJ15+CK15+CM15 -> 55.197 | CP15: =CL15+CN15 -> 2401.07 | CQ15: ='[15]3'!CQ15 -> 0.029 | CR15: ='[15]3'!CR15 -> 0.025 | CS15: ='[15]3'!CS15 -> 0.00377 | CT15: ='[15]3'!CT15 -> 0 | CU15: ='[15]3'!CU15 -> 0 | CV15: ='[15]3'!CV15 -> 0.002 | CW15: =$CV$11*$CW$11*CQ15 -> 133.98 | CX15: =$CV$11*$CX$11*CR15 -> 21.35 | CY15: =$CU$11*$CY$11*CS15 -> 0 | CZ15: =$CU$11*$CZ$11*CS15 -> 0 | DA15: =ROUND((CW15+CX15+CY15+CZ15)*D15,2) -> 6756.86 | DB15: =$DB$11*$CU$11*CV15 -> 0.988 | DC15: =ROUND(DB15*D15,2) -> 42.98 | DD15: =CW15+CX15+CY15+CZ15+DB15 -> 156.318 | DE15: =DA15+DC15 -> 6799.84 | DF15: ='[15]3'!DF15 -> 0.029 | DG15: ='[15]3'!DG15 -> 0.025 | DH15: ='[15]3'!DH15 -> 0.00377 | DI15: ='[15]3'!DI15 -> 0 | DJ15: ='[15]3'!DJ15 -> 0 | DK15: ='[15]3'!DK15 -> 0.002 | DL15: =$DK$11*$DL$11*DF15 -> 41.76 | DM15: =$DK$11*$DM$11*DG15 -> 9.975 | DN15: =$DJ$11*$DN$11*DH15 -> 0 | DO15: =$DJ$11*$DO$11*DI15 -> 0 | DP15: =ROUND((DL15+DM15+DN15+DO15)*D15,2) -> 2250.47 | DQ15: =$DJ$11*$DQ$11*DK15 -> 1.092 | DR15: =ROUND(DQ15*D15,2) -> 47.5 | DS15: =DL15+DM15+DN15+DO15+DQ15 -> 52.827 | DT15: =DP15+DR15 -> 2297.97 | DU15: ='[15]3'!DU15 -> 0.029 | DV15: ='[15]3'!DV15 -> 0.025 | DW15: ='[15]3'!DW15 -> 0.00377 | DX15: ='[15]3'!DX15 -> 0 | DY15: ='[15]3'!DY15 -> 0 | DZ15: ='[15]3'!DZ15 -> 0.002 | EA15: =$DZ$11*$EA$11*DU15 -> 63.452 | EB15: =$DZ$11*$EB$11*DV15 -> 12 | EC15: =$DY$11*$EC$11*DW15 -> 0 | ED15: =$DY$11*$ED$11*DW15 -> 0 | EE15: =ROUND((EA15+EB15+EC15+ED15)*D15,2) -> 3282.16 | EF15: =$DY$11*$EF$11*DZ15 -> 1.102 | EG15: =ROUND(EF15*D15,2) -> 47.94 | EH15: =EA15+EB15+EC15+ED15+EF15 -> 76.554 | EI15: =EE15+EG15 -> 3330.1 | EJ15: ='[15]3'!EJ15 -> 0.029 | EK15: ='[15]3'!EK15 -> 0.025 | EL15: ='[15]3'!EL15 -> 0.00377 | EM15: ='[15]3'!EM15 -> 0 | EN15: ='[15]3'!EN15 -> 0 | EO15: ='[15]3'!EO15 -> 0.002 | EP15: =$EO$11*$EP$11*EJ15 -> 88.508 | EQ15: =$EO$11*$EQ$11*EK15 -> 12.75 | ER15: =$EN$11*$ER$11*EL15 -> 0 | ES15: =$EN$11*$ES$11*EL15 -> 0 | ET15: =ROUND((EP15+EQ15+ER15+ES15)*D15,2) -> 4404.72 | EU15: =$EN$11*$EU$11*EO15 -> 1.44 | EV15: =ROUND(EU15*D15,2) -> 62.64 | EW15: =EP15+EQ15+ER15+ES15+EU15 -> 102.698 | EX15: =ET15+EV15 -> 4467.36 | EY15: ='[15]3'!EY15 -> 0.029 | EZ15: ='[15]3'!EZ15 -> 0.025 | FA15: ='[15]3'!FA15 -> 0.00377 | FB15: ='[15]3'!FB15 -> 0 | FC15: ='[15]3'!FC15 -> 0 | FD15: ='[15]3'!FD15 -> 0.002 | FE15: =$FD$11*$FE$11*EY15 -> 95.062 | FF15: =$FD$11*$FF$11*EZ15 -> 12.425 | FG15: =$FC$11*$FG$11*FA15 -> 0 | FH15: =$FC$11*$FH$11*FA15 -> 0 | FI15: =ROUND((FE15+FF15+FG15+FH15)*D15,2) -> 4675.68 | FJ15: =$FC$11*$FJ$11*FD15 -> 1.71 | FK15: =ROUND(FJ15*D15,2) -> 74.39 | FL15: =FE15+FF15+FG15+FH15+FJ15 -> 109.197 | FM15: =FI15+FK15 -> 4750.07 | FN15: ='[15]3'!FN15 -> 0.029 | FO15: ='[15]3'!FO15 -> 0.025 | FP15: ='[15]3'!FP15 -> 0.00377 | FQ15: ='[15]3'!FQ15 -> 0 | FR15: ='[15]3'!FR15 -> 0 | FS15: ='[15]3'!FS15 -> 0.002 | FT15: =$FS$11*$FT$11*FN15 -> 108.692 | FU15: =$FS$11*$FU$11*FO15 -> 13.2 | FV15: =$FR$11*$FV$11*FP15 -> 0 | FW15: =$FR$11*$FW$11*FP15 -> 0 | FX15: =ROUND((FT15+FU15+FV15+FW15)*D15,2) -> 5302.3 | FY15: =$FR$11*$FY$11*FS15 -> 1.8 | FZ15: =ROUND(FY15*D15,2) -> 78.3 | GA15: =FT15+FU15+FV15+FW15+FY15 -> 123.692 | GB15: =FX15+FZ15 -> 5380.6 | GC15: =R15+AG15+AV15+BK15+BZ15+CO15 -> 516.825 | GD15: 22481.9 | GE15: =DD15+DS15+EH15+EW15+FL15+GA15 -> 621.286 | GF15: 27025.94 | GG15: =GC15+GE15 -> 1138.111 | GH15: 49507.84 | GI15: 11 | GJ15: =GG15-P15-AE15-AT15-BI15-BX15-CM15-DB15-DQ15-EF15-EU15-FJ15-FY15 -> 1122.005 | GK15: =GH15-FZ15-FK15-EV15-EG15-DR15-DC15-CN15-BY15-BJ15-AU15-AF15-Q15 -> 48807.21 | GL15: =GG15-GJ15 -> 16.106 | GM15: =GH15-GK15 -> 700.63
A16: 2 | B16: Крахмал картофельный | C16: кг | D16: =[15]цены!E10 -> 177.93 | E16: ='[15]3'!E16 -> 0.0015 | F16: ='[15]3'!F16 -> 0.001 | G16: ='[15]3'!G16 -> 0 | H16: ='[15]3'!H16 -> 0 | I16: ='[15]3'!I16 -> 0 | J16: ='[15]3'!J16 -> 0.0005 | K16: =$J$11*$K$11*E16 -> 3.7275 | L16: =$J$11*$L$11*F16 -> 0.334 | M16: 0 | N16: 0 | O16: 722.66 | P16: 0.294 | Q16: 52.31 | R16: 4.3555 | S16: 774.97 | T16: ='[15]3'!T16 -> 0.0015 | U16: ='[15]3'!U16 -> 0.001 | V16: ='[15]3'!V16 -> 0 | W16: ='[15]3'!W16 -> 0 | X16: ='[15]3'!X16 -> 0 | Y16: ='[15]3'!Y16 -> 0.0005 | Z16: =$Y$11*$Z$11*T16 -> 5.0985 | AA16: =$Y$11*$AA$11*U16 -> 0.224 | AB16: 0 | AC16: 0 | AD16: 947.03 | AE16: 0.34 | AF16: 60.5 | AG16: 5.6625 | AH16: 1007.53 | AI16: 0.0015 | AJ16: 0.001 | AK16: 0.0015 | AL16: 0.0015 | AM16: 0.001 | AN16: 0.0005 | AO16: =$AO$11*$AN$11*AI16 -> 4.5075 | AP16: =$AP$11*$AN$11*AJ16 -> 0.4 | AQ16: 0 | AR16: 0 | AS16: 873.19 | AT16: 0.4 | AU16: 71.17 | AV16: 5.3075 | AW16: 944.36 | AX16: ='[15]3'!AX16 -> 0.0015 | AY16: ='[15]3'!AY16 -> 0.001 | AZ16: ='[15]3'!AZ16 -> 0 | BA16: ='[15]3'!BA16 -> 0 | BB16: ='[15]3'!BB16 -> 0 | BC16: ='[15]3'!BC16 -> 0.0005 | BD16: =$BC$11*$BD$11*AX16 -> 4.779 | BE16: =$BC$11*$BE$11*AY16 -> 0.361 | BF16: 0 | BG16: 0 | BH16: 914.56 | BI16: 0.342 | BJ16: 60.85 | BK16: 5.482 | BL16: 975.41 | BM16: ='[15]3'!BM16 -> 0.0015 | BN16: ='[15]3'!BN16 -> 0.001 | BO16: ='[15]3'!BO16 -> 0 | BP16: ='[15]3'!BP16 -> 0 | BQ16: ='[15]3'!BQ16 -> 0 | BR16: ='[15]3'!BR16 -> 0.0005 | BS16: =$BR$11*$BS$11*BM16 -> 3.345 | BT16: =$BR$11*$BT$11*BN16 -> 0.282 | BU16: 0 | BV16: 0 | BW16: 645.35 | BX16: 0.3135 | BY16: 55.78 | BZ16: 3.9405 | CA16: 701.13 | CB16: ='[15]3'!CB16 -> 0.0015 | CC16: ='[15]3'!CC16 -> 0.001 | CD16: ='[15]3'!CD16 -> 0 | CE16: ='[15]3'!CE16 -> 0 | CF16: ='[15]3'!CF16 -> 0 | CG16: ='[15]3'!CG16 -> 0.0005 | CH16: =$CG$11*$CH$11*CB16 -> 2.4585 | CI16: =$CG$11*$CI$11*CC16 -> 0.258 | CJ16: 0 | CK16: 0 | CL16: 483.35 | CM16: 0.304 | CN16: 54.09 | CO16: 3.0205 | CP16: 537.44 | CQ16: ='[15]3'!CQ16 -> 0.0015 | CR16: ='[15]3'!CR16 -> 0.001 | CS16: ='[15]3'!CS16 -> 0 | CT16: ='[15]3'!CT16 -> 0 | CU16: ='[15]3'!CU16 -> 0 | CV16: ='[15]3'!CV16 -> 0.0005 | CW16: =$CV$11*$CW$11*CQ16 -> 6.93 | CX16: =$CV$11*$CX$11*CR16 -> 0.854 | CY16: 0 | CZ16: 0 | DA16: 1385.01 | DB16: 0.247 | DC16: 43.95 | DD16: 8.031 | DE16: 1428.96 | DF16: ='[15]3'!DF16 -> 0.0015 | DG16: ='[15]3'!DG16 -> 0.001 | DH16: ='[15]3'!DH16 -> 0 | DI16: ='[15]3'!DI16 -> 0 | DJ16: ='[15]3'!DJ16 -> 0 | DK16: ='[15]3'!DK16 -> 0.0005 | DL16: =$DK$11*$DL$11*DF16 -> 2.16 | DM16: =$DK$11*$DM$11*DG16 -> 0.399 | DN16: 0 | DO16: 0 | DP16: 455.32 | DQ16: 0.273 | DR16: 48.57 | DS16: 2.832 | DT16: 503.89 | DU16: ='[15]3'!DU16 -> 0.0015 | DV16: ='[15]3'!DV16 -> 0.001 | DW16: ='[15]3'!DW16 -> 0 | DX16: ='[15]3'!DX16 -> 0 | DY16: ='[15]3'!DY16 -> 0 | DZ16: ='[15]3'!DZ16 -> 0.0005 | EA16: =$DZ$11*$EA$11*DU16 -> 3.282 | EB16: =$DZ$11*$EB$11*DV16 -> 0.48 | EC16: 0 | ED16: 0 | EE16: 669.37 | EF16: 0.2755 | EG16: 49.02 | EH16: 4.0375 | EI16: 718.39 | EJ16: ='[15]3'!EJ16 -> 0.0015 | EK16: ='[15]3'!EK16 -> 0.001 | EL16: ='[15]3'!EL16 -> 0 | EM16: ='[15]3'!EM16 -> 0 | EN16: ='[15]3'!EN16 -> 0 | EO16: ='[15]3'!EO16 -> 0.0005 | EP16: =$EO$11*$EP$11*EJ16 -> 4.578 | EQ16: =$EO$11*$EQ$11*EK16 -> 0.51 | ER16: 0 | ES16: 0 | ET16: 905.31 | EU16: 0.36 | EV16: 64.05 | EW16: 5.448 | EX16: 969.36 | EY16: ='[15]3'!EY16 -> 0.0015 | EZ16: ='[15]3'!EZ16 -> 0.001 | FA16: ='[15]3'!FA16 -> 0 | FB16: ='[15]3'!FB16 -> 0 | FC16: ='[15]3'!FC16 -> 0 | FD16: ='[15]3'!FD16 -> 0.0005 | FE16: =$FD$11*$FE$11*EY16 -> 4.917 | FF16: =$FD$11*$FF$11*EZ16 -> 0.497 | FG16: 0 | FH16: 0 | FI16: 963.31 | FJ16: 0.4275 | FK16: 76.07 | FL16: 5.8415 | FM16: 1039.38 | FN16: ='[15]3'!FN16 -> 0.0015 | FO16: ='[15]3'!FO16 -> 0.001 | FP16: ='[15]3'!FP16 -> 0 | FQ16: ='[15]3'!FQ16 -> 0 | FR16: ='[15]3'!FR16 -> 0 | FS16: ='[15]3'!FS16 -> 0.0005 | FT16: =$FS$11*$FT$11*FN16 -> 5.622 | FU16: =$FS$11*$FU$11*FO16 -> 0.528 | FV16: 0 | FW16: 0 | FX16: =ROUND((FT16+FU16+FV16+FW16)*D16,2) -> 1094.27 | FY16: 0.45 | FZ16: 80.07 | GA16: 6.6 | GB16: 1174.34 | GC16: 27.7685 | GD16: 4940.84 | GE16: 32.79 | GF16: 5834.32 | GG16: 60.5585 | GH16: 10775.16 | GI16: 9 | GJ16: =GG16-P16-AE16-AT16-BI16-BX16-CM16-DB16-DQ16-EF16-EU16-FJ16-FY16 -> 56.532 | GK16: =GH16-FZ16-FK16-EV16-EG16-DR16-DC16-CN16-BY16-BJ16-AU16-AF16-Q16 -> 10058.73 | GL16: =GG16-GJ16 -> 4.0265 | GM16: 716.43
A17: 3 | B17: Кисель концентрированный | C17: кг | D17: =[15]цены!E11 -> 121.83 | E17: ='[15]3'!E17 -> 0.0015 | F17: ='[15]3'!F17 -> 0.001 | G17: ='[15]3'!G17 -> 0 | H17: ='[15]3'!H17 -> 0 | I17: ='[15]3'!I17 -> 0 | J17: ='[15]3'!J17 -> 0.0005 | K17: 3.7275 | L17: 0.334 | M17: 0 | N17: 0 | O17: 494.81 | P17: 0.294 | Q17: 35.82 | R17: 4.3555 | S17: 530.63 | T17: ='[15]3'!T17 -> 0.0015 | U17: ='[15]3'!U17 -> 0.001 | V17: ='[15]3'!V17 -> 0 | W17: ='[15]3'!W17 -> 0 | X17: ='[15]3'!X17 -> 0 | Y17: ='[15]3'!Y17 -> 0.0005 | Z17: 5.0985 | AA17: 0.224 | AB17: 0 | AC17: 0 | AD17: 648.44 | AE17: 0.34 | AF17: 41.42 | AG17: 5.6625 | AH17: 689.86 | AI17: 0.0015 | AJ17: 0.001 | AK17: 0.0015 | AL17: 0.0015 | AM17: 0.001 | AN17: 0.0005 | AO17: 4.5075 | AP17: 0.4 | AQ17: 0 | AR17: 0 | AS17: 597.88 | AT17: 0.4 | AU17: 48.73 | AV17: 5.3075 | AW17: 646.61 | AX17: ='[15]3'!AX17 -> 0.0015 | AY17: ='[15]3'!AY17 -> 0.001 | AZ17: ='[15]3'!AZ17 -> 0 | BA17: ='[15]3'!BA17 -> 0 | BB17: ='[15]3'!BB17 -> 0 | BC17: ='[15]3'!BC17 -> 0.0005 | BD17: 4.779 | BE17: 0.361 | BF17: 0 | BG17: 0 | BH17: 626.21 | BI17: 0.342 | BJ17: 41.67 | BK17: 5.482 | BL17: 667.88 | BM17: ='[15]3'!BM17 -> 0.0015 | BN17: ='[15]3'!BN17 -> 0.001 | BO17: ='[15]3'!BO17 -> 0 | BP17: ='[15]3'!BP17 -> 0 | BQ17: ='[15]3'!BQ17 -> 0 | BR17: ='[15]3'!BR17 -> 0.0005 | BS17: 3.345 | BT17: 0.282 | BU17: 0 | BV17: 0 | BW17: 441.88 | BX17: 0.3135 | BY17: 38.19 | BZ17: 3.9405 | CA17: 480.07 | CB17: ='[15]3'!CB17 -> 0.0015 | CC17: ='[15]3'!CC17 -> 0.001 | CD17: ='[15]3'!CD17 -> 0 | CE17: ='[15]3'!CE17 -> 0 | CF17: ='[15]3'!CF17 -> 0 | CG17: ='[15]3'!CG17 -> 0.0005 | CH17: 2.4585 | CI17: 0.258 | CJ17: 0 | CK17: 0 | CL17: 330.95 | CM17: 0.304 | CN17: 37.04 | CO17: 3.0205 | CP17: 367.99 | CQ17: ='[15]3'!CQ17 -> 0.0015 | CR17: ='[15]3'!CR17 -> 0.001 | CS17: ='[15]3'!CS17 -> 0 | CT17: ='[15]3'!CT17 -> 0 | CU17: ='[15]3'!CU17 -> 0 | CV17: ='[15]3'!CV17 -> 0.0005 | CW17: 6.93 | CX17: 0.854 | CY17: 0 | CZ17: 0 | DA17: 948.32 | DB17: 0.247 | DC17: 30.09 | DD17: 8.031 | DE17: 978.41 | DF17: ='[15]3'!DF17 -> 0.0015 | DG17: ='[15]3'!DG17 -> 0.001 | DH17: ='[15]3'!DH17 -> 0 | DI17: ='[15]3'!DI17 -> 0 | DJ17: ='[15]3'!DJ17 -> 0 | DK17: ='[15]3'!DK17 -> 0.0005 | DL17: 2.16 | DM17: 0.399 | DN17: 0 | DO17: 0 | DP17: 311.76 | DQ17: 0.273 | DR17: 33.26 | DS17: 2.832 | DT17: 345.02 | DU17: ='[15]3'!DU17 -> 0.0015 | DV17: ='[15]3'!DV17 -> 0.001 | DW17: ='[15]3'!DW17 -> 0 | DX17: ='[15]3'!DX17 -> 0 | DY17: ='[15]3'!DY17 -> 0 | DZ17: ='[15]3'!DZ17 -> 0.0005 | EA17: 3.282 | EB17: 0.48 | EC17: 0 | ED17: 0 | EE17: 458.32 | EF17: 0.2755 | EG17: 33.56 | EH17: 4.0375 | EI17: 491.88 | EJ17: ='[15]3'!EJ17 -> 0.0015 | EK17: ='[15]3'!EK17 -> 0.001 | EL17: ='[15]3'!EL17 -> 0 | EM17: ='[15]3'!EM17 -> 0 | EN17: ='[15]3'!EN17 -> 0 | EO17: ='[15]3'!EO17 -> 0.0005 | EP17: 4.578 | EQ17: 0.51 | ER17: 0 | ES17: 0 | ET17: 619.87 | EU17: 0.36 | EV17: 43.86 | EW17: 5.448 | EX17: 663.73 | EY17: ='[15]3'!EY17 -> 0.0015 | EZ17: ='[15]3'!EZ17 -> 0.001 | FA17: ='[15]3'!FA17 -> 0 | FB17: ='[15]3'!FB17 -> 0 | FC17: ='[15]3'!FC17 -> 0 | FD17: ='[15]3'!FD17 -> 0.0005 | FE17: 4.917 | FF17: 0.497 | FG17: 0 | FH17: 0 | FI17: 659.59 | FJ17: 0.4275 | FK17: 52.08 | FL17: 5.8415 | FM17: 711.67 | FN17: ='[15]3'!FN17 -> 0.0015 | FO17: ='[15]3'!FO17 -> 0.001 | FP17: ='[15]3'!FP17 -> 0 | FQ17: ='[15]3'!FQ17 -> 0 | FR17: ='[15]3'!FR17 -> 0 | FS17: ='[15]3'!FS17 -> 0.0005 | FT17: 5.622 | FU17: 0.528 | FV17: 0 | FW17: 0 | FX17: 749.25 | FY17: 0.45 | FZ17: 54.82 | GA17: 6.6 | GB17: 804.07 | GC17: 27.7685 | GD17: 3383.04 | GE17: 32.79 | GF17: 3994.78 | GG17: 60.5585 | GH17: 7377.82 | GI17: 9 | GJ17: =GG17-P17-AE17-AT17-BI17-BX17-CM17-DB17-DQ17-EF17-EU17-FJ17-FY17 -> 56.532 | GK17: 6887.28 | GL17: 4.0265 | GM17: 490.54
A18: 4 | B18: Рис | C18: кг | D18: =[15]цены!E12 -> 77.17 | E18: ='[15]3'!E18 -> 0.007 | F18: ='[15]3'!F18 -> 0.005 | G18: ='[15]3'!G18 -> 0.00091 | H18: ='[15]3'!H18 -> 0 | I18: ='[15]3'!I18 -> 0 | J18: ='[15]3'!J18 -> 0.01 | K18: 17.395 | L18: 1.67 | M18: 0 | N18: 0 | O18: 1471.25 | P18: 5.88 | Q18: 453.76 | R18: 24.945 | S18: 1925.01 | T18: ='[15]3'!T18 -> 0.007 | U18: ='[15]3'!U18 -> 0.005 | V18: ='[15]3'!V18 -> 0.00091 | W18: ='[15]3'!W18 -> 0 | X18: ='[15]3'!X18 -> 0 | Y18: ='[15]3'!Y18 -> 0.01 | Z18: 23.793 | AA18: 1.12 | AB18: 0 | AC18: 0 | AD18: 1922.54 | AE18: 6.8 | AF18: 524.76 | AG18: 31.713 | AH18: 2447.3 | AI18: 0.007 | AJ18: 0.005 | AK18: 0.007 | AL18: 0.007 | AM18: 0.005 | AN18: 0.01 | AO18: 21.035 | AP18: 2 | AQ18: 0 | AR18: 0 | AS18: 1777.61 | AT18: 8 | AU18: 617.36 | AV18: 31.035 | AW18: 2394.97 | AX18: ='[15]3'!AX18 -> 0.007 | AY18: ='[15]3'!AY18 -> 0.005 | AZ18: ='[15]3'!AZ18 -> 0.00091 | BA18: ='[15]3'!BA18 -> 0 | BB18: ='[15]3'!BB18 -> 0 | BC18: ='[15]3'!BC18 -> 0.01 | BD18: 22.302 | BE18: 1.805 | BF18: 0 | BG18: 0 | BH18: 1860.34 | BI18: 6.84 | BJ18: 527.84 | BK18: 30.947 | BL18: 2388.18 | BM18: ='[15]3'!BM18 -> 0.007 | BN18: ='[15]3'!BN18 -> 0.005 | BO18: ='[15]3'!BO18 -> 0.00091 | BP18: ='[15]3'!BP18 -> 0 | BQ18: ='[15]3'!BQ18 -> 0 | BR18: ='[15]3'!BR18 -> 0.01 | BS18: 15.61 | BT18: 1.41 | BU18: 0 | BV18: 0 | BW18: 1313.43 | BX18: 6.27 | BY18: 483.86 | BZ18: 23.29 | CA18: 1797.29 | CB18: ='[15]3'!CB18 -> 0.007 | CC18: ='[15]3'!CC18 -> 0.005 | CD18: ='[15]3'!CD18 -> 0.00091 | CE18: ='[15]3'!CE18 -> 0 | CF18: ='[15]3'!CF18 -> 0 | CG18: ='[15]3'!CG18 -> 0.01 | CH18: 11.473 | CI18: 1.29 | CJ18: 0 | CK18: 0 | CL18: 984.92 | CM18: 6.08 | CN18: 469.19 | CO18: 18.843 | CP18: 1454.11 | CQ18: ='[15]3'!CQ18 -> 0.007 | CR18: ='[15]3'!CR18 -> 0.005 | CS18: ='[15]3'!CS18 -> 0.00091 | CT18: ='[15]3'!CT18 -> 0 | CU18: ='[15]3'!CU18 -> 0 | CV18: ='[15]3'!CV18 -> 0.01 | CW18: 32.34 | CX18: 4.27 | CY18: 0 | CZ18: 0 | DA18: 2825.19 | DB18: 4.94 | DC18: 381.22 | DD18: 41.55 | DE18: 3206.41 | DF18: ='[15]3'!DF18 -> 0.007 | DG18: ='[15]3'!DG18 -> 0.005 | DH18: ='[15]3'!DH18 -> 0.00091 | DI18: ='[15]3'!DI18 -> 0 | DJ18: ='[15]3'!DJ18 -> 0 | DK18: ='[15]3'!DK18 -> 0.01 | DL18: 10.08 | DM18: 1.995 | DN18: 0 | DO18: 0 | DP18: 931.83 | DQ18: 5.46 | DR18: 421.35 | DS18: 17.535 | DT18: 1353.18 | DU18: ='[15]3'!DU18 -> 0.007 | DV18: ='[15]3'!DV18 -> 0.005 | DW18: ='[15]3'!DW18 -> 0.00091 | DX18: ='[15]3'!DX18 -> 0 | DY18: ='[15]3'!DY18 -> 0 | DZ18: ='[15]3'!DZ18 -> 0.01 | EA18: 15.316 | EB18: 2.4 | EC18: 0 | ED18: 0 | EE18: 1367.14 | EF18: 5.51 | EG18: 425.21 | EH18: 23.226 | EI18: 1792.35 | EJ18: ='[15]3'!EJ18 -> 0.007 | EK18: ='[15]3'!EK18 -> 0.005 | EL18: ='[15]3'!EL18 -> 0.00091 | EM18: ='[15]3'!EM18 -> 0 | EN18: ='[15]3'!EN18 -> 0 | EO18: ='[15]3'!EO18 -> 0.01 | EP18: 21.364 | EQ18: 2.55 | ER18: 0 | ES18: 0 | ET18: 1845.44 | EU18: 7.2 | EV18: 555.62 | EW18: 31.114 | EX18: 2401.06 | EY18: ='[15]3'!EY18 -> 0.007 | EZ18: ='[15]3'!EZ18 -> 0.005 | FA18: ='[15]3'!FA18 -> 0.00091 | FB18: ='[15]3'!FB18 -> 0 | FC18: ='[15]3'!FC18 -> 0 | FD18: ='[15]3'!FD18 -> 0.01 | FE18: 22.946 | FF18: 2.485 | FG18: 0 | FH18: 0 | FI18: 1962.51 | FJ18: 8.55 | FK18: 659.8 | FL18: 33.981 | FM18: 2622.31 | FN18: ='[15]3'!FN18 -> 0.007 | FO18: ='[15]3'!FO18 -> 0.005 | FP18: ='[15]3'!FP18 -> 0.00091 | FQ18: ='[15]3'!FQ18 -> 0 | FR18: ='[15]3'!FR18 -> 0 | FS18: ='[15]3'!FS18 -> 0.01 | FT18: 26.236 | FU18: 2.64 | FV18: 0 | FW18: 0 | FX18: 2228.36 | FY18: 9 | FZ18: 694.53 | GA18: 37.876 | GB18: 2922.89 | GC18: 160.773 | GD18: 12406.86 | GE18: 185.282 | GF18: 14298.2 | GG18: 346.055 | GH18: 26705.06 | GI18: 11 | GJ18: 265.525 | GK18: 20490.56 | GL18: 80.53 | GM18: 6214.5
A19: 5 | B19: Овсяная крупа | C19: кг | D19: =[15]цены!E13 -> 43.83 | E19: ='[15]3'!E19 -> 0.003 | F19: ='[15]3'!F19 -> 0.003 | G19: ='[15]3'!G19 -> 0 | H19: ='[15]3'!H19 -> 0 | I19: ='[15]3'!I19 -> 0 | J19: ='[15]3'!J19 -> 0.001 | K19: 7.455 | L19: 1.002 | M19: 0 | N19: 0 | O19: 370.67 | P19: 0.588 | Q19: 25.77 | R19: 9.045 | S19: 396.44 | T19: ='[15]3'!T19 -> 0.003 | U19: ='[15]3'!U19 -> 0.003 | V19: ='[15]3'!V19 -> 0 | W19: ='[15]3'!W19 -> 0 | X19: ='[15]3'!X19 -> 0 | Y19: ='[15]3'!Y19 -> 0.001 | Z19: 10.197 | AA19: 0.672 | AB19: 0 | AC19: 0 | AD19: 476.39 | AE19: 0.68 | AF19: 29.8 | AG19: 11.549 | AH19: 506.19 | AI19: 0.003 | AJ19: 0.003 | AK19: 0.003 | AL19: 0.002 | AM19: 0.001 | AN19: 0.001 | AO19: 9.015 | AP19: 1.2 | AQ19: 0 | AR19: 0 | AS19: 447.72 | AT19: 0.8 | AU19: 35.06 | AV19: 11.015 | AW19: 482.78 | AX19: ='[15]3'!AX19 -> 0.003 | AY19: ='[15]3'!AY19 -> 0.003 | AZ19: ='[15]3'!AZ19 -> 0 | BA19: ='[15]3'!BA19 -> 0 | BB19: ='[15]3'!BB19 -> 0 | BC19: ='[15]3'!BC19 -> 0.001 | BD19: 9.558 | BE19: 1.083 | BF19: 0 | BG19: 0 | BH19: 466.4 | BI19: 0.684 | BJ19: 29.98 | BK19: 11.325 | BL19: 496.38 | BM19: ='[15]3'!BM19 -> 0.003 | BN19: ='[15]3'!BN19 -> 0.003 | BO19: ='[15]3'!BO19 -> 0 | BP19: ='[15]3'!BP19 -> 0 | BQ19: ='[15]3'!BQ19 -> 0 | BR19: ='[15]3'!BR19 -> 0.001 | BS19: 6.69 | BT19: 0.846 | BU19: 0 | BV19: 0 | BW19: 330.3 | BX19: 0.627 | BY19: 27.48 | BZ19: 8.163 | CA19: 357.78 | CB19: ='[15]3'!CB19 -> 0.003 | CC19: ='[15]3'!CC19 -> 0.003 | CD19: ='[15]3'!CD19 -> 0 | CE19: ='[15]3'!CE19 -> 0 | CF19: ='[15]3'!CF19 -> 0 | CG19: ='[15]3'!CG19 -> 0.001 | CH19: 4.917 | CI19: 0.774 | CJ19: 0 | CK19: 0 | CL19: 249.44 | CM19: 0.608 | CN19: 26.65 | CO19: 6.299 | CP19: 276.09 | CQ19: ='[15]3'!CQ19 -> 0.003 | CR19: ='[15]3'!CR19 -> 0.003 | CS19: ='[15]3'!CS19 -> 0 | CT19: ='[15]3'!CT19 -> 0 | CU19: ='[15]3'!CU19 -> 0 | CV19: ='[15]3'!CV19 -> 0.001 | CW19: 13.86 | CX19: 2.562 | CY19: 0 | CZ19: 0 | DA19: 719.78 | DB19: 0.494 | DC19: 21.65 | DD19: 16.916 | DE19: 741.43 | DF19: ='[15]3'!DF19 -> 0.003 | DG19: ='[15]3'!DG19 -> 0.003 | DH19: ='[15]3'!DH19 -> 0 | DI19: ='[15]3'!DI19 -> 0 | DJ19: ='[15]3'!DJ19 -> 0 | DK19: ='[15]3'!DK19 -> 0.001 | DL19: 4.32 | DM19: 1.197 | DN19: 0 | DO19: 0 | DP19: 241.81 | DQ19: 0.546 | DR19: 23.93 | DS19: 6.063 | DT19: 265.74 | DU19: ='[15]3'!DU19 -> 0.003 | DV19: ='[15]3'!DV19 -> 0.003 | DW19: ='[15]3'!DW19 -> 0 | DX19: ='[15]3'!DX19 -> 0 | DY19: ='[15]3'!DY19 -> 0 | DZ19: ='[15]3'!DZ19 -> 0.001 | EA19: 6.564 | EB19: 1.44 | EC19: 0 | ED19: 0 | EE19: 350.82 | EF19: 0.551 | EG19: 24.15 | EH19: 8.555 | EI19: 374.97 | EJ19: ='[15]3'!EJ19 -> 0.003 | EK19: ='[15]3'!EK19 -> 0.003 | EL19: ='[15]3'!EL19 -> 0 | EM19: ='[15]3'!EM19 -> 0 | EN19: ='[15]3'!EN19 -> 0 | EO19: ='[15]3'!EO19 -> 0.001 | EP19: 9.156 | EQ19: 1.53 | ER19: 0 | ES19: 0 | ET19: 468.37 | EU19: 0.72 | EV19: 31.56 | EW19: 11.406 | EX19: 499.93 | EY19: ='[15]3'!EY19 -> 0.003 | EZ19: ='[15]3'!EZ19 -> 0.003 | FA19: ='[15]3'!FA19 -> 0 | FB19: ='[15]3'!FB19 -> 0 | FC19: ='[15]3'!FC19 -> 0 | FD19: ='[15]3'!FD19 -> 0.001 | FE19: 9.834 | FF19: 1.491 | FG19: 0 | FH19: 0 | FI19: 496.37 | FJ19: 0.855 | FK19: 37.47 | FL19: 12.18 | FM19: 533.84 | FN19: ='[15]3'!FN19 -> 0.003 | FO19: ='[15]3'!FO19 -> 0.003 | FP19: ='[15]3'!FP19 -> 0 | FQ19: ='[15]3'!FQ19 -> 0 | FR19: ='[15]3'!FR19 -> 0 | FS19: ='[15]3'!FS19 -> 0.001 | FT19: 11.244 | FU19: 1.584 | FV19: 0 | FW19: 0 | FX19: 562.25 | FY19: 0.9 | FZ19: 39.45 | GA19: 13.728 | GB19: 601.7 | GC19: 57.396 | GD19: 2515.66 | GE19: 68.848 | GF19: 3017.61 | GG19: 126.244 | GH19: 5533.27 | GI19: 11 | GJ19: 118.191 | GK19: 5180.32 | GL19: 8.053 | GM19: 352.95
A20: 6 | B20: Перловая крупа | C20: кг | D20: =[15]цены!E14 -> 40.5 | E20: ='[15]3'!E20 -> 0.003 | F20: ='[15]3'!F20 -> 0.002 | G20: ='[15]3'!G20 -> 0 | H20: ='[15]3'!H20 -> 0 | I20: ='[15]3'!I20 -> 0 | J20: ='[15]3'!J20 -> 0.002 | K20: 7.455 | L20: 0.668 | M20: 0 | N20: 0 | O20: 328.98 | P20: 1.176 | Q20: 47.63 | R20: 9.299 | S20: 376.61 | T20: ='[15]3'!T20 -> 0.003 | U20: ='[15]3'!U20 -> 0.002 | V20: ='[15]3'!V20 -> 0 | W20: ='[15]3'!W20 -> 0 | X20: ='[15]3'!X20 -> 0 | Y20: ='[15]3'!Y20 -> 0.002 | Z20: 10.197 | AA20: 0.448 | AB20: 0 | AC20: 0 | AD20: 431.12 | AE20: 1.36 | AF20: 55.08 | AG20: 12.005 | AH20: 486.2 | AI20: 0.003 | AJ20: 0.002 | AK20: 0.003 | AL20: 0.003 | AM20: 0.002 | AN20: 0.002 | AO20: 9.015 | AP20: 0.8 | AQ20: 0 | AR20: 0 | AS20: 397.51 | AT20: 1.6 | AU20: 64.8 | AV20: 11.415 | AW20: 462.31 | AX20: ='[15]3'!AX20 -> 0.003 | AY20: ='[15]3'!AY20 -> 0.002 | AZ20: ='[15]3'!AZ20 -> 0 | BA20: ='[15]3'!BA20 -> 0 | BB20: ='[15]3'!BB20 -> 0 | BC20: ='[15]3'!BC20 -> 0.002 | BD20: 9.558 | BE20: 0.722 | BF20: 0 | BG20: 0 | BH20: 416.34 | BI20: 1.368 | BJ20: 55.4 | BK20: 11.648 | BL20: 471.74 | BM20: ='[15]3'!BM20 -> 0.003 | BN20: ='[15]3'!BN20 -> 0.002 | BO20: ='[15]3'!BO20 -> 0 | BP20: ='[15]3'!BP20 -> 0 | BQ20: ='[15]3'!BQ20 -> 0 | BR20: ='[15]3'!BR20 -> 0.002 | BS20: 6.69 | BT20: 0.564 | BU20: 0 | BV20: 0 | BW20: 293.79 | BX20: 1.254 | BY20: 50.79 | BZ20: 8.508 | CA20: 344.58 | CB20: ='[15]3'!CB20 -> 0.003 | CC20: ='[15]3'!CC20 -> 0.002 | CD20: ='[15]3'!CD20 -> 0 | CE20: ='[15]3'!CE20 -> 0 | CF20: ='[15]3'!CF20 -> 0 | CG20: ='[15]3'!CG20 -> 0.002 | CH20: 4.917 | CI20: 0.516 | CJ20: 0 | CK20: 0 | CL20: 220.04 | CM20: 1.216 | CN20: 49.25 | CO20: 6.649 | CP20: 269.29 | CQ20: ='[15]3'!CQ20 -> 0.003 | CR20: ='[15]3'!CR20 -> 0.002 | CS20: ='[15]3'!CS20 -> 0 | CT20: ='[15]3'!CT20 -> 0 | CU20: ='[15]3'!CU20 -> 0 | CV20: ='[15]3'!CV20 -> 0.002 | CW20: 13.86 | CX20: 1.708 | CY20: 0 | CZ20: 0 | DA20: 630.5 | DB20: 0.988 | DC20: 40.01 | DD20: 16.556 | DE20: 670.51 | DF20: ='[15]3'!DF20 -> 0.003 | DG20: ='[15]3'!DG20 -> 0.002 | DH20: ='[15]3'!DH20 -> 0 | DI20: ='[15]3'!DI20 -> 0 | DJ20: ='[15]3'!DJ20 -> 0 | DK20: ='[15]3'!DK20 -> 0.002 | DL20: 4.32 | DM20: 0.798 | DN20: 0 | DO20: 0 | DP20: 207.28 | DQ20: 1.092 | DR20: 44.23 | DS20: 6.21 | DT20: 251.51 | DU20: ='[15]3'!DU20 -> 0.003 | DV20: ='[15]3'!DV20 -> 0.002 | DW20: ='[15]3'!DW20 -> 0 | DX20: ='[15]3'!DX20 -> 0 | DY20: ='[15]3'!DY20 -> 0 | DZ20: ='[15]3'!DZ20 -> 0.002 | EA20: 6.564 | EB20: 0.96 | EC20: 0 | ED20: 0 | EE20: 304.72 | EF20: 1.102 | EG20: 44.63 | EH20: 8.626 | EI20: 349.35 | EJ20: ='[15]3'!EJ20 -> 0.003 | EK20: ='[15]3'!EK20 -> 0.002 | EL20: ='[15]3'!EL20 -> 0 | EM20: ='[15]3'!EM20 -> 0 | EN20: ='[15]3'!EN20 -> 0 | EO20: ='[15]3'!EO20 -> 0.002 | EP20: 9.156 | EQ20: 1.02 | ER20: 0 | ES20: 0 | ET20: 412.13 | EU20: 1.44 | EV20: 58.32 | EW20: 11.616 | EX20: 470.45 | EY20: ='[15]3'!EY20 -> 0.003 | EZ20: ='[15]3'!EZ20 -> 0.002 | FA20: ='[15]3'!FA20 -> 0 | FB20: ='[15]3'!FB20 -> 0 | FC20: ='[15]3'!FC20 -> 0 | FD20: ='[15]3'!FD20 -> 0.002 | FE20: 9.834 | FF20: 0.994 | FG20: 0 | FH20: 0 | FI20: 438.53 | FJ20: 1.71 | FK20: 69.26 | FL20: 12.538 | FM20: 507.79 | FN20: ='[15]3'!FN20 -> 0.003 | FO20: ='[15]3'!FO20 -> 0.002 | FP20: ='[15]3'!FP20 -> 0 | FQ20: ='[15]3'!FQ20 -> 0 | FR20: ='[15]3'!FR20 -> 0 | FS20: ='[15]3'!FS20 -> 0.002 | FT20: 11.244 | FU20: 1.056 | FV20: 0 | FW20: 0 | FX20: 498.15 | FY20: 1.8 | FZ20: 72.9 | GA20: 14.1 | GB20: 571.05 | GC20: 59.524 | GD20: 2410.73 | GE20: 69.646 | GF20: 2820.66 | GG20: 129.17 | GH20: 5231.39 | GI20: 11 | GJ20: 113.064 | GK20: 4579.09 | GL20: 16.106 | GM20: 652.3
A21: 7 | B21: Гречневая крупа | C21: кг | D21: =[15]цены!E15 -> 74 | E21: ='[15]3'!E21 -> 0.007 | F21: ='[15]3'!F21 -> 0.005 | G21: ='[15]3'!G21 -> 0.00091 | H21: ='[15]3'!H21 -> 0 | I21: ='[15]3'!I21 -> 0 | J21: ='[15]3'!J21 -> 0.012 | K21: 17.395 | L21: 1.67 | M21: 0 | N21: 0 | O21: 1410.81 | P21: 7.056 | Q21: 522.14 | R21: 26.121 | S21: 1932.95 | T21: ='[15]3'!T21 -> 0.007 | U21: ='[15]3'!U21 -> 0.005 | V21: ='[15]3'!V21 -> 0.00091 | W21: ='[15]3'!W21 -> 0 | X21: ='[15]3'!X21 -> 0 | Y21: ='[15]3'!Y21 -> 0.012 | Z21: 23.793 | AA21: 1.12 | AB21: 0 | AC21: 0 | AD21: 1843.56 | AE21: 8.16 | AF21: 603.84 | AG21: 33.073 | AH21: 2447.4 | AI21: 0.007 | AJ21: 0.005 | AK21: 0.007 | AL21: 0.007 | AM21: 0.006 | AN21: 0.012 | AO21: 21.035 | AP21: 2 | AQ21: 0 | AR21: 0 | AS21: 1704.59 | AT21: 9.6 | AU21: 710.4 | AV21: 32.635 | AW21: 2414.99 | AX21: ='[15]3'!AX21 -> 0.007 | AY21: ='[15]3'!AY21 -> 0.005 | AZ21: ='[15]3'!AZ21 -> 0.00091 | BA21: ='[15]3'!BA21 -> 0 | BB21: ='[15]3'!BB21 -> 0 | BC21: ='[15]3'!BC21 -> 0.012 | BD21: 22.302 | BE21: 1.805 | BF21: 0 | BG21: 0 | BH21: 1783.92 | BI21: 8.208 | BJ21: 607.39 | BK21: 32.315 | BL21: 2391.31 | BM21: ='[15]3'!BM21 -> 0.007 | BN21: ='[15]3'!BN21 -> 0.005 | BO21: ='[15]3'!BO21 -> 0.00091 | BP21: ='[15]3'!BP21 -> 0 | BQ21: ='[15]3'!BQ21 -> 0 | BR21: ='[15]3'!BR21 -> 0.012 | BS21: 15.61 | BT21: 1.41 | BU21: 0 | BV21: 0 | BW21: 1259.48 | BX21: 7.524 | BY21: 556.78 | BZ21: 24.544 | CA21: 1816.26 | CB21: ='[15]3'!CB21 -> 0.007 | CC21: ='[15]3'!CC21 -> 0.005 | CD21: ='[15]3'!CD21 -> 0.00091 | CE21: ='[15]3'!CE21 -> 0 | CF21: ='[15]3'!CF21 -> 0 | CG21: ='[15]3'!CG21 -> 0.012 | CH21: 11.473 | CI21: 1.29 | CJ21: 0 | CK21: 0 | CL21: 944.46 | CM21: 7.296 | CN21: 539.9 | CO21: 20.059 | CP21: 1484.36 | CQ21: ='[15]3'!CQ21 -> 0.007 | CR21: ='[15]3'!CR21 -> 0.005 | CS21: ='[15]3'!CS21 -> 0.00091 | CT21: ='[15]3'!CT21 -> 0 | CU21: ='[15]3'!CU21 -> 0 | CV21: ='[15]3'!CV21 -> 0.012 | CW21: 32.34 | CX21: 4.27 | CY21: 0 | CZ21: 0 | DA21: 2709.14 | DB21: 5.928 | DC21: 438.67 | DD21: 42.538 | DE21: 3147.81 | DF21: ='[15]3'!DF21 -> 0.007 | DG21: ='[15]3'!DG21 -> 0.005 | DH21: ='[15]3'!DH21 -> 0.00091 | DI21: ='[15]3'!DI21 -> 0 | DJ21: ='[15]3'!DJ21 -> 0 | DK21: ='[15]3'!DK21 -> 0.012 | DL21: 10.08 | DM21: 1.995 | DN21: 0 | DO21: 0 | DP21: 893.55 | DQ21: 6.552 | DR21: 484.85 | DS21: 18.627 | DT21: 1378.4 | DU21: ='[15]3'!DU21 -> 0.007 | DV21: ='[15]3'!DV21 -> 0.005 | DW21: ='[15]3'!DW21 -> 0.00091 | DX21: ='[15]3'!DX21 -> 0 | DY21: ='[15]3'!DY21 -> 0 | DZ21: ='[15]3'!DZ21 -> 0.012 | EA21: 15.316 | EB21: 2.4 | EC21: 0 | ED21: 0 | EE21: 1310.98 | EF21: 6.612 | EG21: 489.29 | EH21: 24.328 | EI21: 1800.27 | EJ21: ='[15]3'!EJ21 -> 0.007 | EK21: ='[15]3'!EK21 -> 0.005 | EL21: ='[15]3'!EL21 -> 0.00091 | EM21: ='[15]3'!EM21 -> 0 | EN21: ='[15]3'!EN21 -> 0 | EO21: ='[15]3'!EO21 -> 0.012 | EP21: 21.364 | EQ21: 2.55 | ER21: 0 | ES21: 0 | ET21: 1769.64 | EU21: 8.64 | EV21: 639.36 | EW21: 32.554 | EX21: 2409 | EY21: ='[15]3'!EY21 -> 0.007 | EZ21: ='[15]3'!EZ21 -> 0.005 | FA21: ='[15]3'!FA21 -> 0.00091 | FB21: ='[15]3'!FB21 -> 0 | FC21: ='[15]3'!FC21 -> 0 | FD21: ='[15]3'!FD21 -> 0.012 | FE21: 22.946 | FF21: 2.485 | FG21: 0 | FH21: 0 | FI21: 1881.89 | FJ21: 10.26 | FK21: 759.24 | FL21: 35.691 | FM21: 2641.13 | FN21: ='[15]3'!FN21 -> 0.007 | FO21: ='[15]3'!FO21 -> 0.005 | FP21: ='[15]3'!FP21 -> 0.00091 | FQ21: ='[15]3'!FQ21 -> 0 | FR21: ='[15]3'!FR21 -> 0 | FS21: ='[15]3'!FS21 -> 0.012 | FT21: 26.236 | FU21: 2.64 | FV21: 0 | FW21: 0 | FX21: 2136.82 | FY21: 10.8 | FZ21: 799.2 | GA21: 39.676 | GB21: 2936.02 | GC21: 168.747 | GD21: 12487.27 | GE21: 193.414 | GF21: 14312.63 | GG21: 362.161 | GH21: 26799.9 | GI21: 11 | GJ21: 265.525 | GK21: 19648.84 | GL21: 96.636 | GM21: 7151.06
A22: 8 | B22: Полтавка | C22: кг | D22: =[15]цены!E16 -> 50 | E22: ='[15]3'!E22 -> 0.003 | F22: ='[15]3'!F22 -> 0.001 | G22: ='[15]3'!G22 -> 0 | H22: ='[15]3'!H22 -> 0 | I22: ='[15]3'!I22 -> 0 | J22: ='[15]3'!J22 -> 0.001 | K22: 7.455 | L22: 0.334 | M22: 0 | N22: 0 | O22: 389.45 | P22: 0.588 | Q22: 29.4 | R22: 8.377 | S22: 418.85 | T22: ='[15]3'!T22 -> 0.003 | U22: ='[15]3'!U22 -> 0.001 | V22: ='[15]3'!V22 -> 0 | W22: ='[15]3'!W22 -> 0 | X22: ='[15]3'!X22 -> 0 | Y22: ='[15]3'!Y22 -> 0.001 | Z22: 10.197 | AA22: 0.224 | AB22: 0 | AC22: 0 | AD22: 521.05 | AE22: 0.68 | AF22: 34 | AG22: 11.101 | AH22: 555.05 | AI22: 0.003 | AJ22: 0.001 | AK22: 0.003 | AL22: 0.002 | AM22: 0.001 | AN22: 0.001 | AO22: 9.015 | AP22: 0.4 | AQ22: 0 | AR22: 0 | AS22: 470.75 | AT22: 0.8 | AU22: 40 | AV22: 10.215 | AW22: 510.75 | AX22: ='[15]3'!AX22 -> 0.003 | AY22: ='[15]3'!AY22 -> 0.001 | AZ22: ='[15]3'!AZ22 -> 0 | BA22: ='[15]3'!BA22 -> 0 | BB22: ='[15]3'!BB22 -> 0 | BC22: ='[15]3'!BC22 -> 0.001 | BD22: 9.558 | BE22: 0.361 | BF22: 0 | BG22: 0 | BH22: 495.95 | BI22: 0.684 | BJ22: 34.2 | BK22: 10.603 | BL22: 530.15 | BM22: ='[15]3'!BM22 -> 0.003 | BN22: ='[15]3'!BN22 -> 0.001 | BO22: ='[15]3'!BO22 -> 0 | BP22: ='[15]3'!BP22 -> 0 | BQ22: ='[15]3'!BQ22 -> 0 | BR22: ='[15]3'!BR22 -> 0.001 | BS22: 6.69 | BT22: 0.282 | BU22: 0 | BV22: 0 | BW22: 348.6 | BX22: 0.627 | BY22: 31.35 | BZ22: 7.599 | CA22: 379.95 | CB22: ='[15]3'!CB22 -> 0.003 | CC22: ='[15]3'!CC22 -> 0.001 | CD22: ='[15]3'!CD22 -> 0 | CE22: ='[15]3'!CE22 -> 0 | CF22: ='[15]3'!CF22 -> 0 | CG22: ='[15]3'!CG22 -> 0.001 | CH22: 4.917 | CI22: 0.258 | CJ22: 0 | CK22: 0 | CL22: 258.75 | CM22: 0.608 | CN22: 30.4 | CO22: 5.783 | CP22: 289.15 | CQ22: ='[15]3'!CQ22 -> 0.003 | CR22: ='[15]3'!CR22 -> 0.001 | CS22: ='[15]3'!CS22 -> 0 | CT22: ='[15]3'!CT22 -> 0 | CU22: ='[15]3'!CU22 -> 0 | CV22: ='[15]3'!CV22 -> 0.001 | CW22: 13.86 | CX22: 0.854 | CY22: 0 | CZ22: 0 | DA22: 735.7 | DB22: 0.494 | DC22: 24.7 | DD22: 15.208 | DE22: 760.4 | DF22: ='[15]3'!DF22 -> 0.003 | DG22: ='[15]3'!DG22 -> 0.001 | DH22: ='[15]3'!DH22 -> 0 | DI22: ='[15]3'!DI22 -> 0 | DJ22: ='[15]3'!DJ22 -> 0 | DK22: ='[15]3'!DK22 -> 0.001 | DL22: 4.32 | DM22: 0.399 | DN22: 0 | DO22: 0 | DP22: 235.95 | DQ22: 0.546 | DR22: 27.3 | DS22: 5.265 | DT22: 263.25 | DU22: ='[15]3'!DU22 -> 0.003 | DV22: ='[15]3'!DV22 -> 0.001 | DW22: ='[15]3'!DW22 -> 0 | DX22: ='[15]3'!DX22 -> 0 | DY22: ='[15]3'!DY22 -> 0 | DZ22: ='[15]3'!DZ22 -> 0.001 | EA22: 6.564 | EB22: 0.48 | EC22: 0 | ED22: 0 | EE22: 352.2 | EF22: 0.551 | EG22: 27.55 | EH22: 7.595 | EI22: 379.75 | EJ22: ='[15]3'!EJ22 -> 0.003 | EK22: ='[15]3'!EK22 -> 0.001 | EL22: ='[15]3'!EL22 -> 0 | EM22: ='[15]3'!EM22 -> 0 | EN22: ='[15]3'!EN22 -> 0 | EO22: ='[15]3'!EO22 -> 0.001 | EP22: 9.156 | EQ22: 0.51 | ER22: 0 | ES22: 0 | ET22: 483.3 | EU22: 0.72 | EV22: 36 | EW22: 10.386 | EX22: 519.3 | EY22: ='[15]3'!EY22 -> 0.003 | EZ22: ='[15]3'!EZ22 -> 0.001 | FA22: ='[15]3'!FA22 -> 0 | FB22: ='[15]3'!FB22 -> 0 | FC22: ='[15]3'!FC22 -> 0 | FD22: ='[15]3'!FD22 -> 0.001 | FE22: 9.834 | FF22: 0.497 | FG22: 0 | FH22: 0 | FI22: 516.55 | FJ22: 0.855 | FK22: 42.75 | FL22: 11.186 | FM22: 559.3 | FN22: ='[15]3'!FN22 -> 0.003 | FO22: ='[15]3'!FO22 -> 0.001 | FP22: ='[15]3'!FP22 -> 0 | FQ22: ='[15]3'!FQ22 -> 0 | FR22: ='[15]3'!FR22 -> 0 | FS22: ='[15]3'!FS22 -> 0.001 | FT22: 11.244 | FU22: 0.528 | FV22: 0 | FW22: 0 | FX22: 588.6 | FY22: 0.9 | FZ22: 45 | GA22: 12.672 | GB22: 633.6 | GC22: 53.678 | GD22: 2683.9 | GE22: 62.312 | GF22: 3115.6 | GG22: 115.99 | GH22: 5799.5 | GI22: 11 | GJ22: 107.937 | GK22: 5396.85 | GL22: 8.053 | GM22: 402.65
A23: 9 | B23: Манная крупа | C23: кг | D23: =[15]цены!E17 -> 50 | E23: ='[15]3'!E23 -> 0.006 | F23: ='[15]3'!F23 -> 0.004 | G23: ='[15]3'!G23 -> 0.00078 | H23: ='[15]3'!H23 -> 0 | I23: ='[15]3'!I23 -> 0 | J23: ='[15]3'!J23 -> 0 | K23: 14.91 | L23: 1.336 | M23: 0 | N23: 0 | O23: 812.3 | P23: 0 | Q23: 0 | R23: 16.246 | S23: 812.3 | T23: ='[15]3'!T23 -> 0.006 | U23: ='[15]3'!U23 -> 0.004 | V23: ='[15]3'!V23 -> 0.00078 | W23: ='[15]3'!W23 -> 0 | X23: ='[15]3'!X23 -> 0 | Y23: ='[15]3'!Y23 -> 0 | Z23: 20.394 | AA23: 0.896 | AB23: 0 | AC23: 0 | AD23: 1064.5 | AE23: 0 | AF23: 0 | AG23: 21.29 | AH23: 1064.5 | AI23: 0.006 | AJ23: 0.004 | AK23: 0.006 | AL23: 0.006 | AM23: 0.005 | AO23: 18.03 | AP23: 1.6 | AQ23: 0 | AR23: 0 | AS23: 981.5 | AT23: 0 | AU23: 0 | AV23: 19.63 | AW23: 981.5 | AX23: ='[15]3'!AX23 -> 0.006 | AY23: ='[15]3'!AY23 -> 0.004 | AZ23: ='[15]3'!AZ23 -> 0.00078 | BA23: ='[15]3'!BA23 -> 0 | BB23: ='[15]3'!BB23 -> 0 | BC23: ='[15]3'!BC23 -> 0 | BD23: 19.116 | BE23: 1.444 | BF23: 0 | BG23: 0 | BH23: 1028 | BI23: 0 | BJ23: 0 | BK23: 20.56 | BL23: 1028 | BM23: ='[15]3'!BM23 -> 0.006 | BN23: ='[15]3'!BN23 -> 0.004 | BO23: ='[15]3'!BO23 -> 0.00078 | BP23: ='[15]3'!BP23 -> 0 | BQ23: ='[15]3'!BQ23 -> 0 | BR23: ='[15]3'!BR23 -> 0 | BS23: 13.38 | BT23: 1.128 | BU23: 0 | BV23: 0 | BW23: 725.4 | BX23: 0 | BY23: 0 | BZ23: 14.508 | CA23: 725.4 | CB23: ='[15]3'!CB23 -> 0.006 | CC23: ='[15]3'!CC23 -> 0.004 | CD23: ='[15]3'!CD23 -> 0.00078 | CE23: ='[15]3'!CE23 -> 0 | CF23: ='[15]3'!CF23 -> 0 | CG23: ='[15]3'!CG23 -> 0 | CH23: 9.834 | CI23: 1.032 | CJ23: 0 | CK23: 0 | CL23: 543.3 | CM23: 0 | CN23: 0 | CO23: 10.866 | CP23: 543.3 | CQ23: ='[15]3'!CQ23 -> 0.006 | CR23: ='[15]3'!CR23 -> 0.004 | CS23: ='[15]3'!CS23 -> 0.00078 | CT23: ='[15]3'!CT23 -> 0 | CU23: ='[15]3'!CU23 -> 0 | CV23: ='[15]3'!CV23 -> 0 | CW23: 27.72 | CX23: 3.416 | CY23: 0 | CZ23: 0 | DA23: 1556.8 | DB23: 0 | DC23: 0 | DD23: 31.136 | DE23: 1556.8 | DF23: ='[15]3'!DF23 -> 0.006 | DG23: ='[15]3'!DG23 -> 0.004 | DH23: ='[15]3'!DH23 -> 0.00078 | DI23: ='[15]3'!DI23 -> 0 | DJ23: ='[15]3'!DJ23 -> 0 | DK23: ='[15]3'!DK23 -> 0 | DL23: 8.64 | DM23: 1.596 | DN23: 0 | DO23: 0 | DP23: 511.8 | DQ23: 0 | DR23: 0 | DS23: 10.236 | DT23: 511.8 | DU23: ='[15]3'!DU23 -> 0.006 | DV23: ='[15]3'!DV23 -> 0.004 | DW23: ='[15]3'!DW23 -> 0.00078 | DX23: ='[15]3'!DX23 -> 0 | DY23: ='[15]3'!DY23 -> 0 | DZ23: ='[15]3'!DZ23 -> 0 | EA23: 13.128 | EB23: 1.92 | EC23: 0 | ED23: 0 | EE23: 752.4 | EF23: 0 | EG23: 0 | EH23: 15.048 | EI23: 752.4 | EJ23: ='[15]3'!EJ23 -> 0.006 | EK23: ='[15]3'!EK23 -> 0.004 | EL23: ='[15]3'!EL23 -> 0.00078 | EM23: ='[15]3'!EM23 -> 0 | EN23: ='[15]3'!EN23 -> 0 | EO23: ='[15]3'!EO23 -> 0 | EP23: 18.312 | EQ23: 2.04 | ER23: 0 | ES23: 0 | ET23: 1017.6 | EU23: 0 | EV23: 0 | EW23: 20.352 | EX23: 1017.6 | EY23: ='[15]3'!EY23 -> 0.006 | EZ23: ='[15]3'!EZ23 -> 0.004 | FA23: ='[15]3'!FA23 -> 0.00078 | FB23: ='[15]3'!FB23 -> 0 | FC23: ='[15]3'!FC23 -> 0 | FD23: ='[15]3'!FD23 -> 0 | FE23: 19.668 | FF23: 1.988 | FG23: 0 | FH23: 0 | FI23: 1082.8 | FJ23: 0 | FK23: 0 | FL23: 21.656 | FM23: 1082.8 | FN23: ='[15]3'!FN23 -> 0.006 | FO23: ='[15]3'!FO23 -> 0.004 | FP23: ='[15]3'!FP23 -> 0.00078 | FQ23: ='[15]3'!FQ23 -> 0 | FR23: ='[15]3'!FR23 -> 0 | FS23: ='[15]3'!FS23 -> 0 | FT23: 22.488 | FU23: 2.112 | FV23: 0 | FW23: 0 | FX23: 1230 | FY23: 0 | FZ23: 0 | GA23: 24.6 | GB23: 1230 | GC23: 103.1 | GD23: 5155 | GE23: 123.028 | GF23: 6151.4 | GG23: 226.128 | GH23: 11306.4 | GI23: 11 | GJ23: 226.128 | GK23: 11306.4 | GL23: 0 | GM23: 0
A24: 10 | B24: Ячневая крупа | C24: кг | D24: =[15]цены!E18 -> 40.27 | E24: ='[15]3'!E24 -> 0.002 | F24: ='[15]3'!F24 -> 0.001 | G24: ='[15]3'!G24 -> 0 | H24: ='[15]3'!H24 -> 0 | I24: ='[15]3'!I24 -> 0 | J24: ='[15]3'!J24 -> 0 | K24: 4.97 | L24: 0.334 | M24: 0 | N24: 0 | O24: 213.59 | P24: 0 | Q24: 0 | R24: 5.304 | S24: 213.59 | T24: ='[15]3'!T24 -> 0.002 | U24: ='[15]3'!U24 -> 0.001 | V24: ='[15]3'!V24 -> 0 | W24: ='[15]3'!W24 -> 0 | X24: ='[15]3'!X24 -> 0 | Y24: ='[15]3'!Y24 -> 0 | Z24: 6.798 | AA24: 0.224 | AB24: 0 | AC24: 0 | AD24: 282.78 | AE24: 0 | AF24: 0 | AG24: 7.022 | AH24: 282.78 | AI24: 0.002 | AJ24: 0.001 | AK24: 0.002 | AL24: 0.002 | AM24: 0.001 | AO24: 6.01 | AP24: 0.4 | AQ24: 0 | AR24: 0 | AS24: 258.13 | AT24: 0 | AU24: 0 | AV24: 6.41 | AW24: 258.13 | AX24: ='[15]3'!AX24 -> 0.002 | AY24: ='[15]3'!AY24 -> 0.001 | AZ24: ='[15]3'!AZ24 -> 0 | BA24: ='[15]3'!BA24 -> 0 | BB24: ='[15]3'!BB24 -> 0 | BC24: ='[15]3'!BC24 -> 0 | BD24: 6.372 | BE24: 0.361 | BF24: 0 | BG24: 0 | BH24: 271.14 | BI24: 0 | BJ24: 0 | BK24: 6.733 | BL24: 271.14 | BM24: ='[15]3'!BM24 -> 0.002 | BN24: ='[15]3'!BN24 -> 0.001 | BO24: ='[15]3'!BO24 -> 0 | BP24: ='[15]3'!BP24 -> 0 | BQ24: ='[15]3'!BQ24 -> 0 | BR24: ='[15]3'!BR24 -> 0 | BS24: 4.46 | BT24: 0.282 | BU24: 0 | BV24: 0 | BW24: 190.96 | BX24: 0 | BY24: 0 | BZ24: 4.742 | CA24: 190.96 | CB24: ='[15]3'!CB24 -> 0.002 | CC24: ='[15]3'!CC24 -> 0.001 | CD24: ='[15]3'!CD24 -> 0 | CE24: ='[15]3'!CE24 -> 0 | CF24: ='[15]3'!CF24 -> 0 | CG24: ='[15]3'!CG24 -> 0 | CH24: 3.278 | CI24: 0.258 | CJ24: 0 | CK24: 0 | CL24: 142.39 | CM24: 0 | CN24: 0 | CO24: 3.536 | CP24: 142.39 | CQ24: ='[15]3'!CQ24 -> 0.002 | CR24: ='[15]3'!CR24 -> 0.001 | CS24: ='[15]3'!CS24 -> 0 | CT24: ='[15]3'!CT24 -> 0 | CU24: ='[15]3'!CU24 -> 0 | CV24: ='[15]3'!CV24 -> 0 | CW24: 9.24 | CX24: 0.854 | CY24: 0 | CZ24: 0 | DA24: 406.49 | DB24: 0 | DC24: 0 | DD24: 10.094 | DE24: 406.49 | DF24: ='[15]3'!DF24 -> 0.002 | DG24: ='[15]3'!DG24 -> 0.001 | DH24: ='[15]3'!DH24 -> 0 | DI24: ='[15]3'!DI24 -> 0 | DJ24: ='[15]3'!DJ24 -> 0 | DK24: ='[15]3'!DK24 -> 0 | DL24: 2.88 | DM24: 0.399 | DN24: 0 | DO24: 0 | DP24: 132.05 | DQ24: 0 | DR24: 0 | DS24: 3.279 | DT24: 132.05 | DU24: ='[15]3'!DU24 -> 0.002 | DV24: ='[15]3'!DV24 -> 0.001 | DW24: ='[15]3'!DW24 -> 0 | DX24: ='[15]3'!DX24 -> 0 | DY24: ='[15]3'!DY24 -> 0 | DZ24: ='[15]3'!DZ24 -> 0 | EA24: 4.376 | EB24: 0.48 | EC24: 0 | ED24: 0 | EE24: 195.55 | EF24: 0 | EG24: 0 | EH24: 4.856 | EI24: 195.55 | EJ24: ='[15]3'!EJ24 -> 0.002 | EK24: ='[15]3'!EK24 -> 0.001 | EL24: ='[15]3'!EL24 -> 0 | EM24: ='[15]3'!EM24 -> 0 | EN24: ='[15]3'!EN24 -> 0 | EO24: ='[15]3'!EO24 -> 0 | EP24: 6.104 | EQ24: 0.51 | ER24: 0 | ES24: 0 | ET24: 266.35 | EU24: 0 | EV24: 0 | EW24: 6.614 | EX24: 266.35 | EY24: ='[15]3'!EY24 -> 0.002 | EZ24: ='[15]3'!EZ24 -> 0.001 | FA24: ='[15]3'!FA24 -> 0 | FB24: ='[15]3'!FB24 -> 0 | FC24: ='[15]3'!FC24 -> 0 | FD24: ='[15]3'!FD24 -> 0 | FE24: 6.556 | FF24: 0.497 | FG24: 0 | FH24: 0 | FI24: 284.02 | FJ24: 0 | FK24: 0 | FL24: 7.053 | FM24: 284.02 | FN24: ='[15]3'!FN24 -> 0.002 | FO24: ='[15]3'!FO24 -> 0.001 | FP24: ='[15]3'!FP24 -> 0 | FQ24: ='[15]3'!FQ24 -> 0 | FR24: ='[15]3'!FR24 -> 0 | FS24: ='[15]3'!FS24 -> 0 | FT24: 7.496 | FU24: 0.528 | FV24: 0 | FW24: 0 | FX24: 323.13 | FY24: 0 | FZ24: 0 | GA24: 8.024 | GB24: 323.13 | GC24: 33.747 | GD24: 1358.99 | GE24: 39.92 | GF24: 1607.59 | GG24: 73.667 | GH24: 2966.58 | GI24: 11 | GJ24: 73.667 | GK24: 2966.58 | GL24: 0 | GM24: 0
A25: 11 | B25: Пшено | C25: кг | D25: =[15]цены!E19 -> 52.83 | E25: ='[15]3'!E25 -> 0.005 | F25: ='[15]3'!F25 -> 0.004 | G25: ='[15]3'!G25 -> 0 | H25: ='[15]3'!H25 -> 0 | I25: ='[15]3'!I25 -> 0 | J25: ='[15]3'!J25 -> 0 | K25: 12.425 | L25: 1.336 | M25: 0 | N25: 0 | O25: 726.99 | P25: 0 | Q25: 0 | R25: 13.761 | S25: 726.99 | T25: ='[15]3'!T25 -> 0.005 | U25: ='[15]3'!U25 -> 0.004 | V25: ='[15]3'!V25 -> 0 | W25: ='[15]3'!W25 -> 0 | X25: ='[15]3'!X25 -> 0 | Y25: ='[15]3'!Y25 -> 0 | Z25: 16.995 | AA25: 0.896 | AB25: 0 | AC25: 0 | AD25: 945.18 | AE25: 0 | AF25: 0 | AG25: 17.891 | AH25: 945.18 | AI25: 0.005 | AJ25: 0.004 | AK25: 0.005 | AL25: 0.005 | AM25: 0.002 | AO25: 15.025 | AP25: 1.6 | AQ25: 0 | AR25: 0 | AS25: 878.3 | AT25: 0 | AU25: 0 | AV25: 16.625 | AW25: 878.3 | AX25: ='[15]3'!AX25 -> 0.005 | AY25: ='[15]3'!AY25 -> 0.004 | AZ25: ='[15]3'!AZ25 -> 0 | BA25: ='[15]3'!BA25 -> 0 | BB25: ='[15]3'!BB25 -> 0 | BC25: ='[15]3'!BC25 -> 0 | BD25: 15.93 | BE25: 1.444 | BF25: 0 | BG25: 0 | BH25: 917.87 | BI25: 0 | BJ25: 0 | BK25: 17.374 | BL25: 917.87 | BM25: ='[15]3'!BM25 -> 0.005 | BN25: ='[15]3'!BN25 -> 0.004 | BO25: ='[15]3'!BO25 -> 0 | BP25: ='[15]3'!BP25 -> 0 | BQ25: ='[15]3'!BQ25 -> 0 | BR25: ='[15]3'!BR25 -> 0 | BS25: 11.15 | BT25: 1.128 | BU25: 0 | BV25: 0 | BW25: 648.65 | BX25: 0 | BY25: 0 | BZ25: 12.278 | CA25: 648.65 | CB25: ='[15]3'!CB25 -> 0.005 | CC25: ='[15]3'!CC25 -> 0.004 | CD25: ='[15]3'!CD25 -> 0 | CE25: ='[15]3'!CE25 -> 0 | CF25: ='[15]3'!CF25 -> 0 | CG25: ='[15]3'!CG25 -> 0 | CH25: 8.195 | CI25: 1.032 | CJ25: 0 | CK25: 0 | CL25: 487.46 | CM25: 0 | CN25: 0 | CO25: 9.227 | CP25: 487.46 | CQ25: ='[15]3'!CQ25 -> 0.005 | CR25: ='[15]3'!CR25 -> 0.004 | CS25: ='[15]3'!CS25 -> 0 | CT25: ='[15]3'!CT25 -> 0 | CU25: ='[15]3'!CU25 -> 0 | CV25: ='[15]3'!CV25 -> 0 | CW25: 23.1 | CX25: 3.416 | CY25: 0 | CZ25: 0 | DA25: 1400.84 | DB25: 0 | DC25: 0 | DD25: 26.516 | DE25: 1400.84 | DF25: ='[15]3'!DF25 -> 0.005 | DG25: ='[15]3'!DG25 -> 0.004 | DH25: ='[15]3'!DH25 -> 0 | DI25: ='[15]3'!DI25 -> 0 | DJ25: ='[15]3'!DJ25 -> 0 | DK25: ='[15]3'!DK25 -> 0 | DL25: 7.2 | DM25: 1.596 | DN25: 0 | DO25: 0 | DP25: 464.69 | DQ25: 0 | DR25: 0 | DS25: 8.796 | DT25: 464.69 | DU25: ='[15]3'!DU25 -> 0.005 | DV25: ='[15]3'!DV25 -> 0.004 | DW25: ='[15]3'!DW25 -> 0 | DX25: ='[15]3'!DX25 -> 0 | DY25: ='[15]3'!DY25 -> 0 | DZ25: ='[15]3'!DZ25 -> 0 | EA25: 10.94 | EB25: 1.92 | EC25: 0 | ED25: 0 | EE25: 679.39 | EF25: 0 | EG25: 0 | EH25: 12.86 | EI25: 679.39 | EJ25: ='[15]3'!EJ25 -> 0.005 | EK25: ='[15]3'!EK25 -> 0.004 | EL25: ='[15]3'!EL25 -> 0 | EM25: ='[15]3'!EM25 -> 0 | EN25: ='[15]3'!EN25 -> 0 | EO25: ='[15]3'!EO25 -> 0 | EP25: 15.26 | EQ25: 2.04 | ER25: 0 | ES25: 0 | ET25: 913.96 | EU25: 0 | EV25: 0 | EW25: 17.3 | EX25: 913.96 | EY25: ='[15]3'!EY25 -> 0.005 | EZ25: ='[15]3'!EZ25 -> 0.004 | FA25: ='[15]3'!FA25 -> 0 | FB25: ='[15]3'!FB25 -> 0 | FC25: ='[15]3'!FC25 -> 0 | FD25: ='[15]3'!FD25 -> 0 | FE25: 16.39 | FF25: 1.988 | FG25: 0 | FH25: 0 | FI25: 970.91 | FJ25: 0 | FK25: 0 | FL25: 18.378 | FM25: 970.91 | FN25: ='[15]3'!FN25 -> 0.005 | FO25: ='[15]3'!FO25 -> 0.004 | FP25: ='[15]3'!FP25 -> 0 | FQ25: ='[15]3'!FQ25 -> 0 | FR25: ='[15]3'!FR25 -> 0 | FS25: ='[15]3'!FS25 -> 0 | FT25: 18.74 | FU25: 2.112 | FV25: 0 | FW25: 0 | FX25: 1101.61 | FY25: 0 | FZ25: 0 | GA25: 20.852 | GB25: 1101.61 | GC25: 87.156 | GD25: 4604.45 | GE25: 104.702 | GF25: 5531.4 | GG25: 191.858 | GH25: 10135.85 | GI25: 11 | GJ25: 191.858 | GK25: 10135.85 | GL25: 0 | GM25: 0
A26: 12 | B26: Горох | C26: кг | D26: =[15]цены!E20 -> 46.17 | E26: ='[15]3'!E26 -> 0.002 | F26: ='[15]3'!F26 -> 0.003 | G26: ='[15]3'!G26 -> 0 | H26: ='[15]3'!H26 -> 0 | I26: ='[15]3'!I26 -> 0 | J26: ='[15]3'!J26 -> 0.01 | K26: 4.97 | L26: 1.002 | M26: 0 | N26: 0 | O26: 275.73 | P26: 5.88 | Q26: 271.48 | R26: 11.852 | S26: 547.21 | T26: ='[15]3'!T26 -> 0.002 | U26: ='[15]3'!U26 -> 0.003 | V26: ='[15]3'!V26 -> 0 | W26: ='[15]3'!W26 -> 0 | X26: ='[15]3'!X26 -> 0 | Y26: ='[15]3'!Y26 -> 0.01 | Z26: 6.798 | AA26: 0.672 | AB26: 0 | AC26: 0 | AD26: 344.89 | AE26: 6.8 | AF26: 313.96 | AG26: 14.27 | AH26: 658.85 | AI26: 0.002 | AJ26: 0.003 | AK26: 0.002 | AL26: 0.004 | AM26: 0.003 | AN26: 0.01 | AO26: 6.01 | AP26: 1.2 | AQ26: 0 | AR26: 0 | AS26: 332.89 | AT26: 8 | AU26: 369.36 | AV26: 15.21 | AW26: 702.25 | AX26: ='[15]3'!AX26 -> 0.002 | AY26: ='[15]3'!AY26 -> 0.003 | AZ26: ='[15]3'!AZ26 -> 0 | BA26: ='[15]3'!BA26 -> 0 | BB26: ='[15]3'!BB26 -> 0 | BC26: ='[15]3'!BC26 -> 0.01 | BD26: 6.372 | BE26: 1.083 | BF26: 0 | BG26: 0 | BH26: 344.2 | BI26: 6.84 | BJ26: 315.8 | BK26: 14.295 | BL26: 660 | BM26: ='[15]3'!BM26 -> 0.002 | BN26: ='[15]3'!BN26 -> 0.003 | BO26: ='[15]3'!BO26 -> 0 | BP26: ='[15]3'!BP26 -> 0 | BQ26: ='[15]3'!BQ26 -> 0 | BR26: ='[15]3'!BR26 -> 0.01 | BS26: 4.46 | BT26: 0.846 | BU26: 0 | BV26: 0 | BW26: 244.98 | BX26: 6.27 | BY26: 289.49 | BZ26: 11.576 | CA26: 534.47 | CB26: ='[15]3'!CB26 -> 0.002 | CC26: ='[15]3'!CC26 -> 0.003 | CD26: ='[15]3'!CD26 -> 0 | CE26: ='[15]3'!CE26 -> 0 | CF26: ='[15]3'!CF26 -> 0 | CG26: ='[15]3'!CG26 -> 0.01 | CH26: 3.278 | CI26: 0.774 | CJ26: 0 | CK26: 0 | CL26: 187.08 | CM26: 6.08 | CN26: 280.71 | CO26: 10.132 | CP26: 467.79 | CQ26: ='[15]3'!CQ26 -> 0.002 | CR26: ='[15]3'!CR26 -> 0.003 | CS26: ='[15]3'!CS26 -> 0 | CT26: ='[15]3'!CT26 -> 0 | CU26: ='[15]3'!CU26 -> 0 | CV26: ='[15]3'!CV26 -> 0.01 | CW26: 9.24 | CX26: 2.562 | CY26: 0 | CZ26: 0 | DA26: 544.9 | DB26: 4.94 | DC26: 228.08 | DD26: 16.742 | DE26: 772.98 | DF26: ='[15]3'!DF26 -> 0.002 | DG26: ='[15]3'!DG26 -> 0.003 | DH26: ='[15]3'!DH26 -> 0 | DI26: ='[15]3'!DI26 -> 0 | DJ26: ='[15]3'!DJ26 -> 0 | DK26: ='[15]3'!DK26 -> 0.01 | DL26: 2.88 | DM26: 1.197 | DN26: 0 | DO26: 0 | DP26: 188.24 | DQ26: 5.46 | DR26: 252.09 | DS26: 9.537 | DT26: 440.33 | DU26: ='[15]3'!DU26 -> 0.002 | DV26: ='[15]3'!DV26 -> 0.003 | DW26: ='[15]3'!DW26 -> 0 | DX26: ='[15]3'!DX26 -> 0 | DY26: ='[15]3'!DY26 -> 0 | DZ26: ='[15]3'!DZ26 -> 0.01 | EA26: 4.376 | EB26: 1.44 | EC26: 0 | ED26: 0 | EE26: 268.52 | EF26: 5.51 | EG26: 254.4 | EH26: 11.326 | EI26: 522.92 | EJ26: ='[15]3'!EJ26 -> 0.002 | EK26: ='[15]3'!EK26 -> 0.003 | EL26: ='[15]3'!EL26 -> 0 | EM26: ='[15]3'!EM26 -> 0 | EN26: ='[15]3'!EN26 -> 0 | EO26: ='[15]3'!EO26 -> 0.01 | EP26: 6.104 | EQ26: 1.53 | ER26: 0 | ES26: 0 | ET26: 352.46 | EU26: 7.2 | EV26: 332.42 | EW26: 14.834 | EX26: 684.88 | EY26: ='[15]3'!EY26 -> 0.002 | EZ26: ='[15]3'!EZ26 -> 0.003 | FA26: ='[15]3'!FA26 -> 0 | FB26: ='[15]3'!FB26 -> 0 | FC26: ='[15]3'!FC26 -> 0 | FD26: ='[15]3'!FD26 -> 0.01 | FE26: 6.556 | FF26: 1.491 | FG26: 0 | FH26: 0 | FI26: 371.53 | FJ26: 8.55 | FK26: 394.75 | FL26: 16.597 | FM26: 766.28 | FN26: ='[15]3'!FN26 -> 0.002 | FO26: ='[15]3'!FO26 -> 0.003 | FP26: ='[15]3'!FP26 -> 0 | FQ26: ='[15]3'!FQ26 -> 0 | FR26: ='[15]3'!FR26 -> 0 | FS26: ='[15]3'!FS26 -> 0.01 | FT26: 7.496 | FU26: 1.584 | FV26: 0 | FW26: 0 | FX26: 419.22 | FY26: 9 | FZ26: 415.53 | GA26: 18.08 | GB26: 834.75 | GC26: 77.335 | GD26: 3570.57 | GE26: 87.116 | GF26: 4022.14 | GG26: 164.451 | GH26: 7592.71 | GI26: 11 | GJ26: 83.921 | GK26: 3874.64 | GL26: 80.53 | GM26: 3718.07
